{"text_format":"1","workbook":"xlsx","n_sheets":4,"sheets":["改定履歴","Sheet1","Sheet2","iE_Setting"],"not_rendered":{"charts":0,"images":1,"macros":1,"external_links":0,"defined_names":2,"comments":0,"pivot_tables":0},"unopened":[],"bounds":{"document_bytes":16777216,"sheet_cells":100000,"rows_first":2000,"rows_last":500,"rows_between":2000,"halvings":0,"cell_chars":16384,"cell_head_chars":4096},"cells_cut":0,"cells_raw":0,"read":"whole","date_system":"1900"}

{"sheet":"改定履歴","index":0,"n_rows":9,"n_cols":10,"rows_kept":9,"cut":false,"hidden":false,"merged":[]}
[]
[null,"date","VER","内容",null,null,null,null,null,"作業者"]
[null,"2020-09-30","1.00","新規作成",null,null,null,null,null,"光永"]
[null,"2020-11-18",1.01,"フォームの変更",null,null,null,null,null,"光永"]
[null,"2020-11-26","1.02","フォームの変更",null,null,null,null,null,"豊田"]
[null,"2020-12-22",1.03,"ヘッダ削除その他微調整",null,null,null,null,null,"光永"]
[null,"2020-12-23","1.04","フォームの変更、その他微調整",null,null,null,null,null,"豊田"]
[null,"2021-05-27","1.05","ボタンの変更、フィルタ再設定、ウィンドウ枠の固定",null,null,null,null,null,"豊田"]
[null,"2021-08-16","1.06","入力中の行が選択中となっているのを分かりやすくした",null,null,null,null,null,"豊田"]

{"sheet":"Sheet1","index":1,"n_rows":944,"n_cols":120,"rows_kept":562,"cut":true,"hidden":false,"merged":[],"bounds":{"rows_first":250,"rows_last":62,"rows_between":250,"halvings":3}}
[]
[null,"棚卸一覧_2"]
[]
[null,null,"部門","00100",{"$f":"\"'\"&D4&\"'\"","v":"'00100'"},null,null,null,null,null,null,null,null,{"$f":"IF(M4=\"\",\"LIKE '%'\",\"LIKE '%\"&M4&\"%'\")","v":"LIKE '%'"}]
[null,null,"商品",null,{"$f":"_xlfn.SWITCH(D8,1,IF(D5=\"\",\"LIKE '%'\",\"like '%\"&D5&\"%'\"),2,IF(D5=\"\",\"LIKE '%'\",\"NOT LIKE '%\"&D5&\"%'\"),3,IF(D5=\"\",\"LIKE '%'\",\"LIKE '%\"&D5&\"%'\"))","v":"LIKE '%'"},null,null,null,null,null,null,null,null,{"$f":"IF(M5=\"\",\"LIKE '%'\",\"LIKE '%\"&M5&\"%'\")","v":"LIKE '%'"}]
[null,null,"材質",null,{"$f":"IF(D6=\"\",\"LIKE '%'\",\"LIKE '%\"&D6&\"%'\")","v":"LIKE '%'"},null,null,null,null,null,null,null,null,{"$f":"IF(M6=\"\",\"LIKE '%'\",\"LIKE '%\"&M6&\"%'\")","v":"LIKE '%'"}]
[null,null,"色調",null,{"$f":"IF(D7=\"\",\"LIKE '%'\",\"LIKE '%\"&D7&\"%'\")","v":"LIKE '%'"}]
[null,null,"切替",2,"1：コイル　2：コイル以外 3:商品指定",null,null,null,null,null,null,null,null,{"$f":"IF(M8=\"\",\"LIKE '%'\",\"LIKE '%\"&M8&\"%'\")","v":"LIKE '%'"}]
[null,null,null,null,"ロケーション：","P","シール済",{"$f":"MAX((DB:DB),(K:K),(P:P),(U:U),(Z:Z),(AE:AE),(AJ:AJ),(AO:AO),(AT:AT),(AY:AY),(BD:BD),(BI:BI),(BN:BN),(BS:BS),(BX:BX),(CC:CC),(CH:CH),(CM:CM),(CR:CR),(CW:CW))","v":209}]
[]
[null,null,"製品コード","製品名","材質","数量","在庫数","実棚数","差異","金額","SEQ","箱入数","箱数","バラ","小計","SEQ","箱入数","箱数","バラ","小計","SEQ","箱入数","箱数","バラ","小計","SEQ","箱入数","箱数","バラ","小計","SEQ","箱入数","箱数","バラ","小計","SEQ","箱入数","箱数","バラ","小計","SEQ","箱入数","箱数","バラ","小計","SEQ","箱入数","箱数","バラ","小計","SEQ","箱入数","箱数","バラ","小計","SEQ","箱入数","箱数","バラ","小計","SEQ","箱入数","箱数","バラ","小計","SEQ","箱入数","箱数","バラ","小計","SEQ","箱入数","箱数","バラ","小計","SEQ","箱入数","箱数","バラ","小計","SEQ","箱入数","箱数","バラ","小計","SEQ","箱入数","箱数","バラ","小計","SEQ","箱入数","箱数","バラ","小計","SEQ","箱入数","箱数","バラ","小計","SEQ","箱入数","箱数","バラ","小計","SEQ","箱入数","箱数","バラ","小計","備考","規格","色調名","板厚","幅","長さ","OP1","OP2"]
[1,{"$f":"C12&DH12","v":"BA01Z60000000000000000"},"BA01Z60","ＢＡ－１　タイトフレーム（Ｓ）","MF",{"$f":"O12+T12+Y12+AD12+AI12+AN12+AS12+AX12+BC12+BH12+BM12+BR12+BW12+CB12+CG12+CL12+CQ12+CV12+DA12+DF12","v":2504},2504,null,null,72.673320000000004,27,150,16,104,{"$f":"(L12*M12)+N12","v":2504},null,null,null,null,{"$f":"(Q12*R12)+S12","v":0},null,null,null,null,{"$f":"(V12*W12)+X12","v":0},null,null,null,null,{"$f":"(AA12*AB12)+AC12","v":0},null,null,null,null,{"$f":"(AF12*AG12)+AH12","v":0},null,null,null,null,{"$f":"(AK12*AL12)+AM12","v":0},null,null,null,null,{"$f":"(AP12*AQ12)+AR12","v":0},null,null,null,null,{"$f":"(AU12*AV12)+AW12","v":0},null,null,null,null,{"$f":"(AZ12*BA12)+BB12","v":0},null,null,null,null,{"$f":"(BE12*BF12)+BG12","v":0},null,null,null,null,{"$f":"(BJ12*BK12)+BL12","v":0},null,null,null,null,{"$f":"(BO12*BP12)+BQ12","v":0},null,null,null,null,{"$f":"(BT12*BU12)+BV12","v":0},null,null,null,null,{"$f":"(BY12*BZ12)+CA12","v":0},null,null,null,null,{"$f":"(CD12*CE12)+CF12","v":0},null,null,null,null,{"$f":"(CI12*CJ12)+CK12","v":0},null,null,null,null,{"$f":"(CN12*CO12)+CP12","v":0},null,null,null,null,{"$f":"(CS12*CT12)+CU12","v":0},null,null,null,null,{"$f":"(CX12*CY12)+CZ12","v":0},null,null,null,null,{"$f":"(DC12*DD12)+DE12","v":0},null,"000000000000000","00000","0.00","0","0","00","00",{"$f":"C12&E12&DP12&DJ12&DK12&DL12","v":"BA01Z60MF000000.0000"},"00000"]
[2,"BA01Z70000000000000000","BA01Z70","ＢＡ－１　ノンダスト金具","MF",0,1835,null,null,49.14472,null,null,null,null,0,null,null,null,null,0,null,null,null,null,0,null,null,null,null,0,null,null,null,null,0,null,null,null,null,0,null,null,null,null,0,null,null,null,null,0,null,null,null,null,0,null,null,null,null,0,null,null,null,null,0,null,null,null,null,0,null,null,null,null,0,null,null,null,null,0,null,null,null,null,0,null,null,null,null,0,null,null,null,null,0,null,null,null,null,0,null,null,null,null,0,null,null,null,null,0,null,"000000000000000","00000","0.00","0","0","00","00","BA01Z70MF000000.0000","00000"]
[3,"BA01Z71000000000000000","BA01Z71","ＢＡ－１　小波用ノンダスト金具","MF",0,279,null,null,60,null,null,null,null,0,null,null,null,null,0,null,null,null,null,0,null,null,null,null,0,null,null,null,null,0,null,null,null,null,0,null,null,null,null,0,null,null,null,null,0,null,null,null,null,0,null,null,null,null,0,null,null,null,null,0,null,null,null,null,0,null,null,null,null,0,null,null,null,null,0,null,null,null,null,0,null,null,null,null,0,null,null,null,null,0,null,null,null,null,0,null,null,null,null,0,null,null,null,null,0,null,"000000000000000","00000","0.00","0","0","00","00","BA01Z71MF000000.0000","00000"]
[4,"BA01Z72000000000000000","BA01Z72","ＢＡ－１　ノンダスト金具２","MF",0,879,null,null,40,null,null,null,null,0,null,null,null,null,0,null,null,null,null,0,null,null,null,null,0,null,null,null,null,0,null,null,null,null,0,null,null,null,null,0,null,null,null,null,0,null,null,null,null,0,null,null,null,null,0,null,null,null,null,0,null,null,null,null,0,null,null,null,null,0,null,null,null,null,0,null,null,null,null,0,null,null,null,null,0,null,null,null,null,0,null,null,null,null,0,null,null,null,null,0,null,null,null,null,0,null,"000000000000000","00000","0.00","0","0","00","00","BA01Z72MF000000.0000","00000"]
[5,"BR01S00BKM70.40228K240","BR01S00","ＢＲ－１　本体（しがらみジョイント）","CG",0,166,null,null,1168.7170599999999,null,null,null,null,0,null,null,null,null,0,null,null,null,null,0,null,null,null,null,0,null,null,null,null,0,null,null,null,null,0,null,null,null,null,0,null,null,null,null,0,null,null,null,null,0,null,null,null,null,0,null,null,null,null,0,null,null,null,null,0,null,null,null,null,0,null,null,null,null,0,null,null,null,null,0,null,null,null,null,0,null,null,null,null,0,null,null,null,null,0,null,null,null,null,0,null,null,null,null,0,null,"BKM70.40228K240","BKM70 サンライトＧＬＬ３０ＧＯＲＬ３０Ｇ（ＤＲＬ３０Ｇ","0.40","228","2400","96","00","BR01S00CGBKM700.402282400","BKM70"]
[6,"BR01S00SLGGN.40228K440","BR01S00","ＢＲ－１　本体（しがらみジョイント）","CG",0,174,null,null,2203.5862099999999,null,null,null,null,0,null,null,null,null,0,null,null,null,null,0,null,null,null,null,0,null,null,null,null,0,null,null,null,null,0,null,null,null,null,0,null,null,null,null,0,null,null,null,null,0,null,null,null,null,0,null,null,null,null,0,null,null,null,null,0,null,null,null,null,0,null,null,null,null,0,null,null,null,null,0,null,null,null,null,0,null,null,null,null,0,null,null,null,null,0,null,null,null,null,0,null,null,null,null,0,null,"SLGGN.40228K440","SLGGN GTNギングロ","0.40","228","4400","96","00","BR01S00CGSLGGN0.402284400","SLGGN"]
[7,"BR01S2000000.350000000","BR01S20","ＢＲ－１　継手捨板Ｂ（しがらみ）","CG",3685,3685,null,null,124.18247,29,100,4,85,485,30,100,32,0,3200,null,null,null,null,0,null,null,null,null,0,null,null,null,null,0,null,null,null,null,0,null,null,null,null,0,null,null,null,null,0,null,null,null,null,0,null,null,null,null,0,null,null,null,null,0,null,null,null,null,0,null,null,null,null,0,null,null,null,null,0,null,null,null,null,0,null,null,null,null,0,null,null,null,null,0,null,null,null,null,0,null,null,null,null,0,null,null,null,null,0,null,"00000.350000000","00000","0.35","0","0","00","00","BR01S20CG000000.3500","00000"]
[8,"BR01Z31BWV00.400000000","BR01Z31","ＢＲ－１　下り棟カバー（特殊寸法）","CG",0,80,null,null,222.83602999999999,null,null,null,null,0,null,null,null,null,0,null,null,null,null,0,null,null,null,null,0,null,null,null,null,0,null,null,null,null,0,null,null,null,null,0,null,null,null,null,0,null,null,null,null,0,null,null,null,null,0,null,null,null,null,0,null,null,null,null,0,null,null,null,null,0,null,null,null,null,0,null,null,null,null,0,null,null,null,null,0,null,null,null,null,0,null,null,null,null,0,null,null,null,null,0,null,null,null,null,0,null,"BWV00.400000000","BWV00 サンライトＧＬＤＲＮ３０Ｇ　茶","0.40","0","0","00","00","BR01Z31CGBWV000.4000","BWV00"]
[9,"BR01Z32000000000000003","BR01Z32","ＢＲ－１，１０，ＧＲ－８００　下り棟捨板","CG",0,409,null,null,205.40897000000001,null,null,null,null,0,null,null,null,null,0,null,null,null,null,0,null,null,null,null,0,null,null,null,null,0,null,null,null,null,0,null,null,null,null,0,null,null,null,null,0,null,null,null,null,0,null,null,null,null,0,null,null,null,null,0,null,null,null,null,0,null,null,null,null,0,null,null,null,null,0,null,null,null,null,0,null,null,null,null,0,null,null,null,null,0,null,null,null,null,0,null,null,null,null,0,null,null,null,null,0,null,"000000000000003","00000","0.00","0","0","00","00","BR01Z32CG000000.0000","00000"]
[10,"BR01Z40MK0100000000000","BR01Z40","ＢＲ１　雪止金具","MF",185,185,null,null,579.34671000000003,37,50,3,35,185,null,null,null,null,0,null,null,null,null,0,null,null,null,null,0,null,null,null,null,0,null,null,null,null,0,null,null,null,null,0,null,null,null,null,0,null,null,null,null,0,null,null,null,null,0,null,null,null,null,0,null,null,null,null,0,null,null,null,null,0,null,null,null,null,0,null,null,null,null,0,null,null,null,null,0,null,null,null,null,0,null,null,null,null,0,null,null,null,null,0,null,null,null,null,0,null,"MK0100000000000","MK010 亜鉛メッキ処理","0.00","0","0","00","00","BR01Z40MFMK0100.0000","MK010"]
[11,"BR01Z40SG0400000000001","BR01Z40","ＢＲ１　雪止金具","NS",185,185,null,null,955.27026999999998,38,50,3,35,185,null,null,null,null,0,null,null,null,null,0,null,null,null,null,0,null,null,null,null,0,null,null,null,null,0,null,null,null,null,0,null,null,null,null,0,null,null,null,null,0,null,null,null,null,0,null,null,null,null,0,null,null,null,null,0,null,null,null,null,0,null,null,null,null,0,null,null,null,null,0,null,null,null,null,0,null,null,null,null,0,null,null,null,null,0,null,null,null,null,0,null,null,null,null,0,null,"SG0400000000001","SG040 ステンレス素地","0.00","0","0","00","00","BR01Z40NSSG0400.0000","SG040"]
[12,"BR01Z41SG0400000000000","BR01Z41","ＢＲ１　雪止金具Ｍタイプ","NS",189,189,null,null,593.20635000000004,39,50,3,39,189,null,null,null,null,0,null,null,null,null,0,null,null,null,null,0,null,null,null,null,0,null,null,null,null,0,null,null,null,null,0,null,null,null,null,0,null,null,null,null,0,null,null,null,null,0,null,null,null,null,0,null,null,null,null,0,null,null,null,null,0,null,null,null,null,0,null,null,null,null,0,null,null,null,null,0,null,null,null,null,0,null,null,null,null,0,null,null,null,null,0,null,null,null,null,0,null,"SG0400000000000","SG040 ステンレス素地","0.00","0","0","00","00","BR01Z41NSSG0400.0000","SG040"]
[13,"BR01Z41SL7S00000000000","BR01Z41","ＢＲ１　雪止金具Ｍタイプ","NS",65,65,null,null,873.96923000000004,164,0,0,65,65,null,null,null,null,0,null,null,null,null,0,null,null,null,null,0,null,null,null,null,0,null,null,null,null,0,null,null,null,null,0,null,null,null,null,0,null,null,null,null,0,null,null,null,null,0,null,null,null,null,0,null,null,null,null,0,null,null,null,null,0,null,null,null,null,0,null,null,null,null,0,null,null,null,null,0,null,null,null,null,0,null,null,null,null,0,null,null,null,null,0,null,null,null,null,0,null,"SL7S00000000000","SL7S0 ニスクカラーpro GCM36ペールゴールド","0.00","0","0","00","00","BR01Z41NSSL7S00.0000","SL7S0"]
[14,"BR01Z42SG0400000000001","BR01Z42","ＢＲ１　雪止金具ＴＨタイプ","NS",867,867,null,null,163.21449999999999,34,100,8,67,867,null,null,null,null,0,null,null,null,null,0,null,null,null,null,0,null,null,null,null,0,null,null,null,null,0,null,null,null,null,0,null,null,null,null,0,null,null,null,null,0,null,null,null,null,0,null,null,null,null,0,null,null,null,null,0,null,null,null,null,0,null,null,null,null,0,null,null,null,null,0,null,null,null,null,0,null,null,null,null,0,null,null,null,null,0,null,null,null,null,0,null,null,null,null,0,null,"SG0400000000001","SG040 ステンレス素地","0.00","0","0","00","00","BR01Z42NSSG0400.0000","SG040"]
[15,"BR01Z4300000.350000000","BR01Z43","ＢＲ１　雪止用捨板ＴＨタイプ","CF",1034,1034,null,null,100.08954,33,50,20,34,1034,null,null,null,null,0,null,null,null,null,0,null,null,null,null,0,null,null,null,null,0,null,null,null,null,0,null,null,null,null,0,null,null,null,null,0,null,null,null,null,0,null,null,null,null,0,null,null,null,null,0,null,null,null,null,0,null,null,null,null,0,null,null,null,null,0,null,null,null,null,0,null,null,null,null,0,null,null,null,null,0,null,null,null,null,0,null,null,null,null,0,null,null,null,null,0,null,"00000.350000000","00000","0.35","0","0","00","00","BR01Z43CF000000.3500","00000"]
[16,"BR01Z45000000000000000","BR01Z45","ＢＲ－１，１０　雪止捨板","CE",673,673,null,null,129.01515000000001,36,50,13,23,673,null,null,null,null,0,null,null,null,null,0,null,null,null,null,0,null,null,null,null,0,null,null,null,null,0,null,null,null,null,0,null,null,null,null,0,null,null,null,null,0,null,null,null,null,0,null,null,null,null,0,null,null,null,null,0,null,null,null,null,0,null,null,null,null,0,null,null,null,null,0,null,null,null,null,0,null,null,null,null,0,null,null,null,null,0,null,null,null,null,0,null,null,null,null,0,null,"000000000000000","00000","0.00","0","0","00","00","BR01Z45CE000000.0000","00000"]
[17,"BR01Z45000000000000001","BR01Z45","ＢＲ－１，１０　雪止捨板","CF",278,278,null,null,127.03395,35,50,5,28,278,null,null,null,null,0,null,null,null,null,0,null,null,null,null,0,null,null,null,null,0,null,null,null,null,0,null,null,null,null,0,null,null,null,null,0,null,null,null,null,0,null,null,null,null,0,null,null,null,null,0,null,null,null,null,0,null,null,null,null,0,null,null,null,null,0,null,null,null,null,0,null,null,null,null,0,null,null,null,null,0,null,null,null,null,0,null,null,null,null,0,null,null,null,null,0,null,"000000000000001","00000","0.00","0","0","00","00","BR01Z45CF000000.0000","00000"]
[18,"BR01ZM0000000001009100","BR01ZM0","ＢＲ－１，一文字Ｓ　三角ＢＵ材","AP",0,38777,null,null,176.94042999999999,null,null,null,null,0,null,null,null,null,0,null,null,null,null,0,null,null,null,null,0,null,null,null,null,0,null,null,null,null,0,null,null,null,null,0,null,null,null,null,0,null,null,null,null,0,null,null,null,null,0,null,null,null,null,0,null,null,null,null,0,null,null,null,null,0,null,null,null,null,0,null,null,null,null,0,null,null,null,null,0,null,null,null,null,0,null,null,null,null,0,null,null,null,null,0,null,null,null,null,0,null,"000000001009100","00000","0.00","100","910","00","00","BR01ZM0AP000000.00100910","00000"]
[19,"BR07Z12000000000000000","BR07Z12","ＢＲ－７　吊子ＢＫ","NS",0,5088,null,null,54.861829999999998,null,null,null,null,0,null,null,null,null,0,null,null,null,null,0,null,null,null,null,0,null,null,null,null,0,null,null,null,null,0,null,null,null,null,0,null,null,null,null,0,null,null,null,null,0,null,null,null,null,0,null,null,null,null,0,null,null,null,null,0,null,null,null,null,0,null,null,null,null,0,null,null,null,null,0,null,null,null,null,0,null,null,null,null,0,null,null,null,null,0,null,null,null,null,0,null,null,null,null,0,null,"000000000000000","00000","0.00","0","0","00","00","BR07Z12NS000000.0000","00000"]
[20,"BR07Z13000000000000000","BR07Z13","ＢＲ－７　軒先吊子　（ＢＫ）","NS",0,496,null,null,156.48074,null,null,null,null,0,null,null,null,null,0,null,null,null,null,0,null,null,null,null,0,null,null,null,null,0,null,null,null,null,0,null,null,null,null,0,null,null,null,null,0,null,null,null,null,0,null,null,null,null,0,null,null,null,null,0,null,null,null,null,0,null,null,null,null,0,null,null,null,null,0,null,null,null,null,0,null,null,null,null,0,null,null,null,null,0,null,null,null,null,0,null,null,null,null,0,null,null,null,null,0,null,"000000000000000","00000","0.00","0","0","00","00","BR07Z13NS000000.0000","00000"]
[21,"BR07Z14000000000000000","BR07Z14","ＢＲ－７　吊子Ａ－２５．５φ","MF",0,1206,null,null,44.231340000000003,null,null,null,null,0,null,null,null,null,0,null,null,null,null,0,null,null,null,null,0,null,null,null,null,0,null,null,null,null,0,null,null,null,null,0,null,null,null,null,0,null,null,null,null,0,null,null,null,null,0,null,null,null,null,0,null,null,null,null,0,null,null,null,null,0,null,null,null,null,0,null,null,null,null,0,null,null,null,null,0,null,null,null,null,0,null,null,null,null,0,null,null,null,null,0,null,null,null,null,0,null,"000000000000000","00000","0.00","0","0","00","00","BR07Z14MF000000.0000","00000"]
[22,"BR07Z17000000000000000","BR07Z17","ＢＲ－７　吊子Ａ－２６．５φ","MF",0,978,null,null,31.37321,null,null,null,null,0,null,null,null,null,0,null,null,null,null,0,null,null,null,null,0,null,null,null,null,0,null,null,null,null,0,null,null,null,null,0,null,null,null,null,0,null,null,null,null,0,null,null,null,null,0,null,null,null,null,0,null,null,null,null,0,null,null,null,null,0,null,null,null,null,0,null,null,null,null,0,null,null,null,null,0,null,null,null,null,0,null,null,null,null,0,null,null,null,null,0,null,null,null,null,0,null,"000000000000000","00000","0.00","0","0","00","00","BR07Z17MF000000.0000","00000"]
[23,"BR07Z32000000000000000","BR07Z32","ＢＲ－７，９Ｎ　下り棟フレーム","MF",0,128,null,null,133,null,null,null,null,0,null,null,null,null,0,null,null,null,null,0,null,null,null,null,0,null,null,null,null,0,null,null,null,null,0,null,null,null,null,0,null,null,null,null,0,null,null,null,null,0,null,null,null,null,0,null,null,null,null,0,null,null,null,null,0,null,null,null,null,0,null,null,null,null,0,null,null,null,null,0,null,null,null,null,0,null,null,null,null,0,null,null,null,null,0,null,null,null,null,0,null,null,null,null,0,null,"000000000000000","00000","0.00","0","0","00","00","BR07Z32MF000000.0000","00000"]
[24,"BR07Z41000000000000000","BR07Z41","ＢＲ７　雪止Ｂセット下地金具（木毛板用）","MF",3,3,null,null,560,153,0,0,3,3,null,null,null,null,0,null,null,null,null,0,null,null,null,null,0,null,null,null,null,0,null,null,null,null,0,null,null,null,null,0,null,null,null,null,0,null,null,null,null,0,null,null,null,null,0,null,null,null,null,0,null,null,null,null,0,null,null,null,null,0,null,null,null,null,0,null,null,null,null,0,null,null,null,null,0,null,null,null,null,0,null,null,null,null,0,null,null,null,null,0,null,null,null,null,0,null,"000000000000000","00000","0.00","0","0","00","00","BR07Z41MF000000.0000","00000"]
[25,"BR07Z42MK0100000000000","BR07Z42","ＢＲ７，９Ｎ　雪止Ａセット　雪止金具１","MF",0,61,null,null,513.32570999999996,null,null,null,null,0,null,null,null,null,0,null,null,null,null,0,null,null,null,null,0,null,null,null,null,0,null,null,null,null,0,null,null,null,null,0,null,null,null,null,0,null,null,null,null,0,null,null,null,null,0,null,null,null,null,0,null,null,null,null,0,null,null,null,null,0,null,null,null,null,0,null,null,null,null,0,null,null,null,null,0,null,null,null,null,0,null,null,null,null,0,null,null,null,null,0,null,null,null,null,0,null,"MK0100000000000","MK010 亜鉛メッキ処理","0.00","0","0","00","00","BR07Z42MFMK0100.0000","MK010"]
[26,"BR07Z43MK0100000000000","BR07Z43","ＢＲ７，９Ｎ　雪止Ａセット　雪止金具２","MF",0,58,null,null,586.39535000000001,null,null,null,null,0,null,null,null,null,0,null,null,null,null,0,null,null,null,null,0,null,null,null,null,0,null,null,null,null,0,null,null,null,null,0,null,null,null,null,0,null,null,null,null,0,null,null,null,null,0,null,null,null,null,0,null,null,null,null,0,null,null,null,null,0,null,null,null,null,0,null,null,null,null,0,null,null,null,null,0,null,null,null,null,0,null,null,null,null,0,null,null,null,null,0,null,null,null,null,0,null,"MK0100000000000","MK010 亜鉛メッキ処理","0.00","0","0","00","00","BR07Z43MFMK0100.0000","MK010"]
[27,"BR07Z4400000.350000000","BR07Z44","ＢＲ７　雪止Ｂセット　雪止捨板","CE",65,65,null,null,145.10243,151,0,0,65,65,null,null,null,null,0,null,null,null,null,0,null,null,null,null,0,null,null,null,null,0,null,null,null,null,0,null,null,null,null,0,null,null,null,null,0,null,null,null,null,0,null,null,null,null,0,null,null,null,null,0,null,null,null,null,0,null,null,null,null,0,null,null,null,null,0,null,null,null,null,0,null,null,null,null,0,null,null,null,null,0,null,null,null,null,0,null,null,null,null,0,null,null,null,null,0,null,"00000.350000000","00000","0.35","0","0","00","00","BR07Z44CE000000.3500","00000"]
[28,"BR07Z73000000000000000","BR07Z73","ＢＲ－７，９Ｎ　棟金具Ａ","MF",0,16,null,null,310.05263000000002,null,null,null,null,0,null,null,null,null,0,null,null,null,null,0,null,null,null,null,0,null,null,null,null,0,null,null,null,null,0,null,null,null,null,0,null,null,null,null,0,null,null,null,null,0,null,null,null,null,0,null,null,null,null,0,null,null,null,null,0,null,null,null,null,0,null,null,null,null,0,null,null,null,null,0,null,null,null,null,0,null,null,null,null,0,null,null,null,null,0,null,null,null,null,0,null,null,null,null,0,null,"000000000000000","00000","0.00","0","0","00","00","BR07Z73MF000000.0000","00000"]
[29,"BR07Z74000000000000000","BR07Z74","ＢＲ－７，９Ｎ　棟金具Ｂ","MF",0,23,null,null,240,null,null,null,null,0,null,null,null,null,0,null,null,null,null,0,null,null,null,null,0,null,null,null,null,0,null,null,null,null,0,null,null,null,null,0,null,null,null,null,0,null,null,null,null,0,null,null,null,null,0,null,null,null,null,0,null,null,null,null,0,null,null,null,null,0,null,null,null,null,0,null,null,null,null,0,null,null,null,null,0,null,null,null,null,0,null,null,null,null,0,null,null,null,null,0,null,null,null,null,0,null,"000000000000000","00000","0.00","0","0","00","00","BR07Z74MF000000.0000","00000"]
[30,"BR07Z75000000000000000","BR07Z75","ＢＲ－７，９Ｎ　壁ステ谷金具（ウレＢＵ）","MF",0,10,null,null,145.03415000000001,null,null,null,null,0,null,null,null,null,0,null,null,null,null,0,null,null,null,null,0,null,null,null,null,0,null,null,null,null,0,null,null,null,null,0,null,null,null,null,0,null,null,null,null,0,null,null,null,null,0,null,null,null,null,0,null,null,null,null,0,null,null,null,null,0,null,null,null,null,0,null,null,null,null,0,null,null,null,null,0,null,null,null,null,0,null,null,null,null,0,null,null,null,null,0,null,null,null,null,0,null,"000000000000000","00000","0.00","0","0","00","00","BR07Z75MF000000.0000","00000"]
[31,"BR07Z78000000000000000","BR07Z78","ＢＲ－７，９　軒先金具","MF",0,934,null,null,35.37538,null,null,null,null,0,null,null,null,null,0,null,null,null,null,0,null,null,null,null,0,null,null,null,null,0,null,null,null,null,0,null,null,null,null,0,null,null,null,null,0,null,null,null,null,0,null,null,null,null,0,null,null,null,null,0,null,null,null,null,0,null,null,null,null,0,null,null,null,null,0,null,null,null,null,0,null,null,null,null,0,null,null,null,null,0,null,null,null,null,0,null,null,null,null,0,null,null,null,null,0,null,"000000000000000","00000","0.00","0","0","00","00","BR07Z78MF000000.0000","00000"]
[32,"BR07Z79000000000000000","BR07Z79","ＢＲ－７，９　軒先金具（ＢＫ用）","MF",0,24,null,null,23.04167,null,null,null,null,0,null,null,null,null,0,null,null,null,null,0,null,null,null,null,0,null,null,null,null,0,null,null,null,null,0,null,null,null,null,0,null,null,null,null,0,null,null,null,null,0,null,null,null,null,0,null,null,null,null,0,null,null,null,null,0,null,null,null,null,0,null,null,null,null,0,null,null,null,null,0,null,null,null,null,0,null,null,null,null,0,null,null,null,null,0,null,null,null,null,0,null,null,null,null,0,null,"000000000000000","00000","0.00","0","0","00","00","BR07Z79MF000000.0000","00000"]
[33,"BR07Z7A000000000000000","BR07Z7A","ＢＲ－７，９　ケラバ金具","MF",0,1565,null,null,35.877369999999999,null,null,null,null,0,null,null,null,null,0,null,null,null,null,0,null,null,null,null,0,null,null,null,null,0,null,null,null,null,0,null,null,null,null,0,null,null,null,null,0,null,null,null,null,0,null,null,null,null,0,null,null,null,null,0,null,null,null,null,0,null,null,null,null,0,null,null,null,null,0,null,null,null,null,0,null,null,null,null,0,null,null,null,null,0,null,null,null,null,0,null,null,null,null,0,null,null,null,null,0,null,"000000000000000","00000","0.00","0","0","00","00","BR07Z7AMF000000.0000","00000"]
[34,"BR07ZR000000000000K490","BR07ZR0","ＴＳＡタルキ（爪有　ＢＲ－７用）","MF",0,80,null,null,1004.48837,null,null,null,null,0,null,null,null,null,0,null,null,null,null,0,null,null,null,null,0,null,null,null,null,0,null,null,null,null,0,null,null,null,null,0,null,null,null,null,0,null,null,null,null,0,null,null,null,null,0,null,null,null,null,0,null,null,null,null,0,null,null,null,null,0,null,null,null,null,0,null,null,null,null,0,null,null,null,null,0,null,null,null,null,0,null,null,null,null,0,null,null,null,null,0,null,null,null,null,0,null,"00000000000K490","00000","0.00","0","4940","00","00","BR07ZR0MF000000.0004940","00000"]
[35,"BR07ZR100000000000K490","BR07ZR1","ＴＳＤタルキ（爪有　ＢＲ－７用）","MF",0,161,null,null,1220.25361,null,null,null,null,0,null,null,null,null,0,null,null,null,null,0,null,null,null,null,0,null,null,null,null,0,null,null,null,null,0,null,null,null,null,0,null,null,null,null,0,null,null,null,null,0,null,null,null,null,0,null,null,null,null,0,null,null,null,null,0,null,null,null,null,0,null,null,null,null,0,null,null,null,null,0,null,null,null,null,0,null,null,null,null,0,null,null,null,null,0,null,null,null,null,0,null,null,null,null,0,null,"00000000000K490","00000","0.00","0","4940","00","00","BR07ZR1MF000000.0004940","00000"]
[36,"BR09N10000000000000000","BR09N10","ＢＲ－９Ｎ　吊子９Ａ","NS",0,70,null,null,39.028570000000002,null,null,null,null,0,null,null,null,null,0,null,null,null,null,0,null,null,null,null,0,null,null,null,null,0,null,null,null,null,0,null,null,null,null,0,null,null,null,null,0,null,null,null,null,0,null,null,null,null,0,null,null,null,null,0,null,null,null,null,0,null,null,null,null,0,null,null,null,null,0,null,null,null,null,0,null,null,null,null,0,null,null,null,null,0,null,null,null,null,0,null,null,null,null,0,null,null,null,null,0,null,"000000000000000","00000","0.00","0","0","00","00","BR09N10NS000000.0000","00000"]
[37,"BR09N11000000000000001","BR09N11","ＢＲ－９Ｎ　吊子９Ｂ","MF",0,2500,null,null,64.949600000000004,null,null,null,null,0,null,null,null,null,0,null,null,null,null,0,null,null,null,null,0,null,null,null,null,0,null,null,null,null,0,null,null,null,null,0,null,null,null,null,0,null,null,null,null,0,null,null,null,null,0,null,null,null,null,0,null,null,null,null,0,null,null,null,null,0,null,null,null,null,0,null,null,null,null,0,null,null,null,null,0,null,null,null,null,0,null,null,null,null,0,null,null,null,null,0,null,null,null,null,0,null,"000000000000001","00000","0.00","0","0","00","00","BR09N11MF000000.0000","00000"]
[38,"BR09N12000000000000000","BR09N12","ＢＲ－９Ｎ　吊子９Ａ－２","NS",0,120,null,null,41,null,null,null,null,0,null,null,null,null,0,null,null,null,null,0,null,null,null,null,0,null,null,null,null,0,null,null,null,null,0,null,null,null,null,0,null,null,null,null,0,null,null,null,null,0,null,null,null,null,0,null,null,null,null,0,null,null,null,null,0,null,null,null,null,0,null,null,null,null,0,null,null,null,null,0,null,null,null,null,0,null,null,null,null,0,null,null,null,null,0,null,null,null,null,0,null,null,null,null,0,null,"000000000000000","00000","0.00","0","0","00","00","BR09N12NS000000.0000","00000"]
[39,"BR09N13000000000000001","BR09N13","ＢＲ－９Ｎ　吊子９Ｂ－２","NS",0,186,null,null,40.854840000000003,null,null,null,null,0,null,null,null,null,0,null,null,null,null,0,null,null,null,null,0,null,null,null,null,0,null,null,null,null,0,null,null,null,null,0,null,null,null,null,0,null,null,null,null,0,null,null,null,null,0,null,null,null,null,0,null,null,null,null,0,null,null,null,null,0,null,null,null,null,0,null,null,null,null,0,null,null,null,null,0,null,null,null,null,0,null,null,null,null,0,null,null,null,null,0,null,null,null,null,0,null,"000000000000001","00000","0.00","0","0","00","00","BR09N13NS000000.0000","00000"]
[40,"BR09N2100000.350000000","BR09N21","ＢＲ－９Ｎ　継手捨板","CE",0,20,null,null,168.75,null,null,null,null,0,null,null,null,null,0,null,null,null,null,0,null,null,null,null,0,null,null,null,null,0,null,null,null,null,0,null,null,null,null,0,null,null,null,null,0,null,null,null,null,0,null,null,null,null,0,null,null,null,null,0,null,null,null,null,0,null,null,null,null,0,null,null,null,null,0,null,null,null,null,0,null,null,null,null,0,null,null,null,null,0,null,null,null,null,0,null,null,null,null,0,null,null,null,null,0,null,"00000.350000000","00000","0.35","0","0","00","00","BR09N21CE000000.3500","00000"]
[41,"BR09N26000000000000000","BR09N26","ＢＲ－９Ｎ　ＨジョイナーＢ","NS",0,20,null,null,43.2,null,null,null,null,0,null,null,null,null,0,null,null,null,null,0,null,null,null,null,0,null,null,null,null,0,null,null,null,null,0,null,null,null,null,0,null,null,null,null,0,null,null,null,null,0,null,null,null,null,0,null,null,null,null,0,null,null,null,null,0,null,null,null,null,0,null,null,null,null,0,null,null,null,null,0,null,null,null,null,0,null,null,null,null,0,null,null,null,null,0,null,null,null,null,0,null,null,null,null,0,null,"000000000000000","00000","0.00","0","0","00","00","BR09N26NS000000.0000","00000"]
[42,"BR10Z10000000000000001","BR10Z10","ＢＲ－１０，ＢＲ－１　吊子","NS",1642,1642,null,null,10.760020000000001,61,600,2,442,1642,null,null,null,null,0,null,null,null,null,0,null,null,null,null,0,null,null,null,null,0,null,null,null,null,0,null,null,null,null,0,null,null,null,null,0,null,null,null,null,0,null,null,null,null,0,null,null,null,null,0,null,null,null,null,0,null,null,null,null,0,null,null,null,null,0,null,null,null,null,0,null,null,null,null,0,null,null,null,null,0,null,null,null,null,0,null,null,null,null,0,null,null,null,null,0,null,"000000000000001","00000","0.00","0","0","00","00","BR10Z10NS000000.0000","00000"]
[43,"BR10Z10000000000000002","BR10Z10","ＢＲ－１０，ＢＲ－１　吊子","CG",43519,43526,null,null,11.362970000000001,31,600,28,319,17119,32,600,44,0,26400,null,null,null,null,0,null,null,null,null,0,null,null,null,null,0,null,null,null,null,0,null,null,null,null,0,null,null,null,null,0,null,null,null,null,0,null,null,null,null,0,null,null,null,null,0,null,null,null,null,0,null,null,null,null,0,null,null,null,null,0,null,null,null,null,0,null,null,null,null,0,null,null,null,null,0,null,null,null,null,0,null,null,null,null,0,null,null,null,null,0,null,"000000000000002","00000","0.00","0","0","00","00","BR10Z10CG000000.0000","00000"]
[44,"BR10Z20BWKCN.400000000","BR10Z20","ＢＲ－１０　継手カバー","CG",20,20,null,null,231.6087,146,0,0,20,20,null,null,null,null,0,null,null,null,null,0,null,null,null,null,0,null,null,null,null,0,null,null,null,null,0,null,null,null,null,0,null,null,null,null,0,null,null,null,null,0,null,null,null,null,0,null,null,null,null,0,null,null,null,null,0,null,null,null,null,0,null,null,null,null,0,null,null,null,null,0,null,null,null,null,0,null,null,null,null,0,null,null,null,null,0,null,null,null,null,0,null,null,null,null,0,null,"BWKCN.400000000","BWKCN GTNコゲチャ","0.40","0","0","00","00","BR10Z20CGBWKCN0.4000","BWKCN"]
[45,"BR10Z25000000000000000","BR10Z25","ＢＲ－１０　ケラバ捨板（左）","CE",9,9,null,null,334.44443999999999,11,0,0,9,9,null,null,null,null,0,null,null,null,null,0,null,null,null,null,0,null,null,null,null,0,null,null,null,null,0,null,null,null,null,0,null,null,null,null,0,null,null,null,null,0,null,null,null,null,0,null,null,null,null,0,null,null,null,null,0,null,null,null,null,0,null,null,null,null,0,null,null,null,null,0,null,null,null,null,0,null,null,null,null,0,null,null,null,null,0,null,null,null,null,0,null,null,null,null,0,null,"000000000000000","00000","0.00","0","0","00","00","BR10Z25CE000000.0000","00000"]
[46,"BR10Z40BW5700000000000","BR10Z40","ＢＲ－１０，ＧＲ－８００雪止金具Ｍタイプ","NS",85,85,null,null,776,148,0,0,85,85,null,null,null,null,0,null,null,null,null,0,null,null,null,null,0,null,null,null,null,0,null,null,null,null,0,null,null,null,null,0,null,null,null,null,0,null,null,null,null,0,null,null,null,null,0,null,null,null,null,0,null,null,null,null,0,null,null,null,null,0,null,null,null,null,0,null,null,null,null,0,null,null,null,null,0,null,null,null,null,0,null,null,null,null,0,null,null,null,null,0,null,null,null,null,0,null,"BW5700000000000","BW570 サンライトＧＬＲＮ８１ＲＮ２０６２（ＯＲＮ８１／","0.00","0","0","00","00","BR10Z40NSBW5700.0000","BW570"]
[47,"BR10Z40GR9P00000000000","BR10Z40","ＢＲ－１０，ＧＲ－８００雪止金具Ｍタイプ","NS",107,107,null,null,926.80373999999995,158,0,0,107,107,null,null,null,null,0,null,null,null,null,0,null,null,null,null,0,null,null,null,null,0,null,null,null,null,0,null,null,null,null,0,null,null,null,null,0,null,null,null,null,0,null,null,null,null,0,null,null,null,null,0,null,null,null,null,0,null,null,null,null,0,null,null,null,null,0,null,null,null,null,0,null,null,null,null,0,null,null,null,null,0,null,null,null,null,0,null,null,null,null,0,null,null,null,null,0,null,"GR9P00000000000","GR9P0 サンライトＧＬＧＲＯ－２／　（ＲＧ１４０５）","0.00","0","0","00","00","BR10Z40NSGR9P00.0000","GR9P0"]
[48,"BR10Z40SG0400000000000","BR10Z40","ＢＲ－１０，ＧＲ－８００雪止金具Ｍタイプ","NS",0,357,null,null,594.19316000000003,null,null,null,null,0,null,null,null,null,0,null,null,null,null,0,null,null,null,null,0,null,null,null,null,0,null,null,null,null,0,null,null,null,null,0,null,null,null,null,0,null,null,null,null,0,null,null,null,null,0,null,null,null,null,0,null,null,null,null,0,null,null,null,null,0,null,null,null,null,0,null,null,null,null,0,null,null,null,null,0,null,null,null,null,0,null,null,null,null,0,null,null,null,null,0,null,null,null,null,0,null,"SG0400000000000","SG040 ステンレス素地","0.00","0","0","00","00","BR10Z40NSSG0400.0000","SG040"]
[49,"BR10Z40SL4G00000000000","BR10Z40","ＢＲ－１０，ＧＲ－８００雪止金具Ｍタイプ","NS",185,185,null,null,776,165,50,2,85,185,null,null,null,null,0,null,null,null,null,0,null,null,null,null,0,null,null,null,null,0,null,null,null,null,0,null,null,null,null,0,null,null,null,null,0,null,null,null,null,0,null,null,null,null,0,null,null,null,null,0,null,null,null,null,0,null,null,null,null,0,null,null,null,null,0,null,null,null,null,0,null,null,null,null,0,null,null,null,null,0,null,null,null,null,0,null,null,null,null,0,null,null,null,null,0,null,"SL4G00000000000","SL4G0 チヨダストロングカラーＶ３　ＧＪＥ０８／９０２","0.00","0","0","00","00","BR10Z40NSSL4G00.0000","SL4G0"]
[50,"BR10Z41BKK500000000000","BR10Z41","ＢＲ－１０，ＧＲ－８００　雪止金具","MF",17,17,null,null,1103.1176499999999,150,0,0,17,17,null,null,null,null,0,null,null,null,null,0,null,null,null,null,0,null,null,null,null,0,null,null,null,null,0,null,null,null,null,0,null,null,null,null,0,null,null,null,null,0,null,null,null,null,0,null,null,null,null,0,null,null,null,null,0,null,null,null,null,0,null,null,null,null,0,null,null,null,null,0,null,null,null,null,0,null,null,null,null,0,null,null,null,null,0,null,null,null,null,0,null,null,null,null,0,null,"BKK500000000000","BKK50 サンライトＧＬＲＮ８３ＲＮ２０６３（ＥＲＮ８３／","0.00","0","0","00","00","BR10Z41MFBKK500.0000","BKK50"]
[51,"BR10Z41GRVC00000000000","BR10Z41","ＢＲ－１０，ＧＲ－８００　雪止金具","MF",82,82,null,null,704.56097999999997,166,0,0,82,82,null,null,null,null,0,null,null,null,null,0,null,null,null,null,0,null,null,null,null,0,null,null,null,null,0,null,null,null,null,0,null,null,null,null,0,null,null,null,null,0,null,null,null,null,0,null,null,null,null,0,null,null,null,null,0,null,null,null,null,0,null,null,null,null,0,null,null,null,null,0,null,null,null,null,0,null,null,null,null,0,null,null,null,null,0,null,null,null,null,0,null,null,null,null,0,null,"GRVC00000000000","GRVC0 ニスクフロンＳＧＬ　ＦＧ１０４Ｓロクショウ","0.00","0","0","00","00","BR10Z41MFGRVC00.0000","GRVC0"]
[52,"BR10Z41MK0100000000000","BR10Z41","ＢＲ－１０，ＧＲ－８００　雪止金具","MF",0,1914,null,null,526.18075999999996,null,null,null,null,0,null,null,null,null,0,null,null,null,null,0,null,null,null,null,0,null,null,null,null,0,null,null,null,null,0,null,null,null,null,0,null,null,null,null,0,null,null,null,null,0,null,null,null,null,0,null,null,null,null,0,null,null,null,null,0,null,null,null,null,0,null,null,null,null,0,null,null,null,null,0,null,null,null,null,0,null,null,null,null,0,null,null,null,null,0,null,null,null,null,0,null,null,null,null,0,null,"MK0100000000000","MK010 亜鉛メッキ処理","0.00","0","0","00","00","BR10Z41MFMK0100.0000","MK010"]
[53,"BR10Z41SG0400000000001","BR10Z41","ＢＲ－１０，ＧＲ－８００　雪止金具","NS",0,587,null,null,977.05068000000006,null,null,null,null,0,null,null,null,null,0,null,null,null,null,0,null,null,null,null,0,null,null,null,null,0,null,null,null,null,0,null,null,null,null,0,null,null,null,null,0,null,null,null,null,0,null,null,null,null,0,null,null,null,null,0,null,null,null,null,0,null,null,null,null,0,null,null,null,null,0,null,null,null,null,0,null,null,null,null,0,null,null,null,null,0,null,null,null,null,0,null,null,null,null,0,null,null,null,null,0,null,"SG0400000000001","SG040 ステンレス素地","0.00","0","0","00","00","BR10Z41NSSG0400.0000","SG040"]
[54,"BR10ZM1000000001009100","BR10ZM1","ＢＲ－１０，ＧＲ－・８００　三角ＢＵ材","AP",0,54646,null,null,215.16194999999999,null,null,null,null,0,null,null,null,null,0,null,null,null,null,0,null,null,null,null,0,null,null,null,null,0,null,null,null,null,0,null,null,null,null,0,null,null,null,null,0,null,null,null,null,0,null,null,null,null,0,null,null,null,null,0,null,null,null,null,0,null,null,null,null,0,null,null,null,null,0,null,null,null,null,0,null,null,null,null,0,null,null,null,null,0,null,null,null,null,0,null,null,null,null,0,null,null,null,null,0,null,"000000001009100","00000","0.00","100","910","00","00","BR10ZM1AP000000.00100910","00000"]
[55,"BR10ZM200000000240K210","BR10ZM2","ＢＲ－１０Ｄ，ＧＲ－８００Ｄ　断熱ＢＵ材","AH",0,26,null,null,326.55351000000002,null,null,null,null,0,null,null,null,null,0,null,null,null,null,0,null,null,null,null,0,null,null,null,null,0,null,null,null,null,0,null,null,null,null,0,null,null,null,null,0,null,null,null,null,0,null,null,null,null,0,null,null,null,null,0,null,null,null,null,0,null,null,null,null,0,null,null,null,null,0,null,null,null,null,0,null,null,null,null,0,null,null,null,null,0,null,null,null,null,0,null,null,null,null,0,null,null,null,null,0,null,"00000000240K210","00000","0.00","240","2100","00","00","BR10ZM2AH000000.002402100","00000"]
[56,"BR10ZR100000000000K500","BR10ZR1","ＴＷ複合タルキ（爪有　ＢＲ－１０用）","MF",0,32,null,null,2008.65625,null,null,null,null,0,null,null,null,null,0,null,null,null,null,0,null,null,null,null,0,null,null,null,null,0,null,null,null,null,0,null,null,null,null,0,null,null,null,null,0,null,null,null,null,0,null,null,null,null,0,null,null,null,null,0,null,null,null,null,0,null,null,null,null,0,null,null,null,null,0,null,null,null,null,0,null,null,null,null,0,null,null,null,null,0,null,null,null,null,0,null,null,null,null,0,null,null,null,null,0,null,"00000000000K500","00000","0.00","0","5040","00","00","BR10ZR1MF000000.0005040","00000"]
[57,"BR11S2000000.350000000","BR11S20","ＢＲ－１１　継手捨板（しがらみ用）ＢＵ付","CG",537,3737,null,null,182.62804,105,50,10,37,537,null,null,null,null,0,null,null,null,null,0,null,null,null,null,0,null,null,null,null,0,null,null,null,null,0,null,null,null,null,0,null,null,null,null,0,null,null,null,null,0,null,null,null,null,0,null,null,null,null,0,null,null,null,null,0,null,null,null,null,0,null,null,null,null,0,null,null,null,null,0,null,null,null,null,0,null,null,null,null,0,null,null,null,null,0,null,null,null,null,0,null,null,null,null,0,null,"00000.350000000","00000","0.35","0","0","00","00","BR11S20CG000000.3500","00000"]
[58,"BR11S2100000.350000000","BR11S21","ＢＲ－１１　継手捨板（しがらみ用）ＢＵ無","CG",2619,2619,null,null,111.84994,104,100,26,19,2619,null,null,null,null,0,null,null,null,null,0,null,null,null,null,0,null,null,null,null,0,null,null,null,null,0,null,null,null,null,0,null,null,null,null,0,null,null,null,null,0,null,null,null,null,0,null,null,null,null,0,null,null,null,null,0,null,null,null,null,0,null,null,null,null,0,null,null,null,null,0,null,null,null,null,0,null,null,null,null,0,null,null,null,null,0,null,null,null,null,0,null,null,null,null,0,null,"00000.350000000","00000","0.35","0","0","00","00","BR11S21CG000000.3500","00000"]
[59,"BR11Z00BKBKN.40182K360","BR11Z00","ＢＲ－１１　本体","CG",0,15,null,null,1557.73333,null,null,null,null,0,null,null,null,null,0,null,null,null,null,0,null,null,null,null,0,null,null,null,null,0,null,null,null,null,0,null,null,null,null,0,null,null,null,null,0,null,null,null,null,0,null,null,null,null,0,null,null,null,null,0,null,null,null,null,0,null,null,null,null,0,null,null,null,null,0,null,null,null,null,0,null,null,null,null,0,null,null,null,null,0,null,null,null,null,0,null,null,null,null,0,null,null,null,null,0,null,"BKBKN.40182K360","BKBKN GTNブラック","0.40","182","3640","98","00","BR11Z00CGBKBKN0.401823640","BKBKN"]
[60,"BR11Z00BWM40.40182K360","BR11Z00","ＢＲ－１１　本体","CG",0,4,null,null,6952.25,null,null,null,null,0,null,null,null,null,0,null,null,null,null,0,null,null,null,null,0,null,null,null,null,0,null,null,null,null,0,null,null,null,null,0,null,null,null,null,0,null,null,null,null,0,null,null,null,null,0,null,null,null,null,0,null,null,null,null,0,null,null,null,null,0,null,null,null,null,0,null,null,null,null,0,null,null,null,null,0,null,null,null,null,0,null,null,null,null,0,null,null,null,null,0,null,null,null,null,0,null,"BWM40.40182K360","BWM40 サンライトＧＬＲＲ８０　ＲＲ２０４６（ＯＲＲ８０","0.40","182","3640","98","00","BR11Z00CGBWM400.401823640","BWM40"]
[61,"BR11Z00RNGL0.45182K360","BR11Z00","ＢＲ－１１　本体","FG",0,351,null,null,2008.47578,null,null,null,null,0,null,null,null,null,0,null,null,null,null,0,null,null,null,null,0,null,null,null,null,0,null,null,null,null,0,null,null,null,null,0,null,null,null,null,0,null,null,null,null,0,null,null,null,null,0,null,null,null,null,0,null,null,null,null,0,null,null,null,null,0,null,null,null,null,0,null,null,null,null,0,null,null,null,null,0,null,null,null,null,0,null,null,null,null,0,null,null,null,null,0,null,null,null,null,0,null,"RNGL0.45182K360","RNGL0 ＲＮＯ－７（レンガ）ＦＲ１４２６／ＲＡ１４２３","0.45","182","3640","98","00","BR11Z00FGRNGL00.451823640","RNGL0"]
[62,"BR11Z00SLGGN.40182K360","BR11Z00","ＢＲ－１１　本体","CG",0,201,null,null,1605.7910400000001,null,null,null,null,0,null,null,null,null,0,null,null,null,null,0,null,null,null,null,0,null,null,null,null,0,null,null,null,null,0,null,null,null,null,0,null,null,null,null,0,null,null,null,null,0,null,null,null,null,0,null,null,null,null,0,null,null,null,null,0,null,null,null,null,0,null,null,null,null,0,null,null,null,null,0,null,null,null,null,0,null,null,null,null,0,null,null,null,null,0,null,null,null,null,0,null,null,null,null,0,null,"SLGGN.40182K360","SLGGN GTNギングロ","0.40","182","3640","98","00","BR11Z00CGSLGGN0.401823640","SLGGN"]
[63,"BR11Z10000000000000000","BR11Z10","ＢＲ－１１　吊子","MF",92,92,null,null,8.1630400000000005,16,0,0,92,92,null,null,null,null,0,null,null,null,null,0,null,null,null,null,0,null,null,null,null,0,null,null,null,null,0,null,null,null,null,0,null,null,null,null,0,null,null,null,null,0,null,null,null,null,0,null,null,null,null,0,null,null,null,null,0,null,null,null,null,0,null,null,null,null,0,null,null,null,null,0,null,null,null,null,0,null,null,null,null,0,null,null,null,null,0,null,null,null,null,0,null,null,null,null,0,null,"000000000000000","00000","0.00","0","0","00","00","BR11Z10MF000000.0000","00000"]
[64,"BR11Z10000000000000001","BR11Z10","ＢＲ－１１　吊子","NS",57535,57538,null,null,11.02901,113,1000,13,535,13535,114,1000,44,0,44000,null,null,null,null,0,null,null,null,null,0,null,null,null,null,0,null,null,null,null,0,null,null,null,null,0,null,null,null,null,0,null,null,null,null,0,null,null,null,null,0,null,null,null,null,0,null,null,null,null,0,null,null,null,null,0,null,null,null,null,0,null,null,null,null,0,null,null,null,null,0,null,null,null,null,0,null,null,null,null,0,null,null,null,null,0,null,null,null,null,0,null,"000000000000001","00000","0.00","0","0","00","00","BR11Z10NS000000.0000","00000"]
[65,{"$f":"C76&DH76","v":"BR11Z10000000000000002"},"BR11Z10","ＢＲ－１１　吊子","CG",{"$f":"O76+T76+Y76+AD76+AI76+AN76+AS76+AX76+BC76+BH76+BM76+BR76+BW76+CB76+CG76+CL76+CQ76+CV76+DA76+DF76","v":148344},148344,null,null,11.126379999999999,116,1000,11,734,{"$f":"(L76*M76)+N76","v":11734},117,1000,44,0,{"$f":"(Q76*R76)+S76","v":44000},118,1000,44,0,{"$f":"(V76*W76)+X76","v":44000},119,1000,44,0,{"$f":"(AA76*AB76)+AC76","v":44000},120,1000,4,610,{"$f":"(AF76*AG76)+AH76","v":4610},null,null,null,null,{"$f":"(AK76*AL76)+AM76","v":0},null,null,null,null,{"$f":"(AP76*AQ76)+AR76","v":0},null,null,null,null,{"$f":"(AU76*AV76)+AW76","v":0},null,null,null,null,{"$f":"(AZ76*BA76)+BB76","v":0},null,null,null,null,{"$f":"(BE76*BF76)+BG76","v":0},null,null,null,null,{"$f":"(BJ76*BK76)+BL76","v":0},null,null,null,null,{"$f":"(BO76*BP76)+BQ76","v":0},null,null,null,null,{"$f":"(BT76*BU76)+BV76","v":0},null,null,null,null,{"$f":"(BY76*BZ76)+CA76","v":0},null,null,null,null,{"$f":"(CD76*CE76)+CF76","v":0},null,null,null,null,{"$f":"(CI76*CJ76)+CK76","v":0},null,null,null,null,{"$f":"(CN76*CO76)+CP76","v":0},null,null,null,null,{"$f":"(CS76*CT76)+CU76","v":0},null,null,null,null,{"$f":"(CX76*CY76)+CZ76","v":0},null,null,null,null,{"$f":"(DC76*DD76)+DE76","v":0},null,"000000000000002","00000","0.00","0","0","00","00",{"$f":"C76&E76&DP76&DJ76&DK76&DL76","v":"BR11Z10CG000000.0000"},"00000"]
[66,"BR11Z20SLGGN.400000000","BR11Z20","ＢＲ－１１　継手カバー","CG",185,185,null,null,167.94595000000001,157,0,0,185,185,null,null,null,null,0,null,null,null,null,0,null,null,null,null,0,null,null,null,null,0,null,null,null,null,0,null,null,null,null,0,null,null,null,null,0,null,null,null,null,0,null,null,null,null,0,null,null,null,null,0,null,null,null,null,0,null,null,null,null,0,null,null,null,null,0,null,null,null,null,0,null,null,null,null,0,null,null,null,null,0,null,null,null,null,0,null,null,null,null,0,null,null,null,null,0,null,"SLGGN.400000000","SLGGN GTNギングロ","0.40","0","0","00","00","BR11Z20CGSLGGN0.4000","SLGGN"]
[67,"BR11Z21000000000000000","BR11Z21","ＢＲ－１１　継手捨板","CE",270,270,null,null,130.38518999999999,115,100,2,70,270,null,null,null,null,0,null,null,null,null,0,null,null,null,null,0,null,null,null,null,0,null,null,null,null,0,null,null,null,null,0,null,null,null,null,0,null,null,null,null,0,null,null,null,null,0,null,null,null,null,0,null,null,null,null,0,null,null,null,null,0,null,null,null,null,0,null,null,null,null,0,null,null,null,null,0,null,null,null,null,0,null,null,null,null,0,null,null,null,null,0,null,null,null,null,0,null,"000000000000000","00000","0.00","0","0","00","00","BR11Z21CE000000.0000","00000"]
[68,"BR11Z21000000000000002","BR11Z21","ＢＲ－１１　継手捨板","CG",3645,6525,null,null,150.12628000000001,121,100,11,25,1125,122,100,22,0,2200,123,10,32,0,320,null,null,null,null,0,null,null,null,null,0,null,null,null,null,0,null,null,null,null,0,null,null,null,null,0,null,null,null,null,0,null,null,null,null,0,null,null,null,null,0,null,null,null,null,0,null,null,null,null,0,null,null,null,null,0,null,null,null,null,0,null,null,null,null,0,null,null,null,null,0,null,null,null,null,0,null,null,null,null,0,null,null,null,null,0,null,"000000000000002","00000","0.00","0","0","00","00","BR11Z21CG000000.0000","00000"]
[69,"BR11Z31000000000000000","BR11Z31","ＢＲ－１１　下り棟捨板","CE",109,109,null,null,186.20183,111,90,1,19,109,null,null,null,null,0,null,null,null,null,0,null,null,null,null,0,null,null,null,null,0,null,null,null,null,0,null,null,null,null,0,null,null,null,null,0,null,null,null,null,0,null,null,null,null,0,null,null,null,null,0,null,null,null,null,0,null,null,null,null,0,null,null,null,null,0,null,null,null,null,0,null,null,null,null,0,null,null,null,null,0,null,null,null,null,0,null,null,null,null,0,null,null,null,null,0,null,"000000000000000","00000","0.00","0","0","00","00","BR11Z31CE000000.0000","00000"]
[70,"BR11Z31000000000000002","BR11Z31","ＢＲ－１１　下り棟捨板","NU",0,107,null,null,227.83178000000001,null,null,null,null,0,null,null,null,null,0,null,null,null,null,0,null,null,null,null,0,null,null,null,null,0,null,null,null,null,0,null,null,null,null,0,null,null,null,null,0,null,null,null,null,0,null,null,null,null,0,null,null,null,null,0,null,null,null,null,0,null,null,null,null,0,null,null,null,null,0,null,null,null,null,0,null,null,null,null,0,null,null,null,null,0,null,null,null,null,0,null,null,null,null,0,null,null,null,null,0,null,"000000000000002","00000","0.00","0","0","00","00","BR11Z31NU000000.0000","00000"]
[71,"BR11Z31000000000000003","BR11Z31","ＢＲ－１１　下り棟捨板","CG",198,198,null,null,172.34343000000001,110,90,2,18,198,null,null,null,null,0,null,null,null,null,0,null,null,null,null,0,null,null,null,null,0,null,null,null,null,0,null,null,null,null,0,null,null,null,null,0,null,null,null,null,0,null,null,null,null,0,null,null,null,null,0,null,null,null,null,0,null,null,null,null,0,null,null,null,null,0,null,null,null,null,0,null,null,null,null,0,null,null,null,null,0,null,null,null,null,0,null,null,null,null,0,null,null,null,null,0,null,"000000000000003","00000","0.00","0","0","00","00","BR11Z31CG000000.0000","00000"]
[72,"BR11Z40BWGX00000000000","BR11Z40","ＢＲ－１１　雪止金具","MF",35,35,null,null,786,154,0,0,35,35,null,null,null,null,0,null,null,null,null,0,null,null,null,null,0,null,null,null,null,0,null,null,null,null,0,null,null,null,null,0,null,null,null,null,0,null,null,null,null,0,null,null,null,null,0,null,null,null,null,0,null,null,null,null,0,null,null,null,null,0,null,null,null,null,0,null,null,null,null,0,null,null,null,null,0,null,null,null,null,0,null,null,null,null,0,null,null,null,null,0,null,null,null,null,0,null,"BWGX00000000000","BWGX0 ＢＷＯ－１焼付塗装","0.00","0","0","00","00","BR11Z40MFBWGX00.0000","BWGX0"]
[73,"BR11Z40MK0100000000000","BR11Z40","ＢＲ－１１　雪止金具","MF",508,508,null,null,548.84645999999998,112,50,10,8,508,null,null,null,null,0,null,null,null,null,0,null,null,null,null,0,null,null,null,null,0,null,null,null,null,0,null,null,null,null,0,null,null,null,null,0,null,null,null,null,0,null,null,null,null,0,null,null,null,null,0,null,null,null,null,0,null,null,null,null,0,null,null,null,null,0,null,null,null,null,0,null,null,null,null,0,null,null,null,null,0,null,null,null,null,0,null,null,null,null,0,null,null,null,null,0,null,"MK0100000000000","MK010 亜鉛メッキ処理","0.00","0","0","00","00","BR11Z40MFMK0100.0000","MK010"]
[74,"BR11Z40SG0400000000001","BR11Z40","ＢＲ－１１　雪止金具","NS",372,372,null,null,1025.9758099999999,107,50,7,22,372,null,null,null,null,0,null,null,null,null,0,null,null,null,null,0,null,null,null,null,0,null,null,null,null,0,null,null,null,null,0,null,null,null,null,0,null,null,null,null,0,null,null,null,null,0,null,null,null,null,0,null,null,null,null,0,null,null,null,null,0,null,null,null,null,0,null,null,null,null,0,null,null,null,null,0,null,null,null,null,0,null,null,null,null,0,null,null,null,null,0,null,null,null,null,0,null,"SG0400000000001","SG040 ステンレス素地","0.00","0","0","00","00","BR11Z40NSSG0400.0000","SG040"]
[75,"BR11Z41BKK500000000000","BR11Z41","ＢＲ－１１　雪止金具Ｍタイプ","NS",70,70,null,null,776,149,0,0,70,70,null,null,null,null,0,null,null,null,null,0,null,null,null,null,0,null,null,null,null,0,null,null,null,null,0,null,null,null,null,0,null,null,null,null,0,null,null,null,null,0,null,null,null,null,0,null,null,null,null,0,null,null,null,null,0,null,null,null,null,0,null,null,null,null,0,null,null,null,null,0,null,null,null,null,0,null,null,null,null,0,null,null,null,null,0,null,null,null,null,0,null,null,null,null,0,null,"BKK500000000000","BKK50 サンライトＧＬＲＮ８３ＲＮ２０６３（ＥＲＮ８３／","0.00","0","0","00","00","BR11Z41NSBKK500.0000","BKK50"]
[76,"BR11Z41SG0400000000000","BR11Z41","ＢＲ－１１　雪止金具Ｍタイプ","NS",537,537,null,null,623.84730000000002,108,50,10,37,537,null,null,null,null,0,null,null,null,null,0,null,null,null,null,0,null,null,null,null,0,null,null,null,null,0,null,null,null,null,0,null,null,null,null,0,null,null,null,null,0,null,null,null,null,0,null,null,null,null,0,null,null,null,null,0,null,null,null,null,0,null,null,null,null,0,null,null,null,null,0,null,null,null,null,0,null,null,null,null,0,null,null,null,null,0,null,null,null,null,0,null,null,null,null,0,null,"SG0400000000000","SG040 ステンレス素地","0.00","0","0","00","00","BR11Z41NSSG0400.0000","SG040"]
[77,"BR11Z42MK0100000000000","BR11Z42","ＢＲ－１１　後付雪止金具","MF",289,289,null,null,502.52595000000002,103,70,4,9,289,null,null,null,null,0,null,null,null,null,0,null,null,null,null,0,null,null,null,null,0,null,null,null,null,0,null,null,null,null,0,null,null,null,null,0,null,null,null,null,0,null,null,null,null,0,null,null,null,null,0,null,null,null,null,0,null,null,null,null,0,null,null,null,null,0,null,null,null,null,0,null,null,null,null,0,null,null,null,null,0,null,null,null,null,0,null,null,null,null,0,null,null,null,null,0,null,"MK0100000000000","MK010 亜鉛メッキ処理","0.00","0","0","00","00","BR11Z42MFMK0100.0000","MK010"]
[78,"BR11Z43000000000000000","BR11Z43","ＢＲ－１１　雪止捨板","CE",885,885,null,null,100.9209,106,50,17,35,885,null,null,null,null,0,null,null,null,null,0,null,null,null,null,0,null,null,null,null,0,null,null,null,null,0,null,null,null,null,0,null,null,null,null,0,null,null,null,null,0,null,null,null,null,0,null,null,null,null,0,null,null,null,null,0,null,null,null,null,0,null,null,null,null,0,null,null,null,null,0,null,null,null,null,0,null,null,null,null,0,null,null,null,null,0,null,null,null,null,0,null,null,null,null,0,null,"000000000000000","00000","0.00","0","0","00","00","BR11Z43CE000000.0000","00000"]
[79,"BR11Z43000000000000002","BR11Z43","ＢＲ－１１　雪止捨板","NU",0,211,null,null,134.56872000000001,null,null,null,null,0,null,null,null,null,0,null,null,null,null,0,null,null,null,null,0,null,null,null,null,0,null,null,null,null,0,null,null,null,null,0,null,null,null,null,0,null,null,null,null,0,null,null,null,null,0,null,null,null,null,0,null,null,null,null,0,null,null,null,null,0,null,null,null,null,0,null,null,null,null,0,null,null,null,null,0,null,null,null,null,0,null,null,null,null,0,null,null,null,null,0,null,null,null,null,0,null,"000000000000002","00000","0.00","0","0","00","00","BR11Z43NU000000.0000","00000"]
[80,"BR11Z44000000000000000","BR11Z44","ＢＲ－１１　雪止捨板（断熱システム用）","CE",483,483,null,null,83.726709999999997,109,50,9,33,483,null,null,null,null,0,null,null,null,null,0,null,null,null,null,0,null,null,null,null,0,null,null,null,null,0,null,null,null,null,0,null,null,null,null,0,null,null,null,null,0,null,null,null,null,0,null,null,null,null,0,null,null,null,null,0,null,null,null,null,0,null,null,null,null,0,null,null,null,null,0,null,null,null,null,0,null,null,null,null,0,null,null,null,null,0,null,null,null,null,0,null,null,null,null,0,null,"000000000000000","00000","0.00","0","0","00","00","BR11Z44CE000000.0000","00000"]
[81,"BR11ZM1000000000909100","BR11ZM1","ＢＲ－１１　三角ＢＵ材","AP",0,24206,null,null,156.82384999999999,null,null,null,null,0,null,null,null,null,0,null,null,null,null,0,null,null,null,null,0,null,null,null,null,0,null,null,null,null,0,null,null,null,null,0,null,null,null,null,0,null,null,null,null,0,null,null,null,null,0,null,null,null,null,0,null,null,null,null,0,null,null,null,null,0,null,null,null,null,0,null,null,null,null,0,null,null,null,null,0,null,null,null,null,0,null,null,null,null,0,null,null,null,null,0,null,null,null,null,0,null,"000000000909100","00000","0.00","90","910","00","00","BR11ZM1AP000000.0090910","00000"]
[82,"BR11ZR100000000000K490","BR11ZR1","ＴＳＡタルキ（爪有　ＢＲ１１・一文字Ｓ用","MF",0,1133,null,null,1129.18148,null,null,null,null,0,null,null,null,null,0,null,null,null,null,0,null,null,null,null,0,null,null,null,null,0,null,null,null,null,0,null,null,null,null,0,null,null,null,null,0,null,null,null,null,0,null,null,null,null,0,null,null,null,null,0,null,null,null,null,0,null,null,null,null,0,null,null,null,null,0,null,null,null,null,0,null,null,null,null,0,null,null,null,null,0,null,null,null,null,0,null,null,null,null,0,null,null,null,null,0,null,"00000000000K490","00000","0.00","0","4914","00","00","BR11ZR1MF000000.0004914","00000"]
[83,"BR14Z10000000000000000","BR14Z10","ＢＲ－１４　吊子","MF",22909,22909,null,null,13.193110000000001,63,500,44,0,22000,64,0,0,909,909,null,null,null,null,0,null,null,null,null,0,null,null,null,null,0,null,null,null,null,0,null,null,null,null,0,null,null,null,null,0,null,null,null,null,0,null,null,null,null,0,null,null,null,null,0,null,null,null,null,0,null,null,null,null,0,null,null,null,null,0,null,null,null,null,0,null,null,null,null,0,null,null,null,null,0,null,null,null,null,0,null,null,null,null,0,null,null,null,null,0,null,"000000000000000","00000","0.00","0","0","00","00","BR14Z10MF000000.0000","00000"]
[84,"BR14Z10000000000000001","BR14Z10","ＢＲ－１４　吊子","NS",6361,6361,null,null,18.10061,65,500,12,361,6361,null,null,null,null,0,null,null,null,null,0,null,null,null,null,0,null,null,null,null,0,null,null,null,null,0,null,null,null,null,0,null,null,null,null,0,null,null,null,null,0,null,null,null,null,0,null,null,null,null,0,null,null,null,null,0,null,null,null,null,0,null,null,null,null,0,null,null,null,null,0,null,null,null,null,0,null,null,null,null,0,null,null,null,null,0,null,null,null,null,0,null,null,null,null,0,null,"000000000000001","00000","0.00","0","0","00","00","BR14Z10NS000000.0000","00000"]
[85,"BR14Z11SG0300000000000","BR14Z11","横葺屋根改修工法用吊子（ＢＫ）","OA",14148,14148,null,null,79.152820000000006,40,200,30,148,6148,41,200,40,0,8000,null,null,null,null,0,null,null,null,null,0,null,null,null,null,0,null,null,null,null,0,null,null,null,null,0,null,null,null,null,0,null,null,null,null,0,null,null,null,null,0,null,null,null,null,0,null,null,null,null,0,null,null,null,null,0,null,null,null,null,0,null,null,null,null,0,null,null,null,null,0,null,null,null,null,0,null,null,null,null,0,null,null,null,null,0,null,null,null,null,0,null,"SG0300000000000","SG030 アルマイト処理","0.00","0","0","00","00","BR14Z11OASG0300.0000","SG030"]
[86,"DBR2Z00BKBKN.40250K400","DBR2Z00","ＤＢＲ－２　本体","CG",0,202,null,null,2077.2475199999999,null,null,null,null,0,null,null,null,null,0,null,null,null,null,0,null,null,null,null,0,null,null,null,null,0,null,null,null,null,0,null,null,null,null,0,null,null,null,null,0,null,null,null,null,0,null,null,null,null,0,null,null,null,null,0,null,null,null,null,0,null,null,null,null,0,null,null,null,null,0,null,null,null,null,0,null,null,null,null,0,null,null,null,null,0,null,null,null,null,0,null,null,null,null,0,null,null,null,null,0,null,"BKBKN.40250K400","BKBKN GTNブラック","0.40","250","4095","96","00","DBR2Z00CGBKBKN0.402504095","BKBKN"]
[87,"DBR2Z20OT270.400000000","DBR2Z20","ＤＢＲ－２　継手捨板","CG",3906,3906,null,null,57.851770000000002,42,100,39,6,3906,null,null,null,null,0,null,null,null,null,0,null,null,null,null,0,null,null,null,null,0,null,null,null,null,0,null,null,null,null,0,null,null,null,null,0,null,null,null,null,0,null,null,null,null,0,null,null,null,null,0,null,null,null,null,0,null,null,null,null,0,null,null,null,null,0,null,null,null,null,0,null,null,null,null,0,null,null,null,null,0,null,null,null,null,0,null,null,null,null,0,null,null,null,null,0,null,"OT270.400000000","OT270 色調不問（カラーガルバリウム）","0.40","0","0","00","00","DBR2Z20CGOT2700.4000","OT270"]
[88,"DBR2Z23OT270.400000000","DBR2Z23","ＤＢＲ－２　ケラバ捨板（右）","CG",521,521,null,null,286.27447000000001,46,100,5,21,521,null,null,null,null,0,null,null,null,null,0,null,null,null,null,0,null,null,null,null,0,null,null,null,null,0,null,null,null,null,0,null,null,null,null,0,null,null,null,null,0,null,null,null,null,0,null,null,null,null,0,null,null,null,null,0,null,null,null,null,0,null,null,null,null,0,null,null,null,null,0,null,null,null,null,0,null,null,null,null,0,null,null,null,null,0,null,null,null,null,0,null,null,null,null,0,null,"OT270.400000000","OT270 色調不問（カラーガルバリウム）","0.40","0","0","00","00","DBR2Z23CGOT2700.4000","OT270"]
[89,"DBR2Z24OT270.400000000","DBR2Z24","ＤＢＲ－２　ケラバ捨板（左）","CG",508,508,null,null,286.57283000000001,47,100,5,8,508,null,null,null,null,0,null,null,null,null,0,null,null,null,null,0,null,null,null,null,0,null,null,null,null,0,null,null,null,null,0,null,null,null,null,0,null,null,null,null,0,null,null,null,null,0,null,null,null,null,0,null,null,null,null,0,null,null,null,null,0,null,null,null,null,0,null,null,null,null,0,null,null,null,null,0,null,null,null,null,0,null,null,null,null,0,null,null,null,null,0,null,null,null,null,0,null,"OT270.400000000","OT270 色調不問（カラーガルバリウム）","0.40","0","0","00","00","DBR2Z24CGOT2700.4000","OT270"]
[90,"DBR2Z30BKBKN.400000000","DBR2Z30","ＤＢＲ－２　下り棟カバー","CG",36,36,null,null,284.84285999999997,145,18,2,0,36,null,null,null,null,0,null,null,null,null,0,null,null,null,null,0,null,null,null,null,0,null,null,null,null,0,null,null,null,null,0,null,null,null,null,0,null,null,null,null,0,null,null,null,null,0,null,null,null,null,0,null,null,null,null,0,null,null,null,null,0,null,null,null,null,0,null,null,null,null,0,null,null,null,null,0,null,null,null,null,0,null,null,null,null,0,null,null,null,null,0,null,null,null,null,0,null,"BKBKN.400000000","BKBKN GTNブラック","0.40","0","0","00","00","DBR2Z30CGBKBKN0.4000","BKBKN"]
[91,"DBR2Z31000000000000000","DBR2Z31","ＤＢＲ－２　下り棟捨板","CE",78,78,null,null,507.33332999999999,57,0,0,78,78,null,null,null,null,0,null,null,null,null,0,null,null,null,null,0,null,null,null,null,0,null,null,null,null,0,null,null,null,null,0,null,null,null,null,0,null,null,null,null,0,null,null,null,null,0,null,null,null,null,0,null,null,null,null,0,null,null,null,null,0,null,null,null,null,0,null,null,null,null,0,null,null,null,null,0,null,null,null,null,0,null,null,null,null,0,null,null,null,null,0,null,null,null,null,0,null,"000000000000000","00000","0.00","0","0","00","00","DBR2Z31CE000000.0000","00000"]
[92,"DBR2Z31000000000000001","DBR2Z31","ＤＢＲ－２　下り棟捨板","CG",36,36,null,null,544.44443999999999,159,0,0,36,36,null,null,null,null,0,null,null,null,null,0,null,null,null,null,0,null,null,null,null,0,null,null,null,null,0,null,null,null,null,0,null,null,null,null,0,null,null,null,null,0,null,null,null,null,0,null,null,null,null,0,null,null,null,null,0,null,null,null,null,0,null,null,null,null,0,null,null,null,null,0,null,null,null,null,0,null,null,null,null,0,null,null,null,null,0,null,null,null,null,0,null,null,null,null,0,null,"000000000000001","00000","0.00","0","0","00","00","DBR2Z31CG000000.0000","00000"]
[93,"DBR2Z32BKT200000000000","DBR2Z32","ＤＢＲ－２　谷カバー","OA",45,45,null,null,61.911110000000001,138,0,0,45,45,null,null,null,null,0,null,null,null,null,0,null,null,null,null,0,null,null,null,null,0,null,null,null,null,0,null,null,null,null,0,null,null,null,null,0,null,null,null,null,0,null,null,null,null,0,null,null,null,null,0,null,null,null,null,0,null,null,null,null,0,null,null,null,null,0,null,null,null,null,0,null,null,null,null,0,null,null,null,null,0,null,null,null,null,0,null,null,null,null,0,null,null,null,null,0,null,"BKT200000000000","BKT20 チヨダカラーＧＬＧＥＲ１０／９０２　ＳＨブラック","0.00","0","0","00","00","DBR2Z32OABKT200.0000","BKT20"]
[94,"DBR2Z32SL4M00000000000","DBR2Z32","ＤＢＲ－２　谷カバー","OA",2,2,null,null,1918.5,144,0,0,2,2,null,null,null,null,0,null,null,null,null,0,null,null,null,null,0,null,null,null,null,0,null,null,null,null,0,null,null,null,null,0,null,null,null,null,0,null,null,null,null,0,null,null,null,null,0,null,null,null,null,0,null,null,null,null,0,null,null,null,null,0,null,null,null,null,0,null,null,null,null,0,null,null,null,null,0,null,null,null,null,0,null,null,null,null,0,null,null,null,null,0,null,null,null,null,0,null,"SL4M00000000000","SL4M0 ニスクフロンＳＧＬ　ＦＭ１０８Ｓ（Ｍ）","0.00","0","0","00","00","DBR2Z32OASL4M00.0000","SL4M0"]
[95,"DBR2Z33SG0300000000000","DBR2Z33","ＤＢＲ－２　谷補強材　勾配２．０","OA",47,47,null,null,159.17021,137,0,0,47,47,null,null,null,null,0,null,null,null,null,0,null,null,null,null,0,null,null,null,null,0,null,null,null,null,0,null,null,null,null,0,null,null,null,null,0,null,null,null,null,0,null,null,null,null,0,null,null,null,null,0,null,null,null,null,0,null,null,null,null,0,null,null,null,null,0,null,null,null,null,0,null,null,null,null,0,null,null,null,null,0,null,null,null,null,0,null,null,null,null,0,null,null,null,null,0,null,"SG0300000000000","SG030 アルマイト処理","0.00","0","0","00","00","DBR2Z33OASG0300.0000","SG030"]
[96,"DBR2Z35SG0300000000000","DBR2Z35","ＤＢＲ－２　谷補強材　勾配４．０","OA",16,16,null,null,249.4375,59,0,0,16,16,null,null,null,null,0,null,null,null,null,0,null,null,null,null,0,null,null,null,null,0,null,null,null,null,0,null,null,null,null,0,null,null,null,null,0,null,null,null,null,0,null,null,null,null,0,null,null,null,null,0,null,null,null,null,0,null,null,null,null,0,null,null,null,null,0,null,null,null,null,0,null,null,null,null,0,null,null,null,null,0,null,null,null,null,0,null,null,null,null,0,null,null,null,null,0,null,"SG0300000000000","SG030 アルマイト処理","0.00","0","0","00","00","DBR2Z35OASG0300.0000","SG030"]
[97,"DBR2Z36SG0300000000000","DBR2Z36","ＤＢＲ－２　谷補強材　勾配５．０","OA",53,53,null,null,368.54716999999999,60,0,0,53,53,null,null,null,null,0,null,null,null,null,0,null,null,null,null,0,null,null,null,null,0,null,null,null,null,0,null,null,null,null,0,null,null,null,null,0,null,null,null,null,0,null,null,null,null,0,null,null,null,null,0,null,null,null,null,0,null,null,null,null,0,null,null,null,null,0,null,null,null,null,0,null,null,null,null,0,null,null,null,null,0,null,null,null,null,0,null,null,null,null,0,null,null,null,null,0,null,"SG0300000000000","SG030 アルマイト処理","0.00","0","0","00","00","DBR2Z36OASG0300.0000","SG030"]
[98,"DBR2Z40000000000000000","DBR2Z40","ＤＢＲ－２　雪止カバー","NS",166,280,null,null,68.992859999999993,50,0,0,166,166,null,null,null,null,0,null,null,null,null,0,null,null,null,null,0,null,null,null,null,0,null,null,null,null,0,null,null,null,null,0,null,null,null,null,0,null,null,null,null,0,null,null,null,null,0,null,null,null,null,0,null,null,null,null,0,null,null,null,null,0,null,null,null,null,0,null,null,null,null,0,null,null,null,null,0,null,null,null,null,0,null,null,null,null,0,null,null,null,null,0,null,null,null,null,0,null,"000000000000000","00000","0.00","0","0","00","00","DBR2Z40NS000000.0000","00000"]
[99,"DBR2Z40BKT200000000000","DBR2Z40","ＤＢＲ－２　雪止カバー","NS",480,480,null,null,208.47291999999999,51,301,1,179,480,null,null,null,null,0,null,null,null,null,0,null,null,null,null,0,null,null,null,null,0,null,null,null,null,0,null,null,null,null,0,null,null,null,null,0,null,null,null,null,0,null,null,null,null,0,null,null,null,null,0,null,null,null,null,0,null,null,null,null,0,null,null,null,null,0,null,null,null,null,0,null,null,null,null,0,null,null,null,null,0,null,null,null,null,0,null,null,null,null,0,null,null,null,null,0,null,"BKT200000000000","BKT20 チヨダカラーＧＬＧＥＲ１０／９０２　ＳＨブラック","0.00","0","0","00","00","DBR2Z40NSBKT200.0000","BKT20"]
[100,"DBR2Z40BW3V00000000000","DBR2Z40","ＤＢＲ－２　雪止カバー","NS",14,14,null,null,188.85713999999999,52,0,0,14,14,null,null,null,null,0,null,null,null,null,0,null,null,null,null,0,null,null,null,null,0,null,null,null,null,0,null,null,null,null,0,null,null,null,null,0,null,null,null,null,0,null,null,null,null,0,null,null,null,null,0,null,null,null,null,0,null,null,null,null,0,null,null,null,null,0,null,null,null,null,0,null,null,null,null,0,null,null,null,null,0,null,null,null,null,0,null,null,null,null,0,null,null,null,null,0,null,"BW3V00000000000","BW3V0 チヨダカラーＧＬ輝きＧＥＲ４０　シャインブラウン","0.00","0","0","00","00","DBR2Z40NSBW3V00.0000","BW3V0"]
[101,"DBR2Z40SL2V00000000000","DBR2Z40","ＤＢＲ－２　雪止カバー","NS",140,140,null,null,178,162,0,0,140,140,null,null,null,null,0,null,null,null,null,0,null,null,null,null,0,null,null,null,null,0,null,null,null,null,0,null,null,null,null,0,null,null,null,null,0,null,null,null,null,0,null,null,null,null,0,null,null,null,null,0,null,null,null,null,0,null,null,null,null,0,null,null,null,null,0,null,null,null,null,0,null,null,null,null,0,null,null,null,null,0,null,null,null,null,0,null,null,null,null,0,null,null,null,null,0,null,"SL2V00000000000","SL2V0 ニスクカラーＲＭ０１６ギングロ（Ｍ）","0.00","0","0","00","00","DBR2Z40NSSL2V00.0000","SL2V0"]
[102,"DBR2Z41BKT200000000000","DBR2Z41","ＤＢＲ－２　雪止金具（魔除）","NS",501,501,null,null,718.85428999999999,54,100,3,201,501,null,null,null,null,0,null,null,null,null,0,null,null,null,null,0,null,null,null,null,0,null,null,null,null,0,null,null,null,null,0,null,null,null,null,0,null,null,null,null,0,null,null,null,null,0,null,null,null,null,0,null,null,null,null,0,null,null,null,null,0,null,null,null,null,0,null,null,null,null,0,null,null,null,null,0,null,null,null,null,0,null,null,null,null,0,null,null,null,null,0,null,null,null,null,0,null,"BKT200000000000","BKT20 チヨダカラーＧＬＧＥＲ１０／９０２　ＳＨブラック","0.00","0","0","00","00","DBR2Z41NSBKT200.0000","BKT20"]
[103,"DBR2Z41BW3V00000000000","DBR2Z41","ＤＢＲ－２　雪止金具（魔除）","NS",294,294,null,null,549.93196999999998,53,108,2,78,294,null,null,null,null,0,null,null,null,null,0,null,null,null,null,0,null,null,null,null,0,null,null,null,null,0,null,null,null,null,0,null,null,null,null,0,null,null,null,null,0,null,null,null,null,0,null,null,null,null,0,null,null,null,null,0,null,null,null,null,0,null,null,null,null,0,null,null,null,null,0,null,null,null,null,0,null,null,null,null,0,null,null,null,null,0,null,null,null,null,0,null,null,null,null,0,null,"BW3V00000000000","BW3V0 チヨダカラーＧＬ輝きＧＥＲ４０　シャインブラウン","0.00","0","0","00","00","DBR2Z41NSBW3V00.0000","BW3V0"]
[104,"DBR2Z41SG0400000000000","DBR2Z41","ＤＢＲ－２　雪止金具（魔除）","NS",135,249,null,null,428.89960000000002,44,0,0,135,135,null,null,null,null,0,null,null,null,null,0,null,null,null,null,0,null,null,null,null,0,null,null,null,null,0,null,null,null,null,0,null,null,null,null,0,null,null,null,null,0,null,null,null,null,0,null,null,null,null,0,null,null,null,null,0,null,null,null,null,0,null,null,null,null,0,null,null,null,null,0,null,null,null,null,0,null,null,null,null,0,null,null,null,null,0,null,null,null,null,0,null,null,null,null,0,null,"SG0400000000000","SG040 ステンレス素地","0.00","0","0","00","00","DBR2Z41NSSG0400.0000","SG040"]
[105,"DBR2Z41SL2V00000000000","DBR2Z41","ＤＢＲ－２　雪止金具（魔除）","NS",140,140,null,null,561.54999999999995,163,0,0,140,140,null,null,null,null,0,null,null,null,null,0,null,null,null,null,0,null,null,null,null,0,null,null,null,null,0,null,null,null,null,0,null,null,null,null,0,null,null,null,null,0,null,null,null,null,0,null,null,null,null,0,null,null,null,null,0,null,null,null,null,0,null,null,null,null,0,null,null,null,null,0,null,null,null,null,0,null,null,null,null,0,null,null,null,null,0,null,null,null,null,0,null,null,null,null,0,null,"SL2V00000000000","SL2V0 ニスクカラーＲＭ０１６ギングロ（Ｍ）","0.00","0","0","00","00","DBR2Z41NSSL2V00.0000","SL2V0"]
[106,"DBR2Z42SG0400000000000","DBR2Z42","ＤＢＲ－２　雪止金具","NS",62,62,null,null,103.70968000000001,43,0,0,62,62,null,null,null,null,0,null,null,null,null,0,null,null,null,null,0,null,null,null,null,0,null,null,null,null,0,null,null,null,null,0,null,null,null,null,0,null,null,null,null,0,null,null,null,null,0,null,null,null,null,0,null,null,null,null,0,null,null,null,null,0,null,null,null,null,0,null,null,null,null,0,null,null,null,null,0,null,null,null,null,0,null,null,null,null,0,null,null,null,null,0,null,null,null,null,0,null,"SG0400000000000","SG040 ステンレス素地","0.00","0","0","00","00","DBR2Z42NSSG0400.0000","SG040"]
[107,"DBR2Z50BKT20.500000000","DBR2Z50","ＤＢＲ－２　ケラバ面戸（右）","CG",0,70,null,null,325.01429000000002,null,null,null,null,0,null,null,null,null,0,null,null,null,null,0,null,null,null,null,0,null,null,null,null,0,null,null,null,null,0,null,null,null,null,0,null,null,null,null,0,null,null,null,null,0,null,null,null,null,0,null,null,null,null,0,null,null,null,null,0,null,null,null,null,0,null,null,null,null,0,null,null,null,null,0,null,null,null,null,0,null,null,null,null,0,null,null,null,null,0,null,null,null,null,0,null,null,null,null,0,null,"BKT20.500000000","BKT20 チヨダカラーＧＬＧＥＲ１０／９０２　ＳＨブラック","0.50","0","0","00","00","DBR2Z50CGBKT200.5000","BKT20"]
[108,"DBR2Z51BKT20.500000000","DBR2Z51","ＤＢＲ－２　ケラバ面戸（左）","CG",0,70,null,null,325.01429000000002,null,null,null,null,0,null,null,null,null,0,null,null,null,null,0,null,null,null,null,0,null,null,null,null,0,null,null,null,null,0,null,null,null,null,0,null,null,null,null,0,null,null,null,null,0,null,null,null,null,0,null,null,null,null,0,null,null,null,null,0,null,null,null,null,0,null,null,null,null,0,null,null,null,null,0,null,null,null,null,0,null,null,null,null,0,null,null,null,null,0,null,null,null,null,0,null,null,null,null,0,null,"BKT20.500000000","BKT20 チヨダカラーＧＬＧＥＲ１０／９０２　ＳＨブラック","0.50","0","0","00","00","DBR2Z51CGBKT200.5000","BKT20"]
[109,"DBR2Z70000000000000000","DBR2Z70","ＤＢＲ－２　断熱材座金（５００入り）","CG",28,28,null,null,7197.07143,124,0,0,28,28,null,null,null,null,0,null,null,null,null,0,null,null,null,null,0,null,null,null,null,0,null,null,null,null,0,null,null,null,null,0,null,null,null,null,0,null,null,null,null,0,null,null,null,null,0,null,null,null,null,0,null,null,null,null,0,null,null,null,null,0,null,null,null,null,0,null,null,null,null,0,null,null,null,null,0,null,null,null,null,0,null,null,null,null,0,null,null,null,null,0,null,null,null,null,0,null,"000000000000000","00000","0.00","0","0","00","00","DBR2Z70CG000000.0000","00000"]
[110,"DBR2ZK0SG030000000K250","DBR2ZK0","ＤＢＲ－２　ＧＵ－２唐草","OA",0,452,null,null,1038.2831900000001,null,null,null,null,0,null,null,null,null,0,null,null,null,null,0,null,null,null,null,0,null,null,null,null,0,null,null,null,null,0,null,null,null,null,0,null,null,null,null,0,null,null,null,null,0,null,null,null,null,0,null,null,null,null,0,null,null,null,null,0,null,null,null,null,0,null,null,null,null,0,null,null,null,null,0,null,null,null,null,0,null,null,null,null,0,null,null,null,null,0,null,null,null,null,0,null,null,null,null,0,null,"SG030000000K250","SG030 アルマイト処理","0.00","0","2500","00","00","DBR2ZK0OASG0300.0002500","SG030"]
[111,"DBR2ZM000000000000K180","DBR2ZM0","ＤＢＲ－２　断熱ＢＵ材","AH",0,5903,null,null,274.89683000000002,null,null,null,null,0,null,null,null,null,0,null,null,null,null,0,null,null,null,null,0,null,null,null,null,0,null,null,null,null,0,null,null,null,null,0,null,null,null,null,0,null,null,null,null,0,null,null,null,null,0,null,null,null,null,0,null,null,null,null,0,null,null,null,null,0,null,null,null,null,0,null,null,null,null,0,null,null,null,null,0,null,null,null,null,0,null,null,null,null,0,null,null,null,null,0,null,null,null,null,0,null,"00000000000K180","00000","0.00","0","1820","00","00","DBR2ZM0AH000000.0001820","00000"]
[112,"DBR2ZM1000000100759100","DBR2ZM1","ＤＢＲ－２　谷ＢＵ材","AP",170,170,null,null,79.176469999999995,58,0,0,170,170,null,null,null,null,0,null,null,null,null,0,null,null,null,null,0,null,null,null,null,0,null,null,null,null,0,null,null,null,null,0,null,null,null,null,0,null,null,null,null,0,null,null,null,null,0,null,null,null,null,0,null,null,null,null,0,null,null,null,null,0,null,null,null,null,0,null,null,null,null,0,null,null,null,null,0,null,null,null,null,0,null,null,null,null,0,null,null,null,null,0,null,null,null,null,0,null,"000000100759100","00000","10.00","75","910","00","00","DBR2ZM1AP0000010.0075910","00000"]
[113,"GF18220SG980.400000000","GF18220","ＧＦ－１８２　継手捨板（枚）","NU",85,85,null,null,383.11765000000003,152,0,0,85,85,null,null,null,null,0,null,null,null,null,0,null,null,null,null,0,null,null,null,null,0,null,null,null,null,0,null,null,null,null,0,null,null,null,null,0,null,null,null,null,0,null,null,null,null,0,null,null,null,null,0,null,null,null,null,0,null,null,null,null,0,null,null,null,null,0,null,null,null,null,0,null,null,null,null,0,null,null,null,null,0,null,null,null,null,0,null,null,null,null,0,null,null,null,null,0,null,"SG980.400000000","SG980 銅素地（三菱マテリアル）","0.40","0","0","00","00","GF18220NUSG9800.4000","SG980"]
[114,"GR80010000000000000000","GR80010","ＧＲ－８００，８５０　吊子Ｂ（爪有）","MF",0,51709,null,null,15.812760000000001,null,null,null,null,0,null,null,null,null,0,null,null,null,null,0,null,null,null,null,0,null,null,null,null,0,null,null,null,null,0,null,null,null,null,0,null,null,null,null,0,null,null,null,null,0,null,null,null,null,0,null,null,null,null,0,null,null,null,null,0,null,null,null,null,0,null,null,null,null,0,null,null,null,null,0,null,null,null,null,0,null,null,null,null,0,null,null,null,null,0,null,null,null,null,0,null,null,null,null,0,null,"000000000000000","00000","0.00","0","0","00","00","GR80010MF000000.0000","00000"]
[115,"GR80010000000000000001","GR80010","ＧＲ－８００，８５０　吊子Ｂ（爪有）","NS",0,40276,null,null,21.703510000000001,null,null,null,null,0,null,null,null,null,0,null,null,null,null,0,null,null,null,null,0,null,null,null,null,0,null,null,null,null,0,null,null,null,null,0,null,null,null,null,0,null,null,null,null,0,null,null,null,null,0,null,null,null,null,0,null,null,null,null,0,null,null,null,null,0,null,null,null,null,0,null,null,null,null,0,null,null,null,null,0,null,null,null,null,0,null,null,null,null,0,null,null,null,null,0,null,null,null,null,0,null,"000000000000001","00000","0.00","0","0","00","00","GR80010NS000000.0000","00000"]
[116,"GR80011000000000000000","GR80011","ＧＲ－８００，８５０吊子Ｂ２（爪無）","MF",0,57513,null,null,15.87893,null,null,null,null,0,null,null,null,null,0,null,null,null,null,0,null,null,null,null,0,null,null,null,null,0,null,null,null,null,0,null,null,null,null,0,null,null,null,null,0,null,null,null,null,0,null,null,null,null,0,null,null,null,null,0,null,null,null,null,0,null,null,null,null,0,null,null,null,null,0,null,null,null,null,0,null,null,null,null,0,null,null,null,null,0,null,null,null,null,0,null,null,null,null,0,null,null,null,null,0,null,"000000000000000","00000","0.00","0","0","00","00","GR80011MF000000.0000","00000"]
[117,"GR80011000000000000001","GR80011","ＧＲ－８００，８５０吊子Ｂ２（爪無）","NS",0,19768,null,null,23.51539,null,null,null,null,0,null,null,null,null,0,null,null,null,null,0,null,null,null,null,0,null,null,null,null,0,null,null,null,null,0,null,null,null,null,0,null,null,null,null,0,null,null,null,null,0,null,null,null,null,0,null,null,null,null,0,null,null,null,null,0,null,null,null,null,0,null,null,null,null,0,null,null,null,null,0,null,null,null,null,0,null,null,null,null,0,null,null,null,null,0,null,null,null,null,0,null,null,null,null,0,null,"000000000000001","00000","0.00","0","0","00","00","GR80011NS000000.0000","00000"]
[118,"GR80012000000000000000","GR80012","ＧＲ－８００Ｄ　吊子","MF",9433,9442,null,null,19.357900000000001,84,400,23,233,9433,null,null,null,null,0,null,null,null,null,0,null,null,null,null,0,null,null,null,null,0,null,null,null,null,0,null,null,null,null,0,null,null,null,null,0,null,null,null,null,0,null,null,null,null,0,null,null,null,null,0,null,null,null,null,0,null,null,null,null,0,null,null,null,null,0,null,null,null,null,0,null,null,null,null,0,null,null,null,null,0,null,null,null,null,0,null,null,null,null,0,null,null,null,null,0,null,"000000000000000","00000","0.00","0","0","00","00","GR80012MF000000.0000","00000"]
[119,"GR80012000000000000001","GR80012","ＧＲ－８００Ｄ　吊子","NS",10547,10547,null,null,27.198170000000001,82,400,26,147,10547,null,null,null,null,0,null,null,null,null,0,null,null,null,null,0,null,null,null,null,0,null,null,null,null,0,null,null,null,null,0,null,null,null,null,0,null,null,null,null,0,null,null,null,null,0,null,null,null,null,0,null,null,null,null,0,null,null,null,null,0,null,null,null,null,0,null,null,null,null,0,null,null,null,null,0,null,null,null,null,0,null,null,null,null,0,null,null,null,null,0,null,null,null,null,0,null,"000000000000001","00000","0.00","0","0","00","00","GR80012NS000000.0000","00000"]
[120,"GR80020GRGL0.450000000","GR80020","ＧＲ－８００　継手カバー","FG",0,267,null,null,146.43501000000001,null,null,null,null,0,null,null,null,null,0,null,null,null,null,0,null,null,null,null,0,null,null,null,null,0,null,null,null,null,0,null,null,null,null,0,null,null,null,null,0,null,null,null,null,0,null,null,null,null,0,null,null,null,null,0,null,null,null,null,0,null,null,null,null,0,null,null,null,null,0,null,null,null,null,0,null,null,null,null,0,null,null,null,null,0,null,null,null,null,0,null,null,null,null,0,null,null,null,null,0,null,"GRGL0.450000000","GRGL0 ＧＲＯ－２（緑青）ＦＧ１３２１／ＲＡ１４２３","0.45","0","0","00","00","GR80020FGGRGL00.4500","GRGL0"]
[121,"GR8002100000.350000000","GR80021","ＧＲ－８００　継手捨板","CE",0,16,null,null,175.49424999999999,null,null,null,null,0,null,null,null,null,0,null,null,null,null,0,null,null,null,null,0,null,null,null,null,0,null,null,null,null,0,null,null,null,null,0,null,null,null,null,0,null,null,null,null,0,null,null,null,null,0,null,null,null,null,0,null,null,null,null,0,null,null,null,null,0,null,null,null,null,0,null,null,null,null,0,null,null,null,null,0,null,null,null,null,0,null,null,null,null,0,null,null,null,null,0,null,null,null,null,0,null,"00000.350000000","00000","0.35","0","0","00","00","GR80021CE000000.3500","00000"]
[122,"GR80021000000000000000","GR80021","ＧＲ－８００　継手捨板","CG",0,6228,null,null,175.18188000000001,null,null,null,null,0,null,null,null,null,0,null,null,null,null,0,null,null,null,null,0,null,null,null,null,0,null,null,null,null,0,null,null,null,null,0,null,null,null,null,0,null,null,null,null,0,null,null,null,null,0,null,null,null,null,0,null,null,null,null,0,null,null,null,null,0,null,null,null,null,0,null,null,null,null,0,null,null,null,null,0,null,null,null,null,0,null,null,null,null,0,null,null,null,null,0,null,null,null,null,0,null,"000000000000000","00000","0.00","0","0","00","00","GR80021CG000000.0000","00000"]
[123,"GR80024OT270.400000000","GR80024","ＧＲ－８００Ｄ　ケラバ捨板（左）","CG",300,300,null,null,253.91667000000001,85,100,3,0,300,null,null,null,null,0,null,null,null,null,0,null,null,null,null,0,null,null,null,null,0,null,null,null,null,0,null,null,null,null,0,null,null,null,null,0,null,null,null,null,0,null,null,null,null,0,null,null,null,null,0,null,null,null,null,0,null,null,null,null,0,null,null,null,null,0,null,null,null,null,0,null,null,null,null,0,null,null,null,null,0,null,null,null,null,0,null,null,null,null,0,null,null,null,null,0,null,"OT270.400000000","OT270 色調不問（カラーガルバリウム）","0.40","0","0","00","00","GR80024CGOT2700.4000","OT270"]
[124,"GR80025OT270.400000000","GR80025","ＧＲ－８００Ｄ　ケラバ捨板（右）","CG",338,338,null,null,251.43491,83,100,3,38,338,null,null,null,null,0,null,null,null,null,0,null,null,null,null,0,null,null,null,null,0,null,null,null,null,0,null,null,null,null,0,null,null,null,null,0,null,null,null,null,0,null,null,null,null,0,null,null,null,null,0,null,null,null,null,0,null,null,null,null,0,null,null,null,null,0,null,null,null,null,0,null,null,null,null,0,null,null,null,null,0,null,null,null,null,0,null,null,null,null,0,null,null,null,null,0,null,"OT270.400000000","OT270 色調不問（カラーガルバリウム）","0.40","0","0","00","00","GR80025CGOT2700.4000","OT270"]
[125,"GR80040000000000000000","GR80040","ＧＲ－８００　雪止捨板Ｂ（断熱システム）","CG",0,475,null,null,111.54526,null,null,null,null,0,null,null,null,null,0,null,null,null,null,0,null,null,null,null,0,null,null,null,null,0,null,null,null,null,0,null,null,null,null,0,null,null,null,null,0,null,null,null,null,0,null,null,null,null,0,null,null,null,null,0,null,null,null,null,0,null,null,null,null,0,null,null,null,null,0,null,null,null,null,0,null,null,null,null,0,null,null,null,null,0,null,null,null,null,0,null,null,null,null,0,null,null,null,null,0,null,"000000000000000","00000","0.00","0","0","00","00","GR80040CG000000.0000","00000"]
[126,"GR8004200000.350000000","GR80042","ＧＲ－８００　雪止捨板Ｂ","CE",0,76,null,null,106.16437999999999,null,null,null,null,0,null,null,null,null,0,null,null,null,null,0,null,null,null,null,0,null,null,null,null,0,null,null,null,null,0,null,null,null,null,0,null,null,null,null,0,null,null,null,null,0,null,null,null,null,0,null,null,null,null,0,null,null,null,null,0,null,null,null,null,0,null,null,null,null,0,null,null,null,null,0,null,null,null,null,0,null,null,null,null,0,null,null,null,null,0,null,null,null,null,0,null,null,null,null,0,null,"00000.350000000","00000","0.35","0","0","00","00","GR80042CE000000.3500","00000"]
[127,"GR80042000000000000000","GR80042","ＧＲ－８００　雪止捨板Ｂ","CG",0,1528,null,null,94.384039999999999,null,null,null,null,0,null,null,null,null,0,null,null,null,null,0,null,null,null,null,0,null,null,null,null,0,null,null,null,null,0,null,null,null,null,0,null,null,null,null,0,null,null,null,null,0,null,null,null,null,0,null,null,null,null,0,null,null,null,null,0,null,null,null,null,0,null,null,null,null,0,null,null,null,null,0,null,null,null,null,0,null,null,null,null,0,null,null,null,null,0,null,null,null,null,0,null,null,null,null,0,null,"000000000000000","00000","0.00","0","0","00","00","GR80042CG000000.0000","00000"]
[128,"GR80043MK0100000000000","GR80043","ＧＲ－８００Ｄ，ＢＲ－１０Ｄ　雪止金具","MD",607,607,null,null,1090,80,50,12,7,607,null,null,null,null,0,null,null,null,null,0,null,null,null,null,0,null,null,null,null,0,null,null,null,null,0,null,null,null,null,0,null,null,null,null,0,null,null,null,null,0,null,null,null,null,0,null,null,null,null,0,null,null,null,null,0,null,null,null,null,0,null,null,null,null,0,null,null,null,null,0,null,null,null,null,0,null,null,null,null,0,null,null,null,null,0,null,null,null,null,0,null,null,null,null,0,null,"MK0100000000000","MK010 亜鉛メッキ処理","0.00","0","0","00","00","GR80043MDMK0100.0000","MK010"]
[129,{"$f":"C140&DH140","v":"GR80043SG0400000000000"},"GR80043","ＧＲ－８００Ｄ，ＢＲ－１０Ｄ　雪止金具","NS",{"$f":"O140+T140+Y140+AD140+AI140+AN140+AS140+AX140+BC140+BH140+BM140+BR140+BW140+CB140+CG140+CL140+CQ140+CV140+DA140+DF140","v":593},593,null,null,1420,79,40,14,33,{"$f":"(L140*M140)+N140","v":593},null,null,null,null,{"$f":"(Q140*R140)+S140","v":0},null,null,null,null,{"$f":"(V140*W140)+X140","v":0},null,null,null,null,{"$f":"(AA140*AB140)+AC140","v":0},null,null,null,null,{"$f":"(AF140*AG140)+AH140","v":0},null,null,null,null,{"$f":"(AK140*AL140)+AM140","v":0},null,null,null,null,{"$f":"(AP140*AQ140)+AR140","v":0},null,null,null,null,{"$f":"(AU140*AV140)+AW140","v":0},null,null,null,null,{"$f":"(AZ140*BA140)+BB140","v":0},null,null,null,null,{"$f":"(BE140*BF140)+BG140","v":0},null,null,null,null,{"$f":"(BJ140*BK140)+BL140","v":0},null,null,null,null,{"$f":"(BO140*BP140)+BQ140","v":0},null,null,null,null,{"$f":"(BT140*BU140)+BV140","v":0},null,null,null,null,{"$f":"(BY140*BZ140)+CA140","v":0},null,null,null,null,{"$f":"(CD140*CE140)+CF140","v":0},null,null,null,null,{"$f":"(CI140*CJ140)+CK140","v":0},null,null,null,null,{"$f":"(CN140*CO140)+CP140","v":0},null,null,null,null,{"$f":"(CS140*CT140)+CU140","v":0},null,null,null,null,{"$f":"(CX140*CY140)+CZ140","v":0},null,null,null,null,{"$f":"(DC140*DD140)+DE140","v":0},null,"SG0400000000000","SG040 ステンレス素地","0.00","0","0","00","00",{"$f":"C140&E140&DP140&DJ140&DK140&DL140","v":"GR80043NSSG0400.0000"},"SG040"]
[130,"GR80044SG0400000000000","GR80044","ＧＲ－８００Ｄ，ＢＲ－１０Ｄ　雪止金具Ｍ","NS",416,416,null,null,1121.3774000000001,81,50,6,116,416,null,null,null,null,0,null,null,null,null,0,null,null,null,null,0,null,null,null,null,0,null,null,null,null,0,null,null,null,null,0,null,null,null,null,0,null,null,null,null,0,null,null,null,null,0,null,null,null,null,0,null,null,null,null,0,null,null,null,null,0,null,null,null,null,0,null,null,null,null,0,null,null,null,null,0,null,null,null,null,0,null,null,null,null,0,null,null,null,null,0,null,null,null,null,0,null,"SG0400000000000","SG040 ステンレス素地","0.00","0","0","00","00","GR80044NSSG0400.0000","SG040"]
[131,"GR8004500000.350000000","GR80045","ＧＲ－８００Ｄ，ＢＲ－１０Ｄ　雪止捨板Ｂ","CE",1041,1041,null,null,124.64552999999999,86,50,20,41,1041,null,null,null,null,0,null,null,null,null,0,null,null,null,null,0,null,null,null,null,0,null,null,null,null,0,null,null,null,null,0,null,null,null,null,0,null,null,null,null,0,null,null,null,null,0,null,null,null,null,0,null,null,null,null,0,null,null,null,null,0,null,null,null,null,0,null,null,null,null,0,null,null,null,null,0,null,null,null,null,0,null,null,null,null,0,null,null,null,null,0,null,null,null,null,0,null,"00000.350000000","00000","0.35","0","0","00","00","GR80045CE000000.3500","00000"]
[132,"GR800R000000000000K500","GR800R0","ＴＳＡタルキ（爪有　ＧＲ－８００用）","MF",0,748,null,null,1243.65663,null,null,null,null,0,null,null,null,null,0,null,null,null,null,0,null,null,null,null,0,null,null,null,null,0,null,null,null,null,0,null,null,null,null,0,null,null,null,null,0,null,null,null,null,0,null,null,null,null,0,null,null,null,null,0,null,null,null,null,0,null,null,null,null,0,null,null,null,null,0,null,null,null,null,0,null,null,null,null,0,null,null,null,null,0,null,null,null,null,0,null,null,null,null,0,null,null,null,null,0,null,"00000000000K500","00000","0.00","0","5040","00","00","GR800R0MF000000.0005040","00000"]
[133,"GR80S00BKT20.50240K210","GR80S00","ＧＲ－８００　本体（しがらみ）","CG",0,436,null,null,1150.42661,null,null,null,null,0,null,null,null,null,0,null,null,null,null,0,null,null,null,null,0,null,null,null,null,0,null,null,null,null,0,null,null,null,null,0,null,null,null,null,0,null,null,null,null,0,null,null,null,null,0,null,null,null,null,0,null,null,null,null,0,null,null,null,null,0,null,null,null,null,0,null,null,null,null,0,null,null,null,null,0,null,null,null,null,0,null,null,null,null,0,null,null,null,null,0,null,null,null,null,0,null,"BKT20.50240K210","BKT20 チヨダカラーＧＬＧＥＲ１０／９０２　ＳＨブラック","0.50","240","2100","96","00","GR80S00CGBKT200.502402100","BKT20"]
[134,"GR80S00BWKCN.40240K420","GR80S00","ＧＲ－８００　本体（しがらみ）","CG",0,1350,null,null,1974.6437000000001,null,null,null,null,0,null,null,null,null,0,null,null,null,null,0,null,null,null,null,0,null,null,null,null,0,null,null,null,null,0,null,null,null,null,0,null,null,null,null,0,null,null,null,null,0,null,null,null,null,0,null,null,null,null,0,null,null,null,null,0,null,null,null,null,0,null,null,null,null,0,null,null,null,null,0,null,null,null,null,0,null,null,null,null,0,null,null,null,null,0,null,null,null,null,0,null,null,null,null,0,null,"BWKCN.40240K420","BWKCN GTNコゲチャ","0.40","240","4200","96","00","GR80S00CGBWKCN0.402404200","BWKCN"]
[135,"GR80S00SLGGN.40240K420","GR80S00","ＧＲ－８００　本体（しがらみ）","CG",0,103,null,null,2309.1844700000001,null,null,null,null,0,null,null,null,null,0,null,null,null,null,0,null,null,null,null,0,null,null,null,null,0,null,null,null,null,0,null,null,null,null,0,null,null,null,null,0,null,null,null,null,0,null,null,null,null,0,null,null,null,null,0,null,null,null,null,0,null,null,null,null,0,null,null,null,null,0,null,null,null,null,0,null,null,null,null,0,null,null,null,null,0,null,null,null,null,0,null,null,null,null,0,null,null,null,null,0,null,"SLGGN.40240K420","SLGGN GTNギングロ","0.40","240","4200","96","00","GR80S00CGSLGGN0.402404200","SLGGN"]
[136,"GR80S00BKX10.45240K420","GR80S00","ＧＲ－８００　本体（しがらみ）","CG",0,52,null,null,null,null,null,null,null,0,null,null,null,null,0,null,null,null,null,0,null,null,null,null,0,null,null,null,null,0,null,null,null,null,0,null,null,null,null,0,null,null,null,null,0,null,null,null,null,0,null,null,null,null,0,null,null,null,null,0,null,null,null,null,0,null,null,null,null,0,null,null,null,null,0,null,null,null,null,0,null,null,null,null,0,null,null,null,null,0,null,null,null,null,0,null,null,null,null,0,null,null,null,null,0,null,"BKX10.45240K420","BKX10 ストロングカラーＶ３　ＧＪＥ０１／９０２","0.45","240","4200","96","00","GR80S00CGBKX100.452404200","BKX10"]
[137,"GR80S2000000.350000000","GR80S20","ＧＲ－８００　継手捨板（しがらみ用）","CE",0,3648,null,null,126.49616,null,null,null,null,0,null,null,null,null,0,null,null,null,null,0,null,null,null,null,0,null,null,null,null,0,null,null,null,null,0,null,null,null,null,0,null,null,null,null,0,null,null,null,null,0,null,null,null,null,0,null,null,null,null,0,null,null,null,null,0,null,null,null,null,0,null,null,null,null,0,null,null,null,null,0,null,null,null,null,0,null,null,null,null,0,null,null,null,null,0,null,null,null,null,0,null,null,null,null,0,null,"00000.350000000","00000","0.35","0","0","00","00","GR80S20CE000000.3500","00000"]
[138,"GR80S2000000.350000001","GR80S20","ＧＲ－８００　継手捨板（しがらみ用）","CG",0,3269,null,null,134.62771000000001,null,null,null,null,0,null,null,null,null,0,null,null,null,null,0,null,null,null,null,0,null,null,null,null,0,null,null,null,null,0,null,null,null,null,0,null,null,null,null,0,null,null,null,null,0,null,null,null,null,0,null,null,null,null,0,null,null,null,null,0,null,null,null,null,0,null,null,null,null,0,null,null,null,null,0,null,null,null,null,0,null,null,null,null,0,null,null,null,null,0,null,null,null,null,0,null,null,null,null,0,null,"00000.350000001","00000","0.35","0","0","00","00","GR80S20CG000000.3500","00000"]
[139,"GR80S21OT270.400000000","GR80S21","ＧＲ－８００Ｄ　継手捨板Ⅱ（しがらみ用）","CG",3373,3373,null,null,122.99496000000001,87,100,1,73,173,88,100,32,0,3200,null,null,null,null,0,null,null,null,null,0,null,null,null,null,0,null,null,null,null,0,null,null,null,null,0,null,null,null,null,0,null,null,null,null,0,null,null,null,null,0,null,null,null,null,0,null,null,null,null,0,null,null,null,null,0,null,null,null,null,0,null,null,null,null,0,null,null,null,null,0,null,null,null,null,0,null,null,null,null,0,null,null,null,null,0,null,null,null,null,0,null,"OT270.400000000","OT270 色調不問（カラーガルバリウム）","0.40","0","0","00","00","GR80S21CGOT2700.4000","OT270"]
[140,"GR80S21OT900.400000000","GR80S21","ＧＲ－８００Ｄ　継手捨板Ⅱ（しがらみ用）","CS",20,20,null,null,248.35,155,0,0,20,20,null,null,null,null,0,null,null,null,null,0,null,null,null,null,0,null,null,null,null,0,null,null,null,null,0,null,null,null,null,0,null,null,null,null,0,null,null,null,null,0,null,null,null,null,0,null,null,null,null,0,null,null,null,null,0,null,null,null,null,0,null,null,null,null,0,null,null,null,null,0,null,null,null,null,0,null,null,null,null,0,null,null,null,null,0,null,null,null,null,0,null,null,null,null,0,null,"OT900.400000000","OT900 色調不問","0.40","0","0","00","00","GR80S21CSOT9000.4000","OT900"]
[141,"GR85000BKX60.45260K380","GR85000","ＧＲ－８５０　本体","FG",0,2112,null,null,2909.9507600000002,null,null,null,null,0,null,null,null,null,0,null,null,null,null,0,null,null,null,null,0,null,null,null,null,0,null,null,null,null,0,null,null,null,null,0,null,null,null,null,0,null,null,null,null,0,null,null,null,null,0,null,null,null,null,0,null,null,null,null,0,null,null,null,null,0,null,null,null,null,0,null,null,null,null,0,null,null,null,null,0,null,null,null,null,0,null,null,null,null,0,null,null,null,null,0,null,null,null,null,0,null,"BKX60.45260K380","BKX60 ニスクフロンＳＧＬ　ＦＫ１０１Ｓブラックパール","0.45","260","3850","98","00","GR85000FGBKX600.452603850","BKX60"]
[142,"GR85000GLVB0.45260K380","GR85000","ＧＲ－８５０　本体","FG",0,350,null,null,2853.2,null,null,null,null,0,null,null,null,null,0,null,null,null,null,0,null,null,null,null,0,null,null,null,null,0,null,null,null,null,0,null,null,null,null,0,null,null,null,null,0,null,null,null,null,0,null,null,null,null,0,null,null,null,null,0,null,null,null,null,0,null,null,null,null,0,null,null,null,null,0,null,null,null,null,0,null,null,null,null,0,null,null,null,null,0,null,null,null,null,0,null,null,null,null,0,null,null,null,null,0,null,"GLVB0.45260K380","GLVB0 チヨダＨＦ２０　ＧＨ７５４　Ｎ－４０","0.45","260","3850","98","00","GR85000FGGLVB00.452603850","GLVB0"]
[143,"GR85020BKX60.450000000","GR85020","ＧＲ－８５０　継手カバー","FG",2004,2004,null,null,184.94611,161,100,19,104,2004,null,null,null,null,0,null,null,null,null,0,null,null,null,null,0,null,null,null,null,0,null,null,null,null,0,null,null,null,null,0,null,null,null,null,0,null,null,null,null,0,null,null,null,null,0,null,null,null,null,0,null,null,null,null,0,null,null,null,null,0,null,null,null,null,0,null,null,null,null,0,null,null,null,null,0,null,null,null,null,0,null,null,null,null,0,null,null,null,null,0,null,null,null,null,0,null,"BKX60.450000000","BKX60 ニスクフロンＳＧＬ　ＦＫ１０１Ｓブラックパール","0.45","0","0","00","00","GR85020FGBKX600.4500","BKX60"]
[144,"GR8502100000.350000000","GR85021","ＧＲ－８５０　継手捨板","CE",0,136,null,null,171.51471000000001,null,null,null,null,0,null,null,null,null,0,null,null,null,null,0,null,null,null,null,0,null,null,null,null,0,null,null,null,null,0,null,null,null,null,0,null,null,null,null,0,null,null,null,null,0,null,null,null,null,0,null,null,null,null,0,null,null,null,null,0,null,null,null,null,0,null,null,null,null,0,null,null,null,null,0,null,null,null,null,0,null,null,null,null,0,null,null,null,null,0,null,null,null,null,0,null,null,null,null,0,null,"00000.350000000","00000","0.35","0","0","00","00","GR85021CE000000.3500","00000"]
[145,"GR85021000000000000000","GR85021","ＧＲ－８５０　継手捨板","CG",0,2678,null,null,192.75205,null,null,null,null,0,null,null,null,null,0,null,null,null,null,0,null,null,null,null,0,null,null,null,null,0,null,null,null,null,0,null,null,null,null,0,null,null,null,null,0,null,null,null,null,0,null,null,null,null,0,null,null,null,null,0,null,null,null,null,0,null,null,null,null,0,null,null,null,null,0,null,null,null,null,0,null,null,null,null,0,null,null,null,null,0,null,null,null,null,0,null,null,null,null,0,null,null,null,null,0,null,"000000000000000","00000","0.00","0","0","00","00","GR85021CG000000.0000","00000"]
[146,"GR85022BKX60.450000000","GR85022","ＧＲ－８５０　ケラバカバーＢ（右）","FG",326,326,null,null,419.38650000000001,175,70,3,116,326,null,null,null,null,0,null,null,null,null,0,null,null,null,null,0,null,null,null,null,0,null,null,null,null,0,null,null,null,null,0,null,null,null,null,0,null,null,null,null,0,null,null,null,null,0,null,null,null,null,0,null,null,null,null,0,null,null,null,null,0,null,null,null,null,0,null,null,null,null,0,null,null,null,null,0,null,null,null,null,0,null,null,null,null,0,null,null,null,null,0,null,null,null,null,0,null,"BKX60.450000000","BKX60 ニスクフロンＳＧＬ　ＦＫ１０１Ｓブラックパール","0.45","0","0","00","00","GR85022FGBKX600.4500","BKX60"]
[147,"GR85023BKX60.450000000","GR85023","ＧＲ－８５０　ケラバカバーＢ（左）","FG",326,326,null,null,419.38650000000001,174,70,3,116,326,null,null,null,null,0,null,null,null,null,0,null,null,null,null,0,null,null,null,null,0,null,null,null,null,0,null,null,null,null,0,null,null,null,null,0,null,null,null,null,0,null,null,null,null,0,null,null,null,null,0,null,null,null,null,0,null,null,null,null,0,null,null,null,null,0,null,null,null,null,0,null,null,null,null,0,null,null,null,null,0,null,null,null,null,0,null,null,null,null,0,null,null,null,null,0,null,"BKX60.450000000","BKX60 ニスクフロンＳＧＬ　ＦＫ１０１Ｓブラックパール","0.45","0","0","00","00","GR85023FGBKX600.4500","BKX60"]
[148,"GR8502600000.350000000","GR85026","ＧＲ－８５０　ケラバ捨板（右）","CE",0,878,null,null,146.459,null,null,null,null,0,null,null,null,null,0,null,null,null,null,0,null,null,null,null,0,null,null,null,null,0,null,null,null,null,0,null,null,null,null,0,null,null,null,null,0,null,null,null,null,0,null,null,null,null,0,null,null,null,null,0,null,null,null,null,0,null,null,null,null,0,null,null,null,null,0,null,null,null,null,0,null,null,null,null,0,null,null,null,null,0,null,null,null,null,0,null,null,null,null,0,null,null,null,null,0,null,"00000.350000000","00000","0.35","0","0","00","00","GR85026CE000000.3500","00000"]
[149,"GR8502700000.350000000","GR85027","ＧＲ－８５０　ケラバ捨板（左）","CE",0,873,null,null,146.80870999999999,null,null,null,null,0,null,null,null,null,0,null,null,null,null,0,null,null,null,null,0,null,null,null,null,0,null,null,null,null,0,null,null,null,null,0,null,null,null,null,0,null,null,null,null,0,null,null,null,null,0,null,null,null,null,0,null,null,null,null,0,null,null,null,null,0,null,null,null,null,0,null,null,null,null,0,null,null,null,null,0,null,null,null,null,0,null,null,null,null,0,null,null,null,null,0,null,null,null,null,0,null,"00000.350000000","00000","0.35","0","0","00","00","GR85027CE000000.3500","00000"]
[150,"GR8503200000.350000000","GR85032","ＧＲ－８５０　下り棟捨板","CE",0,93,null,null,248.32257999999999,null,null,null,null,0,null,null,null,null,0,null,null,null,null,0,null,null,null,null,0,null,null,null,null,0,null,null,null,null,0,null,null,null,null,0,null,null,null,null,0,null,null,null,null,0,null,null,null,null,0,null,null,null,null,0,null,null,null,null,0,null,null,null,null,0,null,null,null,null,0,null,null,null,null,0,null,null,null,null,0,null,null,null,null,0,null,null,null,null,0,null,null,null,null,0,null,null,null,null,0,null,"00000.350000000","00000","0.35","0","0","00","00","GR85032CE000000.3500","00000"]
[151,"GR85032000000000000000","GR85032","ＧＲ－８５０　下り棟捨板","CG",350,350,null,null,225.26857000000001,136,70,5,0,350,null,null,null,null,0,null,null,null,null,0,null,null,null,null,0,null,null,null,null,0,null,null,null,null,0,null,null,null,null,0,null,null,null,null,0,null,null,null,null,0,null,null,null,null,0,null,null,null,null,0,null,null,null,null,0,null,null,null,null,0,null,null,null,null,0,null,null,null,null,0,null,null,null,null,0,null,null,null,null,0,null,null,null,null,0,null,null,null,null,0,null,null,null,null,0,null,"000000000000000","00000","0.00","0","0","00","00","GR85032CG000000.0000","00000"]
[152,"GR85040BW8J00000000001","GR85040","ＧＲ－８５０　雪止金具（アングルタイプ）","MF",3,3,null,null,873.66666999999995,156,0,0,3,3,null,null,null,null,0,null,null,null,null,0,null,null,null,null,0,null,null,null,null,0,null,null,null,null,0,null,null,null,null,0,null,null,null,null,0,null,null,null,null,0,null,null,null,null,0,null,null,null,null,0,null,null,null,null,0,null,null,null,null,0,null,null,null,null,0,null,null,null,null,0,null,null,null,null,0,null,null,null,null,0,null,null,null,null,0,null,null,null,null,0,null,null,null,null,0,null,"BW8J00000000001","BW8J0 ストロングカラーＶ３　ＧＪＥ０４／９０２","0.00","0","0","00","00","GR85040MFBW8J00.0000","BW8J0"]
[153,"GR85040MK0100000000000","GR85040","ＧＲ－８５０　雪止金具（アングルタイプ）","MF",0,514,null,null,520.70038999999997,null,null,null,null,0,null,null,null,null,0,null,null,null,null,0,null,null,null,null,0,null,null,null,null,0,null,null,null,null,0,null,null,null,null,0,null,null,null,null,0,null,null,null,null,0,null,null,null,null,0,null,null,null,null,0,null,null,null,null,0,null,null,null,null,0,null,null,null,null,0,null,null,null,null,0,null,null,null,null,0,null,null,null,null,0,null,null,null,null,0,null,null,null,null,0,null,null,null,null,0,null,"MK0100000000000","MK010 亜鉛メッキ処理","0.00","0","0","00","00","GR85040MFMK0100.0000","MK010"]
[154,"GR85040SG0400000000001","GR85040","ＧＲ－８５０　雪止金具（アングルタイプ）","NS",0,240,null,null,1061.0374999999999,null,null,null,null,0,null,null,null,null,0,null,null,null,null,0,null,null,null,null,0,null,null,null,null,0,null,null,null,null,0,null,null,null,null,0,null,null,null,null,0,null,null,null,null,0,null,null,null,null,0,null,null,null,null,0,null,null,null,null,0,null,null,null,null,0,null,null,null,null,0,null,null,null,null,0,null,null,null,null,0,null,null,null,null,0,null,null,null,null,0,null,null,null,null,0,null,null,null,null,0,null,"SG0400000000001","SG040 ステンレス素地","0.00","0","0","00","00","GR85040NSSG0400.0000","SG040"]
[155,"GR85041000000000000000","GR85041","ＧＲ－８５０　雪止捨板","CG",0,1013,null,null,127.28134,null,null,null,null,0,null,null,null,null,0,null,null,null,null,0,null,null,null,null,0,null,null,null,null,0,null,null,null,null,0,null,null,null,null,0,null,null,null,null,0,null,null,null,null,0,null,null,null,null,0,null,null,null,null,0,null,null,null,null,0,null,null,null,null,0,null,null,null,null,0,null,null,null,null,0,null,null,null,null,0,null,null,null,null,0,null,null,null,null,0,null,null,null,null,0,null,null,null,null,0,null,"000000000000000","00000","0.00","0","0","00","00","GR85041CG000000.0000","00000"]
[156,"GR85042SG0400000000000","GR85042","ＧＲ－８５０　雪止金具Ｍタイプ","NS",0,447,null,null,585.70916999999997,null,null,null,null,0,null,null,null,null,0,null,null,null,null,0,null,null,null,null,0,null,null,null,null,0,null,null,null,null,0,null,null,null,null,0,null,null,null,null,0,null,null,null,null,0,null,null,null,null,0,null,null,null,null,0,null,null,null,null,0,null,null,null,null,0,null,null,null,null,0,null,null,null,null,0,null,null,null,null,0,null,null,null,null,0,null,null,null,null,0,null,null,null,null,0,null,null,null,null,0,null,"SG0400000000000","SG040 ステンレス素地","0.00","0","0","00","00","GR85042NSSG0400.0000","SG040"]
[157,"GR850M000000000160K180","GR850M0","ＧＲ－８５０　三角ＢＵ材","AP",0,16294,null,null,300.22658999999999,null,null,null,null,0,null,null,null,null,0,null,null,null,null,0,null,null,null,null,0,null,null,null,null,0,null,null,null,null,0,null,null,null,null,0,null,null,null,null,0,null,null,null,null,0,null,null,null,null,0,null,null,null,null,0,null,null,null,null,0,null,null,null,null,0,null,null,null,null,0,null,null,null,null,0,null,null,null,null,0,null,null,null,null,0,null,null,null,null,0,null,null,null,null,0,null,null,null,null,0,null,"00000000160K180","00000","0.00","160","1820","00","00","GR850M0AP000000.001601820","00000"]
[158,"GR850R000000000000K490","GR850R0","ＴＳＡタルキ（爪有　ＧＲ－８５０用）","MF",0,368,null,null,1131.74728,null,null,null,null,0,null,null,null,null,0,null,null,null,null,0,null,null,null,null,0,null,null,null,null,0,null,null,null,null,0,null,null,null,null,0,null,null,null,null,0,null,null,null,null,0,null,null,null,null,0,null,null,null,null,0,null,null,null,null,0,null,null,null,null,0,null,null,null,null,0,null,null,null,null,0,null,null,null,null,0,null,null,null,null,0,null,null,null,null,0,null,null,null,null,0,null,null,null,null,0,null,"00000000000K490","00000","0.00","0","4940","00","00","GR850R0MF000000.0004940","00000"]
[159,"GS02ZEM000000000001820","GS02ZEM","元張Ⅱ　小口受け材（耐火仕様）","GJ",0,300,null,null,48,null,null,null,null,0,null,null,null,null,0,null,null,null,null,0,null,null,null,null,0,null,null,null,null,0,null,null,null,null,0,null,null,null,null,0,null,null,null,null,0,null,null,null,null,0,null,null,null,null,0,null,null,null,null,0,null,null,null,null,0,null,null,null,null,0,null,null,null,null,0,null,null,null,null,0,null,null,null,null,0,null,null,null,null,0,null,null,null,null,0,null,null,null,null,0,null,null,null,null,0,null,"000000000001820","00000","0.00","0","182","00","00","GS02ZEMGJ000000.000182","00000"]
[160,"GTL1LL400000.80K00K300","GTL1LL4","元旦ＴＬ　絶縁シート","00",0,3,null,null,2023.3333299999999,null,null,null,null,0,null,null,null,null,0,null,null,null,null,0,null,null,null,null,0,null,null,null,null,0,null,null,null,null,0,null,null,null,null,0,null,null,null,null,0,null,null,null,null,0,null,null,null,null,0,null,null,null,null,0,null,null,null,null,0,null,null,null,null,0,null,null,null,null,0,null,null,null,null,0,null,null,null,null,0,null,null,null,null,0,null,null,null,null,0,null,null,null,null,0,null,null,null,null,0,null,"00000.80K00K300","00000","0.80","1000","3000","00","00","GTL1LL400000000.8010003000","00000"]
[161,"GTL1LL5000000000000000","GTL1LL5","元旦トップライト（折板用）１０","00",0,39,null,null,16929.179489999999,null,null,null,null,0,null,null,null,null,0,null,null,null,null,0,null,null,null,null,0,null,null,null,null,0,null,null,null,null,0,null,null,null,null,0,null,null,null,null,0,null,null,null,null,0,null,null,null,null,0,null,null,null,null,0,null,null,null,null,0,null,null,null,null,0,null,null,null,null,0,null,null,null,null,0,null,null,null,null,0,null,null,null,null,0,null,null,null,null,0,null,null,null,null,0,null,null,null,null,0,null,"000000000000000","00000","0.00","0","0","00","00","GTL1LL500000000.0000","00000"]
[162,"GTLTKL0000005401940000","GTLTKL0","元旦トップライト特注品","00",0,3,null,null,76190,null,null,null,null,0,null,null,null,null,0,null,null,null,null,0,null,null,null,null,0,null,null,null,null,0,null,null,null,null,0,null,null,null,null,0,null,null,null,null,0,null,null,null,null,0,null,null,null,null,0,null,null,null,null,0,null,null,null,null,0,null,null,null,null,0,null,null,null,null,0,null,null,null,null,0,null,null,null,null,0,null,null,null,null,0,null,null,null,null,0,null,null,null,null,0,null,null,null,null,0,null,"000005401940000","00000","540.00","194","0","00","00","GTLTKL00000000540.001940","00000"]
[163,"GTLTKL1000005401070000","GTLTKL1","元旦ＴＬパッキンセット特注品","00",0,3,null,null,1796.6666700000001,null,null,null,null,0,null,null,null,null,0,null,null,null,null,0,null,null,null,null,0,null,null,null,null,0,null,null,null,null,0,null,null,null,null,0,null,null,null,null,0,null,null,null,null,0,null,null,null,null,0,null,null,null,null,0,null,null,null,null,0,null,null,null,null,0,null,null,null,null,0,null,null,null,null,0,null,null,null,null,0,null,null,null,null,0,null,null,null,null,0,null,null,null,null,0,null,null,null,null,0,null,"000005401070000","00000","540.00","107","0","00","00","GTLTKL10000000540.001070","00000"]
[164,"GUD1ZE1BKT20.500000000","GUD1ZE1","元旦内樋　止りＳ（右）","CG",0,34,null,null,644.97931000000005,null,null,null,null,0,null,null,null,null,0,null,null,null,null,0,null,null,null,null,0,null,null,null,null,0,null,null,null,null,0,null,null,null,null,0,null,null,null,null,0,null,null,null,null,0,null,null,null,null,0,null,null,null,null,0,null,null,null,null,0,null,null,null,null,0,null,null,null,null,0,null,null,null,null,0,null,null,null,null,0,null,null,null,null,0,null,null,null,null,0,null,null,null,null,0,null,null,null,null,0,null,"BKT20.500000000","BKT20 チヨダカラーＧＬＧＥＲ１０／９０２　ＳＨブラック","0.50","0","0","00","00","GUD1ZE1CGBKT200.5000","BKT20"]
[165,"GUD1ZE1BW3V0.500000000","GUD1ZE1","元旦内樋　止りＳ（右）","CG",0,45,null,null,620.68794000000003,null,null,null,null,0,null,null,null,null,0,null,null,null,null,0,null,null,null,null,0,null,null,null,null,0,null,null,null,null,0,null,null,null,null,0,null,null,null,null,0,null,null,null,null,0,null,null,null,null,0,null,null,null,null,0,null,null,null,null,0,null,null,null,null,0,null,null,null,null,0,null,null,null,null,0,null,null,null,null,0,null,null,null,null,0,null,null,null,null,0,null,null,null,null,0,null,null,null,null,0,null,"BW3V0.500000000","BW3V0 チヨダカラーＧＬ輝きＧＥＲ４０　シャインブラウン","0.50","0","0","00","00","GUD1ZE1CGBW3V00.5000","BW3V0"]
[166,"GUD1ZE1GD330.500000000","GUD1ZE1","元旦内樋　止りＳ（右）","CG",0,20,null,null,594.15,null,null,null,null,0,null,null,null,null,0,null,null,null,null,0,null,null,null,null,0,null,null,null,null,0,null,null,null,null,0,null,null,null,null,0,null,null,null,null,0,null,null,null,null,0,null,null,null,null,0,null,null,null,null,0,null,null,null,null,0,null,null,null,null,0,null,null,null,null,0,null,null,null,null,0,null,null,null,null,0,null,null,null,null,0,null,null,null,null,0,null,null,null,null,0,null,null,null,null,0,null,"GD330.500000000","GD330 チヨダカラーＧＬ　輝き　ＳＨゴールド　ＧＥＲ１２","0.50","0","0","00","00","GUD1ZE1CGGD3300.5000","GD330"]
[167,"GUD1ZE1GLZG0.500000000","GUD1ZE1","元旦内樋　止りＳ（右）","CG",0,45,null,null,612.09321999999997,null,null,null,null,0,null,null,null,null,0,null,null,null,null,0,null,null,null,null,0,null,null,null,null,0,null,null,null,null,0,null,null,null,null,0,null,null,null,null,0,null,null,null,null,0,null,null,null,null,0,null,null,null,null,0,null,null,null,null,0,null,null,null,null,0,null,null,null,null,0,null,null,null,null,0,null,null,null,null,0,null,null,null,null,0,null,null,null,null,0,null,null,null,null,0,null,null,null,null,0,null,"GLZG0.500000000","GLZG0 チヨダカラーＧＬ輝きＧＥＲ８０　ＳＨグレー","0.50","0","0","00","00","GUD1ZE1CGGLZG00.5000","GLZG0"]
[168,"GUD1ZE1RDE40.500000000","GUD1ZE1","元旦内樋　止りＳ（右）","CG",0,37,null,null,601.97297000000003,null,null,null,null,0,null,null,null,null,0,null,null,null,null,0,null,null,null,null,0,null,null,null,null,0,null,null,null,null,0,null,null,null,null,0,null,null,null,null,0,null,null,null,null,0,null,null,null,null,0,null,null,null,null,0,null,null,null,null,0,null,null,null,null,0,null,null,null,null,0,null,null,null,null,0,null,null,null,null,0,null,null,null,null,0,null,null,null,null,0,null,null,null,null,0,null,null,null,null,0,null,"RDE40.500000000","RDE40 チヨダカラーＧＬ　輝き　ＳＨレンガ　ＧＥＲ９０","0.50","0","0","00","00","GUD1ZE1CGRDE400.5000","RDE40"]
[169,"GUD1ZE1SL6A0.500000000","GUD1ZE1","元旦内樋　止りＳ（右）","CG",0,39,null,null,656.51282000000003,null,null,null,null,0,null,null,null,null,0,null,null,null,null,0,null,null,null,null,0,null,null,null,null,0,null,null,null,null,0,null,null,null,null,0,null,null,null,null,0,null,null,null,null,0,null,null,null,null,0,null,null,null,null,0,null,null,null,null,0,null,null,null,null,0,null,null,null,null,0,null,null,null,null,0,null,null,null,null,0,null,null,null,null,0,null,null,null,null,0,null,null,null,null,0,null,null,null,null,0,null,"SL6A0.500000000","SL6A0 チヨダカラーＧＬ　輝き　ＳＨシルバー　ＧＥＲ８１","0.50","0","0","00","00","GUD1ZE1CGSL6A00.5000","SL6A0"]
[170,"GUD1ZE1WTP10.500000000","GUD1ZE1","元旦内樋　止りＳ（右）","CG",0,23,null,null,613.52174000000002,null,null,null,null,0,null,null,null,null,0,null,null,null,null,0,null,null,null,null,0,null,null,null,null,0,null,null,null,null,0,null,null,null,null,0,null,null,null,null,0,null,null,null,null,0,null,null,null,null,0,null,null,null,null,0,null,null,null,null,0,null,null,null,null,0,null,null,null,null,0,null,null,null,null,0,null,null,null,null,0,null,null,null,null,0,null,null,null,null,0,null,null,null,null,0,null,null,null,null,0,null,"WTP10.500000000","WTP10 チヨダカラー輝き　ＧＥＲ８２　ホワイト","0.50","0","0","00","00","GUD1ZE1CGWTP100.5000","WTP10"]
[171,"GUD1ZE2BKT20.500000000","GUD1ZE2","元旦内樋　止りＳ（左）","CG",0,37,null,null,647.88513999999998,null,null,null,null,0,null,null,null,null,0,null,null,null,null,0,null,null,null,null,0,null,null,null,null,0,null,null,null,null,0,null,null,null,null,0,null,null,null,null,0,null,null,null,null,0,null,null,null,null,0,null,null,null,null,0,null,null,null,null,0,null,null,null,null,0,null,null,null,null,0,null,null,null,null,0,null,null,null,null,0,null,null,null,null,0,null,null,null,null,0,null,null,null,null,0,null,null,null,null,0,null,"BKT20.500000000","BKT20 チヨダカラーＧＬＧＥＲ１０／９０２　ＳＨブラック","0.50","0","0","00","00","GUD1ZE2CGBKT200.5000","BKT20"]
[172,"GUD1ZE2BW3V0.500000000","GUD1ZE2","元旦内樋　止りＳ（左）","CG",0,42,null,null,620.85612000000003,null,null,null,null,0,null,null,null,null,0,null,null,null,null,0,null,null,null,null,0,null,null,null,null,0,null,null,null,null,0,null,null,null,null,0,null,null,null,null,0,null,null,null,null,0,null,null,null,null,0,null,null,null,null,0,null,null,null,null,0,null,null,null,null,0,null,null,null,null,0,null,null,null,null,0,null,null,null,null,0,null,null,null,null,0,null,null,null,null,0,null,null,null,null,0,null,null,null,null,0,null,"BW3V0.500000000","BW3V0 チヨダカラーＧＬ輝きＧＥＲ４０　シャインブラウン","0.50","0","0","00","00","GUD1ZE2CGBW3V00.5000","BW3V0"]
[173,"GUD1ZE2GD330.500000000","GUD1ZE2","元旦内樋　止りＳ（左）","CG",0,19,null,null,616.47367999999994,null,null,null,null,0,null,null,null,null,0,null,null,null,null,0,null,null,null,null,0,null,null,null,null,0,null,null,null,null,0,null,null,null,null,0,null,null,null,null,0,null,null,null,null,0,null,null,null,null,0,null,null,null,null,0,null,null,null,null,0,null,null,null,null,0,null,null,null,null,0,null,null,null,null,0,null,null,null,null,0,null,null,null,null,0,null,null,null,null,0,null,null,null,null,0,null,null,null,null,0,null,"GD330.500000000","GD330 チヨダカラーＧＬ　輝き　ＳＨゴールド　ＧＥＲ１２","0.50","0","0","00","00","GUD1ZE2CGGD3300.5000","GD330"]
[174,"GUD1ZE2GLZG0.500000000","GUD1ZE2","元旦内樋　止りＳ（左）","CG",0,46,null,null,611.89916000000005,null,null,null,null,0,null,null,null,null,0,null,null,null,null,0,null,null,null,null,0,null,null,null,null,0,null,null,null,null,0,null,null,null,null,0,null,null,null,null,0,null,null,null,null,0,null,null,null,null,0,null,null,null,null,0,null,null,null,null,0,null,null,null,null,0,null,null,null,null,0,null,null,null,null,0,null,null,null,null,0,null,null,null,null,0,null,null,null,null,0,null,null,null,null,0,null,null,null,null,0,null,"GLZG0.500000000","GLZG0 チヨダカラーＧＬ輝きＧＥＲ８０　ＳＨグレー","0.50","0","0","00","00","GUD1ZE2CGGLZG00.5000","GLZG0"]
[175,"GUD1ZE2RDE40.500000000","GUD1ZE2","元旦内樋　止りＳ（左）","CG",0,36,null,null,601.86111000000005,null,null,null,null,0,null,null,null,null,0,null,null,null,null,0,null,null,null,null,0,null,null,null,null,0,null,null,null,null,0,null,null,null,null,0,null,null,null,null,0,null,null,null,null,0,null,null,null,null,0,null,null,null,null,0,null,null,null,null,0,null,null,null,null,0,null,null,null,null,0,null,null,null,null,0,null,null,null,null,0,null,null,null,null,0,null,null,null,null,0,null,null,null,null,0,null,null,null,null,0,null,"RDE40.500000000","RDE40 チヨダカラーＧＬ　輝き　ＳＨレンガ　ＧＥＲ９０","0.50","0","0","00","00","GUD1ZE2CGRDE400.5000","RDE40"]
[176,"GUD1ZE2SL6A0.500000000","GUD1ZE2","元旦内樋　止りＳ（左）","CG",0,39,null,null,656.48717999999997,null,null,null,null,0,null,null,null,null,0,null,null,null,null,0,null,null,null,null,0,null,null,null,null,0,null,null,null,null,0,null,null,null,null,0,null,null,null,null,0,null,null,null,null,0,null,null,null,null,0,null,null,null,null,0,null,null,null,null,0,null,null,null,null,0,null,null,null,null,0,null,null,null,null,0,null,null,null,null,0,null,null,null,null,0,null,null,null,null,0,null,null,null,null,0,null,null,null,null,0,null,"SL6A0.500000000","SL6A0 チヨダカラーＧＬ　輝き　ＳＨシルバー　ＧＥＲ８１","0.50","0","0","00","00","GUD1ZE2CGSL6A00.5000","SL6A0"]
[177,"GUD1ZE2WTP10.500000000","GUD1ZE2","元旦内樋　止りＳ（左）","CG",0,21,null,null,614.76189999999997,null,null,null,null,0,null,null,null,null,0,null,null,null,null,0,null,null,null,null,0,null,null,null,null,0,null,null,null,null,0,null,null,null,null,0,null,null,null,null,0,null,null,null,null,0,null,null,null,null,0,null,null,null,null,0,null,null,null,null,0,null,null,null,null,0,null,null,null,null,0,null,null,null,null,0,null,null,null,null,0,null,null,null,null,0,null,null,null,null,0,null,null,null,null,0,null,null,null,null,0,null,"WTP10.500000000","WTP10 チヨダカラー輝き　ＧＥＲ８２　ホワイト","0.50","0","0","00","00","GUD1ZE2CGWTP100.5000","WTP10"]
[178,"GUD1ZE3BKT20.500000000","GUD1ZE3","元旦内樋　止りＭ（右）","CG",0,34,null,null,659.70587999999998,null,null,null,null,0,null,null,null,null,0,null,null,null,null,0,null,null,null,null,0,null,null,null,null,0,null,null,null,null,0,null,null,null,null,0,null,null,null,null,0,null,null,null,null,0,null,null,null,null,0,null,null,null,null,0,null,null,null,null,0,null,null,null,null,0,null,null,null,null,0,null,null,null,null,0,null,null,null,null,0,null,null,null,null,0,null,null,null,null,0,null,null,null,null,0,null,null,null,null,0,null,"BKT20.500000000","BKT20 チヨダカラーＧＬＧＥＲ１０／９０２　ＳＨブラック","0.50","0","0","00","00","GUD1ZE3CGBKT200.5000","BKT20"]
[179,"GUD1ZE3BW3V0.500000000","GUD1ZE3","元旦内樋　止りＭ（右）","CG",0,42,null,null,649.47618999999997,null,null,null,null,0,null,null,null,null,0,null,null,null,null,0,null,null,null,null,0,null,null,null,null,0,null,null,null,null,0,null,null,null,null,0,null,null,null,null,0,null,null,null,null,0,null,null,null,null,0,null,null,null,null,0,null,null,null,null,0,null,null,null,null,0,null,null,null,null,0,null,null,null,null,0,null,null,null,null,0,null,null,null,null,0,null,null,null,null,0,null,null,null,null,0,null,null,null,null,0,null,"BW3V0.500000000","BW3V0 チヨダカラーＧＬ輝きＧＥＲ４０　シャインブラウン","0.50","0","0","00","00","GUD1ZE3CGBW3V00.5000","BW3V0"]
[180,"GUD1ZE3GD330.500000000","GUD1ZE3","元旦内樋　止りＭ（右）","CG",0,18,null,null,653.72221999999999,null,null,null,null,0,null,null,null,null,0,null,null,null,null,0,null,null,null,null,0,null,null,null,null,0,null,null,null,null,0,null,null,null,null,0,null,null,null,null,0,null,null,null,null,0,null,null,null,null,0,null,null,null,null,0,null,null,null,null,0,null,null,null,null,0,null,null,null,null,0,null,null,null,null,0,null,null,null,null,0,null,null,null,null,0,null,null,null,null,0,null,null,null,null,0,null,null,null,null,0,null,"GD330.500000000","GD330 チヨダカラーＧＬ　輝き　ＳＨゴールド　ＧＥＲ１２","0.50","0","0","00","00","GUD1ZE3CGGD3300.5000","GD330"]
[181,"GUD1ZE3GLZG0.500000000","GUD1ZE3","元旦内樋　止りＭ（右）","CG",0,34,null,null,676.55881999999997,null,null,null,null,0,null,null,null,null,0,null,null,null,null,0,null,null,null,null,0,null,null,null,null,0,null,null,null,null,0,null,null,null,null,0,null,null,null,null,0,null,null,null,null,0,null,null,null,null,0,null,null,null,null,0,null,null,null,null,0,null,null,null,null,0,null,null,null,null,0,null,null,null,null,0,null,null,null,null,0,null,null,null,null,0,null,null,null,null,0,null,null,null,null,0,null,null,null,null,0,null,"GLZG0.500000000","GLZG0 チヨダカラーＧＬ輝きＧＥＲ８０　ＳＨグレー","0.50","0","0","00","00","GUD1ZE3CGGLZG00.5000","GLZG0"]
[182,"GUD1ZE3RDE40.500000000","GUD1ZE3","元旦内樋　止りＭ（右）","CG",0,36,null,null,643.44443999999999,null,null,null,null,0,null,null,null,null,0,null,null,null,null,0,null,null,null,null,0,null,null,null,null,0,null,null,null,null,0,null,null,null,null,0,null,null,null,null,0,null,null,null,null,0,null,null,null,null,0,null,null,null,null,0,null,null,null,null,0,null,null,null,null,0,null,null,null,null,0,null,null,null,null,0,null,null,null,null,0,null,null,null,null,0,null,null,null,null,0,null,null,null,null,0,null,null,null,null,0,null,"RDE40.500000000","RDE40 チヨダカラーＧＬ　輝き　ＳＨレンガ　ＧＥＲ９０","0.50","0","0","00","00","GUD1ZE3CGRDE400.5000","RDE40"]
[183,"GUD1ZE3SL6A0.500000000","GUD1ZE3","元旦内樋　止りＭ（右）","CG",0,36,null,null,590.61111000000005,null,null,null,null,0,null,null,null,null,0,null,null,null,null,0,null,null,null,null,0,null,null,null,null,0,null,null,null,null,0,null,null,null,null,0,null,null,null,null,0,null,null,null,null,0,null,null,null,null,0,null,null,null,null,0,null,null,null,null,0,null,null,null,null,0,null,null,null,null,0,null,null,null,null,0,null,null,null,null,0,null,null,null,null,0,null,null,null,null,0,null,null,null,null,0,null,null,null,null,0,null,"SL6A0.500000000","SL6A0 チヨダカラーＧＬ　輝き　ＳＨシルバー　ＧＥＲ８１","0.50","0","0","00","00","GUD1ZE3CGSL6A00.5000","SL6A0"]
[184,"GUD1ZE3WTP10.500000000","GUD1ZE3","元旦内樋　止りＭ（右）","CG",0,14,null,null,676,null,null,null,null,0,null,null,null,null,0,null,null,null,null,0,null,null,null,null,0,null,null,null,null,0,null,null,null,null,0,null,null,null,null,0,null,null,null,null,0,null,null,null,null,0,null,null,null,null,0,null,null,null,null,0,null,null,null,null,0,null,null,null,null,0,null,null,null,null,0,null,null,null,null,0,null,null,null,null,0,null,null,null,null,0,null,null,null,null,0,null,null,null,null,0,null,null,null,null,0,null,"WTP10.500000000","WTP10 チヨダカラー輝き　ＧＥＲ８２　ホワイト","0.50","0","0","00","00","GUD1ZE3CGWTP100.5000","WTP10"]
[185,"GUD1ZE4BKT20.500000000","GUD1ZE4","元旦内樋　止りＭ（左）","CG",0,38,null,null,658.28947000000005,null,null,null,null,0,null,null,null,null,0,null,null,null,null,0,null,null,null,null,0,null,null,null,null,0,null,null,null,null,0,null,null,null,null,0,null,null,null,null,0,null,null,null,null,0,null,null,null,null,0,null,null,null,null,0,null,null,null,null,0,null,null,null,null,0,null,null,null,null,0,null,null,null,null,0,null,null,null,null,0,null,null,null,null,0,null,null,null,null,0,null,null,null,null,0,null,null,null,null,0,null,"BKT20.500000000","BKT20 チヨダカラーＧＬＧＥＲ１０／９０２　ＳＨブラック","0.50","0","0","00","00","GUD1ZE4CGBKT200.5000","BKT20"]
[186,"GUD1ZE4BW3V0.500000000","GUD1ZE4","元旦内樋　止りＭ（左）","CG",0,45,null,null,649.06667000000004,null,null,null,null,0,null,null,null,null,0,null,null,null,null,0,null,null,null,null,0,null,null,null,null,0,null,null,null,null,0,null,null,null,null,0,null,null,null,null,0,null,null,null,null,0,null,null,null,null,0,null,null,null,null,0,null,null,null,null,0,null,null,null,null,0,null,null,null,null,0,null,null,null,null,0,null,null,null,null,0,null,null,null,null,0,null,null,null,null,0,null,null,null,null,0,null,null,null,null,0,null,"BW3V0.500000000","BW3V0 チヨダカラーＧＬ輝きＧＥＲ４０　シャインブラウン","0.50","0","0","00","00","GUD1ZE4CGBW3V00.5000","BW3V0"]
[187,"GUD1ZE4GD330.500000000","GUD1ZE4","元旦内樋　止りＭ（左）","CG",0,18,null,null,653.72221999999999,null,null,null,null,0,null,null,null,null,0,null,null,null,null,0,null,null,null,null,0,null,null,null,null,0,null,null,null,null,0,null,null,null,null,0,null,null,null,null,0,null,null,null,null,0,null,null,null,null,0,null,null,null,null,0,null,null,null,null,0,null,null,null,null,0,null,null,null,null,0,null,null,null,null,0,null,null,null,null,0,null,null,null,null,0,null,null,null,null,0,null,null,null,null,0,null,null,null,null,0,null,"GD330.500000000","GD330 チヨダカラーＧＬ　輝き　ＳＨゴールド　ＧＥＲ１２","0.50","0","0","00","00","GUD1ZE4CGGD3300.5000","GD330"]
[188,"GUD1ZE4GLZG0.500000000","GUD1ZE4","元旦内樋　止りＭ（左）","CG",0,34,null,null,676.55881999999997,null,null,null,null,0,null,null,null,null,0,null,null,null,null,0,null,null,null,null,0,null,null,null,null,0,null,null,null,null,0,null,null,null,null,0,null,null,null,null,0,null,null,null,null,0,null,null,null,null,0,null,null,null,null,0,null,null,null,null,0,null,null,null,null,0,null,null,null,null,0,null,null,null,null,0,null,null,null,null,0,null,null,null,null,0,null,null,null,null,0,null,null,null,null,0,null,null,null,null,0,null,"GLZG0.500000000","GLZG0 チヨダカラーＧＬ輝きＧＥＲ８０　ＳＨグレー","0.50","0","0","00","00","GUD1ZE4CGGLZG00.5000","GLZG0"]
[189,"GUD1ZE4RDE40.500000000","GUD1ZE4","元旦内樋　止りＭ（左）","CG",0,46,null,null,633.36956999999995,null,null,null,null,0,null,null,null,null,0,null,null,null,null,0,null,null,null,null,0,null,null,null,null,0,null,null,null,null,0,null,null,null,null,0,null,null,null,null,0,null,null,null,null,0,null,null,null,null,0,null,null,null,null,0,null,null,null,null,0,null,null,null,null,0,null,null,null,null,0,null,null,null,null,0,null,null,null,null,0,null,null,null,null,0,null,null,null,null,0,null,null,null,null,0,null,null,null,null,0,null,"RDE40.500000000","RDE40 チヨダカラーＧＬ　輝き　ＳＨレンガ　ＧＥＲ９０","0.50","0","0","00","00","GUD1ZE4CGRDE400.5000","RDE40"]
[190,"GUD1ZE4SL6A0.500000000","GUD1ZE4","元旦内樋　止りＭ（左）","CG",0,33,null,null,588.93939,null,null,null,null,0,null,null,null,null,0,null,null,null,null,0,null,null,null,null,0,null,null,null,null,0,null,null,null,null,0,null,null,null,null,0,null,null,null,null,0,null,null,null,null,0,null,null,null,null,0,null,null,null,null,0,null,null,null,null,0,null,null,null,null,0,null,null,null,null,0,null,null,null,null,0,null,null,null,null,0,null,null,null,null,0,null,null,null,null,0,null,null,null,null,0,null,null,null,null,0,null,"SL6A0.500000000","SL6A0 チヨダカラーＧＬ　輝き　ＳＨシルバー　ＧＥＲ８１","0.50","0","0","00","00","GUD1ZE4CGSL6A00.5000","SL6A0"]
[191,"GUD1ZE4WTP10.500000000","GUD1ZE4","元旦内樋　止りＭ（左）","CG",0,14,null,null,676,null,null,null,null,0,null,null,null,null,0,null,null,null,null,0,null,null,null,null,0,null,null,null,null,0,null,null,null,null,0,null,null,null,null,0,null,null,null,null,0,null,null,null,null,0,null,null,null,null,0,null,null,null,null,0,null,null,null,null,0,null,null,null,null,0,null,null,null,null,0,null,null,null,null,0,null,null,null,null,0,null,null,null,null,0,null,null,null,null,0,null,null,null,null,0,null,null,null,null,0,null,"WTP10.500000000","WTP10 チヨダカラー輝き　ＧＥＲ８２　ホワイト","0.50","0","0","00","00","GUD1ZE4CGWTP100.5000","WTP10"]
[192,"GUD1ZE5BKT20.500000000","GUD1ZE5","元旦内樋　樋受金具","CG",0,638,null,null,115.76018999999999,null,null,null,null,0,null,null,null,null,0,null,null,null,null,0,null,null,null,null,0,null,null,null,null,0,null,null,null,null,0,null,null,null,null,0,null,null,null,null,0,null,null,null,null,0,null,null,null,null,0,null,null,null,null,0,null,null,null,null,0,null,null,null,null,0,null,null,null,null,0,null,null,null,null,0,null,null,null,null,0,null,null,null,null,0,null,null,null,null,0,null,null,null,null,0,null,null,null,null,0,null,"BKT20.500000000","BKT20 チヨダカラーＧＬＧＥＲ１０／９０２　ＳＨブラック","0.50","0","0","00","00","GUD1ZE5CGBKT200.5000","BKT20"]
[193,{"$f":"C204&DH204","v":"GUD1ZE5BW3V0.500000000"},"GUD1ZE5","元旦内樋　樋受金具","CG",{"$f":"O204+T204+Y204+AD204+AI204+AN204+AS204+AX204+BC204+BH204+BM204+BR204+BW204+CB204+CG204+CL204+CQ204+CV204+DA204+DF204","v":0},883,null,null,119.50963,null,null,null,null,{"$f":"(L204*M204)+N204","v":0},null,null,null,null,{"$f":"(Q204*R204)+S204","v":0},null,null,null,null,{"$f":"(V204*W204)+X204","v":0},null,null,null,null,{"$f":"(AA204*AB204)+AC204","v":0},null,null,null,null,{"$f":"(AF204*AG204)+AH204","v":0},null,null,null,null,{"$f":"(AK204*AL204)+AM204","v":0},null,null,null,null,{"$f":"(AP204*AQ204)+AR204","v":0},null,null,null,null,{"$f":"(AU204*AV204)+AW204","v":0},null,null,null,null,{"$f":"(AZ204*BA204)+BB204","v":0},null,null,null,null,{"$f":"(BE204*BF204)+BG204","v":0},null,null,null,null,{"$f":"(BJ204*BK204)+BL204","v":0},null,null,null,null,{"$f":"(BO204*BP204)+BQ204","v":0},null,null,null,null,{"$f":"(BT204*BU204)+BV204","v":0},null,null,null,null,{"$f":"(BY204*BZ204)+CA204","v":0},null,null,null,null,{"$f":"(CD204*CE204)+CF204","v":0},null,null,null,null,{"$f":"(CI204*CJ204)+CK204","v":0},null,null,null,null,{"$f":"(CN204*CO204)+CP204","v":0},null,null,null,null,{"$f":"(CS204*CT204)+CU204","v":0},null,null,null,null,{"$f":"(CX204*CY204)+CZ204","v":0},null,null,null,null,{"$f":"(DC204*DD204)+DE204","v":0},null,"BW3V0.500000000","BW3V0 チヨダカラーＧＬ輝きＧＥＲ４０　シャインブラウン","0.50","0","0","00","00",{"$f":"C204&E204&DP204&DJ204&DK204&DL204","v":"GUD1ZE5CGBW3V00.5000"},"BW3V0"]
[194,"GUD1ZE5BWG30.500000000","GUD1ZE5","元旦内樋　樋受金具","CS",0,706,null,null,149.03541000000001,null,null,null,null,0,null,null,null,null,0,null,null,null,null,0,null,null,null,null,0,null,null,null,null,0,null,null,null,null,0,null,null,null,null,0,null,null,null,null,0,null,null,null,null,0,null,null,null,null,0,null,null,null,null,0,null,null,null,null,0,null,null,null,null,0,null,null,null,null,0,null,null,null,null,0,null,null,null,null,0,null,null,null,null,0,null,null,null,null,0,null,null,null,null,0,null,null,null,null,0,null,"BWG30.500000000","BWG30 ＢＷＯ－１（茶）ＣＳ","0.50","0","0","00","00","GUD1ZE5CSBWG300.5000","BWG30"]
[195,"GUD1ZE5GD330.500000000","GUD1ZE5","元旦内樋　樋受金具","CG",0,490,null,null,124.03878,null,null,null,null,0,null,null,null,null,0,null,null,null,null,0,null,null,null,null,0,null,null,null,null,0,null,null,null,null,0,null,null,null,null,0,null,null,null,null,0,null,null,null,null,0,null,null,null,null,0,null,null,null,null,0,null,null,null,null,0,null,null,null,null,0,null,null,null,null,0,null,null,null,null,0,null,null,null,null,0,null,null,null,null,0,null,null,null,null,0,null,null,null,null,0,null,null,null,null,0,null,"GD330.500000000","GD330 チヨダカラーＧＬ　輝き　ＳＨゴールド　ＧＥＲ１２","0.50","0","0","00","00","GUD1ZE5CGGD3300.5000","GD330"]
[196,"GUD1ZE5GLZG0.500000000","GUD1ZE5","元旦内樋　樋受金具","CG",0,404,null,null,115.3573,null,null,null,null,0,null,null,null,null,0,null,null,null,null,0,null,null,null,null,0,null,null,null,null,0,null,null,null,null,0,null,null,null,null,0,null,null,null,null,0,null,null,null,null,0,null,null,null,null,0,null,null,null,null,0,null,null,null,null,0,null,null,null,null,0,null,null,null,null,0,null,null,null,null,0,null,null,null,null,0,null,null,null,null,0,null,null,null,null,0,null,null,null,null,0,null,null,null,null,0,null,"GLZG0.500000000","GLZG0 チヨダカラーＧＬ輝きＧＥＲ８０　ＳＨグレー","0.50","0","0","00","00","GUD1ZE5CGGLZG00.5000","GLZG0"]
[197,"GUD1ZE5RDE40.500000000","GUD1ZE5","元旦内樋　樋受金具","CG",0,1421,null,null,117.09851999999999,null,null,null,null,0,null,null,null,null,0,null,null,null,null,0,null,null,null,null,0,null,null,null,null,0,null,null,null,null,0,null,null,null,null,0,null,null,null,null,0,null,null,null,null,0,null,null,null,null,0,null,null,null,null,0,null,null,null,null,0,null,null,null,null,0,null,null,null,null,0,null,null,null,null,0,null,null,null,null,0,null,null,null,null,0,null,null,null,null,0,null,null,null,null,0,null,null,null,null,0,null,"RDE40.500000000","RDE40 チヨダカラーＧＬ　輝き　ＳＨレンガ　ＧＥＲ９０","0.50","0","0","00","00","GUD1ZE5CGRDE400.5000","RDE40"]
[198,"GUD1ZE5SL6A0.500000000","GUD1ZE5","元旦内樋　樋受金具","CG",0,798,null,null,125.24185,null,null,null,null,0,null,null,null,null,0,null,null,null,null,0,null,null,null,null,0,null,null,null,null,0,null,null,null,null,0,null,null,null,null,0,null,null,null,null,0,null,null,null,null,0,null,null,null,null,0,null,null,null,null,0,null,null,null,null,0,null,null,null,null,0,null,null,null,null,0,null,null,null,null,0,null,null,null,null,0,null,null,null,null,0,null,null,null,null,0,null,null,null,null,0,null,null,null,null,0,null,"SL6A0.500000000","SL6A0 チヨダカラーＧＬ　輝き　ＳＨシルバー　ＧＥＲ８１","0.50","0","0","00","00","GUD1ZE5CGSL6A00.5000","SL6A0"]
[199,"GUD1ZE5WTP10.500000000","GUD1ZE5","元旦内樋　樋受金具","CG",0,607,null,null,114.96375999999999,null,null,null,null,0,null,null,null,null,0,null,null,null,null,0,null,null,null,null,0,null,null,null,null,0,null,null,null,null,0,null,null,null,null,0,null,null,null,null,0,null,null,null,null,0,null,null,null,null,0,null,null,null,null,0,null,null,null,null,0,null,null,null,null,0,null,null,null,null,0,null,null,null,null,0,null,null,null,null,0,null,null,null,null,0,null,null,null,null,0,null,null,null,null,0,null,null,null,null,0,null,"WTP10.500000000","WTP10 チヨダカラー輝き　ＧＥＲ８２　ホワイト","0.50","0","0","00","00","GUD1ZE5CGWTP100.5000","WTP10"]
[200,"GUD1ZE6BW3V0.500000000","GUD1ZE6","元旦内樋　曲り（外）Ｓ","CG",0,27,null,null,3183.8888900000002,null,null,null,null,0,null,null,null,null,0,null,null,null,null,0,null,null,null,null,0,null,null,null,null,0,null,null,null,null,0,null,null,null,null,0,null,null,null,null,0,null,null,null,null,0,null,null,null,null,0,null,null,null,null,0,null,null,null,null,0,null,null,null,null,0,null,null,null,null,0,null,null,null,null,0,null,null,null,null,0,null,null,null,null,0,null,null,null,null,0,null,null,null,null,0,null,null,null,null,0,null,"BW3V0.500000000","BW3V0 チヨダカラーＧＬ輝きＧＥＲ４０　シャインブラウン","0.50","0","0","00","00","GUD1ZE6CGBW3V00.5000","BW3V0"]
[201,"GUD1ZE6GLZG0.500000000","GUD1ZE6","元旦内樋　曲り（外）Ｓ","CG",0,6,null,null,3271.5,null,null,null,null,0,null,null,null,null,0,null,null,null,null,0,null,null,null,null,0,null,null,null,null,0,null,null,null,null,0,null,null,null,null,0,null,null,null,null,0,null,null,null,null,0,null,null,null,null,0,null,null,null,null,0,null,null,null,null,0,null,null,null,null,0,null,null,null,null,0,null,null,null,null,0,null,null,null,null,0,null,null,null,null,0,null,null,null,null,0,null,null,null,null,0,null,null,null,null,0,null,"GLZG0.500000000","GLZG0 チヨダカラーＧＬ輝きＧＥＲ８０　ＳＨグレー","0.50","0","0","00","00","GUD1ZE6CGGLZG00.5000","GLZG0"]
[202,"GUD1ZE6SL6A0.500000000","GUD1ZE6","元旦内樋　曲り（外）Ｓ","CG",0,25,null,null,2148.2800000000002,null,null,null,null,0,null,null,null,null,0,null,null,null,null,0,null,null,null,null,0,null,null,null,null,0,null,null,null,null,0,null,null,null,null,0,null,null,null,null,0,null,null,null,null,0,null,null,null,null,0,null,null,null,null,0,null,null,null,null,0,null,null,null,null,0,null,null,null,null,0,null,null,null,null,0,null,null,null,null,0,null,null,null,null,0,null,null,null,null,0,null,null,null,null,0,null,null,null,null,0,null,"SL6A0.500000000","SL6A0 チヨダカラーＧＬ　輝き　ＳＨシルバー　ＧＥＲ８１","0.50","0","0","00","00","GUD1ZE6CGSL6A00.5000","SL6A0"]
[203,"GUD1ZE7BKG30.500000000","GUD1ZE7","元旦内樋　曲り（外）Ｍ","CS",0,2,null,null,8645.5,null,null,null,null,0,null,null,null,null,0,null,null,null,null,0,null,null,null,null,0,null,null,null,null,0,null,null,null,null,0,null,null,null,null,0,null,null,null,null,0,null,null,null,null,0,null,null,null,null,0,null,null,null,null,0,null,null,null,null,0,null,null,null,null,0,null,null,null,null,0,null,null,null,null,0,null,null,null,null,0,null,null,null,null,0,null,null,null,null,0,null,null,null,null,0,null,null,null,null,0,null,"BKG30.500000000","BKG30 ＢＫＯ－５（黒）ＣＳ","0.50","0","0","00","00","GUD1ZE7CSBKG300.5000","BKG30"]
[204,"GUD1ZE7BKT20.500000000","GUD1ZE7","元旦内樋　曲り（外）Ｍ","CG",0,1,null,null,2942,null,null,null,null,0,null,null,null,null,0,null,null,null,null,0,null,null,null,null,0,null,null,null,null,0,null,null,null,null,0,null,null,null,null,0,null,null,null,null,0,null,null,null,null,0,null,null,null,null,0,null,null,null,null,0,null,null,null,null,0,null,null,null,null,0,null,null,null,null,0,null,null,null,null,0,null,null,null,null,0,null,null,null,null,0,null,null,null,null,0,null,null,null,null,0,null,null,null,null,0,null,"BKT20.500000000","BKT20 チヨダカラーＧＬＧＥＲ１０／９０２　ＳＨブラック","0.50","0","0","00","00","GUD1ZE7CGBKT200.5000","BKT20"]
[205,"GUD1ZE7BW3V0.500000000","GUD1ZE7","元旦内樋　曲り（外）Ｍ","CG",0,3,null,null,3582,null,null,null,null,0,null,null,null,null,0,null,null,null,null,0,null,null,null,null,0,null,null,null,null,0,null,null,null,null,0,null,null,null,null,0,null,null,null,null,0,null,null,null,null,0,null,null,null,null,0,null,null,null,null,0,null,null,null,null,0,null,null,null,null,0,null,null,null,null,0,null,null,null,null,0,null,null,null,null,0,null,null,null,null,0,null,null,null,null,0,null,null,null,null,0,null,null,null,null,0,null,"BW3V0.500000000","BW3V0 チヨダカラーＧＬ輝きＧＥＲ４０　シャインブラウン","0.50","0","0","00","00","GUD1ZE7CGBW3V00.5000","BW3V0"]
[206,"GUD1ZE7GD330.500000000","GUD1ZE7","元旦内樋　曲り（外）Ｍ","CG",0,2,null,null,3051.5,null,null,null,null,0,null,null,null,null,0,null,null,null,null,0,null,null,null,null,0,null,null,null,null,0,null,null,null,null,0,null,null,null,null,0,null,null,null,null,0,null,null,null,null,0,null,null,null,null,0,null,null,null,null,0,null,null,null,null,0,null,null,null,null,0,null,null,null,null,0,null,null,null,null,0,null,null,null,null,0,null,null,null,null,0,null,null,null,null,0,null,null,null,null,0,null,null,null,null,0,null,"GD330.500000000","GD330 チヨダカラーＧＬ　輝き　ＳＨゴールド　ＧＥＲ１２","0.50","0","0","00","00","GUD1ZE7CGGD3300.5000","GD330"]
[207,"GUD1ZE7GLZG0.500000000","GUD1ZE7","元旦内樋　曲り（外）Ｍ","CG",0,4,null,null,3232.75,null,null,null,null,0,null,null,null,null,0,null,null,null,null,0,null,null,null,null,0,null,null,null,null,0,null,null,null,null,0,null,null,null,null,0,null,null,null,null,0,null,null,null,null,0,null,null,null,null,0,null,null,null,null,0,null,null,null,null,0,null,null,null,null,0,null,null,null,null,0,null,null,null,null,0,null,null,null,null,0,null,null,null,null,0,null,null,null,null,0,null,null,null,null,0,null,null,null,null,0,null,"GLZG0.500000000","GLZG0 チヨダカラーＧＬ輝きＧＥＲ８０　ＳＨグレー","0.50","0","0","00","00","GUD1ZE7CGGLZG00.5000","GLZG0"]
[208,"GUD1ZE7RDE40.500000000","GUD1ZE7","元旦内樋　曲り（外）Ｍ","CG",0,1,null,null,3116,null,null,null,null,0,null,null,null,null,0,null,null,null,null,0,null,null,null,null,0,null,null,null,null,0,null,null,null,null,0,null,null,null,null,0,null,null,null,null,0,null,null,null,null,0,null,null,null,null,0,null,null,null,null,0,null,null,null,null,0,null,null,null,null,0,null,null,null,null,0,null,null,null,null,0,null,null,null,null,0,null,null,null,null,0,null,null,null,null,0,null,null,null,null,0,null,null,null,null,0,null,"RDE40.500000000","RDE40 チヨダカラーＧＬ　輝き　ＳＨレンガ　ＧＥＲ９０","0.50","0","0","00","00","GUD1ZE7CGRDE400.5000","RDE40"]
[209,"GUD1ZE7SL6A0.500000000","GUD1ZE7","元旦内樋　曲り（外）Ｍ","CG",0,19,null,null,3547.5789500000001,null,null,null,null,0,null,null,null,null,0,null,null,null,null,0,null,null,null,null,0,null,null,null,null,0,null,null,null,null,0,null,null,null,null,0,null,null,null,null,0,null,null,null,null,0,null,null,null,null,0,null,null,null,null,0,null,null,null,null,0,null,null,null,null,0,null,null,null,null,0,null,null,null,null,0,null,null,null,null,0,null,null,null,null,0,null,null,null,null,0,null,null,null,null,0,null,null,null,null,0,null,"SL6A0.500000000","SL6A0 チヨダカラーＧＬ　輝き　ＳＨシルバー　ＧＥＲ８１","0.50","0","0","00","00","GUD1ZE7CGSL6A00.5000","SL6A0"]
[210,"GUD1ZE7WTP10.500000000","GUD1ZE7","元旦内樋　曲り（外）Ｍ","CG",0,7,null,null,3692,null,null,null,null,0,null,null,null,null,0,null,null,null,null,0,null,null,null,null,0,null,null,null,null,0,null,null,null,null,0,null,null,null,null,0,null,null,null,null,0,null,null,null,null,0,null,null,null,null,0,null,null,null,null,0,null,null,null,null,0,null,null,null,null,0,null,null,null,null,0,null,null,null,null,0,null,null,null,null,0,null,null,null,null,0,null,null,null,null,0,null,null,null,null,0,null,null,null,null,0,null,"WTP10.500000000","WTP10 チヨダカラー輝き　ＧＥＲ８２　ホワイト","0.50","0","0","00","00","GUD1ZE7CGWTP100.5000","WTP10"]
[211,"GUD1ZE8BKT20.500000000","GUD1ZE8","元旦内樋　曲り（内）Ｓ","CG",0,21,null,null,2812.0476199999998,null,null,null,null,0,null,null,null,null,0,null,null,null,null,0,null,null,null,null,0,null,null,null,null,0,null,null,null,null,0,null,null,null,null,0,null,null,null,null,0,null,null,null,null,0,null,null,null,null,0,null,null,null,null,0,null,null,null,null,0,null,null,null,null,0,null,null,null,null,0,null,null,null,null,0,null,null,null,null,0,null,null,null,null,0,null,null,null,null,0,null,null,null,null,0,null,null,null,null,0,null,"BKT20.500000000","BKT20 チヨダカラーＧＬＧＥＲ１０／９０２　ＳＨブラック","0.50","0","0","00","00","GUD1ZE8CGBKT200.5000","BKT20"]
[212,"GUD1ZE8BW3V0.500000000","GUD1ZE8","元旦内樋　曲り（内）Ｓ","CG",0,23,null,null,2353.6087000000002,null,null,null,null,0,null,null,null,null,0,null,null,null,null,0,null,null,null,null,0,null,null,null,null,0,null,null,null,null,0,null,null,null,null,0,null,null,null,null,0,null,null,null,null,0,null,null,null,null,0,null,null,null,null,0,null,null,null,null,0,null,null,null,null,0,null,null,null,null,0,null,null,null,null,0,null,null,null,null,0,null,null,null,null,0,null,null,null,null,0,null,null,null,null,0,null,null,null,null,0,null,"BW3V0.500000000","BW3V0 チヨダカラーＧＬ輝きＧＥＲ４０　シャインブラウン","0.50","0","0","00","00","GUD1ZE8CGBW3V00.5000","BW3V0"]
[213,"GUD1ZE8GLZG0.500000000","GUD1ZE8","元旦内樋　曲り（内）Ｓ","CG",0,44,null,null,3588.2272699999999,null,null,null,null,0,null,null,null,null,0,null,null,null,null,0,null,null,null,null,0,null,null,null,null,0,null,null,null,null,0,null,null,null,null,0,null,null,null,null,0,null,null,null,null,0,null,null,null,null,0,null,null,null,null,0,null,null,null,null,0,null,null,null,null,0,null,null,null,null,0,null,null,null,null,0,null,null,null,null,0,null,null,null,null,0,null,null,null,null,0,null,null,null,null,0,null,null,null,null,0,null,"GLZG0.500000000","GLZG0 チヨダカラーＧＬ輝きＧＥＲ８０　ＳＨグレー","0.50","0","0","00","00","GUD1ZE8CGGLZG00.5000","GLZG0"]
[214,"GUD1ZE8SL6A0.500000000","GUD1ZE8","元旦内樋　曲り（内）Ｓ","CG",0,15,null,null,3117,null,null,null,null,0,null,null,null,null,0,null,null,null,null,0,null,null,null,null,0,null,null,null,null,0,null,null,null,null,0,null,null,null,null,0,null,null,null,null,0,null,null,null,null,0,null,null,null,null,0,null,null,null,null,0,null,null,null,null,0,null,null,null,null,0,null,null,null,null,0,null,null,null,null,0,null,null,null,null,0,null,null,null,null,0,null,null,null,null,0,null,null,null,null,0,null,null,null,null,0,null,"SL6A0.500000000","SL6A0 チヨダカラーＧＬ　輝き　ＳＨシルバー　ＧＥＲ８１","0.50","0","0","00","00","GUD1ZE8CGSL6A00.5000","SL6A0"]
[215,"GUD1ZE9BKT20.500000000","GUD1ZE9","元旦内樋　曲り（内）Ｍ","CG",0,11,null,null,2894.4545499999999,null,null,null,null,0,null,null,null,null,0,null,null,null,null,0,null,null,null,null,0,null,null,null,null,0,null,null,null,null,0,null,null,null,null,0,null,null,null,null,0,null,null,null,null,0,null,null,null,null,0,null,null,null,null,0,null,null,null,null,0,null,null,null,null,0,null,null,null,null,0,null,null,null,null,0,null,null,null,null,0,null,null,null,null,0,null,null,null,null,0,null,null,null,null,0,null,null,null,null,0,null,"BKT20.500000000","BKT20 チヨダカラーＧＬＧＥＲ１０／９０２　ＳＨブラック","0.50","0","0","00","00","GUD1ZE9CGBKT200.5000","BKT20"]
[216,"GUD1ZE9BW3V0.500000000","GUD1ZE9","元旦内樋　曲り（内）Ｍ","CG",0,22,null,null,2618.7727300000001,null,null,null,null,0,null,null,null,null,0,null,null,null,null,0,null,null,null,null,0,null,null,null,null,0,null,null,null,null,0,null,null,null,null,0,null,null,null,null,0,null,null,null,null,0,null,null,null,null,0,null,null,null,null,0,null,null,null,null,0,null,null,null,null,0,null,null,null,null,0,null,null,null,null,0,null,null,null,null,0,null,null,null,null,0,null,null,null,null,0,null,null,null,null,0,null,null,null,null,0,null,"BW3V0.500000000","BW3V0 チヨダカラーＧＬ輝きＧＥＲ４０　シャインブラウン","0.50","0","0","00","00","GUD1ZE9CGBW3V00.5000","BW3V0"]
[217,"GUD1ZE9GD330.500000000","GUD1ZE9","元旦内樋　曲り（内）Ｍ","CG",0,16,null,null,3051.5,null,null,null,null,0,null,null,null,null,0,null,null,null,null,0,null,null,null,null,0,null,null,null,null,0,null,null,null,null,0,null,null,null,null,0,null,null,null,null,0,null,null,null,null,0,null,null,null,null,0,null,null,null,null,0,null,null,null,null,0,null,null,null,null,0,null,null,null,null,0,null,null,null,null,0,null,null,null,null,0,null,null,null,null,0,null,null,null,null,0,null,null,null,null,0,null,null,null,null,0,null,"GD330.500000000","GD330 チヨダカラーＧＬ　輝き　ＳＨゴールド　ＧＥＲ１２","0.50","0","0","00","00","GUD1ZE9CGGD3300.5000","GD330"]
[218,"GUD1ZE9GLZG0.500000000","GUD1ZE9","元旦内樋　曲り（内）Ｍ","CG",0,3,null,null,3641.3333299999999,null,null,null,null,0,null,null,null,null,0,null,null,null,null,0,null,null,null,null,0,null,null,null,null,0,null,null,null,null,0,null,null,null,null,0,null,null,null,null,0,null,null,null,null,0,null,null,null,null,0,null,null,null,null,0,null,null,null,null,0,null,null,null,null,0,null,null,null,null,0,null,null,null,null,0,null,null,null,null,0,null,null,null,null,0,null,null,null,null,0,null,null,null,null,0,null,null,null,null,0,null,"GLZG0.500000000","GLZG0 チヨダカラーＧＬ輝きＧＥＲ８０　ＳＨグレー","0.50","0","0","00","00","GUD1ZE9CGGLZG00.5000","GLZG0"]
[219,"GUD1ZE9RDE40.500000000","GUD1ZE9","元旦内樋　曲り（内）Ｍ","CG",0,14,null,null,3115.5,null,null,null,null,0,null,null,null,null,0,null,null,null,null,0,null,null,null,null,0,null,null,null,null,0,null,null,null,null,0,null,null,null,null,0,null,null,null,null,0,null,null,null,null,0,null,null,null,null,0,null,null,null,null,0,null,null,null,null,0,null,null,null,null,0,null,null,null,null,0,null,null,null,null,0,null,null,null,null,0,null,null,null,null,0,null,null,null,null,0,null,null,null,null,0,null,null,null,null,0,null,"RDE40.500000000","RDE40 チヨダカラーＧＬ　輝き　ＳＨレンガ　ＧＥＲ９０","0.50","0","0","00","00","GUD1ZE9CGRDE400.5000","RDE40"]
[220,"GUD1ZE9SL6A0.500000000","GUD1ZE9","元旦内樋　曲り（内）Ｍ","CG",0,18,null,null,3244.4444400000002,null,null,null,null,0,null,null,null,null,0,null,null,null,null,0,null,null,null,null,0,null,null,null,null,0,null,null,null,null,0,null,null,null,null,0,null,null,null,null,0,null,null,null,null,0,null,null,null,null,0,null,null,null,null,0,null,null,null,null,0,null,null,null,null,0,null,null,null,null,0,null,null,null,null,0,null,null,null,null,0,null,null,null,null,0,null,null,null,null,0,null,null,null,null,0,null,null,null,null,0,null,"SL6A0.500000000","SL6A0 チヨダカラーＧＬ　輝き　ＳＨシルバー　ＧＥＲ８１","0.50","0","0","00","00","GUD1ZE9CGSL6A00.5000","SL6A0"]
[221,"GUD1ZE9WTP10.500000000","GUD1ZE9","元旦内樋　曲り（内）Ｍ","CG",0,15,null,null,3691.8666699999999,null,null,null,null,0,null,null,null,null,0,null,null,null,null,0,null,null,null,null,0,null,null,null,null,0,null,null,null,null,0,null,null,null,null,0,null,null,null,null,0,null,null,null,null,0,null,null,null,null,0,null,null,null,null,0,null,null,null,null,0,null,null,null,null,0,null,null,null,null,0,null,null,null,null,0,null,null,null,null,0,null,null,null,null,0,null,null,null,null,0,null,null,null,null,0,null,null,null,null,0,null,"WTP10.500000000","WTP10 チヨダカラー輝き　ＧＥＲ８２　ホワイト","0.50","0","0","00","00","GUD1ZE9CGWTP100.5000","WTP10"]
[222,"GUD1ZEANC2700000000000","GUD1ZEA","元旦内樋　内樋固定金具Ａ","OA",0,2918,null,null,74.593230000000005,null,null,null,null,0,null,null,null,null,0,null,null,null,null,0,null,null,null,null,0,null,null,null,null,0,null,null,null,null,0,null,null,null,null,0,null,null,null,null,0,null,null,null,null,0,null,null,null,null,0,null,null,null,null,0,null,null,null,null,0,null,null,null,null,0,null,null,null,null,0,null,null,null,null,0,null,null,null,null,0,null,null,null,null,0,null,null,null,null,0,null,null,null,null,0,null,null,null,null,0,null,"NC2700000000000","NC270 アルマイトブラック","0.00","0","0","00","00","GUD1ZEAOANC2700.0000","NC270"]
[223,"GUD1ZEDNC2700000000000","GUD1ZED","元旦内樋　内樋固定金具Ｂ","OA",0,2365,null,null,65.047250000000005,null,null,null,null,0,null,null,null,null,0,null,null,null,null,0,null,null,null,null,0,null,null,null,null,0,null,null,null,null,0,null,null,null,null,0,null,null,null,null,0,null,null,null,null,0,null,null,null,null,0,null,null,null,null,0,null,null,null,null,0,null,null,null,null,0,null,null,null,null,0,null,null,null,null,0,null,null,null,null,0,null,null,null,null,0,null,null,null,null,0,null,null,null,null,0,null,null,null,null,0,null,"NC2700000000000","NC270 アルマイトブラック","0.00","0","0","00","00","GUD1ZEDOANC2700.0000","NC270"]
[224,"GUD1ZEENC2700000000000","GUD1ZEE","元旦内樋　内樋固定金具Ｃ","OA",0,3452,null,null,30.71799,null,null,null,null,0,null,null,null,null,0,null,null,null,null,0,null,null,null,null,0,null,null,null,null,0,null,null,null,null,0,null,null,null,null,0,null,null,null,null,0,null,null,null,null,0,null,null,null,null,0,null,null,null,null,0,null,null,null,null,0,null,null,null,null,0,null,null,null,null,0,null,null,null,null,0,null,null,null,null,0,null,null,null,null,0,null,null,null,null,0,null,null,null,null,0,null,null,null,null,0,null,"NC2700000000000","NC270 アルマイトブラック","0.00","0","0","00","00","GUD1ZEEOANC2700.0000","NC270"]
[225,"GUD1ZEFNC2700000000000","GUD1ZEF","元旦内樋　内樋固定金具ＢⅡ","OA",0,3623,null,null,94.727810000000005,null,null,null,null,0,null,null,null,null,0,null,null,null,null,0,null,null,null,null,0,null,null,null,null,0,null,null,null,null,0,null,null,null,null,0,null,null,null,null,0,null,null,null,null,0,null,null,null,null,0,null,null,null,null,0,null,null,null,null,0,null,null,null,null,0,null,null,null,null,0,null,null,null,null,0,null,null,null,null,0,null,null,null,null,0,null,null,null,null,0,null,null,null,null,0,null,null,null,null,0,null,"NC2700000000000","NC270 アルマイトブラック","0.00","0","0","00","00","GUD1ZEFOANC2700.0000","NC270"]
[226,"GUD1ZEGNC2700000000000","GUD1ZEG","元旦内樋　固定金具Ａゴム付き","OA",0,1255,null,null,281.59521999999998,null,null,null,null,0,null,null,null,null,0,null,null,null,null,0,null,null,null,null,0,null,null,null,null,0,null,null,null,null,0,null,null,null,null,0,null,null,null,null,0,null,null,null,null,0,null,null,null,null,0,null,null,null,null,0,null,null,null,null,0,null,null,null,null,0,null,null,null,null,0,null,null,null,null,0,null,null,null,null,0,null,null,null,null,0,null,null,null,null,0,null,null,null,null,0,null,null,null,null,0,null,"NC2700000000000","NC270 アルマイトブラック","0.00","0","0","00","00","GUD1ZEGOANC2700.0000","NC270"]
[227,"GUD1ZEHBKT20.500000000","GUD1ZEH","元旦内樋　止りキャップＳ","CG",0,153,null,null,141.7037,null,null,null,null,0,null,null,null,null,0,null,null,null,null,0,null,null,null,null,0,null,null,null,null,0,null,null,null,null,0,null,null,null,null,0,null,null,null,null,0,null,null,null,null,0,null,null,null,null,0,null,null,null,null,0,null,null,null,null,0,null,null,null,null,0,null,null,null,null,0,null,null,null,null,0,null,null,null,null,0,null,null,null,null,0,null,null,null,null,0,null,null,null,null,0,null,null,null,null,0,null,"BKT20.500000000","BKT20 チヨダカラーＧＬＧＥＲ１０／９０２　ＳＨブラック","0.50","0","0","00","00","GUD1ZEHCGBKT200.5000","BKT20"]
[228,"GUD1ZEHBW3V0.500000000","GUD1ZEH","元旦内樋　止りキャップＳ","CG",0,63,null,null,150.33071000000001,null,null,null,null,0,null,null,null,null,0,null,null,null,null,0,null,null,null,null,0,null,null,null,null,0,null,null,null,null,0,null,null,null,null,0,null,null,null,null,0,null,null,null,null,0,null,null,null,null,0,null,null,null,null,0,null,null,null,null,0,null,null,null,null,0,null,null,null,null,0,null,null,null,null,0,null,null,null,null,0,null,null,null,null,0,null,null,null,null,0,null,null,null,null,0,null,null,null,null,0,null,"BW3V0.500000000","BW3V0 チヨダカラーＧＬ輝きＧＥＲ４０　シャインブラウン","0.50","0","0","00","00","GUD1ZEHCGBW3V00.5000","BW3V0"]
[229,"GUD1ZEHGD330.500000000","GUD1ZEH","元旦内樋　止りキャップＳ","CG",0,26,null,null,141.30769000000001,null,null,null,null,0,null,null,null,null,0,null,null,null,null,0,null,null,null,null,0,null,null,null,null,0,null,null,null,null,0,null,null,null,null,0,null,null,null,null,0,null,null,null,null,0,null,null,null,null,0,null,null,null,null,0,null,null,null,null,0,null,null,null,null,0,null,null,null,null,0,null,null,null,null,0,null,null,null,null,0,null,null,null,null,0,null,null,null,null,0,null,null,null,null,0,null,null,null,null,0,null,"GD330.500000000","GD330 チヨダカラーＧＬ　輝き　ＳＨゴールド　ＧＥＲ１２","0.50","0","0","00","00","GUD1ZEHCGGD3300.5000","GD330"]
[230,"GUD1ZEHGLZG0.500000000","GUD1ZEH","元旦内樋　止りキャップＳ","CG",0,102,null,null,149.81609,null,null,null,null,0,null,null,null,null,0,null,null,null,null,0,null,null,null,null,0,null,null,null,null,0,null,null,null,null,0,null,null,null,null,0,null,null,null,null,0,null,null,null,null,0,null,null,null,null,0,null,null,null,null,0,null,null,null,null,0,null,null,null,null,0,null,null,null,null,0,null,null,null,null,0,null,null,null,null,0,null,null,null,null,0,null,null,null,null,0,null,null,null,null,0,null,null,null,null,0,null,"GLZG0.500000000","GLZG0 チヨダカラーＧＬ輝きＧＥＲ８０　ＳＨグレー","0.50","0","0","00","00","GUD1ZEHCGGLZG00.5000","GLZG0"]
[231,"GUD1ZEHRDE40.500000000","GUD1ZEH","元旦内樋　止りキャップＳ","CG",0,98,null,null,151.19388000000001,null,null,null,null,0,null,null,null,null,0,null,null,null,null,0,null,null,null,null,0,null,null,null,null,0,null,null,null,null,0,null,null,null,null,0,null,null,null,null,0,null,null,null,null,0,null,null,null,null,0,null,null,null,null,0,null,null,null,null,0,null,null,null,null,0,null,null,null,null,0,null,null,null,null,0,null,null,null,null,0,null,null,null,null,0,null,null,null,null,0,null,null,null,null,0,null,null,null,null,0,null,"RDE40.500000000","RDE40 チヨダカラーＧＬ　輝き　ＳＨレンガ　ＧＥＲ９０","0.50","0","0","00","00","GUD1ZEHCGRDE400.5000","RDE40"]
[232,"GUD1ZEHSL6A0.500000000","GUD1ZEH","元旦内樋　止りキャップＳ","CG",0,84,null,null,152.14286000000001,null,null,null,null,0,null,null,null,null,0,null,null,null,null,0,null,null,null,null,0,null,null,null,null,0,null,null,null,null,0,null,null,null,null,0,null,null,null,null,0,null,null,null,null,0,null,null,null,null,0,null,null,null,null,0,null,null,null,null,0,null,null,null,null,0,null,null,null,null,0,null,null,null,null,0,null,null,null,null,0,null,null,null,null,0,null,null,null,null,0,null,null,null,null,0,null,null,null,null,0,null,"SL6A0.500000000","SL6A0 チヨダカラーＧＬ　輝き　ＳＨシルバー　ＧＥＲ８１","0.50","0","0","00","00","GUD1ZEHCGSL6A00.5000","SL6A0"]
[233,"GUD1ZEHWTP10.500000000","GUD1ZEH","元旦内樋　止りキャップＳ","CG",0,60,null,null,146.18333000000001,null,null,null,null,0,null,null,null,null,0,null,null,null,null,0,null,null,null,null,0,null,null,null,null,0,null,null,null,null,0,null,null,null,null,0,null,null,null,null,0,null,null,null,null,0,null,null,null,null,0,null,null,null,null,0,null,null,null,null,0,null,null,null,null,0,null,null,null,null,0,null,null,null,null,0,null,null,null,null,0,null,null,null,null,0,null,null,null,null,0,null,null,null,null,0,null,null,null,null,0,null,"WTP10.500000000","WTP10 チヨダカラー輝き　ＧＥＲ８２　ホワイト","0.50","0","0","00","00","GUD1ZEHCGWTP100.5000","WTP10"]
[234,"GUD1ZEJBKT20.500000000","GUD1ZEJ","元旦内樋　止りキャップＭ","CG",0,148,null,null,150.52703,null,null,null,null,0,null,null,null,null,0,null,null,null,null,0,null,null,null,null,0,null,null,null,null,0,null,null,null,null,0,null,null,null,null,0,null,null,null,null,0,null,null,null,null,0,null,null,null,null,0,null,null,null,null,0,null,null,null,null,0,null,null,null,null,0,null,null,null,null,0,null,null,null,null,0,null,null,null,null,0,null,null,null,null,0,null,null,null,null,0,null,null,null,null,0,null,null,null,null,0,null,"BKT20.500000000","BKT20 チヨダカラーＧＬＧＥＲ１０／９０２　ＳＨブラック","0.50","0","0","00","00","GUD1ZEJCGBKT200.5000","BKT20"]
[235,"GUD1ZEJBW3V0.500000000","GUD1ZEJ","元旦内樋　止りキャップＭ","CG",0,164,null,null,154.26220000000001,null,null,null,null,0,null,null,null,null,0,null,null,null,null,0,null,null,null,null,0,null,null,null,null,0,null,null,null,null,0,null,null,null,null,0,null,null,null,null,0,null,null,null,null,0,null,null,null,null,0,null,null,null,null,0,null,null,null,null,0,null,null,null,null,0,null,null,null,null,0,null,null,null,null,0,null,null,null,null,0,null,null,null,null,0,null,null,null,null,0,null,null,null,null,0,null,null,null,null,0,null,"BW3V0.500000000","BW3V0 チヨダカラーＧＬ輝きＧＥＲ４０　シャインブラウン","0.50","0","0","00","00","GUD1ZEJCGBW3V00.5000","BW3V0"]
[236,"GUD1ZEJGD330.500000000","GUD1ZEJ","元旦内樋　止りキャップＭ","CG",0,52,null,null,146.09614999999999,null,null,null,null,0,null,null,null,null,0,null,null,null,null,0,null,null,null,null,0,null,null,null,null,0,null,null,null,null,0,null,null,null,null,0,null,null,null,null,0,null,null,null,null,0,null,null,null,null,0,null,null,null,null,0,null,null,null,null,0,null,null,null,null,0,null,null,null,null,0,null,null,null,null,0,null,null,null,null,0,null,null,null,null,0,null,null,null,null,0,null,null,null,null,0,null,null,null,null,0,null,"GD330.500000000","GD330 チヨダカラーＧＬ　輝き　ＳＨゴールド　ＧＥＲ１２","0.50","0","0","00","00","GUD1ZEJCGGD3300.5000","GD330"]
[237,"GUD1ZEJGLZG0.500000000","GUD1ZEJ","元旦内樋　止りキャップＭ","CG",0,64,null,null,145.75,null,null,null,null,0,null,null,null,null,0,null,null,null,null,0,null,null,null,null,0,null,null,null,null,0,null,null,null,null,0,null,null,null,null,0,null,null,null,null,0,null,null,null,null,0,null,null,null,null,0,null,null,null,null,0,null,null,null,null,0,null,null,null,null,0,null,null,null,null,0,null,null,null,null,0,null,null,null,null,0,null,null,null,null,0,null,null,null,null,0,null,null,null,null,0,null,null,null,null,0,null,"GLZG0.500000000","GLZG0 チヨダカラーＧＬ輝きＧＥＲ８０　ＳＨグレー","0.50","0","0","00","00","GUD1ZEJCGGLZG00.5000","GLZG0"]
[238,"GUD1ZEJRDE40.500000000","GUD1ZEJ","元旦内樋　止りキャップＭ","CG",0,102,null,null,151.56863000000001,null,null,null,null,0,null,null,null,null,0,null,null,null,null,0,null,null,null,null,0,null,null,null,null,0,null,null,null,null,0,null,null,null,null,0,null,null,null,null,0,null,null,null,null,0,null,null,null,null,0,null,null,null,null,0,null,null,null,null,0,null,null,null,null,0,null,null,null,null,0,null,null,null,null,0,null,null,null,null,0,null,null,null,null,0,null,null,null,null,0,null,null,null,null,0,null,null,null,null,0,null,"RDE40.500000000","RDE40 チヨダカラーＧＬ　輝き　ＳＨレンガ　ＧＥＲ９０","0.50","0","0","00","00","GUD1ZEJCGRDE400.5000","RDE40"]
[239,"GUD1ZEJSL6A0.500000000","GUD1ZEJ","元旦内樋　止りキャップＭ","CG",0,94,null,null,144.45744999999999,null,null,null,null,0,null,null,null,null,0,null,null,null,null,0,null,null,null,null,0,null,null,null,null,0,null,null,null,null,0,null,null,null,null,0,null,null,null,null,0,null,null,null,null,0,null,null,null,null,0,null,null,null,null,0,null,null,null,null,0,null,null,null,null,0,null,null,null,null,0,null,null,null,null,0,null,null,null,null,0,null,null,null,null,0,null,null,null,null,0,null,null,null,null,0,null,null,null,null,0,null,"SL6A0.500000000","SL6A0 チヨダカラーＧＬ　輝き　ＳＨシルバー　ＧＥＲ８１","0.50","0","0","00","00","GUD1ZEJCGSL6A00.5000","SL6A0"]
[241,"GUD1ZEKBKT20.500000000","GUD1ZEK","元旦内樋　曲りⅡ（外）Ｓ","CG",18,18,null,null,2741.7777799999999,176,0,0,18,18,null,null,null,null,0,null,null,null,null,0,null,null,null,null,0,null,null,null,null,0,null,null,null,null,0,null,null,null,null,0,null,null,null,null,0,null,null,null,null,0,null,null,null,null,0,null,null,null,null,0,null,null,null,null,0,null,null,null,null,0,null,null,null,null,0,null,null,null,null,0,null,null,null,null,0,null,null,null,null,0,null,null,null,null,0,null,null,null,null,0,null,null,null,null,0,null,"BKT20.500000000","BKT20 チヨダカラーＧＬＧＥＲ１０／９０２　ＳＨブラック","0.50","0","0","00","00","GUD1ZEKCGBKT200.5000","BKT20"]
[243,"GUD1ZELBKT20.500000000","GUD1ZEL","元旦内樋　曲りⅡ（外）Ｍ","CG",1,1,null,null,3008,181,0,0,1,1,null,null,null,null,0,null,null,null,null,0,null,null,null,null,0,null,null,null,null,0,null,null,null,null,0,null,null,null,null,0,null,null,null,null,0,null,null,null,null,0,null,null,null,null,0,null,null,null,null,0,null,null,null,null,0,null,null,null,null,0,null,null,null,null,0,null,null,null,null,0,null,null,null,null,0,null,null,null,null,0,null,null,null,null,0,null,null,null,null,0,null,null,null,null,0,null,"BKT20.500000000","BKT20 チヨダカラーＧＬＧＥＲ１０／９０２　ＳＨブラック","0.50","0","0","00","00","GUD1ZELCGBKT200.5000","BKT20"]
[246,"GUD1ZEMRDE40.500000000","GUD1ZEM","元旦内樋　曲りⅡ（内）Ｓ","CG",14,14,null,null,2671.8571400000001,179,0,0,14,14,null,null,null,null,0,null,null,null,null,0,null,null,null,null,0,null,null,null,null,0,null,null,null,null,0,null,null,null,null,0,null,null,null,null,0,null,null,null,null,0,null,null,null,null,0,null,null,null,null,0,null,null,null,null,0,null,null,null,null,0,null,null,null,null,0,null,null,null,null,0,null,null,null,null,0,null,null,null,null,0,null,null,null,null,0,null,null,null,null,0,null,null,null,null,0,null,"RDE40.500000000","RDE40 チヨダカラーＧＬ　輝き　ＳＨレンガ　ＧＥＲ９０","0.50","0","0","00","00","GUD1ZEMCGRDE400.5000","RDE40"]
[249,"GUD1ZEPBW3V0.50000K120","GUD1ZEP","元旦内樋　落ち葉除けⅢ","CG",0,386,null,null,1155.90499,null,null,null,null,0,null,null,null,null,0,null,null,null,null,0,null,null,null,null,0,null,null,null,null,0,null,null,null,null,0,null,null,null,null,0,null,null,null,null,0,null,null,null,null,0,null,null,null,null,0,null,null,null,null,0,null,null,null,null,0,null,null,null,null,0,null,null,null,null,0,null,null,null,null,0,null,null,null,null,0,null,null,null,null,0,null,null,null,null,0,null,null,null,null,0,null,null,null,null,0,null,"BW3V0.50000K120","BW3V0 チヨダカラーＧＬ輝きＧＥＲ４０　シャインブラウン","0.50","0","1200","00","00","GUD1ZEPCGBW3V00.5001200","BW3V0"]
[251,"GUD1ZEPGLZG0.60000K120","GUD1ZEP","元旦内樋　落ち葉除けⅢ","CG",0,39,null,null,1873.74359,null,null,null,null,0,null,null,null,null,0,null,null,null,null,0,null,null,null,null,0,null,null,null,null,0,null,null,null,null,0,null,null,null,null,0,null,null,null,null,0,null,null,null,null,0,null,null,null,null,0,null,null,null,null,0,null,null,null,null,0,null,null,null,null,0,null,null,null,null,0,null,null,null,null,0,null,null,null,null,0,null,null,null,null,0,null,null,null,null,0,null,null,null,null,0,null,null,null,null,0,null,"GLZG0.60000K120","GLZG0 チヨダカラーＧＬ輝きＧＥＲ８０　ＳＨグレー","0.60","0","1200","00","00","GUD1ZEPCGGLZG00.6001200","GLZG0"]
[254,"GUD1ZEQNC2700000000000","GUD1ZEQ","元旦内樋　内樋固定金具ＡⅡ","OA",0,2123,null,null,112.67229,null,null,null,null,0,null,null,null,null,0,null,null,null,null,0,null,null,null,null,0,null,null,null,null,0,null,null,null,null,0,null,null,null,null,0,null,null,null,null,0,null,null,null,null,0,null,null,null,null,0,null,null,null,null,0,null,null,null,null,0,null,null,null,null,0,null,null,null,null,0,null,null,null,null,0,null,null,null,null,0,null,null,null,null,0,null,null,null,null,0,null,null,null,null,0,null,null,null,null,0,null,"NC2700000000000","NC270 アルマイトブラック","0.00","0","0","00","00","GUD1ZEQOANC2700.0000","NC270"]
[256,"GUD1ZERSG3500000000000","GUD1ZER","元旦内樋　横打金具","NS",0,451,null,null,179.23947000000001,null,null,null,null,0,null,null,null,null,0,null,null,null,null,0,null,null,null,null,0,null,null,null,null,0,null,null,null,null,0,null,null,null,null,0,null,null,null,null,0,null,null,null,null,0,null,null,null,null,0,null,null,null,null,0,null,null,null,null,0,null,null,null,null,0,null,null,null,null,0,null,null,null,null,0,null,null,null,null,0,null,null,null,null,0,null,null,null,null,0,null,null,null,null,0,null,null,null,null,0,null,"SG3500000000000","SG350 ＳＵＳ３０４－２Ｂ","0.00","0","0","00","00","GUD1ZERNSSG3500.0000","SG350"]
[257,{"$f":"C268&DH268","v":"GUD1ZEZNC2700000000000"},"GUD1ZEZ","元旦内樋　内樋固定金具ＡⅢ","OA",{"$f":"O268+T268+Y268+AD268+AI268+AN268+AS268+AX268+BC268+BH268+BM268+BR268+BW268+CB268+CG268+CL268+CQ268+CV268+DA268+DF268","v":0},3123,null,null,103.92932999999999,null,null,null,null,{"$f":"(L268*M268)+N268","v":0},null,null,null,null,{"$f":"(Q268*R268)+S268","v":0},null,null,null,null,{"$f":"(V268*W268)+X268","v":0},null,null,null,null,{"$f":"(AA268*AB268)+AC268","v":0},null,null,null,null,{"$f":"(AF268*AG268)+AH268","v":0},null,null,null,null,{"$f":"(AK268*AL268)+AM268","v":0},null,null,null,null,{"$f":"(AP268*AQ268)+AR268","v":0},null,null,null,null,{"$f":"(AU268*AV268)+AW268","v":0},null,null,null,null,{"$f":"(AZ268*BA268)+BB268","v":0},null,null,null,null,{"$f":"(BE268*BF268)+BG268","v":0},null,null,null,null,{"$f":"(BJ268*BK268)+BL268","v":0},null,null,null,null,{"$f":"(BO268*BP268)+BQ268","v":0},null,null,null,null,{"$f":"(BT268*BU268)+BV268","v":0},null,null,null,null,{"$f":"(BY268*BZ268)+CA268","v":0},null,null,null,null,{"$f":"(CD268*CE268)+CF268","v":0},null,null,null,null,{"$f":"(CI268*CJ268)+CK268","v":0},null,null,null,null,{"$f":"(CN268*CO268)+CP268","v":0},null,null,null,null,{"$f":"(CS268*CT268)+CU268","v":0},null,null,null,null,{"$f":"(CX268*CY268)+CZ268","v":0},null,null,null,null,{"$f":"(DC268*DD268)+DE268","v":0},null,"NC2700000000000","NC270 アルマイトブラック","0.00","0","0","00","00",{"$f":"C268&E268&DP268&DJ268&DK268&DL268","v":"GUD1ZEZOANC2700.0000"},"NC270"]
[261,"GUD1ZU0BKBK00000000000","GUD1ZU0","元旦内樋　カラーリベット","00",0,22,null,null,6500,null,null,null,null,0,null,null,null,null,0,null,null,null,null,0,null,null,null,null,0,null,null,null,null,0,null,null,null,null,0,null,null,null,null,0,null,null,null,null,0,null,null,null,null,0,null,null,null,null,0,null,null,null,null,0,null,null,null,null,0,null,null,null,null,0,null,null,null,null,0,null,null,null,null,0,null,null,null,null,0,null,null,null,null,0,null,null,null,null,0,null,null,null,null,0,null,null,null,null,0,null,"BKBK00000000000","BKBK0 黒（ブラック）","0.00","0","0","00","00","GUD1ZU000BKBK00.0000","BKBK0"]
[263,"GUDLZE0BKT20.50000K120","GUDLZE0","元旦内樋　落ち葉除けⅢ　Ｌ","CG",0,21,null,null,1871.61905,null,null,null,null,0,null,null,null,null,0,null,null,null,null,0,null,null,null,null,0,null,null,null,null,0,null,null,null,null,0,null,null,null,null,0,null,null,null,null,0,null,null,null,null,0,null,null,null,null,0,null,null,null,null,0,null,null,null,null,0,null,null,null,null,0,null,null,null,null,0,null,null,null,null,0,null,null,null,null,0,null,null,null,null,0,null,null,null,null,0,null,null,null,null,0,null,null,null,null,0,null,"BKT20.50000K120","BKT20 チヨダカラーＧＬＧＥＲ１０／９０２　ＳＨブラック","0.50","0","1200","00","00","GUDLZE0CGBKT200.5001200","BKT20"]
[266,"GUDLZE3BW3V0.500000000","GUDLZE3","元旦内樋　止りＬ（右）","CG",0,16,null,null,703.875,null,null,null,null,0,null,null,null,null,0,null,null,null,null,0,null,null,null,null,0,null,null,null,null,0,null,null,null,null,0,null,null,null,null,0,null,null,null,null,0,null,null,null,null,0,null,null,null,null,0,null,null,null,null,0,null,null,null,null,0,null,null,null,null,0,null,null,null,null,0,null,null,null,null,0,null,null,null,null,0,null,null,null,null,0,null,null,null,null,0,null,null,null,null,0,null,null,null,null,0,null,"BW3V0.500000000","BW3V0 チヨダカラーＧＬ輝きＧＥＲ４０　シャインブラウン","0.50","0","0","00","00","GUDLZE3CGBW3V00.5000","BW3V0"]
[269,"GUDLZE3GLZG0.500000000","GUDLZE3","元旦内樋　止りＬ（右）","CG",0,20,null,null,727.56521999999995,null,null,null,null,0,null,null,null,null,0,null,null,null,null,0,null,null,null,null,0,null,null,null,null,0,null,null,null,null,0,null,null,null,null,0,null,null,null,null,0,null,null,null,null,0,null,null,null,null,0,null,null,null,null,0,null,null,null,null,0,null,null,null,null,0,null,null,null,null,0,null,null,null,null,0,null,null,null,null,0,null,null,null,null,0,null,null,null,null,0,null,null,null,null,0,null,null,null,null,0,null,"GLZG0.500000000","GLZG0 チヨダカラーＧＬ輝きＧＥＲ８０　ＳＨグレー","0.50","0","0","00","00","GUDLZE3CGGLZG00.5000","GLZG0"]
[271,"GUDLZE3SL6A0.500000000","GUDLZE3","元旦内樋　止りＬ（右）","CG",0,16,null,null,687.5625,null,null,null,null,0,null,null,null,null,0,null,null,null,null,0,null,null,null,null,0,null,null,null,null,0,null,null,null,null,0,null,null,null,null,0,null,null,null,null,0,null,null,null,null,0,null,null,null,null,0,null,null,null,null,0,null,null,null,null,0,null,null,null,null,0,null,null,null,null,0,null,null,null,null,0,null,null,null,null,0,null,null,null,null,0,null,null,null,null,0,null,null,null,null,0,null,null,null,null,0,null,"SL6A0.500000000","SL6A0 チヨダカラーＧＬ　輝き　ＳＨシルバー　ＧＥＲ８１","0.50","0","0","00","00","GUDLZE3CGSL6A00.5000","SL6A0"]
[274,"GUDLZE4BW3V0.500000000","GUDLZE4","元旦内樋　止りＬ（左）","CG",0,16,null,null,706.8125,null,null,null,null,0,null,null,null,null,0,null,null,null,null,0,null,null,null,null,0,null,null,null,null,0,null,null,null,null,0,null,null,null,null,0,null,null,null,null,0,null,null,null,null,0,null,null,null,null,0,null,null,null,null,0,null,null,null,null,0,null,null,null,null,0,null,null,null,null,0,null,null,null,null,0,null,null,null,null,0,null,null,null,null,0,null,null,null,null,0,null,null,null,null,0,null,null,null,null,0,null,"BW3V0.500000000","BW3V0 チヨダカラーＧＬ輝きＧＥＲ４０　シャインブラウン","0.50","0","0","00","00","GUDLZE4CGBW3V00.5000","BW3V0"]
[276,"GUDLZE4GLGL0.500000000","GUDLZE4","元旦内樋　止りＬ（左）","FG",0,1,null,null,6311,null,null,null,null,0,null,null,null,null,0,null,null,null,null,0,null,null,null,null,0,null,null,null,null,0,null,null,null,null,0,null,null,null,null,0,null,null,null,null,0,null,null,null,null,0,null,null,null,null,0,null,null,null,null,0,null,null,null,null,0,null,null,null,null,0,null,null,null,null,0,null,null,null,null,0,null,null,null,null,0,null,null,null,null,0,null,null,null,null,0,null,null,null,null,0,null,null,null,null,0,null,"GLGL0.500000000","GLGL0 ＧＬＯ－３（グレー）ＦＡ１４５７／ＲＡ１４２３","0.50","0","0","00","00","GUDLZE4FGGLGL00.5000","GLGL0"]
[277,"GUDLZE4GLZG0.500000000","GUDLZE4","元旦内樋　止りＬ（左）","CG",0,19,null,null,727.18182000000002,null,null,null,null,0,null,null,null,null,0,null,null,null,null,0,null,null,null,null,0,null,null,null,null,0,null,null,null,null,0,null,null,null,null,0,null,null,null,null,0,null,null,null,null,0,null,null,null,null,0,null,null,null,null,0,null,null,null,null,0,null,null,null,null,0,null,null,null,null,0,null,null,null,null,0,null,null,null,null,0,null,null,null,null,0,null,null,null,null,0,null,null,null,null,0,null,null,null,null,0,null,"GLZG0.500000000","GLZG0 チヨダカラーＧＬ輝きＧＥＲ８０　ＳＨグレー","0.50","0","0","00","00","GUDLZE4CGGLZG00.5000","GLZG0"]
[281,"GUDLZE5BKT20.500000000","GUDLZE5","元旦内樋　止りＬ　４段（右）","CG",0,11,null,null,781.18182000000002,null,null,null,null,0,null,null,null,null,0,null,null,null,null,0,null,null,null,null,0,null,null,null,null,0,null,null,null,null,0,null,null,null,null,0,null,null,null,null,0,null,null,null,null,0,null,null,null,null,0,null,null,null,null,0,null,null,null,null,0,null,null,null,null,0,null,null,null,null,0,null,null,null,null,0,null,null,null,null,0,null,null,null,null,0,null,null,null,null,0,null,null,null,null,0,null,null,null,null,0,null,"BKT20.500000000","BKT20 チヨダカラーＧＬＧＥＲ１０／９０２　ＳＨブラック","0.50","0","0","00","00","GUDLZE5CGBKT200.5000","BKT20"]
[283,"GUDLZE5GD330.500000000","GUDLZE5","元旦内樋　止りＬ　４段（右）","CG",0,12,null,null,799.16666999999995,null,null,null,null,0,null,null,null,null,0,null,null,null,null,0,null,null,null,null,0,null,null,null,null,0,null,null,null,null,0,null,null,null,null,0,null,null,null,null,0,null,null,null,null,0,null,null,null,null,0,null,null,null,null,0,null,null,null,null,0,null,null,null,null,0,null,null,null,null,0,null,null,null,null,0,null,null,null,null,0,null,null,null,null,0,null,null,null,null,0,null,null,null,null,0,null,null,null,null,0,null,"GD330.500000000","GD330 チヨダカラーＧＬ　輝き　ＳＨゴールド　ＧＥＲ１２","0.50","0","0","00","00","GUDLZE5CGGD3300.5000","GD330"]
[286,"GUDLZE5SL6A0.500000000","GUDLZE5","元旦内樋　止りＬ　４段（右）","CG",0,10,null,null,835.8,null,null,null,null,0,null,null,null,null,0,null,null,null,null,0,null,null,null,null,0,null,null,null,null,0,null,null,null,null,0,null,null,null,null,0,null,null,null,null,0,null,null,null,null,0,null,null,null,null,0,null,null,null,null,0,null,null,null,null,0,null,null,null,null,0,null,null,null,null,0,null,null,null,null,0,null,null,null,null,0,null,null,null,null,0,null,null,null,null,0,null,null,null,null,0,null,null,null,null,0,null,"SL6A0.500000000","SL6A0 チヨダカラーＧＬ　輝き　ＳＨシルバー　ＧＥＲ８１","0.50","0","0","00","00","GUDLZE5CGSL6A00.5000","SL6A0"]
[288,"GUDLZE6BW3V0.500000000","GUDLZE6","元旦内樋　止りＬ　４段（左）","CG",0,3,null,null,943.33333000000005,null,null,null,null,0,null,null,null,null,0,null,null,null,null,0,null,null,null,null,0,null,null,null,null,0,null,null,null,null,0,null,null,null,null,0,null,null,null,null,0,null,null,null,null,0,null,null,null,null,0,null,null,null,null,0,null,null,null,null,0,null,null,null,null,0,null,null,null,null,0,null,null,null,null,0,null,null,null,null,0,null,null,null,null,0,null,null,null,null,0,null,null,null,null,0,null,null,null,null,0,null,"BW3V0.500000000","BW3V0 チヨダカラーＧＬ輝きＧＥＲ４０　シャインブラウン","0.50","0","0","00","00","GUDLZE6CGBW3V00.5000","BW3V0"]
[292,"GUDLZE6SL6A0.500000000","GUDLZE6","元旦内樋　止りＬ　４段（左）","CG",0,10,null,null,803.7,null,null,null,null,0,null,null,null,null,0,null,null,null,null,0,null,null,null,null,0,null,null,null,null,0,null,null,null,null,0,null,null,null,null,0,null,null,null,null,0,null,null,null,null,0,null,null,null,null,0,null,null,null,null,0,null,null,null,null,0,null,null,null,null,0,null,null,null,null,0,null,null,null,null,0,null,null,null,null,0,null,null,null,null,0,null,null,null,null,0,null,null,null,null,0,null,null,null,null,0,null,"SL6A0.500000000","SL6A0 チヨダカラーＧＬ　輝き　ＳＨシルバー　ＧＥＲ８１","0.50","0","0","00","00","GUDLZE6CGSL6A00.5000","SL6A0"]
[293,"GUDLZE7BW3V0.500000000","GUDLZE7","元旦内樋　曲りⅡ（外）Ｌ","CG",0,12,null,null,3548.6666700000001,null,null,null,null,0,null,null,null,null,0,null,null,null,null,0,null,null,null,null,0,null,null,null,null,0,null,null,null,null,0,null,null,null,null,0,null,null,null,null,0,null,null,null,null,0,null,null,null,null,0,null,null,null,null,0,null,null,null,null,0,null,null,null,null,0,null,null,null,null,0,null,null,null,null,0,null,null,null,null,0,null,null,null,null,0,null,null,null,null,0,null,null,null,null,0,null,null,null,null,0,null,"BW3V0.500000000","BW3V0 チヨダカラーＧＬ輝きＧＥＲ４０　シャインブラウン","0.50","0","0","00","00","GUDLZE7CGBW3V00.5000","BW3V0"]
[295,"GUDLZE7GLZG0.500000000","GUDLZE7","元旦内樋　曲りⅡ（外）Ｌ","CG",0,2,null,null,3417,null,null,null,null,0,null,null,null,null,0,null,null,null,null,0,null,null,null,null,0,null,null,null,null,0,null,null,null,null,0,null,null,null,null,0,null,null,null,null,0,null,null,null,null,0,null,null,null,null,0,null,null,null,null,0,null,null,null,null,0,null,null,null,null,0,null,null,null,null,0,null,null,null,null,0,null,null,null,null,0,null,null,null,null,0,null,null,null,null,0,null,null,null,null,0,null,null,null,null,0,null,"GLZG0.500000000","GLZG0 チヨダカラーＧＬ輝きＧＥＲ８０　ＳＨグレー","0.50","0","0","00","00","GUDLZE7CGGLZG00.5000","GLZG0"]
[298,"GUDLZE8BKT20.500000000","GUDLZE8","元旦内樋　曲りⅡ（内）Ｌ","CG",0,3,null,null,3461,null,null,null,null,0,null,null,null,null,0,null,null,null,null,0,null,null,null,null,0,null,null,null,null,0,null,null,null,null,0,null,null,null,null,0,null,null,null,null,0,null,null,null,null,0,null,null,null,null,0,null,null,null,null,0,null,null,null,null,0,null,null,null,null,0,null,null,null,null,0,null,null,null,null,0,null,null,null,null,0,null,null,null,null,0,null,null,null,null,0,null,null,null,null,0,null,null,null,null,0,null,"BKT20.500000000","BKT20 チヨダカラーＧＬＧＥＲ１０／９０２　ＳＨブラック","0.50","0","0","00","00","GUDLZE8CGBKT200.5000","BKT20"]
[301,"GUDLZE8GLZG0.500000000","GUDLZE8","元旦内樋　曲りⅡ（内）Ｌ","CG",0,8,null,null,3416.625,null,null,null,null,0,null,null,null,null,0,null,null,null,null,0,null,null,null,null,0,null,null,null,null,0,null,null,null,null,0,null,null,null,null,0,null,null,null,null,0,null,null,null,null,0,null,null,null,null,0,null,null,null,null,0,null,null,null,null,0,null,null,null,null,0,null,null,null,null,0,null,null,null,null,0,null,null,null,null,0,null,null,null,null,0,null,null,null,null,0,null,null,null,null,0,null,null,null,null,0,null,"GLZG0.500000000","GLZG0 チヨダカラーＧＬ輝きＧＥＲ８０　ＳＨグレー","0.50","0","0","00","00","GUDLZE8CGGLZG00.5000","GLZG0"]
[303,"GUDLZE8SL6A0.500000000","GUDLZE8","元旦内樋　曲りⅡ（内）Ｌ","CG",0,6,null,null,3153.5,null,null,null,null,0,null,null,null,null,0,null,null,null,null,0,null,null,null,null,0,null,null,null,null,0,null,null,null,null,0,null,null,null,null,0,null,null,null,null,0,null,null,null,null,0,null,null,null,null,0,null,null,null,null,0,null,null,null,null,0,null,null,null,null,0,null,null,null,null,0,null,null,null,null,0,null,null,null,null,0,null,null,null,null,0,null,null,null,null,0,null,null,null,null,0,null,null,null,null,0,null,"SL6A0.500000000","SL6A0 チヨダカラーＧＬ　輝き　ＳＨシルバー　ＧＥＲ８１","0.50","0","0","00","00","GUDLZE8CGSL6A00.5000","SL6A0"]
[306,"GUDLZE9GD330.500000000","GUDLZE9","元旦内樋　曲りⅡ（外）Ｌ４段","CG",0,6,null,null,3814.1666700000001,null,null,null,null,0,null,null,null,null,0,null,null,null,null,0,null,null,null,null,0,null,null,null,null,0,null,null,null,null,0,null,null,null,null,0,null,null,null,null,0,null,null,null,null,0,null,null,null,null,0,null,null,null,null,0,null,null,null,null,0,null,null,null,null,0,null,null,null,null,0,null,null,null,null,0,null,null,null,null,0,null,null,null,null,0,null,null,null,null,0,null,null,null,null,0,null,null,null,null,0,null,"GD330.500000000","GD330 チヨダカラーＧＬ　輝き　ＳＨゴールド　ＧＥＲ１２","0.50","0","0","00","00","GUDLZE9CGGD3300.5000","GD330"]
[308,"GUDLZE9RDE40.500000000","GUDLZE9","元旦内樋　曲りⅡ（外）Ｌ４段","CG",0,3,null,null,3769.6666700000001,null,null,null,null,0,null,null,null,null,0,null,null,null,null,0,null,null,null,null,0,null,null,null,null,0,null,null,null,null,0,null,null,null,null,0,null,null,null,null,0,null,null,null,null,0,null,null,null,null,0,null,null,null,null,0,null,null,null,null,0,null,null,null,null,0,null,null,null,null,0,null,null,null,null,0,null,null,null,null,0,null,null,null,null,0,null,null,null,null,0,null,null,null,null,0,null,null,null,null,0,null,"RDE40.500000000","RDE40 チヨダカラーＧＬ　輝き　ＳＨレンガ　ＧＥＲ９０","0.50","0","0","00","00","GUDLZE9CGRDE400.5000","RDE40"]
[312,"GUDLZEAGD330.500000000","GUDLZEA","元旦内樋　曲りⅡ（内）Ｌ４段","CG",0,8,null,null,3814.125,null,null,null,null,0,null,null,null,null,0,null,null,null,null,0,null,null,null,null,0,null,null,null,null,0,null,null,null,null,0,null,null,null,null,0,null,null,null,null,0,null,null,null,null,0,null,null,null,null,0,null,null,null,null,0,null,null,null,null,0,null,null,null,null,0,null,null,null,null,0,null,null,null,null,0,null,null,null,null,0,null,null,null,null,0,null,null,null,null,0,null,null,null,null,0,null,null,null,null,0,null,"GD330.500000000","GD330 チヨダカラーＧＬ　輝き　ＳＨゴールド　ＧＥＲ１２","0.50","0","0","00","00","GUDLZEACGGD3300.5000","GD330"]
[313,"GUDLZEAGLZG0.500000000","GUDLZEA","元旦内樋　曲りⅡ（内）Ｌ４段","CG",0,8,null,null,3769.625,null,null,null,null,0,null,null,null,null,0,null,null,null,null,0,null,null,null,null,0,null,null,null,null,0,null,null,null,null,0,null,null,null,null,0,null,null,null,null,0,null,null,null,null,0,null,null,null,null,0,null,null,null,null,0,null,null,null,null,0,null,null,null,null,0,null,null,null,null,0,null,null,null,null,0,null,null,null,null,0,null,null,null,null,0,null,null,null,null,0,null,null,null,null,0,null,null,null,null,0,null,"GLZG0.500000000","GLZG0 チヨダカラーＧＬ輝きＧＥＲ８０　ＳＨグレー","0.50","0","0","00","00","GUDLZEACGGLZG00.5000","GLZG0"]
[315,"GUDLZEASL6A0.500000000","GUDLZEA","元旦内樋　曲りⅡ（内）Ｌ４段","CG",0,8,null,null,3791.5,null,null,null,null,0,null,null,null,null,0,null,null,null,null,0,null,null,null,null,0,null,null,null,null,0,null,null,null,null,0,null,null,null,null,0,null,null,null,null,0,null,null,null,null,0,null,null,null,null,0,null,null,null,null,0,null,null,null,null,0,null,null,null,null,0,null,null,null,null,0,null,null,null,null,0,null,null,null,null,0,null,null,null,null,0,null,null,null,null,0,null,null,null,null,0,null,null,null,null,0,null,"SL6A0.500000000","SL6A0 チヨダカラーＧＬ　輝き　ＳＨシルバー　ＧＥＲ８１","0.50","0","0","00","00","GUDLZEACGSL6A00.5000","SL6A0"]
[318,"GUDLZEBGD330.500000000","GUDLZEB","元旦内樋　止りキャップＬ","CG",0,50,null,null,176.62,null,null,null,null,0,null,null,null,null,0,null,null,null,null,0,null,null,null,null,0,null,null,null,null,0,null,null,null,null,0,null,null,null,null,0,null,null,null,null,0,null,null,null,null,0,null,null,null,null,0,null,null,null,null,0,null,null,null,null,0,null,null,null,null,0,null,null,null,null,0,null,null,null,null,0,null,null,null,null,0,null,null,null,null,0,null,null,null,null,0,null,null,null,null,0,null,null,null,null,0,null,"GD330.500000000","GD330 チヨダカラーＧＬ　輝き　ＳＨゴールド　ＧＥＲ１２","0.50","0","0","00","00","GUDLZEBCGGD3300.5000","GD330"]
[321,{"$f":"C332&DH332","v":"GUDLZEBSL6A0.500000000"},"GUDLZEB","元旦内樋　止りキャップＬ","CG",{"$f":"O332+T332+Y332+AD332+AI332+AN332+AS332+AX332+BC332+BH332+BM332+BR332+BW332+CB332+CG332+CL332+CQ332+CV332+DA332+DF332","v":0},36,null,null,177.27778000000001,null,null,null,null,{"$f":"(L332*M332)+N332","v":0},null,null,null,null,{"$f":"(Q332*R332)+S332","v":0},null,null,null,null,{"$f":"(V332*W332)+X332","v":0},null,null,null,null,{"$f":"(AA332*AB332)+AC332","v":0},null,null,null,null,{"$f":"(AF332*AG332)+AH332","v":0},null,null,null,null,{"$f":"(AK332*AL332)+AM332","v":0},null,null,null,null,{"$f":"(AP332*AQ332)+AR332","v":0},null,null,null,null,{"$f":"(AU332*AV332)+AW332","v":0},null,null,null,null,{"$f":"(AZ332*BA332)+BB332","v":0},null,null,null,null,{"$f":"(BE332*BF332)+BG332","v":0},null,null,null,null,{"$f":"(BJ332*BK332)+BL332","v":0},null,null,null,null,{"$f":"(BO332*BP332)+BQ332","v":0},null,null,null,null,{"$f":"(BT332*BU332)+BV332","v":0},null,null,null,null,{"$f":"(BY332*BZ332)+CA332","v":0},null,null,null,null,{"$f":"(CD332*CE332)+CF332","v":0},null,null,null,null,{"$f":"(CI332*CJ332)+CK332","v":0},null,null,null,null,{"$f":"(CN332*CO332)+CP332","v":0},null,null,null,null,{"$f":"(CS332*CT332)+CU332","v":0},null,null,null,null,{"$f":"(CX332*CY332)+CZ332","v":0},null,null,null,null,{"$f":"(DC332*DD332)+DE332","v":0},null,"SL6A0.500000000","SL6A0 チヨダカラーＧＬ　輝き　ＳＨシルバー　ＧＥＲ８１","0.50","0","0","00","00",{"$f":"C332&E332&DP332&DJ332&DK332&DL332","v":"GUDLZEBCGSL6A00.5000"},"SL6A0"]
[323,"GUDLZEDBKG30.500000000","GUDLZED","元旦内樋　ジョイントⅢ　Ｌ（４段）","CS",0,52,null,null,739.03845999999999,null,null,null,null,0,null,null,null,null,0,null,null,null,null,0,null,null,null,null,0,null,null,null,null,0,null,null,null,null,0,null,null,null,null,0,null,null,null,null,0,null,null,null,null,0,null,null,null,null,0,null,null,null,null,0,null,null,null,null,0,null,null,null,null,0,null,null,null,null,0,null,null,null,null,0,null,null,null,null,0,null,null,null,null,0,null,null,null,null,0,null,null,null,null,0,null,null,null,null,0,null,"BKG30.500000000","BKG30 ＢＫＯ－５（黒）ＣＳ","0.50","0","0","00","00","GUDLZEDCSBKG300.5000","BKG30"]
[326,"GUDLZEJGLZG0.500000000","GUDLZEJ","元旦内樋　曲りⅢ（外）Ｌ","CG",0,4,null,null,4293.5,null,null,null,null,0,null,null,null,null,0,null,null,null,null,0,null,null,null,null,0,null,null,null,null,0,null,null,null,null,0,null,null,null,null,0,null,null,null,null,0,null,null,null,null,0,null,null,null,null,0,null,null,null,null,0,null,null,null,null,0,null,null,null,null,0,null,null,null,null,0,null,null,null,null,0,null,null,null,null,0,null,null,null,null,0,null,null,null,null,0,null,null,null,null,0,null,null,null,null,0,null,"GLZG0.500000000","GLZG0 チヨダカラーＧＬ輝きＧＥＲ８０　ＳＨグレー","0.50","0","0","00","00","GUDLZEJCGGLZG00.5000","GLZG0"]
[330,"GUDLZEKBW3V0.500000000","GUDLZEK","元旦内樋　曲りⅢ（内）Ｌ","CG",0,11,null,null,4158.9090900000001,null,null,null,null,0,null,null,null,null,0,null,null,null,null,0,null,null,null,null,0,null,null,null,null,0,null,null,null,null,0,null,null,null,null,0,null,null,null,null,0,null,null,null,null,0,null,null,null,null,0,null,null,null,null,0,null,null,null,null,0,null,null,null,null,0,null,null,null,null,0,null,null,null,null,0,null,null,null,null,0,null,null,null,null,0,null,null,null,null,0,null,null,null,null,0,null,null,null,null,0,null,"BW3V0.500000000","BW3V0 チヨダカラーＧＬ輝きＧＥＲ４０　シャインブラウン","0.50","0","0","00","00","GUDLZEKCGBW3V00.5000","BW3V0"]
[332,"GUDMZ00BKT20.50000K240","GUDMZ00","元旦内樋　樋本体Ｍ","CG",0,49,null,null,1253.4898000000001,null,null,null,null,0,null,null,null,null,0,null,null,null,null,0,null,null,null,null,0,null,null,null,null,0,null,null,null,null,0,null,null,null,null,0,null,null,null,null,0,null,null,null,null,0,null,null,null,null,0,null,null,null,null,0,null,null,null,null,0,null,null,null,null,0,null,null,null,null,0,null,null,null,null,0,null,null,null,null,0,null,null,null,null,0,null,null,null,null,0,null,null,null,null,0,null,null,null,null,0,null,"BKT20.50000K240","BKT20 チヨダカラーＧＬＧＥＲ１０／９０２　ＳＨブラック","0.50","0","2400","00","00","GUDMZ00CGBKT200.5002400","BKT20"]
[333,"GUDMZ00BKT20.50000K360","GUDMZ00","元旦内樋　樋本体Ｍ","CG",0,188,null,null,1842.3723399999999,null,null,null,null,0,null,null,null,null,0,null,null,null,null,0,null,null,null,null,0,null,null,null,null,0,null,null,null,null,0,null,null,null,null,0,null,null,null,null,0,null,null,null,null,0,null,null,null,null,0,null,null,null,null,0,null,null,null,null,0,null,null,null,null,0,null,null,null,null,0,null,null,null,null,0,null,null,null,null,0,null,null,null,null,0,null,null,null,null,0,null,null,null,null,0,null,null,null,null,0,null,"BKT20.50000K360","BKT20 チヨダカラーＧＬＧＥＲ１０／９０２　ＳＨブラック","0.50","0","3600","00","00","GUDMZ00CGBKT200.5003600","BKT20"]
[337,"GUDMZ00SL6A0.50000K360","GUDMZ00","元旦内樋　樋本体Ｍ","CG",0,9,null,null,2998.4444400000002,null,null,null,null,0,null,null,null,null,0,null,null,null,null,0,null,null,null,null,0,null,null,null,null,0,null,null,null,null,0,null,null,null,null,0,null,null,null,null,0,null,null,null,null,0,null,null,null,null,0,null,null,null,null,0,null,null,null,null,0,null,null,null,null,0,null,null,null,null,0,null,null,null,null,0,null,null,null,null,0,null,null,null,null,0,null,null,null,null,0,null,null,null,null,0,null,null,null,null,0,null,"SL6A0.50000K360","SL6A0 チヨダカラーＧＬ　輝き　ＳＨシルバー　ＧＥＲ８１","0.50","0","3600","00","00","GUDMZ00CGSL6A00.5003600","SL6A0"]
[338,"GUDMZE0BKG30.500000000","GUDMZE0","元旦内樋　ジョイントⅢ　Ｍ","CS",0,320,null,null,557.67187999999999,null,null,null,null,0,null,null,null,null,0,null,null,null,null,0,null,null,null,null,0,null,null,null,null,0,null,null,null,null,0,null,null,null,null,0,null,null,null,null,0,null,null,null,null,0,null,null,null,null,0,null,null,null,null,0,null,null,null,null,0,null,null,null,null,0,null,null,null,null,0,null,null,null,null,0,null,null,null,null,0,null,null,null,null,0,null,null,null,null,0,null,null,null,null,0,null,null,null,null,0,null,"BKG30.500000000","BKG30 ＢＫＯ－５（黒）ＣＳ","0.50","0","0","00","00","GUDMZE0CSBKG300.5000","BKG30"]
[342,"GUDMZE1GLZG0.500000000","GUDMZE1","元旦内樋　曲りⅢ（外）Ｍ","CG",0,31,null,null,3413.4193500000001,null,null,null,null,0,null,null,null,null,0,null,null,null,null,0,null,null,null,null,0,null,null,null,null,0,null,null,null,null,0,null,null,null,null,0,null,null,null,null,0,null,null,null,null,0,null,null,null,null,0,null,null,null,null,0,null,null,null,null,0,null,null,null,null,0,null,null,null,null,0,null,null,null,null,0,null,null,null,null,0,null,null,null,null,0,null,null,null,null,0,null,null,null,null,0,null,null,null,null,0,null,"GLZG0.500000000","GLZG0 チヨダカラーＧＬ輝きＧＥＲ８０　ＳＨグレー","0.50","0","0","00","00","GUDMZE1CGGLZG00.5000","GLZG0"]
[344,"GUDMZE1SL6A0.500000000","GUDMZE1","元旦内樋　曲りⅢ（外）Ｍ","CG",0,36,null,null,3418.3611099999998,null,null,null,null,0,null,null,null,null,0,null,null,null,null,0,null,null,null,null,0,null,null,null,null,0,null,null,null,null,0,null,null,null,null,0,null,null,null,null,0,null,null,null,null,0,null,null,null,null,0,null,null,null,null,0,null,null,null,null,0,null,null,null,null,0,null,null,null,null,0,null,null,null,null,0,null,null,null,null,0,null,null,null,null,0,null,null,null,null,0,null,null,null,null,0,null,null,null,null,0,null,"SL6A0.500000000","SL6A0 チヨダカラーＧＬ　輝き　ＳＨシルバー　ＧＥＲ８１","0.50","0","0","00","00","GUDMZE1CGSL6A00.5000","SL6A0"]
[347,"GUDMZE2BW3V0.500000000","GUDMZE2","元旦内樋　曲りⅢ（内）Ｍ","CG",0,22,null,null,4107.6818199999998,null,null,null,null,0,null,null,null,null,0,null,null,null,null,0,null,null,null,null,0,null,null,null,null,0,null,null,null,null,0,null,null,null,null,0,null,null,null,null,0,null,null,null,null,0,null,null,null,null,0,null,null,null,null,0,null,null,null,null,0,null,null,null,null,0,null,null,null,null,0,null,null,null,null,0,null,null,null,null,0,null,null,null,null,0,null,null,null,null,0,null,null,null,null,0,null,null,null,null,0,null,"BW3V0.500000000","BW3V0 チヨダカラーＧＬ輝きＧＥＲ４０　シャインブラウン","0.50","0","0","00","00","GUDMZE2CGBW3V00.5000","BW3V0"]
[350,"GUDMZE2RDE40.500000000","GUDMZE2","元旦内樋　曲りⅢ（内）Ｍ","CG",0,32,null,null,3282.09375,null,null,null,null,0,null,null,null,null,0,null,null,null,null,0,null,null,null,null,0,null,null,null,null,0,null,null,null,null,0,null,null,null,null,0,null,null,null,null,0,null,null,null,null,0,null,null,null,null,0,null,null,null,null,0,null,null,null,null,0,null,null,null,null,0,null,null,null,null,0,null,null,null,null,0,null,null,null,null,0,null,null,null,null,0,null,null,null,null,0,null,null,null,null,0,null,null,null,null,0,null,"RDE40.500000000","RDE40 チヨダカラーＧＬ　輝き　ＳＨレンガ　ＧＥＲ９０","0.50","0","0","00","00","GUDMZE2CGRDE400.5000","RDE40"]
[352,"GUDMZE2WTP10.500000000","GUDMZE2","元旦内樋　曲りⅢ（内）Ｍ","CG",0,11,null,null,3428,null,null,null,null,0,null,null,null,null,0,null,null,null,null,0,null,null,null,null,0,null,null,null,null,0,null,null,null,null,0,null,null,null,null,0,null,null,null,null,0,null,null,null,null,0,null,null,null,null,0,null,null,null,null,0,null,null,null,null,0,null,null,null,null,0,null,null,null,null,0,null,null,null,null,0,null,null,null,null,0,null,null,null,null,0,null,null,null,null,0,null,null,null,null,0,null,null,null,null,0,null,"WTP10.500000000","WTP10 チヨダカラー輝き　ＧＥＲ８２　ホワイト","0.50","0","0","00","00","GUDMZE2CGWTP100.5000","WTP10"]
[353,"GUDMZE3OT270.500000000","GUDMZE3","元旦内樋　内樋補強材Ｍ","CG",0,395,null,null,69.501270000000005,null,null,null,null,0,null,null,null,null,0,null,null,null,null,0,null,null,null,null,0,null,null,null,null,0,null,null,null,null,0,null,null,null,null,0,null,null,null,null,0,null,null,null,null,0,null,null,null,null,0,null,null,null,null,0,null,null,null,null,0,null,null,null,null,0,null,null,null,null,0,null,null,null,null,0,null,null,null,null,0,null,null,null,null,0,null,null,null,null,0,null,null,null,null,0,null,null,null,null,0,null,"OT270.500000000","OT270 色調不問（カラーガルバリウム）","0.50","0","0","00","00","GUDMZE3CGOT2700.5000","OT270"]
[357,"GUDSZE0BKG30.500000000","GUDSZE0","元旦内樋　ジョイントⅢ　Ｓ","CS",0,309,null,null,484.93333000000001,null,null,null,null,0,null,null,null,null,0,null,null,null,null,0,null,null,null,null,0,null,null,null,null,0,null,null,null,null,0,null,null,null,null,0,null,null,null,null,0,null,null,null,null,0,null,null,null,null,0,null,null,null,null,0,null,null,null,null,0,null,null,null,null,0,null,null,null,null,0,null,null,null,null,0,null,null,null,null,0,null,null,null,null,0,null,null,null,null,0,null,null,null,null,0,null,null,null,null,0,null,"BKG30.500000000","BKG30 ＢＫＯ－５（黒）ＣＳ","0.50","0","0","00","00","GUDSZE0CSBKG300.5000","BKG30"]
[358,"GUDSZE1BKT20.50000K360","GUDSZE1","元旦内樋　背板Ｓ用","CG",0,18,null,null,2519.1904800000002,null,null,null,null,0,null,null,null,null,0,null,null,null,null,0,null,null,null,null,0,null,null,null,null,0,null,null,null,null,0,null,null,null,null,0,null,null,null,null,0,null,null,null,null,0,null,null,null,null,0,null,null,null,null,0,null,null,null,null,0,null,null,null,null,0,null,null,null,null,0,null,null,null,null,0,null,null,null,null,0,null,null,null,null,0,null,null,null,null,0,null,null,null,null,0,null,null,null,null,0,null,"BKT20.50000K360","BKT20 チヨダカラーＧＬＧＥＲ１０／９０２　ＳＨブラック","0.50","0","3600","00","00","GUDSZE1CGBKT200.5003600","BKT20"]
[362,"GUDSZE3GLZG0.500000000","GUDSZE3","元旦内樋　曲りⅢ（外）Ｓ","CG",42,42,null,null,3182.8909100000001,97,7,6,0,42,null,null,null,null,0,null,null,null,null,0,null,null,null,null,0,null,null,null,null,0,null,null,null,null,0,null,null,null,null,0,null,null,null,null,0,null,null,null,null,0,null,null,null,null,0,null,null,null,null,0,null,null,null,null,0,null,null,null,null,0,null,null,null,null,0,null,null,null,null,0,null,null,null,null,0,null,null,null,null,0,null,null,null,null,0,null,null,null,null,0,null,null,null,null,0,null,"GLZG0.500000000","GLZG0 チヨダカラーＧＬ輝きＧＥＲ８０　ＳＨグレー","0.50","0","0","00","00","GUDSZE3CGGLZG00.5000","GLZG0"]
[364,"GUDSZE3SL6A0.500000000","GUDSZE3","元旦内樋　曲りⅢ（外）Ｓ","CG",32,32,null,null,3378.78125,93,7,4,4,32,null,null,null,null,0,null,null,null,null,0,null,null,null,null,0,null,null,null,null,0,null,null,null,null,0,null,null,null,null,0,null,null,null,null,0,null,null,null,null,0,null,null,null,null,0,null,null,null,null,0,null,null,null,null,0,null,null,null,null,0,null,null,null,null,0,null,null,null,null,0,null,null,null,null,0,null,null,null,null,0,null,null,null,null,0,null,null,null,null,0,null,null,null,null,0,null,"SL6A0.500000000","SL6A0 チヨダカラーＧＬ　輝き　ＳＨシルバー　ＧＥＲ８１","0.50","0","0","00","00","GUDSZE3CGSL6A00.5000","SL6A0"]
[367,"GUDSZE4BW3V0.500000000","GUDSZE4","元旦内樋　曲りⅢ（内）Ｓ","CG",17,38,null,null,3169.3333299999999,102,7,1,10,17,null,null,null,null,0,null,null,null,null,0,null,null,null,null,0,null,null,null,null,0,null,null,null,null,0,null,null,null,null,0,null,null,null,null,0,null,null,null,null,0,null,null,null,null,0,null,null,null,null,0,null,null,null,null,0,null,null,null,null,0,null,null,null,null,0,null,null,null,null,0,null,null,null,null,0,null,null,null,null,0,null,null,null,null,0,null,null,null,null,0,null,null,null,null,0,null,"BW3V0.500000000","BW3V0 チヨダカラーＧＬ輝きＧＥＲ４０　シャインブラウン","0.50","0","0","00","00","GUDSZE4CGBW3V00.5000","BW3V0"]
[370,"GUDSZE4RDE40.500000000","GUDSZE4","元旦内樋　曲りⅢ（内）Ｓ","CG",20,20,null,null,3043.1,95,0,0,20,20,null,null,null,null,0,null,null,null,null,0,null,null,null,null,0,null,null,null,null,0,null,null,null,null,0,null,null,null,null,0,null,null,null,null,0,null,null,null,null,0,null,null,null,null,0,null,null,null,null,0,null,null,null,null,0,null,null,null,null,0,null,null,null,null,0,null,null,null,null,0,null,null,null,null,0,null,null,null,null,0,null,null,null,null,0,null,null,null,null,0,null,null,null,null,0,null,"RDE40.500000000","RDE40 チヨダカラーＧＬ　輝き　ＳＨレンガ　ＧＥＲ９０","0.50","0","0","00","00","GUDSZE4CGRDE400.5000","RDE40"]
[372,"GUDSZE4WTP10.500000000","GUDSZE4","元旦内樋　曲りⅢ（内）Ｓ","CG",15,15,null,null,3485.26667,92,7,2,1,15,null,null,null,null,0,null,null,null,null,0,null,null,null,null,0,null,null,null,null,0,null,null,null,null,0,null,null,null,null,0,null,null,null,null,0,null,null,null,null,0,null,null,null,null,0,null,null,null,null,0,null,null,null,null,0,null,null,null,null,0,null,null,null,null,0,null,null,null,null,0,null,null,null,null,0,null,null,null,null,0,null,null,null,null,0,null,null,null,null,0,null,null,null,null,0,null,"WTP10.500000000","WTP10 チヨダカラー輝き　ＧＥＲ８２　ホワイト","0.50","0","0","00","00","GUDSZE4CGWTP100.5000","WTP10"]
[373,"GUDSZE5OT270.500000000","GUDSZE5","元旦内樋　内樋補強材Ｓ","CG",0,693,null,null,74.606059999999999,null,null,null,null,0,null,null,null,null,0,null,null,null,null,0,null,null,null,null,0,null,null,null,null,0,null,null,null,null,0,null,null,null,null,0,null,null,null,null,0,null,null,null,null,0,null,null,null,null,0,null,null,null,null,0,null,null,null,null,0,null,null,null,null,0,null,null,null,null,0,null,null,null,null,0,null,null,null,null,0,null,null,null,null,0,null,null,null,null,0,null,null,null,null,0,null,null,null,null,0,null,"OT270.500000000","OT270 色調不問（カラーガルバリウム）","0.50","0","0","00","00","GUDSZE5CGOT2700.5000","OT270"]
[376,"GUDTK00000005403540000","GUDTK00","元旦内樋　樋本体（特注品）","00",0,2,null,null,39529.5,null,null,null,null,0,null,null,null,null,0,null,null,null,null,0,null,null,null,null,0,null,null,null,null,0,null,null,null,null,0,null,null,null,null,0,null,null,null,null,0,null,null,null,null,0,null,null,null,null,0,null,null,null,null,0,null,null,null,null,0,null,null,null,null,0,null,null,null,null,0,null,null,null,null,0,null,null,null,null,0,null,null,null,null,0,null,null,null,null,0,null,null,null,null,0,null,null,null,null,0,null,"000005403540000","00000","540.00","354","0","00","00","GUDTK000000000540.003540","00000"]
[379,"GUDTKE1000005402040000","GUDTKE1","元旦内樋　関連部材（特注品）","00",5,5,null,null,352,125,0,0,5,5,null,null,null,null,0,null,null,null,null,0,null,null,null,null,0,null,null,null,null,0,null,null,null,null,0,null,null,null,null,0,null,null,null,null,0,null,null,null,null,0,null,null,null,null,0,null,null,null,null,0,null,null,null,null,0,null,null,null,null,0,null,null,null,null,0,null,null,null,null,0,null,null,null,null,0,null,null,null,null,0,null,null,null,null,0,null,null,null,null,0,null,null,null,null,0,null,"000005402040000","00000","540.00","204","0","00","00","GUDTKE10000000540.002040","00000"]
[382,"GUDTKE1000005402070000","GUDTKE1","元旦内樋　関連部材（特注品）","00",2,2,null,null,5279.5,133,0,0,2,2,null,null,null,null,0,null,null,null,null,0,null,null,null,null,0,null,null,null,null,0,null,null,null,null,0,null,null,null,null,0,null,null,null,null,0,null,null,null,null,0,null,null,null,null,0,null,null,null,null,0,null,null,null,null,0,null,null,null,null,0,null,null,null,null,0,null,null,null,null,0,null,null,null,null,0,null,null,null,null,0,null,null,null,null,0,null,null,null,null,0,null,null,null,null,0,null,"000005402070000","00000","540.00","207","0","00","00","GUDTKE10000000540.002070","00000"]
[384,"GUDTKE1000005402090000","GUDTKE1","元旦内樋　関連部材（特注品）","00",1,1,null,null,7039,132,0,0,1,1,null,null,null,null,0,null,null,null,null,0,null,null,null,null,0,null,null,null,null,0,null,null,null,null,0,null,null,null,null,0,null,null,null,null,0,null,null,null,null,0,null,null,null,null,0,null,null,null,null,0,null,null,null,null,0,null,null,null,null,0,null,null,null,null,0,null,null,null,null,0,null,null,null,null,0,null,null,null,null,0,null,null,null,null,0,null,null,null,null,0,null,null,null,null,0,null,"000005402090000","00000","540.00","209","0","00","00","GUDTKE10000000540.002090","00000"]
[388,"GUDTKE1000005402190000","GUDTKE1","元旦内樋　関連部材（特注品）","00",2,2,null,null,880,130,0,0,2,2,null,null,null,null,0,null,null,null,null,0,null,null,null,null,0,null,null,null,null,0,null,null,null,null,0,null,null,null,null,0,null,null,null,null,0,null,null,null,null,0,null,null,null,null,0,null,null,null,null,0,null,null,null,null,0,null,null,null,null,0,null,null,null,null,0,null,null,null,null,0,null,null,null,null,0,null,null,null,null,0,null,null,null,null,0,null,null,null,null,0,null,null,null,null,0,null,"000005402190000","00000","540.00","219","0","00","00","GUDTKE10000000540.002190","00000"]
[389,"GUDTKE1000005403390000","GUDTKE1","元旦内樋　関連部材（特注品）","00",0,1,null,null,7450,null,null,null,null,0,null,null,null,null,0,null,null,null,null,0,null,null,null,null,0,null,null,null,null,0,null,null,null,null,0,null,null,null,null,0,null,null,null,null,0,null,null,null,null,0,null,null,null,null,0,null,null,null,null,0,null,null,null,null,0,null,null,null,null,0,null,null,null,null,0,null,null,null,null,0,null,null,null,null,0,null,null,null,null,0,null,null,null,null,0,null,null,null,null,0,null,null,null,null,0,null,"000005403390000","00000","540.00","339","0","00","00","GUDTKE10000000540.003390","00000"]
[393,"GUDTKE1000005403580000","GUDTKE1","元旦内樋　関連部材（特注品）","00",0,1,null,null,10618,null,null,null,null,0,null,null,null,null,0,null,null,null,null,0,null,null,null,null,0,null,null,null,null,0,null,null,null,null,0,null,null,null,null,0,null,null,null,null,0,null,null,null,null,0,null,null,null,null,0,null,null,null,null,0,null,null,null,null,0,null,null,null,null,0,null,null,null,null,0,null,null,null,null,0,null,null,null,null,0,null,null,null,null,0,null,null,null,null,0,null,null,null,null,0,null,null,null,null,0,null,"000005403580000","00000","540.00","358","0","00","00","GUDTKE10000000540.003580","00000"]
[394,"GUDTKE1000005403590000","GUDTKE1","元旦内樋　関連部材（特注品）","00",0,1,null,null,1987,null,null,null,null,0,null,null,null,null,0,null,null,null,null,0,null,null,null,null,0,null,null,null,null,0,null,null,null,null,0,null,null,null,null,0,null,null,null,null,0,null,null,null,null,0,null,null,null,null,0,null,null,null,null,0,null,null,null,null,0,null,null,null,null,0,null,null,null,null,0,null,null,null,null,0,null,null,null,null,0,null,null,null,null,0,null,null,null,null,0,null,null,null,null,0,null,null,null,null,0,null,"000005403590000","00000","540.00","359","0","00","00","GUDTKE10000000540.003590","00000"]
[396,"GWINGE7SG0400000000000","GWINGE7","元旦ウイング固定金具Ⅱ　Ｌ１７","NS",0,206,null,null,272.97086999999999,null,null,null,null,0,null,null,null,null,0,null,null,null,null,0,null,null,null,null,0,null,null,null,null,0,null,null,null,null,0,null,null,null,null,0,null,null,null,null,0,null,null,null,null,0,null,null,null,null,0,null,null,null,null,0,null,null,null,null,0,null,null,null,null,0,null,null,null,null,0,null,null,null,null,0,null,null,null,null,0,null,null,null,null,0,null,null,null,null,0,null,null,null,null,0,null,null,null,null,0,null,"SG0400000000000","SG040 ステンレス素地","0.00","0","0","00","00","GWINGE7NSSG0400.0000","SG040"]
[399,"GY02Z25SG710.400000000","GY02Z25","ＧＹ－２　軒先桟カバーＢＫ（ＺＳ）","ZS",0,285,null,null,424.87018,null,null,null,null,0,null,null,null,null,0,null,null,null,null,0,null,null,null,null,0,null,null,null,null,0,null,null,null,null,0,null,null,null,null,0,null,null,null,null,0,null,null,null,null,0,null,null,null,null,0,null,null,null,null,0,null,null,null,null,0,null,null,null,null,0,null,null,null,null,0,null,null,null,null,0,null,null,null,null,0,null,null,null,null,0,null,null,null,null,0,null,null,null,null,0,null,null,null,null,0,null,"SG710.400000000","SG710 亜鉛メッキステンレス（タフテンＺ）","0.40","0","0","00","00","GY02Z25ZSSG7100.4000","SG710"]
[402,"IMJSS00BW8J0.40182K360","IMJSS00","元旦一文字Ｓ　本体（しがらみジョイント）","CG",0,10,null,null,4854.8999999999996,null,null,null,null,0,null,null,null,null,0,null,null,null,null,0,null,null,null,null,0,null,null,null,null,0,null,null,null,null,0,null,null,null,null,0,null,null,null,null,0,null,null,null,null,0,null,null,null,null,0,null,null,null,null,0,null,null,null,null,0,null,null,null,null,0,null,null,null,null,0,null,null,null,null,0,null,null,null,null,0,null,null,null,null,0,null,null,null,null,0,null,null,null,null,0,null,null,null,null,0,null,"BW8J0.40182K360","BW8J0 ストロングカラーＶ３　ＧＪＥ０４／９０２","0.40","182","3640","96","00","IMJSS00CGBW8J00.401823640","BW8J0"]
[404,"IMJSS20000000000000000","IMJSS20","元旦一文字Ｓ　継手捨板（しがらみ用）","CG",0,3200,null,null,137.49063000000001,null,null,null,null,0,null,null,null,null,0,null,null,null,null,0,null,null,null,null,0,null,null,null,null,0,null,null,null,null,0,null,null,null,null,0,null,null,null,null,0,null,null,null,null,0,null,null,null,null,0,null,null,null,null,0,null,null,null,null,0,null,null,null,null,0,null,null,null,null,0,null,null,null,null,0,null,null,null,null,0,null,null,null,null,0,null,null,null,null,0,null,null,null,null,0,null,null,null,null,0,null,"000000000000000","00000","0.00","0","0","00","00","IMJSS20CG000000.0000","00000"]
[408,"IMJSZ11000000000000000","IMJSZ11","元旦一文字Ｓ　吊子２","MF",0,31000,null,null,24.13429,null,null,null,null,0,null,null,null,null,0,null,null,null,null,0,null,null,null,null,0,null,null,null,null,0,null,null,null,null,0,null,null,null,null,0,null,null,null,null,0,null,null,null,null,0,null,null,null,null,0,null,null,null,null,0,null,null,null,null,0,null,null,null,null,0,null,null,null,null,0,null,null,null,null,0,null,null,null,null,0,null,null,null,null,0,null,null,null,null,0,null,null,null,null,0,null,null,null,null,0,null,"000000000000000","00000","0.00","0","0","00","00","IMJSZ11MF000000.0000","00000"]
[409,"IMJSZ11000000000000001","IMJSZ11","元旦一文字Ｓ　吊子２","NS",0,33042,null,null,24.32743,null,null,null,null,0,null,null,null,null,0,null,null,null,null,0,null,null,null,null,0,null,null,null,null,0,null,null,null,null,0,null,null,null,null,0,null,null,null,null,0,null,null,null,null,0,null,null,null,null,0,null,null,null,null,0,null,null,null,null,0,null,null,null,null,0,null,null,null,null,0,null,null,null,null,0,null,null,null,null,0,null,null,null,null,0,null,null,null,null,0,null,null,null,null,0,null,null,null,null,0,null,"000000000000001","00000","0.00","0","0","00","00","IMJSZ11NS000000.0000","00000"]
[413,"IMJSZ31000000000000000","IMJSZ31","元旦一文字Ｓ　下り棟捨板","CE",0,127,null,null,197.25984,null,null,null,null,0,null,null,null,null,0,null,null,null,null,0,null,null,null,null,0,null,null,null,null,0,null,null,null,null,0,null,null,null,null,0,null,null,null,null,0,null,null,null,null,0,null,null,null,null,0,null,null,null,null,0,null,null,null,null,0,null,null,null,null,0,null,null,null,null,0,null,null,null,null,0,null,null,null,null,0,null,null,null,null,0,null,null,null,null,0,null,null,null,null,0,null,null,null,null,0,null,"000000000000000","00000","0.00","0","0","00","00","IMJSZ31CE000000.0000","00000"]
[414,"IMJSZ31000000000000001","IMJSZ31","元旦一文字Ｓ　下り棟捨板","NU",186,186,null,null,1037.7419400000001,139,96,1,90,186,null,null,null,null,0,null,null,null,null,0,null,null,null,null,0,null,null,null,null,0,null,null,null,null,0,null,null,null,null,0,null,null,null,null,0,null,null,null,null,0,null,null,null,null,0,null,null,null,null,0,null,null,null,null,0,null,null,null,null,0,null,null,null,null,0,null,null,null,null,0,null,null,null,null,0,null,null,null,null,0,null,null,null,null,0,null,null,null,null,0,null,null,null,null,0,null,"000000000000001","00000","0.00","0","0","00","00","IMJSZ31NU000000.0000","00000"]
[416,"IMJSZ40BKBKN0000000000","IMJSZ40","元旦一文字Ｓ　雪止金具（アングルタイプ）","MF",43,43,null,null,825.04651000000001,143,0,0,43,43,null,null,null,null,0,null,null,null,null,0,null,null,null,null,0,null,null,null,null,0,null,null,null,null,0,null,null,null,null,0,null,null,null,null,0,null,null,null,null,0,null,null,null,null,0,null,null,null,null,0,null,null,null,null,0,null,null,null,null,0,null,null,null,null,0,null,null,null,null,0,null,null,null,null,0,null,null,null,null,0,null,null,null,null,0,null,null,null,null,0,null,null,null,null,0,null,"BKBKN0000000000","BKBKN GTNブラック","0.00","0","0","00","00","IMJSZ40MFBKBKN0.0000","BKBKN"]
[420,"IMJSZ42000000000000000","IMJSZ42","元旦一文字Ｓ　雪止捨板","CE",0,380,null,null,113.23421,null,null,null,null,0,null,null,null,null,0,null,null,null,null,0,null,null,null,null,0,null,null,null,null,0,null,null,null,null,0,null,null,null,null,0,null,null,null,null,0,null,null,null,null,0,null,null,null,null,0,null,null,null,null,0,null,null,null,null,0,null,null,null,null,0,null,null,null,null,0,null,null,null,null,0,null,null,null,null,0,null,null,null,null,0,null,null,null,null,0,null,null,null,null,0,null,null,null,null,0,null,"000000000000000","00000","0.00","0","0","00","00","IMJSZ42CE000000.0000","00000"]
[423,"KBOXZY4000000000000000","KBOXZY4","Ｐ梱包費１　Ｈ１５５－１．１×４","00",0,9758,null,null,0,null,null,null,null,0,null,null,null,null,0,null,null,null,null,0,null,null,null,null,0,null,null,null,null,0,null,null,null,null,0,null,null,null,null,0,null,null,null,null,0,null,null,null,null,0,null,null,null,null,0,null,null,null,null,0,null,null,null,null,0,null,null,null,null,0,null,null,null,null,0,null,null,null,null,0,null,null,null,null,0,null,null,null,null,0,null,null,null,null,0,null,null,null,null,0,null,null,null,null,0,null,"000000000000000","00000","0.00","0","0","00","00","KBOXZY400000000.0000","00000"]
[425,"KBOXZY6000000000000000","KBOXZY6","Ｐ梱包費３　Ｈ１５５－０．５５×４","00",0,9869,null,null,0,null,null,null,null,0,null,null,null,null,0,null,null,null,null,0,null,null,null,null,0,null,null,null,null,0,null,null,null,null,0,null,null,null,null,0,null,null,null,null,0,null,null,null,null,0,null,null,null,null,0,null,null,null,null,0,null,null,null,null,0,null,null,null,null,0,null,null,null,null,0,null,null,null,null,0,null,null,null,null,0,null,null,null,null,0,null,null,null,null,0,null,null,null,null,0,null,null,null,null,0,null,"000000000000000","00000","0.00","0","0","00","00","KBOXZY600000000.0000","00000"]
[428,"KBOXZY9000000000000000","KBOXZY9","Ｐ梱包費５　Ｈ１８０－０．５５×４","00",0,9999,null,null,0,null,null,null,null,0,null,null,null,null,0,null,null,null,null,0,null,null,null,null,0,null,null,null,null,0,null,null,null,null,0,null,null,null,null,0,null,null,null,null,0,null,null,null,null,0,null,null,null,null,0,null,null,null,null,0,null,null,null,null,0,null,null,null,null,0,null,null,null,null,0,null,null,null,null,0,null,null,null,null,0,null,null,null,null,0,null,null,null,null,0,null,null,null,null,0,null,null,null,null,0,null,"000000000000000","00000","0.00","0","0","00","00","KBOXZY900000000.0000","00000"]
[431,"KBOXZYC000000000000000","KBOXZYC","紙管梱包費２　Ｈ０．５５×φ５００","00",0,9999,null,null,0,null,null,null,null,0,null,null,null,null,0,null,null,null,null,0,null,null,null,null,0,null,null,null,null,0,null,null,null,null,0,null,null,null,null,0,null,null,null,null,0,null,null,null,null,0,null,null,null,null,0,null,null,null,null,0,null,null,null,null,0,null,null,null,null,0,null,null,null,null,0,null,null,null,null,0,null,null,null,null,0,null,null,null,null,0,null,null,null,null,0,null,null,null,null,0,null,null,null,null,0,null,"000000000000000","00000","0.00","0","0","00","00","KBOXZYC00000000.0000","00000"]
[433,"KRKSK00SG030000000K500","KRKSK00","Ｔ－４唐草","OA",0,374,null,null,1622.48404,null,null,null,null,0,null,null,null,null,0,null,null,null,null,0,null,null,null,null,0,null,null,null,null,0,null,null,null,null,0,null,null,null,null,0,null,null,null,null,0,null,null,null,null,0,null,null,null,null,0,null,null,null,null,0,null,null,null,null,0,null,null,null,null,0,null,null,null,null,0,null,null,null,null,0,null,null,null,null,0,null,null,null,null,0,null,null,null,null,0,null,null,null,null,0,null,null,null,null,0,null,"SG030000000K500","SG030 アルマイト処理","0.00","0","5000","00","00","KRKSK00OASG0300.0005000","SG030"]
[434,"KRKSK01SG030000000K500","KRKSK01","Ｍ－１唐草","OA",0,165,null,null,1269.95758,null,null,null,null,0,null,null,null,null,0,null,null,null,null,0,null,null,null,null,0,null,null,null,null,0,null,null,null,null,0,null,null,null,null,0,null,null,null,null,0,null,null,null,null,0,null,null,null,null,0,null,null,null,null,0,null,null,null,null,0,null,null,null,null,0,null,null,null,null,0,null,null,null,null,0,null,null,null,null,0,null,null,null,null,0,null,null,null,null,0,null,null,null,null,0,null,null,null,null,0,null,"SG030000000K500","SG030 アルマイト処理","0.00","0","5000","00","00","KRKSK01OASG0300.0005000","SG030"]
[438,"KRKSK03GL7Y0000000K300","KRKSK03","Ｇ－４Ｗアルミ押出型材","OA",0,39,null,null,963.02563999999995,null,null,null,null,0,null,null,null,null,0,null,null,null,null,0,null,null,null,null,0,null,null,null,null,0,null,null,null,null,0,null,null,null,null,0,null,null,null,null,0,null,null,null,null,0,null,null,null,null,0,null,null,null,null,0,null,null,null,null,0,null,null,null,null,0,null,null,null,null,0,null,null,null,null,0,null,null,null,null,0,null,null,null,null,0,null,null,null,null,0,null,null,null,null,0,null,null,null,null,0,null,"GL7Y0000000K300","GL7Y0 サンライトＧＬＭ３０Ｇメタリックグレー（Ｍ）","0.00","0","3030","00","00","KRKSK03OAGL7Y00.0003030","GL7Y0"]
[440,"KRKSK03GRBW0000000K300","KRKSK03","Ｇ－４Ｗアルミ押出型材","OA",0,46,null,null,1038.0869600000001,null,null,null,null,0,null,null,null,null,0,null,null,null,null,0,null,null,null,null,0,null,null,null,null,0,null,null,null,null,0,null,null,null,null,0,null,null,null,null,0,null,null,null,null,0,null,null,null,null,0,null,null,null,null,0,null,null,null,null,0,null,null,null,null,0,null,null,null,null,0,null,null,null,null,0,null,null,null,null,0,null,null,null,null,0,null,null,null,null,0,null,null,null,null,0,null,null,null,null,0,null,"GRBW0000000K300","GRBW0 サンライトＧＬＤＲＧ３０Ｇモスグリーン","0.00","0","3030","00","00","KRKSK03OAGRBW00.0003030","GRBW0"]
[443,"KRKSN00SG030000000K500","KRKSN00","Ｔ－９唐草","OA",0,20,null,null,2230.89552,null,null,null,null,0,null,null,null,null,0,null,null,null,null,0,null,null,null,null,0,null,null,null,null,0,null,null,null,null,0,null,null,null,null,0,null,null,null,null,0,null,null,null,null,0,null,null,null,null,0,null,null,null,null,0,null,null,null,null,0,null,null,null,null,0,null,null,null,null,0,null,null,null,null,0,null,null,null,null,0,null,null,null,null,0,null,null,null,null,0,null,null,null,null,0,null,null,null,null,0,null,"SG030000000K500","SG030 アルマイト処理","0.00","0","5000","00","00","KRKSN00OASG0300.0005000","SG030"]
[445,"KRKSN02BKX10000000K500","KRKSN02","Ｔ－１６唐草","OA",0,1,null,null,3655,null,null,null,null,0,null,null,null,null,0,null,null,null,null,0,null,null,null,null,0,null,null,null,null,0,null,null,null,null,0,null,null,null,null,0,null,null,null,null,0,null,null,null,null,0,null,null,null,null,0,null,null,null,null,0,null,null,null,null,0,null,null,null,null,0,null,null,null,null,0,null,null,null,null,0,null,null,null,null,0,null,null,null,null,0,null,null,null,null,0,null,null,null,null,0,null,null,null,null,0,null,"BKX10000000K500","BKX10 ストロングカラーＶ３　ＧＪＥ０１／９０２","0.00","0","5000","00","00","KRKSN02OABKX100.0005000","BKX10"]
[448,"KRKSN02BWGX0000000K500","KRKSN02","Ｔ－１６唐草","OA",0,5,null,null,4522,null,null,null,null,0,null,null,null,null,0,null,null,null,null,0,null,null,null,null,0,null,null,null,null,0,null,null,null,null,0,null,null,null,null,0,null,null,null,null,0,null,null,null,null,0,null,null,null,null,0,null,null,null,null,0,null,null,null,null,0,null,null,null,null,0,null,null,null,null,0,null,null,null,null,0,null,null,null,null,0,null,null,null,null,0,null,null,null,null,0,null,null,null,null,0,null,null,null,null,0,null,"BWGX0000000K500","BWGX0 ＢＷＯ－１焼付塗装","0.00","0","5000","00","00","KRKSN02OABWGX00.0005000","BWGX0"]
[451,"KRKSN05SG030000000K500","KRKSN05","Ｔ－２１唐草","OA",0,88,null,null,2887,null,null,null,null,0,null,null,null,null,0,null,null,null,null,0,null,null,null,null,0,null,null,null,null,0,null,null,null,null,0,null,null,null,null,0,null,null,null,null,0,null,null,null,null,0,null,null,null,null,0,null,null,null,null,0,null,null,null,null,0,null,null,null,null,0,null,null,null,null,0,null,null,null,null,0,null,null,null,null,0,null,null,null,null,0,null,null,null,null,0,null,null,null,null,0,null,null,null,null,0,null,"SG030000000K500","SG030 アルマイト処理","0.00","0","5000","00","00","KRKSN05OASG0300.0005000","SG030"]
[453,"KRKSN08BKMX0000000K300","KRKSN08","Ｍ－７唐草","OA",0,292,null,null,1366.2910999999999,null,null,null,null,0,null,null,null,null,0,null,null,null,null,0,null,null,null,null,0,null,null,null,null,0,null,null,null,null,0,null,null,null,null,0,null,null,null,null,0,null,null,null,null,0,null,null,null,null,0,null,null,null,null,0,null,null,null,null,0,null,null,null,null,0,null,null,null,null,0,null,null,null,null,0,null,null,null,null,0,null,null,null,null,0,null,null,null,null,0,null,null,null,null,0,null,null,null,null,0,null,"BKMX0000000K300","BKMX0 マット黒彩焼付塗装","0.00","0","3000","00","00","KRKSN08OABKMX00.0003000","BKMX0"]
[454,"KRKSN08BW3P0000000K300","KRKSN08","Ｍ－７唐草","OA",0,6,null,null,2388.8333299999999,null,null,null,null,0,null,null,null,null,0,null,null,null,null,0,null,null,null,null,0,null,null,null,null,0,null,null,null,null,0,null,null,null,null,0,null,null,null,null,0,null,null,null,null,0,null,null,null,null,0,null,null,null,null,0,null,null,null,null,0,null,null,null,null,0,null,null,null,null,0,null,null,null,null,0,null,null,null,null,0,null,null,null,null,0,null,null,null,null,0,null,null,null,null,0,null,null,null,null,0,null,"BW3P0000000K300","BW3P0 チヨダカラーＨＦ２０　ＧＨ１３２","0.00","0","3000","00","00","KRKSN08OABW3P00.0003000","BW3P0"]
[458,"KRKSN08GRBW0000000K300","KRKSN08","Ｍ－７唐草","OA",0,56,null,null,2162.8928599999999,null,null,null,null,0,null,null,null,null,0,null,null,null,null,0,null,null,null,null,0,null,null,null,null,0,null,null,null,null,0,null,null,null,null,0,null,null,null,null,0,null,null,null,null,0,null,null,null,null,0,null,null,null,null,0,null,null,null,null,0,null,null,null,null,0,null,null,null,null,0,null,null,null,null,0,null,null,null,null,0,null,null,null,null,0,null,null,null,null,0,null,null,null,null,0,null,null,null,null,0,null,"GRBW0000000K300","GRBW0 サンライトＧＬＤＲＧ３０Ｇモスグリーン","0.00","0","3000","00","00","KRKSN08OAGRBW00.0003000","GRBW0"]
[460,"KRKSN08GRMX0000000K300","KRKSN08","Ｍ－７唐草","OA",0,64,null,null,1249.2968800000001,null,null,null,null,0,null,null,null,null,0,null,null,null,null,0,null,null,null,null,0,null,null,null,null,0,null,null,null,null,0,null,null,null,null,0,null,null,null,null,0,null,null,null,null,0,null,null,null,null,0,null,null,null,null,0,null,null,null,null,0,null,null,null,null,0,null,null,null,null,0,null,null,null,null,0,null,null,null,null,0,null,null,null,null,0,null,null,null,null,0,null,null,null,null,0,null,null,null,null,0,null,"GRMX0000000K300","GRMX0 マット緑青焼付塗装","0.00","0","3000","00","00","KRKSN08OAGRMX00.0003000","GRMX0"]
[463,"KRKSN08SL2V0000000K300","KRKSN08","Ｍ－７唐草","OA",0,37,null,null,2394.3513499999999,null,null,null,null,0,null,null,null,null,0,null,null,null,null,0,null,null,null,null,0,null,null,null,null,0,null,null,null,null,0,null,null,null,null,0,null,null,null,null,0,null,null,null,null,0,null,null,null,null,0,null,null,null,null,0,null,null,null,null,0,null,null,null,null,0,null,null,null,null,0,null,null,null,null,0,null,null,null,null,0,null,null,null,null,0,null,null,null,null,0,null,null,null,null,0,null,null,null,null,0,null,"SL2V0000000K300","SL2V0 ニスクカラーＲＭ０１６ギングロ（Ｍ）","0.00","0","3000","00","00","KRKSN08OASL2V00.0003000","SL2V0"]
[465,"KRKSN09BKMX0000000K300","KRKSN09","Ｋ－２唐草","OA",0,105,null,null,1195.50476,null,null,null,null,0,null,null,null,null,0,null,null,null,null,0,null,null,null,null,0,null,null,null,null,0,null,null,null,null,0,null,null,null,null,0,null,null,null,null,0,null,null,null,null,0,null,null,null,null,0,null,null,null,null,0,null,null,null,null,0,null,null,null,null,0,null,null,null,null,0,null,null,null,null,0,null,null,null,null,0,null,null,null,null,0,null,null,null,null,0,null,null,null,null,0,null,null,null,null,0,null,"BKMX0000000K300","BKMX0 マット黒彩焼付塗装","0.00","0","3000","00","00","KRKSN09OABKMX00.0003000","BKMX0"]
[469,"KRKSN09GLF10000000K300","KRKSN09","Ｋ－２唐草","OA",0,31,null,null,1309,null,null,null,null,0,null,null,null,null,0,null,null,null,null,0,null,null,null,null,0,null,null,null,null,0,null,null,null,null,0,null,null,null,null,0,null,null,null,null,0,null,null,null,null,0,null,null,null,null,0,null,null,null,null,0,null,null,null,null,0,null,null,null,null,0,null,null,null,null,0,null,null,null,null,0,null,null,null,null,0,null,null,null,null,0,null,null,null,null,0,null,null,null,null,0,null,null,null,null,0,null,"GLF10000000K300","GLF10 ネオマットグレー２号","0.00","0","3000","00","00","KRKSN09OAGLF100.0003000","GLF10"]
[470,"KRKSN09GRBW0000000K300","KRKSN09","Ｋ－２唐草","OA",0,46,null,null,1598.2391299999999,null,null,null,null,0,null,null,null,null,0,null,null,null,null,0,null,null,null,null,0,null,null,null,null,0,null,null,null,null,0,null,null,null,null,0,null,null,null,null,0,null,null,null,null,0,null,null,null,null,0,null,null,null,null,0,null,null,null,null,0,null,null,null,null,0,null,null,null,null,0,null,null,null,null,0,null,null,null,null,0,null,null,null,null,0,null,null,null,null,0,null,null,null,null,0,null,null,null,null,0,null,"GRBW0000000K300","GRBW0 サンライトＧＬＤＲＧ３０Ｇモスグリーン","0.00","0","3000","00","00","KRKSN09OAGRBW00.0003000","GRBW0"]
[472,"KRKSN09GRMX0000000K300","KRKSN09","Ｋ－２唐草","OA",0,38,null,null,1232.63158,null,null,null,null,0,null,null,null,null,0,null,null,null,null,0,null,null,null,null,0,null,null,null,null,0,null,null,null,null,0,null,null,null,null,0,null,null,null,null,0,null,null,null,null,0,null,null,null,null,0,null,null,null,null,0,null,null,null,null,0,null,null,null,null,0,null,null,null,null,0,null,null,null,null,0,null,null,null,null,0,null,null,null,null,0,null,null,null,null,0,null,null,null,null,0,null,null,null,null,0,null,"GRMX0000000K300","GRMX0 マット緑青焼付塗装","0.00","0","3000","00","00","KRKSN09OAGRMX00.0003000","GRMX0"]
[475,"KRKSN09SL2V0000000K300","KRKSN09","Ｋ－２唐草","OA",0,8,null,null,2099.25,null,null,null,null,0,null,null,null,null,0,null,null,null,null,0,null,null,null,null,0,null,null,null,null,0,null,null,null,null,0,null,null,null,null,0,null,null,null,null,0,null,null,null,null,0,null,null,null,null,0,null,null,null,null,0,null,null,null,null,0,null,null,null,null,0,null,null,null,null,0,null,null,null,null,0,null,null,null,null,0,null,null,null,null,0,null,null,null,null,0,null,null,null,null,0,null,null,null,null,0,null,"SL2V0000000K300","SL2V0 ニスクカラーＲＭ０１６ギングロ（Ｍ）","0.00","0","3000","00","00","KRKSN09OASL2V00.0003000","SL2V0"]
[477,"KRKSN10OTBW0000075K250","KRKSN10","軒先伸縮唐草７５","CG",0,14,null,null,815.44804999999997,null,null,null,null,0,null,null,null,null,0,null,null,null,null,0,null,null,null,null,0,null,null,null,null,0,null,null,null,null,0,null,null,null,null,0,null,null,null,null,0,null,null,null,null,0,null,null,null,null,0,null,null,null,null,0,null,null,null,null,0,null,null,null,null,0,null,null,null,null,0,null,null,null,null,0,null,null,null,null,0,null,null,null,null,0,null,null,null,null,0,null,null,null,null,0,null,null,null,null,0,null,"OTBW0000075K250","OTBW0 こげ茶系不問","0.40","75","2500","00","00","KRKSN10CGOTBW00.40752500","OTBW0"]
[480,"KRKSN11BKK50.40103K250","KRKSN11","軒先伸縮唐草１０３","CG",0,9,null,null,2142.8888900000002,null,null,null,null,0,null,null,null,null,0,null,null,null,null,0,null,null,null,null,0,null,null,null,null,0,null,null,null,null,0,null,null,null,null,0,null,null,null,null,0,null,null,null,null,0,null,null,null,null,0,null,null,null,null,0,null,null,null,null,0,null,null,null,null,0,null,null,null,null,0,null,null,null,null,0,null,null,null,null,0,null,null,null,null,0,null,null,null,null,0,null,null,null,null,0,null,null,null,null,0,null,"BKK50.40103K250","BKK50 サンライトＧＬＲＮ８３ＲＮ２０６３（ＥＲＮ８３／","0.40","103","2500","00","00","KRKSN11CGBKK500.401032500","BKK50"]
[483,"KRKSN13SG030000000K240","KRKSN13","Ｍ－９唐草","OA",0,80,null,null,2296.625,null,null,null,null,0,null,null,null,null,0,null,null,null,null,0,null,null,null,null,0,null,null,null,null,0,null,null,null,null,0,null,null,null,null,0,null,null,null,null,0,null,null,null,null,0,null,null,null,null,0,null,null,null,null,0,null,null,null,null,0,null,null,null,null,0,null,null,null,null,0,null,null,null,null,0,null,null,null,null,0,null,null,null,null,0,null,null,null,null,0,null,null,null,null,0,null,null,null,null,0,null,"SG030000000K240","SG030 アルマイト処理","0.00","0","2450","00","00","KRKSN13OASG0300.0002450","SG030"]
[485,"L100Z66000000000000000","L100Z66","断熱Ｌ－１００　ケラバフレーム","MF",0,1992,null,null,572.66999999999996,null,null,null,null,0,null,null,null,null,0,null,null,null,null,0,null,null,null,null,0,null,null,null,null,0,null,null,null,null,0,null,null,null,null,0,null,null,null,null,0,null,null,null,null,0,null,null,null,null,0,null,null,null,null,0,null,null,null,null,0,null,null,null,null,0,null,null,null,null,0,null,null,null,null,0,null,null,null,null,0,null,null,null,null,0,null,null,null,null,0,null,null,null,null,0,null,null,null,null,0,null,"000000000000000","00000","0.00","0","0","00","00","L100Z66MF000000.0000","00000"]
[489,"MA72Z12SG0300000000700","MA72Z12","ＭＡ－７Ⅱ　吊子Ⅱ","OA",0,2043,null,null,25.3813,null,null,null,null,0,null,null,null,null,0,null,null,null,null,0,null,null,null,null,0,null,null,null,null,0,null,null,null,null,0,null,null,null,null,0,null,null,null,null,0,null,null,null,null,0,null,null,null,null,0,null,null,null,null,0,null,null,null,null,0,null,null,null,null,0,null,null,null,null,0,null,null,null,null,0,null,null,null,null,0,null,null,null,null,0,null,null,null,null,0,null,null,null,null,0,null,null,null,null,0,null,"SG0300000000700","SG030 アルマイト処理","0.00","0","70","00","00","MA72Z12OASG0300.00070","SG030"]
[490,"MA72Z13SG0300000004550","MA72Z13","ＭＡ－７Ⅱ　通し吊子Ⅱ","OA",0,146,null,null,434.87671,null,null,null,null,0,null,null,null,null,0,null,null,null,null,0,null,null,null,null,0,null,null,null,null,0,null,null,null,null,0,null,null,null,null,0,null,null,null,null,0,null,null,null,null,0,null,null,null,null,0,null,null,null,null,0,null,null,null,null,0,null,null,null,null,0,null,null,null,null,0,null,null,null,null,0,null,null,null,null,0,null,null,null,null,0,null,null,null,null,0,null,null,null,null,0,null,null,null,null,0,null,"SG0300000004550","SG030 アルマイト処理","0.00","0","455","00","00","MA72Z13OASG0300.000455","SG030"]
[492,"MA72ZK0SG030000000K240","MA72ZK0","ＭＡ－７Ⅱ　軒先唐草","OA",0,145,null,null,1142.5862099999999,null,null,null,null,0,null,null,null,null,0,null,null,null,null,0,null,null,null,null,0,null,null,null,null,0,null,null,null,null,0,null,null,null,null,0,null,null,null,null,0,null,null,null,null,0,null,null,null,null,0,null,null,null,null,0,null,null,null,null,0,null,null,null,null,0,null,null,null,null,0,null,null,null,null,0,null,null,null,null,0,null,null,null,null,0,null,null,null,null,0,null,null,null,null,0,null,null,null,null,0,null,"SG030000000K240","SG030 アルマイト処理","0.00","0","2450","00","00","MA72ZK0OASG0300.0002450","SG030"]
[495,"NSR1Z10000000000000001","NSR1Z10","ＮＳＲ　吊子Ａ","NS",331,331,null,null,57.655589999999997,75,200,1,131,331,null,null,null,null,0,null,null,null,null,0,null,null,null,null,0,null,null,null,null,0,null,null,null,null,0,null,null,null,null,0,null,null,null,null,0,null,null,null,null,0,null,null,null,null,0,null,null,null,null,0,null,null,null,null,0,null,null,null,null,0,null,null,null,null,0,null,null,null,null,0,null,null,null,null,0,null,null,null,null,0,null,null,null,null,0,null,null,null,null,0,null,null,null,null,0,null,"000000000000001","00000","0.00","0","0","00","00","NSR1Z10NS000000.0000","00000"]
[497,"NSR1Z12000000000000000","NSR1Z12","ＮＳＲ　吊子Ａ－３","MF",3195,3195,null,null,51.98028,77,200,15,195,3195,null,null,null,null,0,null,null,null,null,0,null,null,null,null,0,null,null,null,null,0,null,null,null,null,0,null,null,null,null,0,null,null,null,null,0,null,null,null,null,0,null,null,null,null,0,null,null,null,null,0,null,null,null,null,0,null,null,null,null,0,null,null,null,null,0,null,null,null,null,0,null,null,null,null,0,null,null,null,null,0,null,null,null,null,0,null,null,null,null,0,null,null,null,null,0,null,"000000000000000","00000","0.00","0","0","00","00","NSR1Z12MF000000.0000","00000"]
[500,"NSR1Z2500000.353750000","NSR1Z25","ＮＳＲ　ケラバ捨板（右）","CE",245,245,null,null,266.69796000000002,73,50,4,45,245,null,null,null,null,0,null,null,null,null,0,null,null,null,null,0,null,null,null,null,0,null,null,null,null,0,null,null,null,null,0,null,null,null,null,0,null,null,null,null,0,null,null,null,null,0,null,null,null,null,0,null,null,null,null,0,null,null,null,null,0,null,null,null,null,0,null,null,null,null,0,null,null,null,null,0,null,null,null,null,0,null,null,null,null,0,null,null,null,null,0,null,null,null,null,0,null,"00000.353750000","00000","0.35","375","0","00","00","NSR1Z25CE000000.353750","00000"]
[503,"NSS3ZC1PBK20000375K180","NSS3ZC1","モジュール　ＮＳＳ３－Ａ９０","VA",0,14,null,null,14600,null,null,null,null,0,null,null,null,null,0,null,null,null,null,0,null,null,null,null,0,null,null,null,null,0,null,null,null,null,0,null,null,null,null,0,null,null,null,null,0,null,null,null,null,0,null,null,null,null,0,null,null,null,null,0,null,null,null,null,0,null,null,null,null,0,null,null,null,null,0,null,null,null,null,0,null,null,null,null,0,null,null,null,null,0,null,null,null,null,0,null,null,null,null,0,null,null,null,null,0,null,"PBK20000375K180","PBK20 ＰＶモジュール　ブラック","0.00","375","1820","00","00","NSS3ZC1VAPBK200.003751820","PBK20"]
[505,"PASTME0000000000000001","PASTME0","パステム固定金具Ｂ","NS",0,1722,null,null,90.301969999999997,null,null,null,null,0,null,null,null,null,0,null,null,null,null,0,null,null,null,null,0,null,null,null,null,0,null,null,null,null,0,null,null,null,null,0,null,null,null,null,0,null,null,null,null,0,null,null,null,null,0,null,null,null,null,0,null,null,null,null,0,null,null,null,null,0,null,null,null,null,0,null,null,null,null,0,null,null,null,null,0,null,null,null,null,0,null,null,null,null,0,null,null,null,null,0,null,null,null,null,0,null,"000000000000001","00000","0.00","0","0","00","00","PASTME0NS000000.0000","00000"]
[509,"PASTME2000000000000001","PASTME2","パステム固定金具Ｄ２５","NS",0,48,null,null,114,null,null,null,null,0,null,null,null,null,0,null,null,null,null,0,null,null,null,null,0,null,null,null,null,0,null,null,null,null,0,null,null,null,null,0,null,null,null,null,0,null,null,null,null,0,null,null,null,null,0,null,null,null,null,0,null,null,null,null,0,null,null,null,null,0,null,null,null,null,0,null,null,null,null,0,null,null,null,null,0,null,null,null,null,0,null,null,null,null,0,null,null,null,null,0,null,null,null,null,0,null,"000000000000001","00000","0.00","0","0","00","00","PASTME2NS000000.0000","00000"]
[512,"RA03Z10OT330.400000000","RA03Z10","ＲＡ－３　吊子","NG",8062,8062,null,null,3.6152199999999999,28,2000,4,62,8062,null,null,null,null,0,null,null,null,null,0,null,null,null,null,0,null,null,null,null,0,null,null,null,null,0,null,null,null,null,0,null,null,null,null,0,null,null,null,null,0,null,null,null,null,0,null,null,null,null,0,null,null,null,null,0,null,null,null,null,0,null,null,null,null,0,null,null,null,null,0,null,null,null,null,0,null,null,null,null,0,null,null,null,null,0,null,null,null,null,0,null,null,null,null,0,null,"OT330.400000000","OT330 ガルバリウム素地メーカー不問","0.40","0","0","00","00","RA03Z10NGOT3300.4000","OT330"]
[514,"RA03Z1200000.400000000","RA03Z12","ＲＡ－３　吊子Ⅱ（ゴム付き１００個入り）","CG",0,30,null,null,3316.6666700000001,null,null,null,null,0,null,null,null,null,0,null,null,null,null,0,null,null,null,null,0,null,null,null,null,0,null,null,null,null,0,null,null,null,null,0,null,null,null,null,0,null,null,null,null,0,null,null,null,null,0,null,null,null,null,0,null,null,null,null,0,null,null,null,null,0,null,null,null,null,0,null,null,null,null,0,null,null,null,null,0,null,null,null,null,0,null,null,null,null,0,null,null,null,null,0,null,null,null,null,0,null,"00000.400000000","00000","0.40","0","0","00","00","RA03Z12CG000000.4000","00000"]
[515,"RA03Z27BKM70.35000K240","RA03Z27","ＲＡ－３　桟カバーⅡ（定尺）","CG",1777,1777,null,null,171.32222999999999,200,0,0,1777,1777,null,null,null,null,0,null,null,null,null,0,null,null,null,null,0,null,null,null,null,0,null,null,null,null,0,null,null,null,null,0,null,null,null,null,0,null,null,null,null,0,null,null,null,null,0,null,null,null,null,0,null,null,null,null,0,null,null,null,null,0,null,null,null,null,0,null,null,null,null,0,null,null,null,null,0,null,null,null,null,0,null,null,null,null,0,null,null,null,null,0,null,null,null,null,0,null,"BKM70.35000K240","BKM70 サンライトＧＬＬ３０ＧＯＲＬ３０Ｇ（ＤＲＬ３０Ｇ","0.35","0","2400","00","00","RA03Z27CGBKM700.3502400","BKM70"]
[519,"RA03Z29BKM70.350000000","RA03Z29","ＲＡ－３　桟カバーⅡ（定尺・５本組）","CG",80,80,null,null,869.28824999999995,198,0,0,80,80,null,null,null,null,0,null,null,null,null,0,null,null,null,null,0,null,null,null,null,0,null,null,null,null,0,null,null,null,null,0,null,null,null,null,0,null,null,null,null,0,null,null,null,null,0,null,null,null,null,0,null,null,null,null,0,null,null,null,null,0,null,null,null,null,0,null,null,null,null,0,null,null,null,null,0,null,null,null,null,0,null,null,null,null,0,null,null,null,null,0,null,null,null,null,0,null,"BKM70.350000000","BKM70 サンライトＧＬＬ３０ＧＯＲＬ３０Ｇ（ＤＲＬ３０Ｇ","0.35","0","0","00","00","RA03Z29CGBKM700.3500","BKM70"]
[521,"RA03Z51BKM70.350000000","RA03Z51","ＲＡ－３　棟面戸","CG",0,190,null,null,263.15548999999999,null,null,null,null,0,null,null,null,null,0,null,null,null,null,0,null,null,null,null,0,null,null,null,null,0,null,null,null,null,0,null,null,null,null,0,null,null,null,null,0,null,null,null,null,0,null,null,null,null,0,null,null,null,null,0,null,null,null,null,0,null,null,null,null,0,null,null,null,null,0,null,null,null,null,0,null,null,null,null,0,null,null,null,null,0,null,null,null,null,0,null,null,null,null,0,null,null,null,null,0,null,"BKM70.350000000","BKM70 サンライトＧＬＬ３０ＧＯＲＬ３０Ｇ（ＤＲＬ３０Ｇ","0.35","0","0","00","00","RA03Z51CGBKM700.3500","BKM70"]
[524,"RA03Z51GRBW0.350000000","RA03Z51","ＲＡ－３　棟面戸","CG",0,24,null,null,302.25342000000001,null,null,null,null,0,null,null,null,null,0,null,null,null,null,0,null,null,null,null,0,null,null,null,null,0,null,null,null,null,0,null,null,null,null,0,null,null,null,null,0,null,null,null,null,0,null,null,null,null,0,null,null,null,null,0,null,null,null,null,0,null,null,null,null,0,null,null,null,null,0,null,null,null,null,0,null,null,null,null,0,null,null,null,null,0,null,null,null,null,0,null,null,null,null,0,null,null,null,null,0,null,"GRBW0.350000000","GRBW0 サンライトＧＬＤＲＧ３０Ｇモスグリーン","0.35","0","0","00","00","RA03Z51CGGRBW00.3500","GRBW0"]
[527,"RA03Z53GL7Y0.350000000","RA03Z53","ＲＡ－３　軒先面戸Ⅱ（５０個入／袋）","CG",0,93,null,null,1072.2197799999999,null,null,null,null,0,null,null,null,null,0,null,null,null,null,0,null,null,null,null,0,null,null,null,null,0,null,null,null,null,0,null,null,null,null,0,null,null,null,null,0,null,null,null,null,0,null,null,null,null,0,null,null,null,null,0,null,null,null,null,0,null,null,null,null,0,null,null,null,null,0,null,null,null,null,0,null,null,null,null,0,null,null,null,null,0,null,null,null,null,0,null,null,null,null,0,null,null,null,null,0,null,"GL7Y0.350000000","GL7Y0 サンライトＧＬＭ３０Ｇメタリックグレー（Ｍ）","0.35","0","0","00","00","RA03Z53CGGL7Y00.3500","GL7Y0"]
[529,"RA03ZE0BKM70.3535345K0","RA03ZE0","ＲＡ－３　本体巻取コイル（本）","CG",33,263,null,null,15669.964840000001,196,0,0,33,33,null,null,null,null,0,null,null,null,null,0,null,null,null,null,0,null,null,null,null,0,null,null,null,null,0,null,null,null,null,0,null,null,null,null,0,null,null,null,null,0,null,null,null,null,0,null,null,null,null,0,null,null,null,null,0,null,null,null,null,0,null,null,null,null,0,null,null,null,null,0,null,null,null,null,0,null,null,null,null,0,null,null,null,null,0,null,null,null,null,0,null,null,null,null,0,null,"BKM70.3535345K0","BKM70 サンライトＧＬＬ３０ＧＯＲＬ３０Ｇ（ＤＲＬ３０Ｇ","0.35","353","45000","00","00","RA03ZE0CGBKM700.3535345000","BKM70"]
[532,"RA03ZE0GRBW0.3535345K0","RA03ZE0","ＲＡ－３　本体巻取コイル（本）","CG",34,34,null,null,14719.55,193,0,0,34,34,null,null,null,null,0,null,null,null,null,0,null,null,null,null,0,null,null,null,null,0,null,null,null,null,0,null,null,null,null,0,null,null,null,null,0,null,null,null,null,0,null,null,null,null,0,null,null,null,null,0,null,null,null,null,0,null,null,null,null,0,null,null,null,null,0,null,null,null,null,0,null,null,null,null,0,null,null,null,null,0,null,null,null,null,0,null,null,null,null,0,null,null,null,null,0,null,"GRBW0.3535345K0","GRBW0 サンライトＧＬＤＲＧ３０Ｇモスグリーン","0.35","353","45000","00","00","RA03ZE0CGGRBW00.3535345000","GRBW0"]
[534,"RA03ZE2BWV00.3535315K0","RA03ZE2","ＲＡ－３　本体・役物兼用コイル（１５ｍ）","CG",12,15,null,null,4897.73171,192,0,0,12,12,null,null,null,null,0,null,null,null,null,0,null,null,null,null,0,null,null,null,null,0,null,null,null,null,0,null,null,null,null,0,null,null,null,null,0,null,null,null,null,0,null,null,null,null,0,null,null,null,null,0,null,null,null,null,0,null,null,null,null,0,null,null,null,null,0,null,null,null,null,0,null,null,null,null,0,null,null,null,null,0,null,null,null,null,0,null,null,null,null,0,null,null,null,null,0,null,"BWV00.3535315K0","BWV00 サンライトＧＬＤＲＮ３０Ｇ　茶","0.35","353","15000","00","00","RA03ZE2CGBWV000.3535315000","BWV00"]
[535,"RA03ZE2GL7Y0.3535315K0","RA03ZE2","ＲＡ－３　本体・役物兼用コイル（１５ｍ）","CG",4,10,null,null,5013.5122000000001,190,0,0,4,4,null,null,null,null,0,null,null,null,null,0,null,null,null,null,0,null,null,null,null,0,null,null,null,null,0,null,null,null,null,0,null,null,null,null,0,null,null,null,null,0,null,null,null,null,0,null,null,null,null,0,null,null,null,null,0,null,null,null,null,0,null,null,null,null,0,null,null,null,null,0,null,null,null,null,0,null,null,null,null,0,null,null,null,null,0,null,null,null,null,0,null,null,null,null,0,null,"GL7Y0.3535315K0","GL7Y0 サンライトＧＬＭ３０Ｇメタリックグレー（Ｍ）","0.35","353","15000","00","00","RA03ZE2CGGL7Y00.3535315000","GL7Y0"]
[539,"RA03ZU0000004.80000450","RA03ZU0","ＲＡ－３　吊子固定用ビス","00",0,33,null,null,1267.7375,null,null,null,null,0,null,null,null,null,0,null,null,null,null,0,null,null,null,null,0,null,null,null,null,0,null,null,null,null,0,null,null,null,null,0,null,null,null,null,0,null,null,null,null,0,null,null,null,null,0,null,null,null,null,0,null,null,null,null,0,null,null,null,null,0,null,null,null,null,0,null,null,null,null,0,null,null,null,null,0,null,null,null,null,0,null,null,null,null,0,null,null,null,null,0,null,null,null,null,0,null,"000004.80000450","00000","4.80","0","45","00","00","RA03ZU000000004.80045","00000"]
[541,"RA03ZU1BKRA30000000000","RA03ZU1","ＲＡ－３　軒先面戸固定用ビス（１００本入","00",0,289,null,null,840,null,null,null,null,0,null,null,null,null,0,null,null,null,null,0,null,null,null,null,0,null,null,null,null,0,null,null,null,null,0,null,null,null,null,0,null,null,null,null,0,null,null,null,null,0,null,null,null,null,0,null,null,null,null,0,null,null,null,null,0,null,null,null,null,0,null,null,null,null,0,null,null,null,null,0,null,null,null,null,0,null,null,null,null,0,null,null,null,null,0,null,null,null,null,0,null,null,null,null,0,null,"BKRA30000000000","BKRA3 ＲＡ－３軒先面戸　黒","0.00","0","0","00","00","RA03ZU100BKRA30.0000","BKRA3"]
[544,"RA03ZU1GRRA30000000000","RA03ZU1","ＲＡ－３　軒先面戸固定用ビス（１００本入","00",0,122,null,null,840,null,null,null,null,0,null,null,null,null,0,null,null,null,null,0,null,null,null,null,0,null,null,null,null,0,null,null,null,null,0,null,null,null,null,0,null,null,null,null,0,null,null,null,null,0,null,null,null,null,0,null,null,null,null,0,null,null,null,null,0,null,null,null,null,0,null,null,null,null,0,null,null,null,null,0,null,null,null,null,0,null,null,null,null,0,null,null,null,null,0,null,null,null,null,0,null,null,null,null,0,null,"GRRA30000000000","GRRA3 ＲＡ－３　軒先面戸　モスグリーン","0.00","0","0","00","00","RA03ZU100GRRA30.0000","GRRA3"]
[547,"RTTSA05000000000000000","RTTSA05","ＴＳＡＲタルキ固定バンド","MF",0,1236,null,null,12.555020000000001,null,null,null,null,0,null,null,null,null,0,null,null,null,null,0,null,null,null,null,0,null,null,null,null,0,null,null,null,null,0,null,null,null,null,0,null,null,null,null,0,null,null,null,null,0,null,null,null,null,0,null,null,null,null,0,null,null,null,null,0,null,null,null,null,0,null,null,null,null,0,null,null,null,null,0,null,null,null,null,0,null,null,null,null,0,null,null,null,null,0,null,null,null,null,0,null,null,null,null,0,null,"000000000000000","00000","0.00","0","0","00","00","RTTSA05MF000000.0000","00000"]
[549,"RTTSA0800000000000K180","RTTSA08","耐火用タルキカバー（ＴＳＡ用）","CF",0,139,null,null,1368.07194,null,null,null,null,0,null,null,null,null,0,null,null,null,null,0,null,null,null,null,0,null,null,null,null,0,null,null,null,null,0,null,null,null,null,0,null,null,null,null,0,null,null,null,null,0,null,null,null,null,0,null,null,null,null,0,null,null,null,null,0,null,null,null,null,0,null,null,null,null,0,null,null,null,null,0,null,null,null,null,0,null,null,null,null,0,null,null,null,null,0,null,null,null,null,0,null,null,null,null,0,null,"00000000000K180","00000","0.00","0","1860","00","00","RTTSA08CF000000.0001860","00000"]
[552,"RTTSA13000000000000000","RTTSA13","タルキ固定金具　打込キー","MF",0,1496,null,null,6.6452900000000001,null,null,null,null,0,null,null,null,null,0,null,null,null,null,0,null,null,null,null,0,null,null,null,null,0,null,null,null,null,0,null,null,null,null,0,null,null,null,null,0,null,null,null,null,0,null,null,null,null,0,null,null,null,null,0,null,null,null,null,0,null,null,null,null,0,null,null,null,null,0,null,null,null,null,0,null,null,null,null,0,null,null,null,null,0,null,null,null,null,0,null,null,null,null,0,null,null,null,null,0,null,"000000000000000","00000","0.00","0","0","00","00","RTTSA13MF000000.0000","00000"]
[553,"RTTSA13000000000000001","RTTSA13","タルキ固定金具　打込キー","NS",0,3334,null,null,15.64367,null,null,null,null,0,null,null,null,null,0,null,null,null,null,0,null,null,null,null,0,null,null,null,null,0,null,null,null,null,0,null,null,null,null,0,null,null,null,null,0,null,null,null,null,0,null,null,null,null,0,null,null,null,null,0,null,null,null,null,0,null,null,null,null,0,null,null,null,null,0,null,null,null,null,0,null,null,null,null,0,null,null,null,null,0,null,null,null,null,0,null,null,null,null,0,null,null,null,null,0,null,"000000000000001","00000","0.00","0","0","00","00","RTTSA13NS000000.0000","00000"]
[556,"RTTSD03000000000000000","RTTSD03","ＴＳＤタルキ継手","MF",0,295,null,null,48.931649999999998,null,null,null,null,0,null,null,null,null,0,null,null,null,null,0,null,null,null,null,0,null,null,null,null,0,null,null,null,null,0,null,null,null,null,0,null,null,null,null,0,null,null,null,null,0,null,null,null,null,0,null,null,null,null,0,null,null,null,null,0,null,null,null,null,0,null,null,null,null,0,null,null,null,null,0,null,null,null,null,0,null,null,null,null,0,null,null,null,null,0,null,null,null,null,0,null,null,null,null,0,null,"000000000000000","00000","0.00","0","0","00","00","RTTSD03MF000000.0000","00000"]
[559,"RTTWS01000000000000000","RTTWS01","ＴＷＳ複合タルキ継手","MF",0,282,null,null,40.003549999999997,null,null,null,null,0,null,null,null,null,0,null,null,null,null,0,null,null,null,null,0,null,null,null,null,0,null,null,null,null,0,null,null,null,null,0,null,null,null,null,0,null,null,null,null,0,null,null,null,null,0,null,null,null,null,0,null,null,null,null,0,null,null,null,null,0,null,null,null,null,0,null,null,null,null,0,null,null,null,null,0,null,null,null,null,0,null,null,null,null,0,null,null,null,null,0,null,null,null,null,0,null,"000000000000000","00000","0.00","0","0","00","00","RTTWS01MF000000.0000","00000"]
[561,"RTTWZ0000000000000K500","RTTWZ00","ＴＷ複合タルキ（爪無）","MF",0,99,null,null,1611.75758,null,null,null,null,0,null,null,null,null,0,null,null,null,null,0,null,null,null,null,0,null,null,null,null,0,null,null,null,null,0,null,null,null,null,0,null,null,null,null,0,null,null,null,null,0,null,null,null,null,0,null,null,null,null,0,null,null,null,null,0,null,null,null,null,0,null,null,null,null,0,null,null,null,null,0,null,null,null,null,0,null,null,null,null,0,null,null,null,null,0,null,null,null,null,0,null,null,null,null,0,null,"00000000000K500","00000","0.00","0","5000","00","00","RTTWZ00MF000000.0005000","00000"]
[564,"RTWRZ0000000000000K500","RTWRZ00","ＷＲダブルラフター（爪無）","MF",0,13,null,null,1619.6923099999999,null,null,null,null,0,null,null,null,null,0,null,null,null,null,0,null,null,null,null,0,null,null,null,null,0,null,null,null,null,0,null,null,null,null,0,null,null,null,null,0,null,null,null,null,0,null,null,null,null,0,null,null,null,null,0,null,null,null,null,0,null,null,null,null,0,null,null,null,null,0,null,null,null,null,0,null,null,null,null,0,null,null,null,null,0,null,null,null,null,0,null,null,null,null,0,null,null,null,null,0,null,"00000000000K500","00000","0.00","0","5000","00","00","RTWRZ00MF000000.0005000","00000"]
[566,"SAR1A00SR0101.22K010K0","SAR1A00","サーナＳ３２７－１２Ｌ（幅２ｍ）","00",0,154,null,null,22562.636900000001,null,null,null,null,0,null,null,null,null,0,null,null,null,null,0,null,null,null,null,0,null,null,null,null,0,null,null,null,null,0,null,null,null,null,0,null,null,null,null,0,null,null,null,null,0,null,null,null,null,0,null,null,null,null,0,null,null,null,null,0,null,null,null,null,0,null,null,null,null,0,null,null,null,null,0,null,null,null,null,0,null,null,null,null,0,null,null,null,null,0,null,null,null,null,0,null,null,null,null,0,null,"SR0101.22K010K0","SR010 ＮＲ．９５２５　ＳＴＡＮＤＡＲＤ　ＧＲＥＹ（ライ","1.20","2000","10000","00","00","SAR1A0000SR0101.20200010000","SR010"]
[570,"SAR1A02SR0101.220010K0","SAR1A02","サーナＳ３２７－１２Ｌ増張","00",0,158,null,null,9821.3312499999993,null,null,null,null,0,null,null,null,null,0,null,null,null,null,0,null,null,null,null,0,null,null,null,null,0,null,null,null,null,0,null,null,null,null,0,null,null,null,null,0,null,null,null,null,0,null,null,null,null,0,null,null,null,null,0,null,null,null,null,0,null,null,null,null,0,null,null,null,null,0,null,null,null,null,0,null,null,null,null,0,null,null,null,null,0,null,null,null,null,0,null,null,null,null,0,null,null,null,null,0,null,"SR0101.220010K0","SR010 ＮＲ．９５２５　ＳＴＡＮＤＡＲＤ　ＧＲＥＹ（ライ","1.20","200","10000","00","00","SAR1A0200SR0101.2020010000","SR010"]
[571,"SAR1A02SR0201.220010K0","SAR1A02","サーナＳ３２７－１２Ｌ増張","00",0,118,null,null,8707.9669400000002,null,null,null,null,0,null,null,null,null,0,null,null,null,null,0,null,null,null,null,0,null,null,null,null,0,null,null,null,null,0,null,null,null,null,0,null,null,null,null,0,null,null,null,null,0,null,null,null,null,0,null,null,null,null,0,null,null,null,null,0,null,null,null,null,0,null,null,null,null,0,null,null,null,null,0,null,null,null,null,0,null,null,null,null,0,null,null,null,null,0,null,null,null,null,0,null,null,null,null,0,null,"SR0201.220010K0","SR020 ＮＲ．９５００　ＬＥＡＤ　ＧＲＥＹ（ダークグレー","1.20","200","10000","00","00","SAR1A0200SR0201.2020010000","SR020"]
[573,"SAR1A05SR0101.520010K0","SAR1A05","サーナＳ３２７－１５Ｌ増張","00",0,16,null,null,7311.875,null,null,null,null,0,null,null,null,null,0,null,null,null,null,0,null,null,null,null,0,null,null,null,null,0,null,null,null,null,0,null,null,null,null,0,null,null,null,null,0,null,null,null,null,0,null,null,null,null,0,null,null,null,null,0,null,null,null,null,0,null,null,null,null,0,null,null,null,null,0,null,null,null,null,0,null,null,null,null,0,null,null,null,null,0,null,null,null,null,0,null,null,null,null,0,null,null,null,null,0,null,"SR0101.520010K0","SR010 ＮＲ．９５２５　ＳＴＡＮＤＡＲＤ　ＧＲＥＹ（ライ","1.50","200","10000","00","00","SAR1A0500SR0101.5020010000","SR010"]
[576,"SAR1A08SR0201.520010K0","SAR1A08","サーナＧ４１０－１５Ｌ","00",0,4,null,null,6062,null,null,null,null,0,null,null,null,null,0,null,null,null,null,0,null,null,null,null,0,null,null,null,null,0,null,null,null,null,0,null,null,null,null,0,null,null,null,null,0,null,null,null,null,0,null,null,null,null,0,null,null,null,null,0,null,null,null,null,0,null,null,null,null,0,null,null,null,null,0,null,null,null,null,0,null,null,null,null,0,null,null,null,null,0,null,null,null,null,0,null,null,null,null,0,null,null,null,null,0,null,"SR0201.520010K0","SR020 ＮＲ．９５００　ＬＥＡＤ　ＧＲＥＹ（ダークグレー","1.50","200","10000","00","00","SAR1A0800SR0201.5020010000","SR020"]
[579,"SAR1A17SR0201.2K0020K0","SAR1A17","サーナＳ３２７－１２ＥＬ（幅１ｍ）","00",0,2,null,null,30091,null,null,null,null,0,null,null,null,null,0,null,null,null,null,0,null,null,null,null,0,null,null,null,null,0,null,null,null,null,0,null,null,null,null,0,null,null,null,null,0,null,null,null,null,0,null,null,null,null,0,null,null,null,null,0,null,null,null,null,0,null,null,null,null,0,null,null,null,null,0,null,null,null,null,0,null,null,null,null,0,null,null,null,null,0,null,null,null,null,0,null,null,null,null,0,null,null,null,null,0,null,"SR0201.2K0020K0","SR020 ＮＲ．９５００　ＬＥＡＤ　ＧＲＥＹ（ダークグレー","1.20","1000","20000","00","00","SAR1A1700SR0201.20100020000","SR020"]
[581,"SAR1A18SR0201.220020K0","SAR1A18","サーナＳ３２７－１２ＥＬ増張","00",0,5,null,null,10294.200000000001,null,null,null,null,0,null,null,null,null,0,null,null,null,null,0,null,null,null,null,0,null,null,null,null,0,null,null,null,null,0,null,null,null,null,0,null,null,null,null,0,null,null,null,null,0,null,null,null,null,0,null,null,null,null,0,null,null,null,null,0,null,null,null,null,0,null,null,null,null,0,null,null,null,null,0,null,null,null,null,0,null,null,null,null,0,null,null,null,null,0,null,null,null,null,0,null,null,null,null,0,null,"SR0201.220020K0","SR020 ＮＲ．９５００　ＬＥＡＤ　ＧＲＥＹ（ダークグレー","1.20","200","20000","00","00","SAR1A1800SR0201.2020020000","SR020"]
[584,"SAR1B08000000000000000","SAR1B08","ＳＦ－ＦＮ０７５（１００本入）","00",0,41,null,null,1200,null,null,null,null,0,null,null,null,null,0,null,null,null,null,0,null,null,null,null,0,null,null,null,null,0,null,null,null,null,0,null,null,null,null,0,null,null,null,null,0,null,null,null,null,0,null,null,null,null,0,null,null,null,null,0,null,null,null,null,0,null,null,null,null,0,null,null,null,null,0,null,null,null,null,0,null,null,null,null,0,null,null,null,null,0,null,null,null,null,0,null,null,null,null,0,null,null,null,null,0,null,"000000000000000","00000","0.00","0","0","00","00","SAR1B0800000000.0000","00000"]
[586,"SAR1B37000001.00400820","SAR1B37","サーナディスクS　KTL 250個(箱)","MF",0,28,null,null,5487.5,null,null,null,null,0,null,null,null,null,0,null,null,null,null,0,null,null,null,null,0,null,null,null,null,0,null,null,null,null,0,null,null,null,null,0,null,null,null,null,0,null,null,null,null,0,null,null,null,null,0,null,null,null,null,0,null,null,null,null,0,null,null,null,null,0,null,null,null,null,0,null,null,null,null,0,null,null,null,null,0,null,null,null,null,0,null,null,null,null,0,null,null,null,null,0,null,null,null,null,0,null,"000001.00400820","00000","1.00","40","82","00","00","SAR1B37MF000001.004082","00000"]
[590,"SBTKA00000005204520000","SBTKA00","その他部品関連特注製作品ー１","00",120,120,null,null,261.73333000000002,168,0,0,120,120,null,null,null,null,0,null,null,null,null,0,null,null,null,null,0,null,null,null,null,0,null,null,null,null,0,null,null,null,null,0,null,null,null,null,0,null,null,null,null,0,null,null,null,null,0,null,null,null,null,0,null,null,null,null,0,null,null,null,null,0,null,null,null,null,0,null,null,null,null,0,null,null,null,null,0,null,null,null,null,0,null,null,null,null,0,null,null,null,null,0,null,null,null,null,0,null,"000005204520000","00000","520.00","452","0","00","00","SBTKA000000000520.004520","00000"]
[591,"SBTKA00000005290030000","SBTKA00","その他部品関連特注製作品ー１","00",0,213,null,null,11384.42254,null,null,null,null,0,null,null,null,null,0,null,null,null,null,0,null,null,null,null,0,null,null,null,null,0,null,null,null,null,0,null,null,null,null,0,null,null,null,null,0,null,null,null,null,0,null,null,null,null,0,null,null,null,null,0,null,null,null,null,0,null,null,null,null,0,null,null,null,null,0,null,null,null,null,0,null,null,null,null,0,null,null,null,null,0,null,null,null,null,0,null,null,null,null,0,null,null,null,null,0,null,"000005290030000","00000","529.00","3","0","00","00","SBTKA000000000529.0030","00000"]
[593,"SBTKA00000005319900000","SBTKA00","その他部品関連特注製作品ー１","00",0,1140,null,null,3243.2964900000002,null,null,null,null,0,null,null,null,null,0,null,null,null,null,0,null,null,null,null,0,null,null,null,null,0,null,null,null,null,0,null,null,null,null,0,null,null,null,null,0,null,null,null,null,0,null,null,null,null,0,null,null,null,null,0,null,null,null,null,0,null,null,null,null,0,null,null,null,null,0,null,null,null,null,0,null,null,null,null,0,null,null,null,null,0,null,null,null,null,0,null,null,null,null,0,null,null,null,null,0,null,"000005319900000","00000","531.00","990","0","00","00","SBTKA000000000531.009900","00000"]
[596,"SBTKA00000005321010000","SBTKA00","その他部品関連特注製作品ー１","00",0,134,null,null,8815.9403000000002,null,null,null,null,0,null,null,null,null,0,null,null,null,null,0,null,null,null,null,0,null,null,null,null,0,null,null,null,null,0,null,null,null,null,0,null,null,null,null,0,null,null,null,null,0,null,null,null,null,0,null,null,null,null,0,null,null,null,null,0,null,null,null,null,0,null,null,null,null,0,null,null,null,null,0,null,null,null,null,0,null,null,null,null,0,null,null,null,null,0,null,null,null,null,0,null,null,null,null,0,null,"000005321010000","00000","532.00","101","0","00","00","SBTKA000000000532.001010","00000"]
[599,"SBTKA00000005400660000","SBTKA00","その他部品関連特注製作品ー１","00",0,3,null,null,5741.3333300000004,null,null,null,null,0,null,null,null,null,0,null,null,null,null,0,null,null,null,null,0,null,null,null,null,0,null,null,null,null,0,null,null,null,null,0,null,null,null,null,0,null,null,null,null,0,null,null,null,null,0,null,null,null,null,0,null,null,null,null,0,null,null,null,null,0,null,null,null,null,0,null,null,null,null,0,null,null,null,null,0,null,null,null,null,0,null,null,null,null,0,null,null,null,null,0,null,null,null,null,0,null,"000005400660000","00000","540.00","66","0","00","00","SBTKA000000000540.00660","00000"]
[602,"SBTKA00000005401540000","SBTKA00","その他部品関連特注製作品ー１","00",0,315,null,null,580.66349000000002,null,null,null,null,0,null,null,null,null,0,null,null,null,null,0,null,null,null,null,0,null,null,null,null,0,null,null,null,null,0,null,null,null,null,0,null,null,null,null,0,null,null,null,null,0,null,null,null,null,0,null,null,null,null,0,null,null,null,null,0,null,null,null,null,0,null,null,null,null,0,null,null,null,null,0,null,null,null,null,0,null,null,null,null,0,null,null,null,null,0,null,null,null,null,0,null,null,null,null,0,null,"000005401540000","00000","540.00","154","0","00","00","SBTKA000000000540.001540","00000"]
[605,"SBTKB00000005402830000","SBTKB00","その他部品関連特注品ー１","00",0,1000,null,null,135,null,null,null,null,0,null,null,null,null,0,null,null,null,null,0,null,null,null,null,0,null,null,null,null,0,null,null,null,null,0,null,null,null,null,0,null,null,null,null,0,null,null,null,null,0,null,null,null,null,0,null,null,null,null,0,null,null,null,null,0,null,null,null,null,0,null,null,null,null,0,null,null,null,null,0,null,null,null,null,0,null,null,null,null,0,null,null,null,null,0,null,null,null,null,0,null,null,null,null,0,null,"000005402830000","00000","540.00","283","0","00","00","SBTKB000000000540.002830","00000"]
[608,"SNTBP330000000050020K0","SNTBP33","ＴＨ先張防水シート５００（１巻","GA",25,25,null,null,2500,207,0,0,25,25,null,null,null,null,0,null,null,null,null,0,null,null,null,null,0,null,null,null,null,0,null,null,null,null,0,null,null,null,null,0,null,null,null,null,0,null,null,null,null,0,null,null,null,null,0,null,null,null,null,0,null,null,null,null,0,null,null,null,null,0,null,null,null,null,0,null,null,null,null,0,null,null,null,null,0,null,null,null,null,0,null,null,null,null,0,null,null,null,null,0,null,null,null,null,0,null,"0000000050020K0","00000","0.00","500","20000","00","00","SNTBP33GA000000.0050020000","00000"]
[610,"SNTBZ05000000000000000","SNTBZ05","ＳＫ－５５ケラバ唐草取付金具","MF",0,101,null,null,123.0099,null,null,null,null,0,null,null,null,null,0,null,null,null,null,0,null,null,null,null,0,null,null,null,null,0,null,null,null,null,0,null,null,null,null,0,null,null,null,null,0,null,null,null,null,0,null,null,null,null,0,null,null,null,null,0,null,null,null,null,0,null,null,null,null,0,null,null,null,null,0,null,null,null,null,0,null,null,null,null,0,null,null,null,null,0,null,null,null,null,0,null,null,null,null,0,null,null,null,null,0,null,"000000000000000","00000","0.00","0","0","00","00","SNTBZ05MF000000.0000","00000"]
[611,"SNTBZ07CRA90000000K220","SNTBZ07","システム５５用目地棒","CG",0,40,null,null,834.2,null,null,null,null,0,null,null,null,null,0,null,null,null,null,0,null,null,null,null,0,null,null,null,null,0,null,null,null,null,0,null,null,null,null,0,null,null,null,null,0,null,null,null,null,0,null,null,null,null,0,null,null,null,null,0,null,null,null,null,0,null,null,null,null,0,null,null,null,null,0,null,null,null,null,0,null,null,null,null,0,null,null,null,null,0,null,null,null,null,0,null,null,null,null,0,null,null,null,null,0,null,"CRA90000000K220","CRA90 目地棒タルキカバー用アイボリー　ＲＶ０１１","0.00","0","2290","00","00","SNTBZ07CGCRA900.0002290","CRA90"]
[615,"SNTBZ17000003.90000500","SNTBZ17","ＮＴスプーンビス　鉄　シルバー","00",201,201,null,null,1056,62,10,20,1,201,null,null,null,null,0,null,null,null,null,0,null,null,null,null,0,null,null,null,null,0,null,null,null,null,0,null,null,null,null,0,null,null,null,null,0,null,null,null,null,0,null,null,null,null,0,null,null,null,null,0,null,null,null,null,0,null,null,null,null,0,null,null,null,null,0,null,null,null,null,0,null,null,null,null,0,null,null,null,null,0,null,null,null,null,0,null,null,null,null,0,null,null,null,null,0,null,"000003.90000500","00000","3.90","0","50","00","00","SNTBZ1700000003.90050","00000"]
[616,"SNTBZ18000000000040190","SNTBZ18","トルネードポイントビス（ＳＵＳ","NS",0,318,null,null,5139.5504600000004,null,null,null,null,0,null,null,null,null,0,null,null,null,null,0,null,null,null,null,0,null,null,null,null,0,null,null,null,null,0,null,null,null,null,0,null,null,null,null,0,null,null,null,null,0,null,null,null,null,0,null,null,null,null,0,null,null,null,null,0,null,null,null,null,0,null,null,null,null,0,null,null,null,null,0,null,null,null,null,0,null,null,null,null,0,null,null,null,null,0,null,null,null,null,0,null,null,null,null,0,null,"000000000040190","00000","0.00","4","19","00","00","SNTBZ18NS000000.00419","00000"]
[620,"SNTBZ28000000000000000","SNTBZ28","レベル調整金具（Ｍ１０）","MF",0,2194,null,null,102.85997999999999,null,null,null,null,0,null,null,null,null,0,null,null,null,null,0,null,null,null,null,0,null,null,null,null,0,null,null,null,null,0,null,null,null,null,0,null,null,null,null,0,null,null,null,null,0,null,null,null,null,0,null,null,null,null,0,null,null,null,null,0,null,null,null,null,0,null,null,null,null,0,null,null,null,null,0,null,null,null,null,0,null,null,null,null,0,null,null,null,null,0,null,null,null,null,0,null,null,null,null,0,null,"000000000000000","00000","0.00","0","0","00","00","SNTBZ28MF000000.0000","00000"]
[622,"SOLA039000000000000000","SOLA039","Ｍ８ｘ２０Ｂ・Ｎ（５０セット）","NS",0,190,null,null,994.07083999999998,null,null,null,null,0,null,null,null,null,0,null,null,null,null,0,null,null,null,null,0,null,null,null,null,0,null,null,null,null,0,null,null,null,null,0,null,null,null,null,0,null,null,null,null,0,null,null,null,null,0,null,null,null,null,0,null,null,null,null,0,null,null,null,null,0,null,null,null,null,0,null,null,null,null,0,null,null,null,null,0,null,null,null,null,0,null,null,null,null,0,null,null,null,null,0,null,null,null,null,0,null,"000000000000000","00000","0.00","0","0","00","00","SOLA039NS000000.0000","00000"]
[625,"SOLA042000000000000000","SOLA042","Ｍ８ｘ３０Ｂ・Ｎ（２００セット）","NS",139,139,null,null,3270.7178199999998,17,0,0,39,39,18,0,0,100,100,null,null,null,null,0,null,null,null,null,0,null,null,null,null,0,null,null,null,null,0,null,null,null,null,0,null,null,null,null,0,null,null,null,null,0,null,null,null,null,0,null,null,null,null,0,null,null,null,null,0,null,null,null,null,0,null,null,null,null,0,null,null,null,null,0,null,null,null,null,0,null,null,null,null,0,null,null,null,null,0,null,null,null,null,0,null,null,null,null,0,null,"000000000000000","00000","0.00","0","0","00","00","SOLA042NS000000.0000","00000"]
[628,"SOLA047000000000000000","SOLA047","Ｍ６ｘ２５Ｂ・Ｎ（２００セット）","NS",18,18,null,null,1857.55556,20,0,0,18,18,null,null,null,null,0,null,null,null,null,0,null,null,null,null,0,null,null,null,null,0,null,null,null,null,0,null,null,null,null,0,null,null,null,null,0,null,null,null,null,0,null,null,null,null,0,null,null,null,null,0,null,null,null,null,0,null,null,null,null,0,null,null,null,null,0,null,null,null,null,0,null,null,null,null,0,null,null,null,null,0,null,null,null,null,0,null,null,null,null,0,null,null,null,null,0,null,"000000000000000","00000","0.00","0","0","00","00","SOLA047NS000000.0000","00000"]
[630,"SOLA051BKBK00000000000","SOLA051","Ｍ６ｘ３０Ｂ・Ｎ（５０Ｓ長孔用）","NS",8,8,null,null,1432.8666700000001,14,0,0,8,8,null,null,null,null,0,null,null,null,null,0,null,null,null,null,0,null,null,null,null,0,null,null,null,null,0,null,null,null,null,0,null,null,null,null,0,null,null,null,null,0,null,null,null,null,0,null,null,null,null,0,null,null,null,null,0,null,null,null,null,0,null,null,null,null,0,null,null,null,null,0,null,null,null,null,0,null,null,null,null,0,null,null,null,null,0,null,null,null,null,0,null,null,null,null,0,null,"BKBK00000000000","BKBK0 黒（ブラック）","0.00","0","0","00","00","SOLA051NSBKBK00.0000","BKBK0"]
[631,"SOLA052BKBK00000000000","SOLA052","Ｍ６ｘ２５Ｂ・Ｎ（２００Ｓ長孔用）","NS",0,6,null,null,6686.9375,null,null,null,null,0,null,null,null,null,0,null,null,null,null,0,null,null,null,null,0,null,null,null,null,0,null,null,null,null,0,null,null,null,null,0,null,null,null,null,0,null,null,null,null,0,null,null,null,null,0,null,null,null,null,0,null,null,null,null,0,null,null,null,null,0,null,null,null,null,0,null,null,null,null,0,null,null,null,null,0,null,null,null,null,0,null,null,null,null,0,null,null,null,null,0,null,null,null,null,0,null,"BKBK00000000000","BKBK0 黒（ブラック）","0.00","0","0","00","00","SOLA052NSBKBK00.0000","BKBK0"]
[635,"SOLA063BKBK00000000000","SOLA063","Ｍ６ｘ４０ＢＮ（５０Ｓ長孔用）","NS",15,15,null,null,1655.92308,15,0,0,15,15,null,null,null,null,0,null,null,null,null,0,null,null,null,null,0,null,null,null,null,0,null,null,null,null,0,null,null,null,null,0,null,null,null,null,0,null,null,null,null,0,null,null,null,null,0,null,null,null,null,0,null,null,null,null,0,null,null,null,null,0,null,null,null,null,0,null,null,null,null,0,null,null,null,null,0,null,null,null,null,0,null,null,null,null,0,null,null,null,null,0,null,null,null,null,0,null,"BKBK00000000000","BKBK0 黒（ブラック）","0.00","0","0","00","00","SOLA063NSBKBK00.0000","BKBK0"]
[636,"SOLA065BKBK00000000000","SOLA065","Ｍ６ｘ４０ＢＮ（２００Ｓ長孔用）","NS",1,1,null,null,6200,24,0,0,1,1,null,null,null,null,0,null,null,null,null,0,null,null,null,null,0,null,null,null,null,0,null,null,null,null,0,null,null,null,null,0,null,null,null,null,0,null,null,null,null,0,null,null,null,null,0,null,null,null,null,0,null,null,null,null,0,null,null,null,null,0,null,null,null,null,0,null,null,null,null,0,null,null,null,null,0,null,null,null,null,0,null,null,null,null,0,null,null,null,null,0,null,null,null,null,0,null,"BKBK00000000000","BKBK0 黒（ブラック）","0.00","0","0","00","00","SOLA065NSBKBK00.0000","BKBK0"]
[640,"SOLA201SG030000000K500","SOLA201","横桟Ｂ","OA",0,113,null,null,2594.1832599999998,null,null,null,null,0,null,null,null,null,0,null,null,null,null,0,null,null,null,null,0,null,null,null,null,0,null,null,null,null,0,null,null,null,null,0,null,null,null,null,0,null,null,null,null,0,null,null,null,null,0,null,null,null,null,0,null,null,null,null,0,null,null,null,null,0,null,null,null,null,0,null,null,null,null,0,null,null,null,null,0,null,null,null,null,0,null,null,null,null,0,null,null,null,null,0,null,null,null,null,0,null,"SG030000000K500","SG030 アルマイト処理","0.00","0","5000","00","00","SOLA201OASG0300.0005000","SG030"]
[642,"SOLA202SG030000000K170","SOLA202","下桟","OA",0,35,null,null,1382,null,null,null,null,0,null,null,null,null,0,null,null,null,null,0,null,null,null,null,0,null,null,null,null,0,null,null,null,null,0,null,null,null,null,0,null,null,null,null,0,null,null,null,null,0,null,null,null,null,0,null,null,null,null,0,null,null,null,null,0,null,null,null,null,0,null,null,null,null,0,null,null,null,null,0,null,null,null,null,0,null,null,null,null,0,null,null,null,null,0,null,null,null,null,0,null,null,null,null,0,null,"SG030000000K170","SG030 アルマイト処理","0.00","0","1750","00","00","SOLA202OASG0300.0001750","SG030"]
[646,"SOLA210000000000000000","SOLA210","支持金具Ｂ先付ＧＲ８００","NS",0,460,null,null,608.08478000000002,null,null,null,null,0,null,null,null,null,0,null,null,null,null,0,null,null,null,null,0,null,null,null,null,0,null,null,null,null,0,null,null,null,null,0,null,null,null,null,0,null,null,null,null,0,null,null,null,null,0,null,null,null,null,0,null,null,null,null,0,null,null,null,null,0,null,null,null,null,0,null,null,null,null,0,null,null,null,null,0,null,null,null,null,0,null,null,null,null,0,null,null,null,null,0,null,null,null,null,0,null,"000000000000000","00000","0.00","0","0","00","00","SOLA210NS000000.0000","00000"]
[647,"SOLA211000000000000000","SOLA211","支持金具Ｂ先付ＧＲ８５０","NS",0,357,null,null,560,null,null,null,null,0,null,null,null,null,0,null,null,null,null,0,null,null,null,null,0,null,null,null,null,0,null,null,null,null,0,null,null,null,null,0,null,null,null,null,0,null,null,null,null,0,null,null,null,null,0,null,null,null,null,0,null,null,null,null,0,null,null,null,null,0,null,null,null,null,0,null,null,null,null,0,null,null,null,null,0,null,null,null,null,0,null,null,null,null,0,null,null,null,null,0,null,null,null,null,0,null,"000000000000000","00000","0.00","0","0","00","00","SOLA211NS000000.0000","00000"]
[651,"SOLA231SG0400000000000","SOLA231","重ね式折板取付金具Ｃ１","NS",6885,11685,null,null,219.37764999999999,183,60,40,0,2400,184,60,40,0,2400,185,60,34,45,2085,null,null,null,null,0,null,null,null,null,0,null,null,null,null,0,null,null,null,null,0,null,null,null,null,0,null,null,null,null,0,null,null,null,null,0,null,null,null,null,0,null,null,null,null,0,null,null,null,null,0,null,null,null,null,0,null,null,null,null,0,null,null,null,null,0,null,null,null,null,0,null,null,null,null,0,null,null,null,null,0,null,null,null,null,0,null,"SG0400000000000","SG040 ステンレス素地","0.00","0","0","00","00","SOLA231NSSG0400.0000","SG040"]
[652,"SOLA250SG0400000000000","SOLA250","重ね式折板取付金具Ａ２","NS",0,3263,null,null,196.93165999999999,null,null,null,null,0,null,null,null,null,0,null,null,null,null,0,null,null,null,null,0,null,null,null,null,0,null,null,null,null,0,null,null,null,null,0,null,null,null,null,0,null,null,null,null,0,null,null,null,null,0,null,null,null,null,0,null,null,null,null,0,null,null,null,null,0,null,null,null,null,0,null,null,null,null,0,null,null,null,null,0,null,null,null,null,0,null,null,null,null,0,null,null,null,null,0,null,null,null,null,0,null,"SG0400000000000","SG040 ステンレス素地","0.00","0","0","00","00","SOLA250NSSG0400.0000","SG040"]
[654,"SOLA252SG0400000000000","SOLA252","重ね式折板取付金具Ｃ２","NS",0,9672,null,null,193.29777999999999,null,null,null,null,0,null,null,null,null,0,null,null,null,null,0,null,null,null,null,0,null,null,null,null,0,null,null,null,null,0,null,null,null,null,0,null,null,null,null,0,null,null,null,null,0,null,null,null,null,0,null,null,null,null,0,null,null,null,null,0,null,null,null,null,0,null,null,null,null,0,null,null,null,null,0,null,null,null,null,0,null,null,null,null,0,null,null,null,null,0,null,null,null,null,0,null,null,null,null,0,null,"SG0400000000000","SG040 ステンレス素地","0.00","0","0","00","00","SOLA252NSSG0400.0000","SG040"]
[657,"SOLA300000000000000000","SOLA300","簡易接地プレートⅡ","00",0,7017,null,null,24.624089999999999,null,null,null,null,0,null,null,null,null,0,null,null,null,null,0,null,null,null,null,0,null,null,null,null,0,null,null,null,null,0,null,null,null,null,0,null,null,null,null,0,null,null,null,null,0,null,null,null,null,0,null,null,null,null,0,null,null,null,null,0,null,null,null,null,0,null,null,null,null,0,null,null,null,null,0,null,null,null,null,0,null,null,null,null,0,null,null,null,null,0,null,null,null,null,0,null,null,null,null,0,null,"000000000000000","00000","0.00","0","0","00","00","SOLA30000000000.0000","00000"]
[660,"SOLA305SG0300000002500","SOLA305","ＧＴ２　支持フレーム","OA",0,18,null,null,797.16666999999995,null,null,null,null,0,null,null,null,null,0,null,null,null,null,0,null,null,null,null,0,null,null,null,null,0,null,null,null,null,0,null,null,null,null,0,null,null,null,null,0,null,null,null,null,0,null,null,null,null,0,null,null,null,null,0,null,null,null,null,0,null,null,null,null,0,null,null,null,null,0,null,null,null,null,0,null,null,null,null,0,null,null,null,null,0,null,null,null,null,0,null,null,null,null,0,null,null,null,null,0,null,"SG0300000002500","SG030 アルマイト処理","0.00","0","250","00","00","SOLA305OASG0300.000250","SG030"]
[662,"SOLA305SG030000000K510","SOLA305","ＧＴ２　支持フレーム","OA",0,398,null,null,4566.11805,null,null,null,null,0,null,null,null,null,0,null,null,null,null,0,null,null,null,null,0,null,null,null,null,0,null,null,null,null,0,null,null,null,null,0,null,null,null,null,0,null,null,null,null,0,null,null,null,null,0,null,null,null,null,0,null,null,null,null,0,null,null,null,null,0,null,null,null,null,0,null,null,null,null,0,null,null,null,null,0,null,null,null,null,0,null,null,null,null,0,null,null,null,null,0,null,null,null,null,0,null,"SG030000000K510","SG030 アルマイト処理","0.00","0","5100","00","00","SOLA305OASG0300.0005100","SG030"]
[666,"SOLA412SG0400000000000","SOLA412","横葺ＰＶ金具ＧＲ－８５０／ＢＲ－７","NS",429,429,null,null,748.47880999999995,69,25,1,4,29,70,25,16,0,400,null,null,null,null,0,null,null,null,null,0,null,null,null,null,0,null,null,null,null,0,null,null,null,null,0,null,null,null,null,0,null,null,null,null,0,null,null,null,null,0,null,null,null,null,0,null,null,null,null,0,null,null,null,null,0,null,null,null,null,0,null,null,null,null,0,null,null,null,null,0,null,null,null,null,0,null,null,null,null,0,null,null,null,null,0,null,null,null,null,0,null,"SG0400000000000","SG040 ステンレス素地","0.00","0","0","00","00","SOLA412NSSG0400.0000","SG040"]
[667,"SOLA413SG0400000000000","SOLA413","横葺ＰＶ金具ＧＲ－８００／ＢＲ－１０","NS",944,944,null,null,760.50318000000004,68,40,23,24,944,null,null,null,null,0,null,null,null,null,0,null,null,null,null,0,null,null,null,null,0,null,null,null,null,0,null,null,null,null,0,null,null,null,null,0,null,null,null,null,0,null,null,null,null,0,null,null,null,null,0,null,null,null,null,0,null,null,null,null,0,null,null,null,null,0,null,null,null,null,0,null,null,null,null,0,null,null,null,null,0,null,null,null,null,0,null,null,null,null,0,null,null,null,null,0,null,"SG0400000000000","SG040 ステンレス素地","0.00","0","0","00","00","SOLA413NSSG0400.0000","SG040"]
[671,"SOLA420SG0400000000000","SOLA420","ＴＲＸ－６　スペーサＬ１２","NS",0,322,null,null,27,null,null,null,null,0,null,null,null,null,0,null,null,null,null,0,null,null,null,null,0,null,null,null,null,0,null,null,null,null,0,null,null,null,null,0,null,null,null,null,0,null,null,null,null,0,null,null,null,null,0,null,null,null,null,0,null,null,null,null,0,null,null,null,null,0,null,null,null,null,0,null,null,null,null,0,null,null,null,null,0,null,null,null,null,0,null,null,null,null,0,null,null,null,null,0,null,null,null,null,0,null,"SG0400000000000","SG040 ステンレス素地","0.00","0","0","00","00","SOLA420NSSG0400.0000","SG040"]
[672,"SOLA421SG0400000000000","SOLA421","ＴＲＸ－６　スペーサＬ１３","NS",0,500,null,null,28,null,null,null,null,0,null,null,null,null,0,null,null,null,null,0,null,null,null,null,0,null,null,null,null,0,null,null,null,null,0,null,null,null,null,0,null,null,null,null,0,null,null,null,null,0,null,null,null,null,0,null,null,null,null,0,null,null,null,null,0,null,null,null,null,0,null,null,null,null,0,null,null,null,null,0,null,null,null,null,0,null,null,null,null,0,null,null,null,null,0,null,null,null,null,0,null,null,null,null,0,null,"SG0400000000000","SG040 ステンレス素地","0.00","0","0","00","00","SOLA421NSSG0400.0000","SG040"]
[674,"SOLA423SG0400000000000","SOLA423","ＴＲＸ－６　スペーサＬ１９","NS",0,375,null,null,31,null,null,null,null,0,null,null,null,null,0,null,null,null,null,0,null,null,null,null,0,null,null,null,null,0,null,null,null,null,0,null,null,null,null,0,null,null,null,null,0,null,null,null,null,0,null,null,null,null,0,null,null,null,null,0,null,null,null,null,0,null,null,null,null,0,null,null,null,null,0,null,null,null,null,0,null,null,null,null,0,null,null,null,null,0,null,null,null,null,0,null,null,null,null,0,null,null,null,null,0,null,"SG0400000000000","SG040 ステンレス素地","0.00","0","0","00","00","SOLA423NSSG0400.0000","SG040"]
[677,"SOLA426SG0300000000400","SOLA426","アルミ固定金具中間部用Ⅱ","OA",0,66566,null,null,68.363619999999997,null,null,null,null,0,null,null,null,null,0,null,null,null,null,0,null,null,null,null,0,null,null,null,null,0,null,null,null,null,0,null,null,null,null,0,null,null,null,null,0,null,null,null,null,0,null,null,null,null,0,null,null,null,null,0,null,null,null,null,0,null,null,null,null,0,null,null,null,null,0,null,null,null,null,0,null,null,null,null,0,null,null,null,null,0,null,null,null,null,0,null,null,null,null,0,null,null,null,null,0,null,"SG0300000000400","SG030 アルマイト処理","0.00","0","40","00","00","SOLA426OASG0300.00040","SG030"]
[680,"SOLA429SG0300000000400","SOLA429","アルミ固定金具端部用ⅡＨ３８．５（Ｍ１０","OA",0,4431,null,null,63.310760000000002,null,null,null,null,0,null,null,null,null,0,null,null,null,null,0,null,null,null,null,0,null,null,null,null,0,null,null,null,null,0,null,null,null,null,0,null,null,null,null,0,null,null,null,null,0,null,null,null,null,0,null,null,null,null,0,null,null,null,null,0,null,null,null,null,0,null,null,null,null,0,null,null,null,null,0,null,null,null,null,0,null,null,null,null,0,null,null,null,null,0,null,null,null,null,0,null,null,null,null,0,null,"SG0300000000400","SG030 アルマイト処理","0.00","0","40","00","00","SOLA429OASG0300.00040","SG030"]
[682,"SOLA431SG0300000000400","SOLA431","アルミ固定金具端部用ⅡＨ５０．０（Ｍ１０","OA",0,1646,null,null,62.535409999999999,null,null,null,null,0,null,null,null,null,0,null,null,null,null,0,null,null,null,null,0,null,null,null,null,0,null,null,null,null,0,null,null,null,null,0,null,null,null,null,0,null,null,null,null,0,null,null,null,null,0,null,null,null,null,0,null,null,null,null,0,null,null,null,null,0,null,null,null,null,0,null,null,null,null,0,null,null,null,null,0,null,null,null,null,0,null,null,null,null,0,null,null,null,null,0,null,null,null,null,0,null,"SG0300000000400","SG030 アルマイト処理","0.00","0","40","00","00","SOLA431OASG0300.00040","SG030"]
[686,"SOLA435SG0300000000600","SOLA435","Ｍ８共通固定金具　中間部用","OA",0,16263,null,null,73.447720000000004,null,null,null,null,0,null,null,null,null,0,null,null,null,null,0,null,null,null,null,0,null,null,null,null,0,null,null,null,null,0,null,null,null,null,0,null,null,null,null,0,null,null,null,null,0,null,null,null,null,0,null,null,null,null,0,null,null,null,null,0,null,null,null,null,0,null,null,null,null,0,null,null,null,null,0,null,null,null,null,0,null,null,null,null,0,null,null,null,null,0,null,null,null,null,0,null,null,null,null,0,null,"SG0300000000600","SG030 アルマイト処理","0.00","0","60","00","00","SOLA435OASG0300.00060","SG030"]
[687,"SOLA436SG0300000000600","SOLA436","Ｍ８共通固定金具端部Ｈ３２．０","OA",0,2292,null,null,63.007359999999998,null,null,null,null,0,null,null,null,null,0,null,null,null,null,0,null,null,null,null,0,null,null,null,null,0,null,null,null,null,0,null,null,null,null,0,null,null,null,null,0,null,null,null,null,0,null,null,null,null,0,null,null,null,null,0,null,null,null,null,0,null,null,null,null,0,null,null,null,null,0,null,null,null,null,0,null,null,null,null,0,null,null,null,null,0,null,null,null,null,0,null,null,null,null,0,null,null,null,null,0,null,"SG0300000000600","SG030 アルマイト処理","0.00","0","60","00","00","SOLA436OASG0300.00060","SG030"]
[691,"SOLA444SG0400000000000","SOLA444","重ね式折板取付金具Ａ２　接地用","NS",0,4554,null,null,210.92885000000001,null,null,null,null,0,null,null,null,null,0,null,null,null,null,0,null,null,null,null,0,null,null,null,null,0,null,null,null,null,0,null,null,null,null,0,null,null,null,null,0,null,null,null,null,0,null,null,null,null,0,null,null,null,null,0,null,null,null,null,0,null,null,null,null,0,null,null,null,null,0,null,null,null,null,0,null,null,null,null,0,null,null,null,null,0,null,null,null,null,0,null,null,null,null,0,null,null,null,null,0,null,"SG0400000000000","SG040 ステンレス素地","0.00","0","0","00","00","SOLA444NSSG0400.0000","SG040"]
[692,"SOLA445SG0400000000000","SOLA445","重ね式折板取付金具Ｂ１　接地用","NS",0,2965,null,null,201.70656,null,null,null,null,0,null,null,null,null,0,null,null,null,null,0,null,null,null,null,0,null,null,null,null,0,null,null,null,null,0,null,null,null,null,0,null,null,null,null,0,null,null,null,null,0,null,null,null,null,0,null,null,null,null,0,null,null,null,null,0,null,null,null,null,0,null,null,null,null,0,null,null,null,null,0,null,null,null,null,0,null,null,null,null,0,null,null,null,null,0,null,null,null,null,0,null,null,null,null,0,null,"SG0400000000000","SG040 ステンレス素地","0.00","0","0","00","00","SOLA445NSSG0400.0000","SG040"]
[696,"SOLA449SG0300000000600","SOLA449","下桟受材（付属品付）","OA",0,7704,null,null,43.747779999999999,null,null,null,null,0,null,null,null,null,0,null,null,null,null,0,null,null,null,null,0,null,null,null,null,0,null,null,null,null,0,null,null,null,null,0,null,null,null,null,0,null,null,null,null,0,null,null,null,null,0,null,null,null,null,0,null,null,null,null,0,null,null,null,null,0,null,null,null,null,0,null,null,null,null,0,null,null,null,null,0,null,null,null,null,0,null,null,null,null,0,null,null,null,null,0,null,null,null,null,0,null,"SG0300000000600","SG030 アルマイト処理","0.00","0","60","00","00","SOLA449OASG0300.00060","SG030"]
[698,"SOLA452BW310.600000000","SOLA452","モジュールガイドＭ８ｘ５５ＢＮ","CS",0,3043,null,null,50.155850000000001,null,null,null,null,0,null,null,null,null,0,null,null,null,null,0,null,null,null,null,0,null,null,null,null,0,null,null,null,null,0,null,null,null,null,0,null,null,null,null,0,null,null,null,null,0,null,null,null,null,0,null,null,null,null,0,null,null,null,null,0,null,null,null,null,0,null,null,null,null,0,null,null,null,null,0,null,null,null,null,0,null,null,null,null,0,null,null,null,null,0,null,null,null,null,0,null,null,null,null,0,null,"BW310.600000000","BW310 ＰＣ－ＢＨ（Ｓ－２０１）","0.60","0","0","00","00","SOLA452CSBW3100.6000","BW310"]
[701,"SOLA469SGC200000000000","SOLA469","支持金具ＳＥ","NS",653,653,null,null,321.68943000000002,8,64,10,13,653,null,null,null,null,0,null,null,null,null,0,null,null,null,null,0,null,null,null,null,0,null,null,null,null,0,null,null,null,null,0,null,null,null,null,0,null,null,null,null,0,null,null,null,null,0,null,null,null,null,0,null,null,null,null,0,null,null,null,null,0,null,null,null,null,0,null,null,null,null,0,null,null,null,null,0,null,null,null,null,0,null,null,null,null,0,null,null,null,null,0,null,null,null,null,0,null,"SGC200000000000","SGC20 ＳＵＳ－３０４","0.00","0","0","00","00","SOLA469NSSGC200.0000","SGC20"]
[703,"SOLA472SL090.700000000","SOLA472","架台兼用桟カバー面戸ＳＥ","CA",541,541,null,null,111.70882,7,43,11,68,541,null,null,null,null,0,null,null,null,null,0,null,null,null,null,0,null,null,null,null,0,null,null,null,null,0,null,null,null,null,0,null,null,null,null,0,null,null,null,null,0,null,null,null,null,0,null,null,null,null,0,null,null,null,null,0,null,null,null,null,0,null,null,null,null,0,null,null,null,null,0,null,null,null,null,0,null,null,null,null,0,null,null,null,null,0,null,null,null,null,0,null,null,null,null,0,null,"SL090.700000000","SL090 ＦＷ－１００５シルバー（Ｍ）","0.70","0","0","00","00","SOLA472CASL0900.7000","SL090"]
[706,"SOLA475SG0300000000600","SOLA475","Ｍ８共通固定金具端部Ｈ３４．５ＳＥ","OA",135,135,null,null,77.899199999999993,3,43,3,6,135,null,null,null,null,0,null,null,null,null,0,null,null,null,null,0,null,null,null,null,0,null,null,null,null,0,null,null,null,null,0,null,null,null,null,0,null,null,null,null,0,null,null,null,null,0,null,null,null,null,0,null,null,null,null,0,null,null,null,null,0,null,null,null,null,0,null,null,null,null,0,null,null,null,null,0,null,null,null,null,0,null,null,null,null,0,null,null,null,null,0,null,null,null,null,0,null,"SG0300000000600","SG030 アルマイト処理","0.00","0","60","00","00","SOLA475OASG0300.00060","SG030"]
[709,"SOLA478SG3500000000000","SOLA478","ＭＡ－７Ⅱ　ＰＶ金具","NS",0,20,null,null,704.1,null,null,null,null,0,null,null,null,null,0,null,null,null,null,0,null,null,null,null,0,null,null,null,null,0,null,null,null,null,0,null,null,null,null,0,null,null,null,null,0,null,null,null,null,0,null,null,null,null,0,null,null,null,null,0,null,null,null,null,0,null,null,null,null,0,null,null,null,null,0,null,null,null,null,0,null,null,null,null,0,null,null,null,null,0,null,null,null,null,0,null,null,null,null,0,null,null,null,null,0,null,"SG3500000000000","SG350 ＳＵＳ３０４－２Ｂ","0.00","0","0","00","00","SOLA478NSSG3500.0000","SG350"]
[711,"SOLA480000000000000000","SOLA480","重ね式折板取付金具専用ジグゴム付き","MF",0,59,null,null,530.49153000000001,null,null,null,null,0,null,null,null,null,0,null,null,null,null,0,null,null,null,null,0,null,null,null,null,0,null,null,null,null,0,null,null,null,null,0,null,null,null,null,0,null,null,null,null,0,null,null,null,null,0,null,null,null,null,0,null,null,null,null,0,null,null,null,null,0,null,null,null,null,0,null,null,null,null,0,null,null,null,null,0,null,null,null,null,0,null,null,null,null,0,null,null,null,null,0,null,null,null,null,0,null,"000000000000000","00000","0.00","0","0","00","00","SOLA480MF000000.0000","00000"]
[712,"SOLA481SG0300000000400","SOLA481","アルミ固定金具端部用ⅡＨ２９．５（Ｍ１０","OA",0,605,null,null,76.735960000000006,null,null,null,null,0,null,null,null,null,0,null,null,null,null,0,null,null,null,null,0,null,null,null,null,0,null,null,null,null,0,null,null,null,null,0,null,null,null,null,0,null,null,null,null,0,null,null,null,null,0,null,null,null,null,0,null,null,null,null,0,null,null,null,null,0,null,null,null,null,0,null,null,null,null,0,null,null,null,null,0,null,null,null,null,0,null,null,null,null,0,null,null,null,null,0,null,null,null,null,0,null,"SG0300000000400","SG030 アルマイト処理","0.00","0","40","00","00","SOLA481OASG0300.00040","SG030"]
[716,"SOLA485SG0300000000400","SOLA485","Ｍ８共通固定金具Ⅱ　端部用Ｈ３０．０","OA",0,4707,null,null,64.097840000000005,null,null,null,null,0,null,null,null,null,0,null,null,null,null,0,null,null,null,null,0,null,null,null,null,0,null,null,null,null,0,null,null,null,null,0,null,null,null,null,0,null,null,null,null,0,null,null,null,null,0,null,null,null,null,0,null,null,null,null,0,null,null,null,null,0,null,null,null,null,0,null,null,null,null,0,null,null,null,null,0,null,null,null,null,0,null,null,null,null,0,null,null,null,null,0,null,null,null,null,0,null,"SG0300000000400","SG030 アルマイト処理","0.00","0","40","00","00","SOLA485OASG0300.00040","SG030"]
[718,"SOLA487SG0300000000400","SOLA487","Ｍ８共通固定金具Ⅱ　端部用Ｈ３４．５","OA",0,9075,null,null,63.765129999999999,null,null,null,null,0,null,null,null,null,0,null,null,null,null,0,null,null,null,null,0,null,null,null,null,0,null,null,null,null,0,null,null,null,null,0,null,null,null,null,0,null,null,null,null,0,null,null,null,null,0,null,null,null,null,0,null,null,null,null,0,null,null,null,null,0,null,null,null,null,0,null,null,null,null,0,null,null,null,null,0,null,null,null,null,0,null,null,null,null,0,null,null,null,null,0,null,null,null,null,0,null,"SG0300000000400","SG030 アルマイト処理","0.00","0","40","00","00","SOLA487OASG0300.00040","SG030"]
[721,"SOTKB00000005006520000","SOTKB00","太陽光発電関係部材特注品１","00",390,390,null,null,7,9,130,3,0,390,null,null,null,null,0,null,null,null,null,0,null,null,null,null,0,null,null,null,null,0,null,null,null,null,0,null,null,null,null,0,null,null,null,null,0,null,null,null,null,0,null,null,null,null,0,null,null,null,null,0,null,null,null,null,0,null,null,null,null,0,null,null,null,null,0,null,null,null,null,0,null,null,null,null,0,null,null,null,null,0,null,null,null,null,0,null,null,null,null,0,null,null,null,null,0,null,"000005006520000","00000","500.00","652","0","00","00","SOTKB000000000500.006520","00000"]
[723,"SOTKB00000005009630000","SOTKB00","太陽光発電関係部材特注品１","00",0,38,null,null,230,null,null,null,null,0,null,null,null,null,0,null,null,null,null,0,null,null,null,null,0,null,null,null,null,0,null,null,null,null,0,null,null,null,null,0,null,null,null,null,0,null,null,null,null,0,null,null,null,null,0,null,null,null,null,0,null,null,null,null,0,null,null,null,null,0,null,null,null,null,0,null,null,null,null,0,null,null,null,null,0,null,null,null,null,0,null,null,null,null,0,null,null,null,null,0,null,null,null,null,0,null,"000005009630000","00000","500.00","963","0","00","00","SOTKB000000000500.009630","00000"]
[726,"SPR1Z00SR0101.6455K360","SPR1Z00","元旦スチール防水屋根　本体　Ｗ４５５（枚","CG",0,957,null,null,7675.4075199999997,null,null,null,null,0,null,null,null,null,0,null,null,null,null,0,null,null,null,null,0,null,null,null,null,0,null,null,null,null,0,null,null,null,null,0,null,null,null,null,0,null,null,null,null,0,null,null,null,null,0,null,null,null,null,0,null,null,null,null,0,null,null,null,null,0,null,null,null,null,0,null,null,null,null,0,null,null,null,null,0,null,null,null,null,0,null,null,null,null,0,null,null,null,null,0,null,null,null,null,0,null,"SR0101.6455K360","SR010 ＮＲ．９５２５　ＳＴＡＮＤＡＲＤ　ＧＲＥＹ（ライ","1.60","455","3640","00","00","SPR1Z00CGSR0101.604553640","SR010"]
[729,"SPR1ZT0SR0201.6K00K400","SPR1ZT0","元旦スチール防水樋　ｔ０．４　ベロなし","CG",0,249,null,null,16740.260730000002,null,null,null,null,0,null,null,null,null,0,null,null,null,null,0,null,null,null,null,0,null,null,null,null,0,null,null,null,null,0,null,null,null,null,0,null,null,null,null,0,null,null,null,null,0,null,null,null,null,0,null,null,null,null,0,null,null,null,null,0,null,null,null,null,0,null,null,null,null,0,null,null,null,null,0,null,null,null,null,0,null,null,null,null,0,null,null,null,null,0,null,null,null,null,0,null,null,null,null,0,null,"SR0201.6K00K400","SR020 ＮＲ．９５００　ＬＥＡＤ　ＧＲＥＹ（ダークグレー","1.60","1000","4000","00","00","SPR1ZT0CGSR0201.6010004000","SR020"]
[731,"SPR1ZT1SR0101.6K00K400","SPR1ZT1","元旦スチール防水樋　ｔ０．４　ベロあり","CG",0,151,null,null,15966.76159,null,null,null,null,0,null,null,null,null,0,null,null,null,null,0,null,null,null,null,0,null,null,null,null,0,null,null,null,null,0,null,null,null,null,0,null,null,null,null,0,null,null,null,null,0,null,null,null,null,0,null,null,null,null,0,null,null,null,null,0,null,null,null,null,0,null,null,null,null,0,null,null,null,null,0,null,null,null,null,0,null,null,null,null,0,null,null,null,null,0,null,null,null,null,0,null,null,null,null,0,null,"SR0101.6K00K400","SR010 ＮＲ．９５２５　ＳＴＡＮＤＡＲＤ　ＧＲＥＹ（ライ","1.60","1000","4000","00","00","SPR1ZT1CGSR0101.6010004000","SR010"]
[732,"SPR1ZT1SR0201.6498K400","SPR1ZT1","元旦スチール防水樋　ｔ０．４　ベロあり","CG",0,328,null,null,7620.1036599999998,null,null,null,null,0,null,null,null,null,0,null,null,null,null,0,null,null,null,null,0,null,null,null,null,0,null,null,null,null,0,null,null,null,null,0,null,null,null,null,0,null,null,null,null,0,null,null,null,null,0,null,null,null,null,0,null,null,null,null,0,null,null,null,null,0,null,null,null,null,0,null,null,null,null,0,null,null,null,null,0,null,null,null,null,0,null,null,null,null,0,null,null,null,null,0,null,null,null,null,0,null,"SR0201.6498K400","SR020 ＮＲ．９５００　ＬＥＡＤ　ＧＲＥＹ（ダークグレー","1.60","498","4000","00","00","SPR1ZT1CGSR0201.604984000","SR020"]
[735,"SPR1ZT2SR0101.8K00K400","SPR1ZT2","元旦スチール防水樋　ｔ０．６　ベロなし","CG",0,21,null,null,14496.85714,null,null,null,null,0,null,null,null,null,0,null,null,null,null,0,null,null,null,null,0,null,null,null,null,0,null,null,null,null,0,null,null,null,null,0,null,null,null,null,0,null,null,null,null,0,null,null,null,null,0,null,null,null,null,0,null,null,null,null,0,null,null,null,null,0,null,null,null,null,0,null,null,null,null,0,null,null,null,null,0,null,null,null,null,0,null,null,null,null,0,null,null,null,null,0,null,null,null,null,0,null,"SR0101.8K00K400","SR010 ＮＲ．９５２５　ＳＴＡＮＤＡＲＤ　ＧＲＥＹ（ライ","1.80","1000","4000","00","00","SPR1ZT2CGSR0101.8010004000","SR010"]
[738,"SPR1ZU0000000000000000","SPR1ZU0","ファスナー　φ６×７５　鉄骨造用","00",0,323,null,null,1664.4612999999999,null,null,null,null,0,null,null,null,null,0,null,null,null,null,0,null,null,null,null,0,null,null,null,null,0,null,null,null,null,0,null,null,null,null,0,null,null,null,null,0,null,null,null,null,0,null,null,null,null,0,null,null,null,null,0,null,null,null,null,0,null,null,null,null,0,null,null,null,null,0,null,null,null,null,0,null,null,null,null,0,null,null,null,null,0,null,null,null,null,0,null,null,null,null,0,null,null,null,null,0,null,"000000000000000","00000","0.00","0","0","00","00","SPR1ZU000000000.0000","00000"]
[741,"SPR1ZU3000000000000000","SPR1ZU3","元旦スチール防水用　ビットＵＬＲ４","00",0,78,null,null,250,null,null,null,null,0,null,null,null,null,0,null,null,null,null,0,null,null,null,null,0,null,null,null,null,0,null,null,null,null,0,null,null,null,null,0,null,null,null,null,0,null,null,null,null,0,null,null,null,null,0,null,null,null,null,0,null,null,null,null,0,null,null,null,null,0,null,null,null,null,0,null,null,null,null,0,null,null,null,null,0,null,null,null,null,0,null,null,null,null,0,null,null,null,null,0,null,null,null,null,0,null,"000000000000000","00000","0.00","0","0","00","00","SPR1ZU300000000.0000","00000"]
[743,"SR02Z11SG0300000000800","SR02Z11","ＳＲ－２　下部吊子Ｈ４０","OA",0,1,null,null,124.13864,null,null,null,null,0,null,null,null,null,0,null,null,null,null,0,null,null,null,null,0,null,null,null,null,0,null,null,null,null,0,null,null,null,null,0,null,null,null,null,0,null,null,null,null,0,null,null,null,null,0,null,null,null,null,0,null,null,null,null,0,null,null,null,null,0,null,null,null,null,0,null,null,null,null,0,null,null,null,null,0,null,null,null,null,0,null,null,null,null,0,null,null,null,null,0,null,null,null,null,0,null,"SG0300000000800","SG030 アルマイト処理","0.00","0","80","00","00","SR02Z11OASG0300.00080","SG030"]
[747,"SR02Z19SG0300000000800","SR02Z19","ＳＲ－２　下部吊子Ｈ２５Ⅱ","OA",0,4349,null,null,98.618719999999996,null,null,null,null,0,null,null,null,null,0,null,null,null,null,0,null,null,null,null,0,null,null,null,null,0,null,null,null,null,0,null,null,null,null,0,null,null,null,null,0,null,null,null,null,0,null,null,null,null,0,null,null,null,null,0,null,null,null,null,0,null,null,null,null,0,null,null,null,null,0,null,null,null,null,0,null,null,null,null,0,null,null,null,null,0,null,null,null,null,0,null,null,null,null,0,null,null,null,null,0,null,"SG0300000000800","SG030 アルマイト処理","0.00","0","80","00","00","SR02Z19OASG0300.00080","SG030"]
[748,"SR02Z24SG030000000K500","SR02Z24","ＳＲ－２　架台兼用桟カバー","OA",0,164,null,null,3451.1911100000002,null,null,null,null,0,null,null,null,null,0,null,null,null,null,0,null,null,null,null,0,null,null,null,null,0,null,null,null,null,0,null,null,null,null,0,null,null,null,null,0,null,null,null,null,0,null,null,null,null,0,null,null,null,null,0,null,null,null,null,0,null,null,null,null,0,null,null,null,null,0,null,null,null,null,0,null,null,null,null,0,null,null,null,null,0,null,null,null,null,0,null,null,null,null,0,null,null,null,null,0,null,"SG030000000K500","SG030 アルマイト処理","0.00","0","5000","00","00","SR02Z24OASG0300.0005000","SG030"]
[750,"SR02Z40000000000000001","SR02Z40","ＳＲ－２　雪止金具（丸桟用）","NS",0,324,null,null,679.81793000000005,null,null,null,null,0,null,null,null,null,0,null,null,null,null,0,null,null,null,null,0,null,null,null,null,0,null,null,null,null,0,null,null,null,null,0,null,null,null,null,0,null,null,null,null,0,null,null,null,null,0,null,null,null,null,0,null,null,null,null,0,null,null,null,null,0,null,null,null,null,0,null,null,null,null,0,null,null,null,null,0,null,null,null,null,0,null,null,null,null,0,null,null,null,null,0,null,null,null,null,0,null,"000000000000001","00000","0.00","0","0","00","00","SR02Z40NS000000.0000","00000"]
[753,"SR02Z41000000000000001","SR02Z41","ＳＲ－２　雪止金具","NS",0,391,null,null,224.18701999999999,null,null,null,null,0,null,null,null,null,0,null,null,null,null,0,null,null,null,null,0,null,null,null,null,0,null,null,null,null,0,null,null,null,null,0,null,null,null,null,0,null,null,null,null,0,null,null,null,null,0,null,null,null,null,0,null,null,null,null,0,null,null,null,null,0,null,null,null,null,0,null,null,null,null,0,null,null,null,null,0,null,null,null,null,0,null,null,null,null,0,null,null,null,null,0,null,null,null,null,0,null,"000000000000001","00000","0.00","0","0","00","00","SR02Z41NS000000.0000","00000"]
[755,"SR02Z42000000000000001","SR02Z42","ＳＲ－２　雪止フレーム（丸桟用）","NS",0,284,null,null,318.55254000000002,null,null,null,null,0,null,null,null,null,0,null,null,null,null,0,null,null,null,null,0,null,null,null,null,0,null,null,null,null,0,null,null,null,null,0,null,null,null,null,0,null,null,null,null,0,null,null,null,null,0,null,null,null,null,0,null,null,null,null,0,null,null,null,null,0,null,null,null,null,0,null,null,null,null,0,null,null,null,null,0,null,null,null,null,0,null,null,null,null,0,null,null,null,null,0,null,null,null,null,0,null,"000000000000001","00000","0.00","0","0","00","00","SR02Z42NS000000.0000","00000"]
[758,"SR02Z55000000000000000","SR02Z55","ＳＲ－２　架台兼用桟カバーゴム面戸","GJ",0,4335,null,null,66.218239999999994,null,null,null,null,0,null,null,null,null,0,null,null,null,null,0,null,null,null,null,0,null,null,null,null,0,null,null,null,null,0,null,null,null,null,0,null,null,null,null,0,null,null,null,null,0,null,null,null,null,0,null,null,null,null,0,null,null,null,null,0,null,null,null,null,0,null,null,null,null,0,null,null,null,null,0,null,null,null,null,0,null,null,null,null,0,null,null,null,null,0,null,null,null,null,0,null,null,null,null,0,null,"000000000000000","00000","0.00","0","0","00","00","SR02Z55GJ000000.0000","00000"]
[761,"SR02Z81000000000000000","SR02Z81","ＳＲ－２　架台桟カバージョイント材","NS",0,270,null,null,79.001339999999999,null,null,null,null,0,null,null,null,null,0,null,null,null,null,0,null,null,null,null,0,null,null,null,null,0,null,null,null,null,0,null,null,null,null,0,null,null,null,null,0,null,null,null,null,0,null,null,null,null,0,null,null,null,null,0,null,null,null,null,0,null,null,null,null,0,null,null,null,null,0,null,null,null,null,0,null,null,null,null,0,null,null,null,null,0,null,null,null,null,0,null,null,null,null,0,null,null,null,null,0,null,"000000000000000","00000","0.00","0","0","00","00","SR02Z81NS000000.0000","00000"]
[763,"SR03Z10SG0300000000000","SR03Z10","ＳＲ－３　吊子（上）","OA",0,423,null,null,24.259620000000002,null,null,null,null,0,null,null,null,null,0,null,null,null,null,0,null,null,null,null,0,null,null,null,null,0,null,null,null,null,0,null,null,null,null,0,null,null,null,null,0,null,null,null,null,0,null,null,null,null,0,null,null,null,null,0,null,null,null,null,0,null,null,null,null,0,null,null,null,null,0,null,null,null,null,0,null,null,null,null,0,null,null,null,null,0,null,null,null,null,0,null,null,null,null,0,null,null,null,null,0,null,"SG0300000000000","SG030 アルマイト処理","0.00","0","0","00","00","SR03Z10OASG0300.0000","SG030"]
[767,"SR03Z41000000000000000","SR03Z41","ＳＲ－３　雪止フレーム","MF",0,303,null,null,232.05976999999999,null,null,null,null,0,null,null,null,null,0,null,null,null,null,0,null,null,null,null,0,null,null,null,null,0,null,null,null,null,0,null,null,null,null,0,null,null,null,null,0,null,null,null,null,0,null,null,null,null,0,null,null,null,null,0,null,null,null,null,0,null,null,null,null,0,null,null,null,null,0,null,null,null,null,0,null,null,null,null,0,null,null,null,null,0,null,null,null,null,0,null,null,null,null,0,null,null,null,null,0,null,"000000000000000","00000","0.00","0","0","00","00","SR03Z41MF000000.0000","00000"]
[768,"SR03Z41000000000000001","SR03Z41","ＳＲ－３　雪止フレーム","NS",0,192,null,null,471.42950000000002,null,null,null,null,0,null,null,null,null,0,null,null,null,null,0,null,null,null,null,0,null,null,null,null,0,null,null,null,null,0,null,null,null,null,0,null,null,null,null,0,null,null,null,null,0,null,null,null,null,0,null,null,null,null,0,null,null,null,null,0,null,null,null,null,0,null,null,null,null,0,null,null,null,null,0,null,null,null,null,0,null,null,null,null,0,null,null,null,null,0,null,null,null,null,0,null,null,null,null,0,null,"000000000000001","00000","0.00","0","0","00","00","SR03Z41NS000000.0000","00000"]
[770,"SYSH1L2000000000000000","SYSH1L2","システム排煙棟　金具Ａ－２","MF",0,153,null,null,460.00653999999997,null,null,null,null,0,null,null,null,null,0,null,null,null,null,0,null,null,null,null,0,null,null,null,null,0,null,null,null,null,0,null,null,null,null,0,null,null,null,null,0,null,null,null,null,0,null,null,null,null,0,null,null,null,null,0,null,null,null,null,0,null,null,null,null,0,null,null,null,null,0,null,null,null,null,0,null,null,null,null,0,null,null,null,null,0,null,null,null,null,0,null,null,null,null,0,null,null,null,null,0,null,"000000000000000","00000","0.00","0","0","00","00","SYSH1L2MF000000.0000","00000"]
[773,"SYSH1L8000000000000000","SYSH1L8","システム排煙棟　木毛板隠し","CS",0,2,null,null,6314,null,null,null,null,0,null,null,null,null,0,null,null,null,null,0,null,null,null,null,0,null,null,null,null,0,null,null,null,null,0,null,null,null,null,0,null,null,null,null,0,null,null,null,null,0,null,null,null,null,0,null,null,null,null,0,null,null,null,null,0,null,null,null,null,0,null,null,null,null,0,null,null,null,null,0,null,null,null,null,0,null,null,null,null,0,null,null,null,null,0,null,null,null,null,0,null,null,null,null,0,null,"000000000000000","00000","0.00","0","0","00","00","SYSH1L8CS000000.0000","00000"]
[775,"SYSH1LC000001.20300000","SYSH1LC","住宅用システム換気棟　換気棟金具","MF",160,160,null,null,160.52381,56,80,2,0,160,null,null,null,null,0,null,null,null,null,0,null,null,null,null,0,null,null,null,null,0,null,null,null,null,0,null,null,null,null,0,null,null,null,null,0,null,null,null,null,0,null,null,null,null,0,null,null,null,null,0,null,null,null,null,0,null,null,null,null,0,null,null,null,null,0,null,null,null,null,0,null,null,null,null,0,null,null,null,null,0,null,null,null,null,0,null,null,null,null,0,null,null,null,null,0,null,"000001.20300000","00000","1.20","30","0","00","00","SYSH1LCMF000001.20300","00000"]
[778,"TBTKA00000005204760000","TBTKA00","縦葺付属部品特注製作品－１","00",0,25,null,null,578.6,null,null,null,null,0,null,null,null,null,0,null,null,null,null,0,null,null,null,null,0,null,null,null,null,0,null,null,null,null,0,null,null,null,null,0,null,null,null,null,0,null,null,null,null,0,null,null,null,null,0,null,null,null,null,0,null,null,null,null,0,null,null,null,null,0,null,null,null,null,0,null,null,null,null,0,null,null,null,null,0,null,null,null,null,0,null,null,null,null,0,null,null,null,null,0,null,null,null,null,0,null,"000005204760000","00000","520.00","476","0","00","00","TBTKA000000000520.004760","00000"]
[781,"TILTK00000005321310000","TILTK00","特注タイル類関係品","00",0,18816,null,null,585,null,null,null,null,0,null,null,null,null,0,null,null,null,null,0,null,null,null,null,0,null,null,null,null,0,null,null,null,null,0,null,null,null,null,0,null,null,null,null,0,null,null,null,null,0,null,null,null,null,0,null,null,null,null,0,null,null,null,null,0,null,null,null,null,0,null,null,null,null,0,null,null,null,null,0,null,null,null,null,0,null,null,null,null,0,null,null,null,null,0,null,null,null,null,0,null,null,null,null,0,null,"000005321310000","00000","532.00","131","0","00","00","TILTK000000000532.001310","00000"]
[785,"TRX1Z12SG0300000000000","TRX1Z12","ＴＲＸ　標準吊子２００","OA",0,299,null,null,159.37792999999999,null,null,null,null,0,null,null,null,null,0,null,null,null,null,0,null,null,null,null,0,null,null,null,null,0,null,null,null,null,0,null,null,null,null,0,null,null,null,null,0,null,null,null,null,0,null,null,null,null,0,null,null,null,null,0,null,null,null,null,0,null,null,null,null,0,null,null,null,null,0,null,null,null,null,0,null,null,null,null,0,null,null,null,null,0,null,null,null,null,0,null,null,null,null,0,null,null,null,null,0,null,"SG0300000000000","SG030 アルマイト処理","0.00","0","0","00","00","TRX1Z12OASG0300.0000","SG030"]
[787,"TRX1Z13SG1300000000000","TRX1Z13","ＴＲＸ　標準吊子８０","OA",0,9,null,null,318.77778000000001,null,null,null,null,0,null,null,null,null,0,null,null,null,null,0,null,null,null,null,0,null,null,null,null,0,null,null,null,null,0,null,null,null,null,0,null,null,null,null,0,null,null,null,null,0,null,null,null,null,0,null,null,null,null,0,null,null,null,null,0,null,null,null,null,0,null,null,null,null,0,null,null,null,null,0,null,null,null,null,0,null,null,null,null,0,null,null,null,null,0,null,null,null,null,0,null,null,null,null,0,null,"SG1300000000000","SG130 電解腐食防止樹脂塗装","0.00","0","0","00","00","TRX1Z13OASG1300.0000","SG130"]
[790,"TRX1Z43SG0400000000000","TRX1Z43","ＴＲＸ　雪止フレームセット","NS",0,445,null,null,765,null,null,null,null,0,null,null,null,null,0,null,null,null,null,0,null,null,null,null,0,null,null,null,null,0,null,null,null,null,0,null,null,null,null,0,null,null,null,null,0,null,null,null,null,0,null,null,null,null,0,null,null,null,null,0,null,null,null,null,0,null,null,null,null,0,null,null,null,null,0,null,null,null,null,0,null,null,null,null,0,null,null,null,null,0,null,null,null,null,0,null,null,null,null,0,null,null,null,null,0,null,"SG0400000000000","SG040 ステンレス素地","0.00","0","0","00","0","TRX1Z43NSSG0400.0000","SG040"]
[792,"TRX1Z80000000000000000","TRX1Z80","ＴＲＸ　軒先唐草取付金具","MF",0,388,null,null,35,null,null,null,null,0,null,null,null,null,0,null,null,null,null,0,null,null,null,null,0,null,null,null,null,0,null,null,null,null,0,null,null,null,null,0,null,null,null,null,0,null,null,null,null,0,null,null,null,null,0,null,null,null,null,0,null,null,null,null,0,null,null,null,null,0,null,null,null,null,0,null,null,null,null,0,null,null,null,null,0,null,null,null,null,0,null,null,null,null,0,null,null,null,null,0,null,null,null,null,0,null,"000000000000000","00000","0.00","0","0","00","00","TRX1Z80MF000000.0000","00000"]
[793,"TRX1Z80000000000000001","TRX1Z80","ＴＲＸ　軒先唐草取付金具","NS",0,780,null,null,50,null,null,null,null,0,null,null,null,null,0,null,null,null,null,0,null,null,null,null,0,null,null,null,null,0,null,null,null,null,0,null,null,null,null,0,null,null,null,null,0,null,null,null,null,0,null,null,null,null,0,null,null,null,null,0,null,null,null,null,0,null,null,null,null,0,null,null,null,null,0,null,null,null,null,0,null,null,null,null,0,null,null,null,null,0,null,null,null,null,0,null,null,null,null,0,null,null,null,null,0,null,"000000000000001","00000","0.00","0","0","00","00","TRX1Z80NS000000.0000","00000"]
[797,"TRX2Z10SG0300000000800","TRX2Z10","ＴＲＸ－２　吊子８０","OA",0,23740,null,null,84.450599999999994,null,null,null,null,0,null,null,null,null,0,null,null,null,null,0,null,null,null,null,0,null,null,null,null,0,null,null,null,null,0,null,null,null,null,0,null,null,null,null,0,null,null,null,null,0,null,null,null,null,0,null,null,null,null,0,null,null,null,null,0,null,null,null,null,0,null,null,null,null,0,null,null,null,null,0,null,null,null,null,0,null,null,null,null,0,null,null,null,null,0,null,null,null,null,0,null,null,null,null,0,null,"SG0300000000800","SG030 アルマイト処理","0.00","0","80","00","00","TRX2Z10OASG0300.00080","SG030"]
[799,"TRX3Z5500000000000K250","TRX3Z55","ＴＲＸ－３，４　棟下地","00",0,70,null,null,1192.2316699999999,null,null,null,null,0,null,null,null,null,0,null,null,null,null,0,null,null,null,null,0,null,null,null,null,0,null,null,null,null,0,null,null,null,null,0,null,null,null,null,0,null,null,null,null,0,null,null,null,null,0,null,null,null,null,0,null,null,null,null,0,null,null,null,null,0,null,null,null,null,0,null,null,null,null,0,null,null,null,null,0,null,null,null,null,0,null,null,null,null,0,null,null,null,null,0,null,null,null,null,0,null,"00000000000K250","00000","0.00","0","2500","00","00","TRX3Z5500000000.0002500","00000"]
[802,"WG00200BKG30.45K00K000","WG00200","システム換気棟部品用切り板材","CS",0,42,null,null,4832,null,null,null,null,0,null,null,null,null,0,null,null,null,null,0,null,null,null,null,0,null,null,null,null,0,null,null,null,null,0,null,null,null,null,0,null,null,null,null,0,null,null,null,null,0,null,null,null,null,0,null,null,null,null,0,null,null,null,null,0,null,null,null,null,0,null,null,null,null,0,null,null,null,null,0,null,null,null,null,0,null,null,null,null,0,null,null,null,null,0,null,null,null,null,0,null,null,null,null,0,null,"BKG30.45K00K000","BKG30 ＢＫＯ－５（黒）ＣＳ","0.45","1000","1000","00","00","WG00200CSBKG300.4510001000","BKG30"]
[805,"WG00200GL3S0.40K00K000","WG00200","システム換気棟部品用切り板材","CS",0,45,null,null,1954.9555600000001,null,null,null,null,0,null,null,null,null,0,null,null,null,null,0,null,null,null,null,0,null,null,null,null,0,null,null,null,null,0,null,null,null,null,0,null,null,null,null,0,null,null,null,null,0,null,null,null,null,0,null,null,null,null,0,null,null,null,null,0,null,null,null,null,0,null,null,null,null,0,null,null,null,null,0,null,null,null,null,0,null,null,null,null,0,null,null,null,null,0,null,null,null,null,0,null,null,null,null,0,null,"GL3S0.40K00K000","GL3S0 ＬＧ－ＧＧ　（Ｍ）","0.40","1000","1000","00","00","WG00200CSGL3S00.4010001000","GL3S0"]
[807,"WG00200GRH30.45K00K000","WG00200","システム換気棟部品用切り板材","CS",0,15,null,null,3592,null,null,null,null,0,null,null,null,null,0,null,null,null,null,0,null,null,null,null,0,null,null,null,null,0,null,null,null,null,0,null,null,null,null,0,null,null,null,null,0,null,null,null,null,0,null,null,null,null,0,null,null,null,null,0,null,null,null,null,0,null,null,null,null,0,null,null,null,null,0,null,null,null,null,0,null,null,null,null,0,null,null,null,null,0,null,null,null,null,0,null,null,null,null,0,null,null,null,null,0,null,"GRH30.45K00K000","GRH30 ＧＲＯ－４（モスグリーン）ＣＳ","0.45","1000","1000","00","00","WG00200CSGRH300.4510001000","GRH30"]
[810,"WI00300000000000000000","WI00300","ＢＲ－１１ＢＵ　大割中間品Ｎ","AP",0,102,null,null,832.12066000000004,null,null,null,null,0,null,null,null,null,0,null,null,null,null,0,null,null,null,null,0,null,null,null,null,0,null,null,null,null,0,null,null,null,null,0,null,null,null,null,0,null,null,null,null,0,null,null,null,null,0,null,null,null,null,0,null,null,null,null,0,null,null,null,null,0,null,null,null,null,0,null,null,null,null,0,null,null,null,null,0,null,null,null,null,0,null,null,null,null,0,null,null,null,null,0,null,null,null,null,0,null,"000000000000000","00000","0.00","0","0","00","00","WI00300AP000000.0000","00000"]
[812,"WK3330000000.800003450","WK33300","ＭＡ－７　軒先フレーム４０切板材","MF",0,955,null,null,67.798950000000005,null,null,null,null,0,null,null,null,null,0,null,null,null,null,0,null,null,null,null,0,null,null,null,null,0,null,null,null,null,0,null,null,null,null,0,null,null,null,null,0,null,null,null,null,0,null,null,null,null,0,null,null,null,null,0,null,null,null,null,0,null,null,null,null,0,null,null,null,null,0,null,null,null,null,0,null,null,null,null,0,null,null,null,null,0,null,null,null,null,0,null,null,null,null,0,null,null,null,null,0,null,"00000.800003450","00000","0.80","0","345","00","00","WK33300MF000000.800345","00000"]
[813,"WK33300000001.00003450","WK33300","ＭＡ－７　軒先フレーム４０切板材","MF",0,507,null,null,82.909270000000006,null,null,null,null,0,null,null,null,null,0,null,null,null,null,0,null,null,null,null,0,null,null,null,null,0,null,null,null,null,0,null,null,null,null,0,null,null,null,null,0,null,null,null,null,0,null,null,null,null,0,null,null,null,null,0,null,null,null,null,0,null,null,null,null,0,null,null,null,null,0,null,null,null,null,0,null,null,null,null,0,null,null,null,null,0,null,null,null,null,0,null,null,null,null,0,null,null,null,null,0,null,"000001.00003450","00000","1.00","0","345","00","00","WK33300MF000001.000345","00000"]
[817,"XAC189SG030000000K250","XAC189","Ｍ－１１唐草　アルミ押出型材","OA",0,244,null,null,271,null,null,null,null,0,null,null,null,null,0,null,null,null,null,0,null,null,null,null,0,null,null,null,null,0,null,null,null,null,0,null,null,null,null,0,null,null,null,null,0,null,null,null,null,0,null,null,null,null,0,null,null,null,null,0,null,null,null,null,0,null,null,null,null,0,null,null,null,null,0,null,null,null,null,0,null,null,null,null,0,null,null,null,null,0,null,null,null,null,0,null,null,null,null,0,null,null,null,null,0,null,"SG030000000K250","SG030 アルマイト処理","0.00","0","2500","00","00","XAC189OASG0300.0002500","SG030"]
[819,"XAC191SG030000000K250","XAC191","Ｍ－１３唐草　アルミ押出型材","OA",0,54,null,null,899,null,null,null,null,0,null,null,null,null,0,null,null,null,null,0,null,null,null,null,0,null,null,null,null,0,null,null,null,null,0,null,null,null,null,0,null,null,null,null,0,null,null,null,null,0,null,null,null,null,0,null,null,null,null,0,null,null,null,null,0,null,null,null,null,0,null,null,null,null,0,null,null,null,null,0,null,null,null,null,0,null,null,null,null,0,null,null,null,null,0,null,null,null,null,0,null,null,null,null,0,null,"SG030000000K250","SG030 アルマイト処理","0.00","0","2500","00","00","XAC191OASG0300.0002500","SG030"]
[822,"XAC218SG030000000K240","XAC218","ＰＡＳＴＭ－２　アルミフレーム　押出型材","OA",0,23,null,null,9534,null,null,null,null,0,null,null,null,null,0,null,null,null,null,0,null,null,null,null,0,null,null,null,null,0,null,null,null,null,0,null,null,null,null,0,null,null,null,null,0,null,null,null,null,0,null,null,null,null,0,null,null,null,null,0,null,null,null,null,0,null,null,null,null,0,null,null,null,null,0,null,null,null,null,0,null,null,null,null,0,null,null,null,null,0,null,null,null,null,0,null,null,null,null,0,null,null,null,null,0,null,"SG030000000K240","SG030 アルマイト処理","0.00","0","2405","00","00","XAC218OASG0300.0002405","SG030"]
[825,"XAC218SG030000000K352","XAC218","ＰＡＳＴＭ－２　アルミフレーム　押出型材","OA",0,1,null,null,14172,null,null,null,null,0,null,null,null,null,0,null,null,null,null,0,null,null,null,null,0,null,null,null,null,0,null,null,null,null,0,null,null,null,null,0,null,null,null,null,0,null,null,null,null,0,null,null,null,null,0,null,null,null,null,0,null,null,null,null,0,null,null,null,null,0,null,null,null,null,0,null,null,null,null,0,null,null,null,null,0,null,null,null,null,0,null,null,null,null,0,null,null,null,null,0,null,null,null,null,0,null,"SG030000000K352","SG030 アルマイト処理","0.00","0","3575","00","00","XAC218OASG0300.0003575","SG030"]
[828,"XAE003SG0400000000000","XAE003","ＧＲ－８００雪止金具（ゴム貼前）","NS",0,154,null,null,590.75324999999998,null,null,null,null,0,null,null,null,null,0,null,null,null,null,0,null,null,null,null,0,null,null,null,null,0,null,null,null,null,0,null,null,null,null,0,null,null,null,null,0,null,null,null,null,0,null,null,null,null,0,null,null,null,null,0,null,null,null,null,0,null,null,null,null,0,null,null,null,null,0,null,null,null,null,0,null,null,null,null,0,null,null,null,null,0,null,null,null,null,0,null,null,null,null,0,null,null,null,null,0,null,"SG0400000000000","SG040 ステンレス素地","0.00","0","0","00","00","XAE003NSSG0400.0000","SG040"]
[829,"XAE006MK0100000000000","XAE006","ＢＲ－１０，ＧＲ－８００雪止金具","MF",0,164,null,null,274.12804999999997,null,null,null,null,0,null,null,null,null,0,null,null,null,null,0,null,null,null,null,0,null,null,null,null,0,null,null,null,null,0,null,null,null,null,0,null,null,null,null,0,null,null,null,null,0,null,null,null,null,0,null,null,null,null,0,null,null,null,null,0,null,null,null,null,0,null,null,null,null,0,null,null,null,null,0,null,null,null,null,0,null,null,null,null,0,null,null,null,null,0,null,null,null,null,0,null,null,null,null,0,null,"MK0100000000000","MK010 亜鉛メッキ処理","0.00","0","0","00","00","XAE006MFMK0100.0000","MK010"]
[831,"XAF016000000000080200","XAF016","Ｍ８×２０菱形ボルト／５０Ｓ","NS",0,30,null,null,2030,null,null,null,null,0,null,null,null,null,0,null,null,null,null,0,null,null,null,null,0,null,null,null,null,0,null,null,null,null,0,null,null,null,null,0,null,null,null,null,0,null,null,null,null,0,null,null,null,null,0,null,null,null,null,0,null,null,null,null,0,null,null,null,null,0,null,null,null,null,0,null,null,null,null,0,null,null,null,null,0,null,null,null,null,0,null,null,null,null,0,null,null,null,null,0,null,null,null,null,0,null,"000000000080200","00000","0.00","8","20","00","00","XAF016NS000000.00820","00000"]
[834,"XAG002SG030000000K200","XAG002","ルーバーフレーム用ＯＡ型材穴無","OA",0,56,null,null,597.64286000000004,null,null,null,null,0,null,null,null,null,0,null,null,null,null,0,null,null,null,null,0,null,null,null,null,0,null,null,null,null,0,null,null,null,null,0,null,null,null,null,0,null,null,null,null,0,null,null,null,null,0,null,null,null,null,0,null,null,null,null,0,null,null,null,null,0,null,null,null,null,0,null,null,null,null,0,null,null,null,null,0,null,null,null,null,0,null,null,null,null,0,null,null,null,null,0,null,null,null,null,0,null,"SG030000000K200","SG030 アルマイト処理","0.00","0","2000","00","00","XAG002OASG0300.0002000","SG030"]
[837,"XAG00500000030030K220","XAG005","ルーバパネル受材ゴム３０Ｘ３０","GJ",0,144,null,null,599.53471999999999,null,null,null,null,0,null,null,null,null,0,null,null,null,null,0,null,null,null,null,0,null,null,null,null,0,null,null,null,null,0,null,null,null,null,0,null,null,null,null,0,null,null,null,null,0,null,null,null,null,0,null,null,null,null,0,null,null,null,null,0,null,null,null,null,0,null,null,null,null,0,null,null,null,null,0,null,null,null,null,0,null,null,null,null,0,null,null,null,null,0,null,null,null,null,0,null,null,null,null,0,null,"00000030030K220","00000","30.00","30","2200","00","00","XAG005GJ0000030.00302200","00000"]
[839,"XAJ001SR0101.2495K000","XAJ001","サーナジャンボロール（Ｇ４１０","00",0,9600,null,null,568.55989999999997,null,null,null,null,0,null,null,null,null,0,null,null,null,null,0,null,null,null,null,0,null,null,null,null,0,null,null,null,null,0,null,null,null,null,0,null,null,null,null,0,null,null,null,null,0,null,null,null,null,0,null,null,null,null,0,null,null,null,null,0,null,null,null,null,0,null,null,null,null,0,null,null,null,null,0,null,null,null,null,0,null,null,null,null,0,null,null,null,null,0,null,null,null,null,0,null,null,null,null,0,null,"SR0101.2495K000","SR010 ＮＲ．９５２５　ＳＴＡＮＤＡＲＤ　ＧＲＥＹ（ライ","1.20","495","1000","00","00","XAJ00100SR0101.204951000","SR010"]
[842,"XAJ001SR0201.2495K000","XAJ001","サーナジャンボロール（Ｇ４１０","00",0,7850,null,null,626.00115000000005,null,null,null,null,0,null,null,null,null,0,null,null,null,null,0,null,null,null,null,0,null,null,null,null,0,null,null,null,null,0,null,null,null,null,0,null,null,null,null,0,null,null,null,null,0,null,null,null,null,0,null,null,null,null,0,null,null,null,null,0,null,null,null,null,0,null,null,null,null,0,null,null,null,null,0,null,null,null,null,0,null,null,null,null,0,null,null,null,null,0,null,null,null,null,0,null,null,null,null,0,null,"SR0201.2495K000","SR020 ＮＲ．９５００　ＬＥＡＤ　ＧＲＥＹ（ダークグレー","1.20","495","1000","00","00","XAJ00100SR0201.204951000","SR020"]
[844,"XAJ004SR0112.0K1015K0","XAJ004","ＳＩＫＡＰＬＡＮ　ＳＰＬＳ２０","00",0,6,null,null,53000.5,null,null,null,null,0,null,null,null,null,0,null,null,null,null,0,null,null,null,null,0,null,null,null,null,0,null,null,null,null,0,null,null,null,null,0,null,null,null,null,0,null,null,null,null,0,null,null,null,null,0,null,null,null,null,0,null,null,null,null,0,null,null,null,null,0,null,null,null,null,0,null,null,null,null,0,null,null,null,null,0,null,null,null,null,0,null,null,null,null,0,null,null,null,null,0,null,null,null,null,0,null,"SR0112.0K1015K0","SR011 ＲＡＬ．７０４７　ＬＩＧＨＴ　ＧＲＥＹ　（近似）","2.00","1100","15000","00","00","XAJ00400SR0112.00110015000","SR011"]
[848,"XCA100IVORY4.0355K000","XCA100","フォームエース　４㎜","PJ",0,350,null,null,61.84,null,null,null,null,0,null,null,null,null,0,null,null,null,null,0,null,null,null,null,0,null,null,null,null,0,null,null,null,null,0,null,null,null,null,0,null,null,null,null,0,null,null,null,null,0,null,null,null,null,0,null,null,null,null,0,null,null,null,null,0,null,null,null,null,0,null,null,null,null,0,null,null,null,null,0,null,null,null,null,0,null,null,null,null,0,null,null,null,null,0,null,null,null,null,0,null,null,null,null,0,null,"IVORY4.0355K000","IV アイボリー（裏貼）","4.00","355","1000","00","00","XCA100PJIVORY4.003551000","IVORY"]
[849,"XCA100IVORY4.0395K000","XCA100","フォームエース　４㎜","PJ",0,2201,null,null,68.902320000000003,null,null,null,null,0,null,null,null,null,0,null,null,null,null,0,null,null,null,null,0,null,null,null,null,0,null,null,null,null,0,null,null,null,null,0,null,null,null,null,0,null,null,null,null,0,null,null,null,null,0,null,null,null,null,0,null,null,null,null,0,null,null,null,null,0,null,null,null,null,0,null,null,null,null,0,null,null,null,null,0,null,null,null,null,0,null,null,null,null,0,null,null,null,null,0,null,null,null,null,0,null,"IVORY4.0395K000","IV アイボリー（裏貼）","4.00","395","1000","00","00","XCA100PJIVORY4.003951000","IVORY"]
[851,"XCA100IVORY4.0485K000","XCA100","フォームエース　４㎜","PJ",0,5218,null,null,89.042609999999996,null,null,null,null,0,null,null,null,null,0,null,null,null,null,0,null,null,null,null,0,null,null,null,null,0,null,null,null,null,0,null,null,null,null,0,null,null,null,null,0,null,null,null,null,0,null,null,null,null,0,null,null,null,null,0,null,null,null,null,0,null,null,null,null,0,null,null,null,null,0,null,null,null,null,0,null,null,null,null,0,null,null,null,null,0,null,null,null,null,0,null,null,null,null,0,null,null,null,null,0,null,"IVORY4.0485K000","IV アイボリー（裏貼）","4.00","485","1000","00","00","XCA100PJIVORY4.004851000","IVORY"]
[854,"XCA300BEIGE4.0303K000","XCA300","ソフトロンＳＫ　４㎜","PJ",0,244,null,null,54.295850000000002,null,null,null,null,0,null,null,null,null,0,null,null,null,null,0,null,null,null,null,0,null,null,null,null,0,null,null,null,null,0,null,null,null,null,0,null,null,null,null,0,null,null,null,null,0,null,null,null,null,0,null,null,null,null,0,null,null,null,null,0,null,null,null,null,0,null,null,null,null,0,null,null,null,null,0,null,null,null,null,0,null,null,null,null,0,null,null,null,null,0,null,null,null,null,0,null,null,null,null,0,null,"BEIGE4.0303K000","BE ベージュ（裏貼）","4.00","303","1000","00","00","XCA300PJBEIGE4.003031000","BEIGE"]
[857,"XCA300BEIGE4.0370K000","XCA300","ソフトロンＳＫ　４㎜","PJ",0,2970,null,null,67.931970000000007,null,null,null,null,0,null,null,null,null,0,null,null,null,null,0,null,null,null,null,0,null,null,null,null,0,null,null,null,null,0,null,null,null,null,0,null,null,null,null,0,null,null,null,null,0,null,null,null,null,0,null,null,null,null,0,null,null,null,null,0,null,null,null,null,0,null,null,null,null,0,null,null,null,null,0,null,null,null,null,0,null,null,null,null,0,null,null,null,null,0,null,null,null,null,0,null,null,null,null,0,null,"BEIGE4.0370K000","BE ベージュ（裏貼）","4.00","370","1000","00","00","XCA300PJBEIGE4.003701000","BEIGE"]
[859,"XCA300BEIGE4.0420K000","XCA300","ソフトロンＳＫ　４㎜","PJ",0,3468,null,null,91.672430000000006,null,null,null,null,0,null,null,null,null,0,null,null,null,null,0,null,null,null,null,0,null,null,null,null,0,null,null,null,null,0,null,null,null,null,0,null,null,null,null,0,null,null,null,null,0,null,null,null,null,0,null,null,null,null,0,null,null,null,null,0,null,null,null,null,0,null,null,null,null,0,null,null,null,null,0,null,null,null,null,0,null,null,null,null,0,null,null,null,null,0,null,null,null,null,0,null,null,null,null,0,null,"BEIGE4.0420K000","BE ベージュ（裏貼）","4.00","420","1000","00","00","XCA300PJBEIGE4.004201000","BEIGE"]
[862,"XCA305GRAY02.0240K000","XCA305","ソフトロンＳＫ　２㎜","PJ",0,10310,null,null,41.73518,null,null,null,null,0,null,null,null,null,0,null,null,null,null,0,null,null,null,null,0,null,null,null,null,0,null,null,null,null,0,null,null,null,null,0,null,null,null,null,0,null,null,null,null,0,null,null,null,null,0,null,null,null,null,0,null,null,null,null,0,null,null,null,null,0,null,null,null,null,0,null,null,null,null,0,null,null,null,null,0,null,null,null,null,0,null,null,null,null,0,null,null,null,null,0,null,null,null,null,0,null,"GRAY02.0240K000","GRY グレー（裏貼）","2.00","240","1000","00","00","XCA305PJGRAY02.002401000","GRAY0"]
[864,"XCA306GRAY02.0030K000","XCA306","ソフトロンＳＫ　２㎜（弱粘着）","PJ",0,13911,null,null,24.83351,null,null,null,null,0,null,null,null,null,0,null,null,null,null,0,null,null,null,null,0,null,null,null,null,0,null,null,null,null,0,null,null,null,null,0,null,null,null,null,0,null,null,null,null,0,null,null,null,null,0,null,null,null,null,0,null,null,null,null,0,null,null,null,null,0,null,null,null,null,0,null,null,null,null,0,null,null,null,null,0,null,null,null,null,0,null,null,null,null,0,null,null,null,null,0,null,null,null,null,0,null,"GRAY02.0030K000","GRY グレー（裏貼）","2.00","30","1000","00","00","XCA306PJGRAY02.00301000","GRAY0"]
[868,"XDD013000001.105010K0","XDD013","アクリルフォーム両面テープ","00",0,472.6,null,null,480,null,null,null,null,0,null,null,null,null,0,null,null,null,null,0,null,null,null,null,0,null,null,null,null,0,null,null,null,null,0,null,null,null,null,0,null,null,null,null,0,null,null,null,null,0,null,null,null,null,0,null,null,null,null,0,null,null,null,null,0,null,null,null,null,0,null,null,null,null,0,null,null,null,null,0,null,null,null,null,0,null,null,null,null,0,null,null,null,null,0,null,null,null,null,0,null,null,null,null,0,null,"000001.105010K0","00000","1.14","50","10000","00","00","XDD01300000001.145010000","00000"]
[869,"XDD01400000.10050K000","XDD014","不織布両面テープ　Ｗ５１４","00",0,1380,null,null,19.48188,null,null,null,null,0,null,null,null,null,0,null,null,null,null,0,null,null,null,null,0,null,null,null,null,0,null,null,null,null,0,null,null,null,null,0,null,null,null,null,0,null,null,null,null,0,null,null,null,null,0,null,null,null,null,0,null,null,null,null,0,null,null,null,null,0,null,null,null,null,0,null,null,null,null,0,null,null,null,null,0,null,null,null,null,0,null,null,null,null,0,null,null,null,null,0,null,null,null,null,0,null,"00000.10050K000","00000","0.10","50","1000","00","00","XDD01400000000.10501000","00000"]
[872,"XDD021000001.00200000","XDD021","両面テープ　（アクリルフォーム構造用）","00",0,770,null,null,309.09091000000001,null,null,null,null,0,null,null,null,null,0,null,null,null,null,0,null,null,null,null,0,null,null,null,null,0,null,null,null,null,0,null,null,null,null,0,null,null,null,null,0,null,null,null,null,0,null,null,null,null,0,null,null,null,null,0,null,null,null,null,0,null,null,null,null,0,null,null,null,null,0,null,null,null,null,0,null,null,null,null,0,null,null,null,null,0,null,null,null,null,0,null,null,null,null,0,null,null,null,null,0,null,"000001.00200000","00000","1.00","20","0","00","00","XDD02100000001.00200","00000"]
[873,"XDD999000000000000000","XDD999","その他テープ","GJ",0,2099,null,null,31.61909,null,null,null,null,0,null,null,null,null,0,null,null,null,null,0,null,null,null,null,0,null,null,null,null,0,null,null,null,null,0,null,null,null,null,0,null,null,null,null,0,null,null,null,null,0,null,null,null,null,0,null,null,null,null,0,null,null,null,null,0,null,null,null,null,0,null,null,null,null,0,null,null,null,null,0,null,null,null,null,0,null,null,null,null,0,null,null,null,null,0,null,null,null,null,0,null,null,null,null,0,null,"000000000000000","00000","0.00","0","0","00","00","XDD999GJ000000.0000","00000"]
[874,"XDE00500000000000K200","XDE005","元旦トップライト用サーナフィン","00",0,65,null,null,200,null,null,null,null,0,null,null,null,null,0,null,null,null,null,0,null,null,null,null,0,null,null,null,null,0,null,null,null,null,0,null,null,null,null,0,null,null,null,null,0,null,null,null,null,0,null,null,null,null,0,null,null,null,null,0,null,null,null,null,0,null,null,null,null,0,null,null,null,null,0,null,null,null,null,0,null,null,null,null,0,null,null,null,null,0,null,null,null,null,0,null,null,null,null,0,null,null,null,null,0,null,"00000000000K200","00000","0.00","0","2000","00","00","XDE00500000000.0002000","00000"]
[875,"XDF003000003.00240630","XDF003","ＫエクセシルＳＡ３Ｘ２４Ｘ６３","GJ",0,13699,null,null,9.5267800000000005,null,null,null,null,0,null,null,null,null,0,null,null,null,null,0,null,null,null,null,0,null,null,null,null,0,null,null,null,null,0,null,null,null,null,0,null,null,null,null,0,null,null,null,null,0,null,null,null,null,0,null,null,null,null,0,null,null,null,null,0,null,null,null,null,0,null,null,null,null,0,null,null,null,null,0,null,null,null,null,0,null,null,null,null,0,null,null,null,null,0,null,null,null,null,0,null,null,null,null,0,null,"000003.00240630","00000","3.00","24","63","00","00","XDF003GJ000003.002463","00000"]
[876,"XDF010000001.00381200","XDF010","ＢＲ－１０，ＧＲ－８００雪止用ゴム","GJ",0,333,null,null,13.51351,null,null,null,null,0,null,null,null,null,0,null,null,null,null,0,null,null,null,null,0,null,null,null,null,0,null,null,null,null,0,null,null,null,null,0,null,null,null,null,0,null,null,null,null,0,null,null,null,null,0,null,null,null,null,0,null,null,null,null,0,null,null,null,null,0,null,null,null,null,0,null,null,null,null,0,null,null,null,null,0,null,null,null,null,0,null,null,null,null,0,null,null,null,null,0,null,null,null,null,0,null,"000001.00381200","00000","1.00","38","120","00","00","XDF010GJ000001.0038120","00000"]
[877,"XDF016000000000000000","XDF016","ＢＲ－１０継手カバーⅡ防水ゴム","GJ",283,283,null,null,30.582719999999998,209,0,0,283,283,null,null,null,null,0,null,null,null,null,0,null,null,null,null,0,null,null,null,null,0,null,null,null,null,0,null,null,null,null,0,null,null,null,null,0,null,null,null,null,0,null,null,null,null,0,null,null,null,null,0,null,null,null,null,0,null,null,null,null,0,null,null,null,null,0,null,null,null,null,0,null,null,null,null,0,null,null,null,null,0,null,null,null,null,0,null,null,null,null,0,null,null,null,null,0,null,"000000000000000","00000","0.00","0","0","00","00","XDF016GJ000000.0000","00000"]
[878,"XDF017000003.00100000","XDF017","ＥＰＤＭ発泡ゴム","GJ",0,5661,null,null,113.0873,null,null,null,null,0,null,null,null,null,0,null,null,null,null,0,null,null,null,null,0,null,null,null,null,0,null,null,null,null,0,null,null,null,null,0,null,null,null,null,0,null,null,null,null,0,null,null,null,null,0,null,null,null,null,0,null,null,null,null,0,null,null,null,null,0,null,null,null,null,0,null,null,null,null,0,null,null,null,null,0,null,null,null,null,0,null,null,null,null,0,null,null,null,null,0,null,null,null,null,0,null,"000003.00100000","00000","3.00","10","0","00","00","XDF017GJ000003.00100","00000"]
[879,"XDF01900000010015K000","XDF019","ＥＰＤＭ発泡ゴム（ｍ）","GJ",0,490,null,null,81.334689999999995,null,null,null,null,0,null,null,null,null,0,null,null,null,null,0,null,null,null,null,0,null,null,null,null,0,null,null,null,null,0,null,null,null,null,0,null,null,null,null,0,null,null,null,null,0,null,null,null,null,0,null,null,null,null,0,null,null,null,null,0,null,null,null,null,0,null,null,null,null,0,null,null,null,null,0,null,null,null,null,0,null,null,null,null,0,null,null,null,null,0,null,null,null,null,0,null,null,null,null,0,null,"00000010015K000","00000","10.00","15","1000","00","00","XDF019GJ0000010.00151000","00000"]
[880,"XDF058000001.00300700","XDF058","住宅用換気棟金具用ゴムシート","GJ",0,5130,null,null,7,null,null,null,null,0,null,null,null,null,0,null,null,null,null,0,null,null,null,null,0,null,null,null,null,0,null,null,null,null,0,null,null,null,null,0,null,null,null,null,0,null,null,null,null,0,null,null,null,null,0,null,null,null,null,0,null,null,null,null,0,null,null,null,null,0,null,null,null,null,0,null,null,null,null,0,null,null,null,null,0,null,null,null,null,0,null,null,null,null,0,null,null,null,null,0,null,null,null,null,0,null,"000001.00300700","00000","1.00","30","70","00","00","XDF058GJ000001.003070","00000"]
[881,"XDF07200000015015K200","XDF072","ＥＰＤＭ発泡ゴム（片面粘着汎用","GJ",0,503,null,null,175.12922,null,null,null,null,0,null,null,null,null,0,null,null,null,null,0,null,null,null,null,0,null,null,null,null,0,null,null,null,null,0,null,null,null,null,0,null,null,null,null,0,null,null,null,null,0,null,null,null,null,0,null,null,null,null,0,null,null,null,null,0,null,null,null,null,0,null,null,null,null,0,null,null,null,null,0,null,null,null,null,0,null,null,null,null,0,null,null,null,null,0,null,null,null,null,0,null,null,null,null,0,null,"00000015015K200","00000","15.00","15","2000","00","00","XDF072GJ0000015.00152000","00000"]
[882,"XDF07200000020020K200","XDF072","ＥＰＤＭ発泡ゴム（片面粘着汎用","GJ",0,328,null,null,222.06707,null,null,null,null,0,null,null,null,null,0,null,null,null,null,0,null,null,null,null,0,null,null,null,null,0,null,null,null,null,0,null,null,null,null,0,null,null,null,null,0,null,null,null,null,0,null,null,null,null,0,null,null,null,null,0,null,null,null,null,0,null,null,null,null,0,null,null,null,null,0,null,null,null,null,0,null,null,null,null,0,null,null,null,null,0,null,null,null,null,0,null,null,null,null,0,null,null,null,null,0,null,"00000020020K200","00000","20.00","20","2000","00","00","XDF072GJ0000020.00202000","00000"]
[883,"XDF072000003.00103100","XDF072","ＥＰＤＭ発泡ゴム（片面粘着汎用","GJ",0,998,null,null,26.200399999999998,null,null,null,null,0,null,null,null,null,0,null,null,null,null,0,null,null,null,null,0,null,null,null,null,0,null,null,null,null,0,null,null,null,null,0,null,null,null,null,0,null,null,null,null,0,null,null,null,null,0,null,null,null,null,0,null,null,null,null,0,null,null,null,null,0,null,null,null,null,0,null,null,null,null,0,null,null,null,null,0,null,null,null,null,0,null,null,null,null,0,null,null,null,null,0,null,null,null,null,0,null,"000003.00103100","00000","3.00","10","310","00","00","XDF072GJ000003.0010310","00000"]
[884,"XDF072000003.00505000","XDF072","ＥＰＤＭ発泡ゴム（片面粘着汎用","GJ",0,142,null,null,130,null,null,null,null,0,null,null,null,null,0,null,null,null,null,0,null,null,null,null,0,null,null,null,null,0,null,null,null,null,0,null,null,null,null,0,null,null,null,null,0,null,null,null,null,0,null,null,null,null,0,null,null,null,null,0,null,null,null,null,0,null,null,null,null,0,null,null,null,null,0,null,null,null,null,0,null,null,null,null,0,null,null,null,null,0,null,null,null,null,0,null,null,null,null,0,null,null,null,null,0,null,"000003.00505000","00000","3.00","50","500","00","00","XDF072GJ000003.0050500","00000"]
[885,"XDF072000005.0010K200","XDF072","ＥＰＤＭ発泡ゴム（片面粘着汎用","GJ",0,273,null,null,61,null,null,null,null,0,null,null,null,null,0,null,null,null,null,0,null,null,null,null,0,null,null,null,null,0,null,null,null,null,0,null,null,null,null,0,null,null,null,null,0,null,null,null,null,0,null,null,null,null,0,null,null,null,null,0,null,null,null,null,0,null,null,null,null,0,null,null,null,null,0,null,null,null,null,0,null,null,null,null,0,null,null,null,null,0,null,null,null,null,0,null,null,null,null,0,null,null,null,null,0,null,"000005.0010K200","00000","5.00","10","2000","00","00","XDF072GJ000005.00102000","00000"]
[886,"XDF093000000230260200","XDF093","ＴＲＸ　水止め材","GJ",0,1996,null,null,32.5,null,null,null,null,0,null,null,null,null,0,null,null,null,null,0,null,null,null,null,0,null,null,null,null,0,null,null,null,null,0,null,null,null,null,0,null,null,null,null,0,null,null,null,null,0,null,null,null,null,0,null,null,null,null,0,null,null,null,null,0,null,null,null,null,0,null,null,null,null,0,null,null,null,null,0,null,null,null,null,0,null,null,null,null,0,null,null,null,null,0,null,null,null,null,0,null,null,null,null,0,null,"000000230260200","00000","23.00","26","20","00","00","XDF093GJ0000023.002620","00000"]
[887,"XDG04000000020225K120","XDG040","元張Ⅱ用ＥＰＳ断熱材（ｔ２０）","AH",0,4105,null,null,181.73276000000001,null,null,null,null,0,null,null,null,null,0,null,null,null,null,0,null,null,null,null,0,null,null,null,null,0,null,null,null,null,0,null,null,null,null,0,null,null,null,null,0,null,null,null,null,0,null,null,null,null,0,null,null,null,null,0,null,null,null,null,0,null,null,null,null,0,null,null,null,null,0,null,null,null,null,0,null,null,null,null,0,null,null,null,null,0,null,null,null,null,0,null,null,null,null,0,null,null,null,null,0,null,"00000020225K120","00000","20.00","225","1213","00","00","XDG040AH0000020.002251213","00000"]
[888,"XDG04100000025225K120","XDG041","元張Ⅱ用ＥＰＳ断熱材（ｔ２５）","AH",0,228,null,null,200,null,null,null,null,0,null,null,null,null,0,null,null,null,null,0,null,null,null,null,0,null,null,null,null,0,null,null,null,null,0,null,null,null,null,0,null,null,null,null,0,null,null,null,null,0,null,null,null,null,0,null,null,null,null,0,null,null,null,null,0,null,null,null,null,0,null,null,null,null,0,null,null,null,null,0,null,null,null,null,0,null,null,null,null,0,null,null,null,null,0,null,null,null,null,0,null,null,null,null,0,null,"00000025225K120","00000","25.00","225","1213","00","00","XDG041AH0000025.002251213","00000"]
[889,"XDG04300000035225K120","XDG043","元張Ⅱ用ＥＰＳ断熱材（ｔ３５）","AH",0,9,null,null,260,null,null,null,null,0,null,null,null,null,0,null,null,null,null,0,null,null,null,null,0,null,null,null,null,0,null,null,null,null,0,null,null,null,null,0,null,null,null,null,0,null,null,null,null,0,null,null,null,null,0,null,null,null,null,0,null,null,null,null,0,null,null,null,null,0,null,null,null,null,0,null,null,null,null,0,null,null,null,null,0,null,null,null,null,0,null,null,null,null,0,null,null,null,null,0,null,null,null,null,0,null,"00000035225K120","00000","35.00","225","1213","00","00","XDG043AH0000035.002251213","00000"]
[890,"XDG04400000040225K120","XDG044","元張Ⅱ用ＥＰＳ断熱材（ｔ４０）","AH",0,7,null,null,290,null,null,null,null,0,null,null,null,null,0,null,null,null,null,0,null,null,null,null,0,null,null,null,null,0,null,null,null,null,0,null,null,null,null,0,null,null,null,null,0,null,null,null,null,0,null,null,null,null,0,null,null,null,null,0,null,null,null,null,0,null,null,null,null,0,null,null,null,null,0,null,null,null,null,0,null,null,null,null,0,null,null,null,null,0,null,null,null,null,0,null,null,null,null,0,null,null,null,null,0,null,"00000040225K120","00000","40.00","225","1213","00","00","XDG044AH0000040.002251213","00000"]
[891,"XDG04500000045225K120","XDG045","元張Ⅱ用ＥＰＳ断熱材（ｔ４５）","AH",0,15,null,null,320,null,null,null,null,0,null,null,null,null,0,null,null,null,null,0,null,null,null,null,0,null,null,null,null,0,null,null,null,null,0,null,null,null,null,0,null,null,null,null,0,null,null,null,null,0,null,null,null,null,0,null,null,null,null,0,null,null,null,null,0,null,null,null,null,0,null,null,null,null,0,null,null,null,null,0,null,null,null,null,0,null,null,null,null,0,null,null,null,null,0,null,null,null,null,0,null,null,null,null,0,null,"00000045225K120","00000","45.00","225","1213","00","00","XDG045AH0000045.002251213","00000"]
[892,"XDG04600000050225K120","XDG046","元張Ⅱ用ＥＰＳ断熱材（ｔ５０）","AH",0,11,null,null,350,null,null,null,null,0,null,null,null,null,0,null,null,null,null,0,null,null,null,null,0,null,null,null,null,0,null,null,null,null,0,null,null,null,null,0,null,null,null,null,0,null,null,null,null,0,null,null,null,null,0,null,null,null,null,0,null,null,null,null,0,null,null,null,null,0,null,null,null,null,0,null,null,null,null,0,null,null,null,null,0,null,null,null,null,0,null,null,null,null,0,null,null,null,null,0,null,null,null,null,0,null,"00000050225K120","00000","50.00","225","1213","00","00","XDG046AH0000050.002251213","00000"]
[893,"XDG04700000055225K120","XDG047","元張Ⅱ用ＥＰＳ断熱材（ｔ５５）","AH",0,15,null,null,380,null,null,null,null,0,null,null,null,null,0,null,null,null,null,0,null,null,null,null,0,null,null,null,null,0,null,null,null,null,0,null,null,null,null,0,null,null,null,null,0,null,null,null,null,0,null,null,null,null,0,null,null,null,null,0,null,null,null,null,0,null,null,null,null,0,null,null,null,null,0,null,null,null,null,0,null,null,null,null,0,null,null,null,null,0,null,null,null,null,0,null,null,null,null,0,null,null,null,null,0,null,"00000055225K120","00000","55.00","225","1213","00","00","XDG047AH0000055.002251213","00000"]
[894,"XDG04800000060225K120","XDG048","元張Ⅱ用ＥＰＳ断熱材（ｔ６０）","AH",0,234,null,null,410,null,null,null,null,0,null,null,null,null,0,null,null,null,null,0,null,null,null,null,0,null,null,null,null,0,null,null,null,null,0,null,null,null,null,0,null,null,null,null,0,null,null,null,null,0,null,null,null,null,0,null,null,null,null,0,null,null,null,null,0,null,null,null,null,0,null,null,null,null,0,null,null,null,null,0,null,null,null,null,0,null,null,null,null,0,null,null,null,null,0,null,null,null,null,0,null,null,null,null,0,null,"00000060225K120","00000","60.00","225","1213","00","00","XDG048AH0000060.002251213","00000"]
[895,"XDH006000000000000000","XDH006","ホットメルト　ＰＳ４７４－２","00",0,21,null,null,1169.80952,null,null,null,null,0,null,null,null,null,0,null,null,null,null,0,null,null,null,null,0,null,null,null,null,0,null,null,null,null,0,null,null,null,null,0,null,null,null,null,0,null,null,null,null,0,null,null,null,null,0,null,null,null,null,0,null,null,null,null,0,null,null,null,null,0,null,null,null,null,0,null,null,null,null,0,null,null,null,null,0,null,null,null,null,0,null,null,null,null,0,null,null,null,null,0,null,null,null,null,0,null,"000000000000000","00000","0.00","0","0","00","00","XDH00600000000.0000","00000"]
[896,"XDH007000000000000000","XDH007","シーカメルト６７６　２００ｋｇ","00",0,24.4,null,null,373592.90983999998,null,null,null,null,0,null,null,null,null,0,null,null,null,null,0,null,null,null,null,0,null,null,null,null,0,null,null,null,null,0,null,null,null,null,0,null,null,null,null,0,null,null,null,null,0,null,null,null,null,0,null,null,null,null,0,null,null,null,null,0,null,null,null,null,0,null,null,null,null,0,null,null,null,null,0,null,null,null,null,0,null,null,null,null,0,null,null,null,null,0,null,null,null,null,0,null,null,null,null,0,null,"000000000000000","00000","0.00","0","0","00","00","XDH00700000000.0000","00000"]
[897,{"$f":"C908&DH908","v":"XEA00100000100910K180"},"XEA001","ポリスチレンフォーム板","AP",{"$f":"O908+T908+Y908+AD908+AI908+AN908+AS908+AX908+BC908+BH908+BM908+BR908+BW908+CB908+CG908+CL908+CQ908+CV908+DA908+DF908","v":0},54,null,null,2993.9618999999998,null,null,null,null,{"$f":"(L908*M908)+N908","v":0},null,null,null,null,{"$f":"(Q908*R908)+S908","v":0},null,null,null,null,{"$f":"(V908*W908)+X908","v":0},null,null,null,null,{"$f":"(AA908*AB908)+AC908","v":0},null,null,null,null,{"$f":"(AF908*AG908)+AH908","v":0},null,null,null,null,{"$f":"(AK908*AL908)+AM908","v":0},null,null,null,null,{"$f":"(AP908*AQ908)+AR908","v":0},null,null,null,null,{"$f":"(AU908*AV908)+AW908","v":0},null,null,null,null,{"$f":"(AZ908*BA908)+BB908","v":0},null,null,null,null,{"$f":"(BE908*BF908)+BG908","v":0},null,null,null,null,{"$f":"(BJ908*BK908)+BL908","v":0},null,null,null,null,{"$f":"(BO908*BP908)+BQ908","v":0},null,null,null,null,{"$f":"(BT908*BU908)+BV908","v":0},null,null,null,null,{"$f":"(BY908*BZ908)+CA908","v":0},null,null,null,null,{"$f":"(CD908*CE908)+CF908","v":0},null,null,null,null,{"$f":"(CI908*CJ908)+CK908","v":0},null,null,null,null,{"$f":"(CN908*CO908)+CP908","v":0},null,null,null,null,{"$f":"(CS908*CT908)+CU908","v":0},null,null,null,null,{"$f":"(CX908*CY908)+CZ908","v":0},null,null,null,null,{"$f":"(DC908*DD908)+DE908","v":0},null,"00000100910K180","00000","100.00","910","1820","00","00",{"$f":"C908&E908&DP908&DJ908&DK908&DL908","v":"XEA001AP00000100.009101820"},"00000"]
[898,"XPA001000000000000000","XPA001","サーナＰＶ支持金具Ｓベース１６","NS",0,1361,null,null,245,null,null,null,null,0,null,null,null,null,0,null,null,null,null,0,null,null,null,null,0,null,null,null,null,0,null,null,null,null,0,null,null,null,null,0,null,null,null,null,0,null,null,null,null,0,null,null,null,null,0,null,null,null,null,0,null,null,null,null,0,null,null,null,null,0,null,null,null,null,0,null,null,null,null,0,null,null,null,null,0,null,null,null,null,0,null,null,null,null,0,null,null,null,null,0,null,null,null,null,0,null,"000000000000000","00000","0.00","0","0","00","00","XPA001NS000000.0000","00000"]
[899,"XPA002000000000000000","XPA002","シール座金／ＳＭ－１６シリコン","NS",0,555,null,null,360.22161999999997,null,null,null,null,0,null,null,null,null,0,null,null,null,null,0,null,null,null,null,0,null,null,null,null,0,null,null,null,null,0,null,null,null,null,0,null,null,null,null,0,null,null,null,null,0,null,null,null,null,0,null,null,null,null,0,null,null,null,null,0,null,null,null,null,0,null,null,null,null,0,null,null,null,null,0,null,null,null,null,0,null,null,null,null,0,null,null,null,null,0,null,null,null,null,0,null,null,null,null,0,null,"000000000000000","00000","0.00","0","0","00","00","XPA002NS000000.0000","00000"]
[900,"XPA003000000000000000","XPA003","ナット・ＳワッシャセットＭ１６","NS",0,471,null,null,22.097660000000001,null,null,null,null,0,null,null,null,null,0,null,null,null,null,0,null,null,null,null,0,null,null,null,null,0,null,null,null,null,0,null,null,null,null,0,null,null,null,null,0,null,null,null,null,0,null,null,null,null,0,null,null,null,null,0,null,null,null,null,0,null,null,null,null,0,null,null,null,null,0,null,null,null,null,0,null,null,null,null,0,null,null,null,null,0,null,null,null,null,0,null,null,null,null,0,null,null,null,null,0,null,"000000000000000","00000","0.00","0","0","00","00","XPA003NS000000.0000","00000"]
[901,"XPA004000000000000000","XPA004","サーナＰＶ支持金具Ｓベース１２","NS",0,7785,null,null,296.92563000000001,null,null,null,null,0,null,null,null,null,0,null,null,null,null,0,null,null,null,null,0,null,null,null,null,0,null,null,null,null,0,null,null,null,null,0,null,null,null,null,0,null,null,null,null,0,null,null,null,null,0,null,null,null,null,0,null,null,null,null,0,null,null,null,null,0,null,null,null,null,0,null,null,null,null,0,null,null,null,null,0,null,null,null,null,0,null,null,null,null,0,null,null,null,null,0,null,null,null,null,0,null,"000000000000000","00000","0.00","0","0","00","00","XPA004NS000000.0000","00000"]
[902,"XPA005000000000000000","XPA005","シール座金／ＳＭ－１２シリコン","NS",0,8312,null,null,219.52261999999999,null,null,null,null,0,null,null,null,null,0,null,null,null,null,0,null,null,null,null,0,null,null,null,null,0,null,null,null,null,0,null,null,null,null,0,null,null,null,null,0,null,null,null,null,0,null,null,null,null,0,null,null,null,null,0,null,null,null,null,0,null,null,null,null,0,null,null,null,null,0,null,null,null,null,0,null,null,null,null,0,null,null,null,null,0,null,null,null,null,0,null,null,null,null,0,null,null,null,null,0,null,"000000000000000","00000","0.00","0","0","00","00","XPA005NS000000.0000","00000"]
[903,"XPA006000000000000000","XPA006","ナット・ＳワッシャセットＭ１２","NS",0,8006,null,null,18.150259999999999,null,null,null,null,0,null,null,null,null,0,null,null,null,null,0,null,null,null,null,0,null,null,null,null,0,null,null,null,null,0,null,null,null,null,0,null,null,null,null,0,null,null,null,null,0,null,null,null,null,0,null,null,null,null,0,null,null,null,null,0,null,null,null,null,0,null,null,null,null,0,null,null,null,null,0,null,null,null,null,0,null,null,null,null,0,null,null,null,null,0,null,null,null,null,0,null,null,null,null,0,null,"000000000000000","00000","0.00","0","0","00","00","XPA006NS000000.0000","00000"]
[904,"XZZ999000005101250000","XZZ999","その他材料","00",0,739,null,null,8.5006799999999991,null,null,null,null,0,null,null,null,null,0,null,null,null,null,0,null,null,null,null,0,null,null,null,null,0,null,null,null,null,0,null,null,null,null,0,null,null,null,null,0,null,null,null,null,0,null,null,null,null,0,null,null,null,null,0,null,null,null,null,0,null,null,null,null,0,null,null,null,null,0,null,null,null,null,0,null,null,null,null,0,null,null,null,null,0,null,null,null,null,0,null,null,null,null,0,null,null,null,null,0,null,"000005101250000","00000","510.00","125","0","00","00","XZZ9990000000510.001250","00000"]
[905,"YAKCO00GRVC0.509140000","YAKCO00","役物コイル（Ｋｇ）","FG",0,80,null,null,516.98749999999995,null,null,null,null,0,null,null,null,null,0,null,null,null,null,0,null,null,null,null,0,null,null,null,null,0,null,null,null,null,0,null,null,null,null,0,null,null,null,null,0,null,null,null,null,0,null,null,null,null,0,null,null,null,null,0,null,null,null,null,0,null,null,null,null,0,null,null,null,null,0,null,null,null,null,0,null,null,null,null,0,null,null,null,null,0,null,null,null,null,0,null,null,null,null,0,null,null,null,null,0,null,"GRVC0.509140000","GRVC0 ニスクフロンＳＧＬ　ＦＧ１０４Ｓロクショウ","0.50","914","0","00","00","YAKCO00FGGRVC00.509140","GRVC0"]
[906,"YAKCO00GRVG0.50K000000","YAKCO00","役物コイル（Ｋｇ）","FG",0,160,null,null,313.49374999999998,null,null,null,null,0,null,null,null,null,0,null,null,null,null,0,null,null,null,null,0,null,null,null,null,0,null,null,null,null,0,null,null,null,null,0,null,null,null,null,0,null,null,null,null,0,null,null,null,null,0,null,null,null,null,0,null,null,null,null,0,null,null,null,null,0,null,null,null,null,0,null,null,null,null,0,null,null,null,null,0,null,null,null,null,0,null,null,null,null,0,null,null,null,null,0,null,null,null,null,0,null,"GRVG0.50K000000","GRVG0 ニスクフロンＳＧＬ　ＦＧ１０３Ｓ","0.50","1000","0","00","00","YAKCO00FGGRVG00.5010000","GRVG0"]
[907,"YAKCO00RDC60.505250000","YAKCO00","役物コイル（Ｋｇ）","CG",0,290,null,null,236,null,null,null,null,0,null,null,null,null,0,null,null,null,null,0,null,null,null,null,0,null,null,null,null,0,null,null,null,null,0,null,null,null,null,0,null,null,null,null,0,null,null,null,null,0,null,null,null,null,0,null,null,null,null,0,null,null,null,null,0,null,null,null,null,0,null,null,null,null,0,null,null,null,null,0,null,null,null,null,0,null,null,null,null,0,null,null,null,null,0,null,null,null,null,0,null,null,null,null,0,null,"RDC60.505250000","RDC60 ストロングカラーＶ３　ＧＪＥ１２／９０２","0.50","525","0","00","00","YAKCO00CGRDC600.505250","RDC60"]
[908,"YAKCO00RN810.404980000","YAKCO00","役物コイル（Ｋｇ）","FG",0,500,null,null,267.8,null,null,null,null,0,null,null,null,null,0,null,null,null,null,0,null,null,null,null,0,null,null,null,null,0,null,null,null,null,0,null,null,null,null,0,null,null,null,null,0,null,null,null,null,0,null,null,null,null,0,null,null,null,null,0,null,null,null,null,0,null,null,null,null,0,null,null,null,null,0,null,null,null,null,0,null,null,null,null,0,null,null,null,null,0,null,null,null,null,0,null,null,null,null,0,null,null,null,null,0,null,"RN810.404980000","RN810 チヨダカラーＨＦ２０　ＧＨ１５１","0.40","498","0","00","00","YAKCO00FGRN8100.404980","RN810"]
[909,"YAKCO00RN830.40K000000","YAKCO00","役物コイル（Ｋｇ）","CG",0,65,null,null,374.18462,null,null,null,null,0,null,null,null,null,0,null,null,null,null,0,null,null,null,null,0,null,null,null,null,0,null,null,null,null,0,null,null,null,null,0,null,null,null,null,0,null,null,null,null,0,null,null,null,null,0,null,null,null,null,0,null,null,null,null,0,null,null,null,null,0,null,null,null,null,0,null,null,null,null,0,null,null,null,null,0,null,null,null,null,0,null,null,null,null,0,null,null,null,null,0,null,null,null,null,0,null,"RN830.40K000000","RN830 チヨダカラーＧＬＲＮＯ－７　Ｇ１１Ｅ／９０２","0.40","1000","0","00","00","YAKCO00CGRN8300.4010000","RN830"]
[910,"YAKCO00RNSL0.453320000","YAKCO00","役物コイル（Ｋｇ）","FG",0,70,null,null,622.77143000000001,null,null,null,null,0,null,null,null,null,0,null,null,null,null,0,null,null,null,null,0,null,null,null,null,0,null,null,null,null,0,null,null,null,null,0,null,null,null,null,0,null,null,null,null,0,null,null,null,null,0,null,null,null,null,0,null,null,null,null,0,null,null,null,null,0,null,null,null,null,0,null,null,null,null,0,null,null,null,null,0,null,null,null,null,0,null,null,null,null,0,null,null,null,null,0,null,null,null,null,0,null,"RNSL0.453320000","RNSL0 ニスクフロンＳＧＬ　ＲＮＯ－７","0.45","332","0","00","00","YAKCO00FGRNSL00.453320","RNSL0"]
[911,"YAKCO00TWH00.50K000000","YAKCO00","役物コイル（Ｋｇ）","CG",0,60,null,null,316.05,null,null,null,null,0,null,null,null,null,0,null,null,null,null,0,null,null,null,null,0,null,null,null,null,0,null,null,null,null,0,null,null,null,null,0,null,null,null,null,0,null,null,null,null,0,null,null,null,null,0,null,null,null,null,0,null,null,null,null,0,null,null,null,null,0,null,null,null,null,0,null,null,null,null,0,null,null,null,null,0,null,null,null,null,0,null,null,null,null,0,null,null,null,null,0,null,null,null,null,0,null,"TWH00.50K000000","TWH00 ＧＪＥ１２／ＧＪＥ１２","0.50","1000","0","00","00","YAKCO00CGTWH000.5010000","TWH00"]
[912,"YAKCO01BKBKN.40K0012K0","YAKCO01","役物コイル（本）","CG",0,27,null,null,16567.7,null,null,null,null,0,null,null,null,null,0,null,null,null,null,0,null,null,null,null,0,null,null,null,null,0,null,null,null,null,0,null,null,null,null,0,null,null,null,null,0,null,null,null,null,0,null,null,null,null,0,null,null,null,null,0,null,null,null,null,0,null,null,null,null,0,null,null,null,null,0,null,null,null,null,0,null,null,null,null,0,null,null,null,null,0,null,null,null,null,0,null,null,null,null,0,null,null,null,null,0,null,"BKBKN.40K0012K0","BKBKN GTNブラック","0.40","1000","12000","00","00","YAKCO01CGBKBKN0.40100012000","BKBKN"]
[913,"YAKCO01BW410.4091412K0","YAKCO01","役物コイル（本）","CG",0,1,null,null,15340,null,null,null,null,0,null,null,null,null,0,null,null,null,null,0,null,null,null,null,0,null,null,null,null,0,null,null,null,null,0,null,null,null,null,0,null,null,null,null,0,null,null,null,null,0,null,null,null,null,0,null,null,null,null,0,null,null,null,null,0,null,null,null,null,0,null,null,null,null,0,null,null,null,null,0,null,null,null,null,0,null,null,null,null,0,null,null,null,null,0,null,null,null,null,0,null,null,null,null,0,null,"BW410.4091412K0","BW410 ニスクカラーつやありＲＭ０２１（Ｍ）","0.40","914","12000","00","00","YAKCO01CGBW4100.4091412000","BW410"]
[914,"YAKCO01GLU90.40K0012K0","YAKCO01","役物コイル（本）","CG",0,2,null,null,12743.166670000001,null,null,null,null,0,null,null,null,null,0,null,null,null,null,0,null,null,null,null,0,null,null,null,null,0,null,null,null,null,0,null,null,null,null,0,null,null,null,null,0,null,null,null,null,0,null,null,null,null,0,null,null,null,null,0,null,null,null,null,0,null,null,null,null,0,null,null,null,null,0,null,null,null,null,0,null,null,null,null,0,null,null,null,null,0,null,null,null,null,0,null,null,null,null,0,null,null,null,null,0,null,"GLU90.40K0012K0","GLU90 サンライトＧＬＲＭ８０（Ｍ）　ＯＲＭ８０／ＯＧＲ","0.40","1000","12000","00","00","YAKCO01CGGLU900.40100012000","GLU90"]
[915,"YAKCO01GLVB0.4591412K0","YAKCO01","役物コイル（本）","FG",0,8,null,null,22363,null,null,null,null,0,null,null,null,null,0,null,null,null,null,0,null,null,null,null,0,null,null,null,null,0,null,null,null,null,0,null,null,null,null,0,null,null,null,null,0,null,null,null,null,0,null,null,null,null,0,null,null,null,null,0,null,null,null,null,0,null,null,null,null,0,null,null,null,null,0,null,null,null,null,0,null,null,null,null,0,null,null,null,null,0,null,null,null,null,0,null,null,null,null,0,null,null,null,null,0,null,"GLVB0.4591412K0","GLVB0 チヨダＨＦ２０　ＧＨ７５４　Ｎ－４０","0.45","914","12000","00","00","YAKCO01FGGLVB00.4591412000","GLVB0"]
[916,"YAKCO01GR5D0.40K0012K0","YAKCO01","役物コイル（本）","CG",0,3,null,null,17571.8,null,null,null,null,0,null,null,null,null,0,null,null,null,null,0,null,null,null,null,0,null,null,null,null,0,null,null,null,null,0,null,null,null,null,0,null,null,null,null,0,null,null,null,null,0,null,null,null,null,0,null,null,null,null,0,null,null,null,null,0,null,null,null,null,0,null,null,null,null,0,null,null,null,null,0,null,null,null,null,0,null,null,null,null,0,null,null,null,null,0,null,null,null,null,0,null,null,null,null,0,null,"GR5D0.40K0012K0","GR5D0 サンライトＧＬＲＧ８５　ＯＲＧ８５／ＯＲＧ","0.40","1000","12000","00","00","YAKCO01CGGR5D00.40100012000","GR5D0"]
[917,"YAKCO01GR7V0.40K0012K0","YAKCO01","役物コイル（本）","FG",0,1,null,null,12096,null,null,null,null,0,null,null,null,null,0,null,null,null,null,0,null,null,null,null,0,null,null,null,null,0,null,null,null,null,0,null,null,null,null,0,null,null,null,null,0,null,null,null,null,0,null,null,null,null,0,null,null,null,null,0,null,null,null,null,0,null,null,null,null,0,null,null,null,null,0,null,null,null,null,0,null,null,null,null,0,null,null,null,null,0,null,null,null,null,0,null,null,null,null,0,null,null,null,null,0,null,"GR7V0.40K0012K0","GR7V0 耐摩フロンＧＬＴＦ７７ロクショウ","0.40","1000","12000","00","00","YAKCO01FGGR7V00.40100012000","GR7V0"]
[918,"YAKCO01GRSQ0.35K0012K0","YAKCO01","役物コイル（本）","CG",0,1,null,null,15095,null,null,null,null,0,null,null,null,null,0,null,null,null,null,0,null,null,null,null,0,null,null,null,null,0,null,null,null,null,0,null,null,null,null,0,null,null,null,null,0,null,null,null,null,0,null,null,null,null,0,null,null,null,null,0,null,null,null,null,0,null,null,null,null,0,null,null,null,null,0,null,null,null,null,0,null,null,null,null,0,null,null,null,null,0,null,null,null,null,0,null,null,null,null,0,null,null,null,null,0,null,"GRSQ0.35K0012K0","GRSQ0 チヨダストロングカラー　ＮＥＸＴ　ＧＥ０２","0.35","1000","12000","00","00","YAKCO01CGGRSQ00.35100012000","GRSQ0"]
[919,"YAKCO01RNG30.45K0012K0","YAKCO01","役物コイル（本）","CS",0,2,null,null,31172.6,null,null,null,null,0,null,null,null,null,0,null,null,null,null,0,null,null,null,null,0,null,null,null,null,0,null,null,null,null,0,null,null,null,null,0,null,null,null,null,0,null,null,null,null,0,null,null,null,null,0,null,null,null,null,0,null,null,null,null,0,null,null,null,null,0,null,null,null,null,0,null,null,null,null,0,null,null,null,null,0,null,null,null,null,0,null,null,null,null,0,null,null,null,null,0,null,null,null,null,0,null,"RNG30.45K0012K0","RNG30 ＲＮＯ－７　（レンガ）ＣＳ","0.45","1000","12000","00","00","YAKCO01CSRNG300.45100012000","RNG30"]
[920,"YAKCO01SL3C0.5091412K0","YAKCO01","役物コイル（本）","FG",0,5,null,null,20565.400000000001,null,null,null,null,0,null,null,null,null,0,null,null,null,null,0,null,null,null,null,0,null,null,null,null,0,null,null,null,null,0,null,null,null,null,0,null,null,null,null,0,null,null,null,null,0,null,null,null,null,0,null,null,null,null,0,null,null,null,null,0,null,null,null,null,0,null,null,null,null,0,null,null,null,null,0,null,null,null,null,0,null,null,null,null,0,null,null,null,null,0,null,null,null,null,0,null,null,null,null,0,null,"SL3C0.5091412K0","SL3C0 ニスクフロンＦＭ１０８シルバーブラック（Ｍ）","0.50","914","12000","00","00","YAKCO01FGSL3C00.5091412000","SL3C0"]
[921,"YAKCO02BKT20.50K00K000","YAKCO02","役物コイル（ｍ）","CG",0,60,null,null,0,null,null,null,null,0,null,null,null,null,0,null,null,null,null,0,null,null,null,null,0,null,null,null,null,0,null,null,null,null,0,null,null,null,null,0,null,null,null,null,0,null,null,null,null,0,null,null,null,null,0,null,null,null,null,0,null,null,null,null,0,null,null,null,null,0,null,null,null,null,0,null,null,null,null,0,null,null,null,null,0,null,null,null,null,0,null,null,null,null,0,null,null,null,null,0,null,null,null,null,0,null,"BKT20.50K00K000","BKT20 チヨダカラーＧＬＧＥＲ１０／９０２　ＳＨブラック","0.50","1000","1000","00","00","YAKCO02CGBKT200.5010001000","BKT20"]
[922,"YAKCO02GLG30.80914K000","YAKCO02","役物コイル（ｍ）","CS",0,50,null,null,5090.8999999999996,null,null,null,null,0,null,null,null,null,0,null,null,null,null,0,null,null,null,null,0,null,null,null,null,0,null,null,null,null,0,null,null,null,null,0,null,null,null,null,0,null,null,null,null,0,null,null,null,null,0,null,null,null,null,0,null,null,null,null,0,null,null,null,null,0,null,null,null,null,0,null,null,null,null,0,null,null,null,null,0,null,null,null,null,0,null,null,null,null,0,null,null,null,null,0,null,null,null,null,0,null,"GLG30.80914K000","GLG30 ＧＬＯ－３（グレー）ＣＳ","0.80","914","1000","00","00","YAKCO02CSGLG300.809141000","GLG30"]
[923,"YAKCO02SL5T0.40K00K000","YAKCO02","役物コイル（ｍ）","CG",0,50,null,null,1285.1199999999999,null,null,null,null,0,null,null,null,null,0,null,null,null,null,0,null,null,null,null,0,null,null,null,null,0,null,null,null,null,0,null,null,null,null,0,null,null,null,null,0,null,null,null,null,0,null,null,null,null,0,null,null,null,null,0,null,null,null,null,0,null,null,null,null,0,null,null,null,null,0,null,null,null,null,0,null,null,null,null,0,null,null,null,null,0,null,null,null,null,0,null,null,null,null,0,null,null,null,null,0,null,"SL5T0.40K00K000","SL5T0 極みＭＡＸ　Ｋ０４５　ＫＮＣシルバーブラック（Ｍ","0.40","1000","1000","00","00","YAKCO02CGSL5T00.4010001000","SL5T0"]
[924,"YAKCO02SL8D0.40498K000","YAKCO02","役物コイル（ｍ）","CG",0,28,null,null,977.57142999999996,null,null,null,null,0,null,null,null,null,0,null,null,null,null,0,null,null,null,null,0,null,null,null,null,0,null,null,null,null,0,null,null,null,null,0,null,null,null,null,0,null,null,null,null,0,null,null,null,null,0,null,null,null,null,0,null,null,null,null,0,null,null,null,null,0,null,null,null,null,0,null,null,null,null,0,null,null,null,null,0,null,null,null,null,0,null,null,null,null,0,null,null,null,null,0,null,null,null,null,0,null,"SL8D0.40498K000","SL8D0 チヨダカラーLXつや有　GLX760シルバー","0.40","498","1000","00","00","YAKCO02CGSL8D00.404981000","SL8D0"]
[925,"YBTKA00000005011740000","YBTKA00","横葺付属部品特注製作品ー１","00",0,280,null,null,561.27499999999998,null,null,null,null,0,null,null,null,null,0,null,null,null,null,0,null,null,null,null,0,null,null,null,null,0,null,null,null,null,0,null,null,null,null,0,null,null,null,null,0,null,null,null,null,0,null,null,null,null,0,null,null,null,null,0,null,null,null,null,0,null,null,null,null,0,null,null,null,null,0,null,null,null,null,0,null,null,null,null,0,null,null,null,null,0,null,null,null,null,0,null,null,null,null,0,null,null,null,null,0,null,"000005011740000","00000","501.00","174","0","00","00","YBTKA000000000501.001740","00000"]
[926,"YBTKA00000005400430000","YBTKA00","横葺付属部品特注製作品ー１","00",80,80,null,null,614.36249999999995,160,0,0,80,80,null,null,null,null,0,null,null,null,null,0,null,null,null,null,0,null,null,null,null,0,null,null,null,null,0,null,null,null,null,0,null,null,null,null,0,null,null,null,null,0,null,null,null,null,0,null,null,null,null,0,null,null,null,null,0,null,null,null,null,0,null,null,null,null,0,null,null,null,null,0,null,null,null,null,0,null,null,null,null,0,null,null,null,null,0,null,null,null,null,0,null,null,null,null,0,null,"000005400430000","00000","540.00","43","0","00","00","YBTKA000000000540.00430","00000"]
[927,"YBTKB00000005002410000","YBTKB00","横葺付属部品特注品－１","00",0,268,null,null,650,null,null,null,null,0,null,null,null,null,0,null,null,null,null,0,null,null,null,null,0,null,null,null,null,0,null,null,null,null,0,null,null,null,null,0,null,null,null,null,0,null,null,null,null,0,null,null,null,null,0,null,null,null,null,0,null,null,null,null,0,null,null,null,null,0,null,null,null,null,0,null,null,null,null,0,null,null,null,null,0,null,null,null,null,0,null,null,null,null,0,null,null,null,null,0,null,null,null,null,0,null,"000005002410000","00000","500.00","241","0","00","00","YBTKB000000000500.002410","00000"]
[928,"YUK1Z00MK0101.6000K000","YUK1Z00","ユ鋼","MF",0,218.92,null,null,947.59272999999996,null,null,null,null,0,null,null,null,null,0,null,null,null,null,0,null,null,null,null,0,null,null,null,null,0,null,null,null,null,0,null,null,null,null,0,null,null,null,null,0,null,null,null,null,0,null,null,null,null,0,null,null,null,null,0,null,null,null,null,0,null,null,null,null,0,null,null,null,null,0,null,null,null,null,0,null,null,null,null,0,null,null,null,null,0,null,null,null,null,0,null,null,null,null,0,null,null,null,null,0,null,"MK0101.6000K000","MK010 亜鉛メッキ処理","1.60","0","0","00","00","YUK1Z00MFMK0101.6000","MK010"]
[929,"YUK1ZE0000000000000000","YUK1ZE0","ユ鋼　Ｌ－１００断熱金具","MF",0,266,null,null,362.66917000000001,null,null,null,null,0,null,null,null,null,0,null,null,null,null,0,null,null,null,null,0,null,null,null,null,0,null,null,null,null,0,null,null,null,null,0,null,null,null,null,0,null,null,null,null,0,null,null,null,null,0,null,null,null,null,0,null,null,null,null,0,null,null,null,null,0,null,null,null,null,0,null,null,null,null,0,null,null,null,null,0,null,null,null,null,0,null,null,null,null,0,null,null,null,null,0,null,null,null,null,0,null,"000000000000000","00000","0.00","0","1000","00","00","YUK1ZE0MF000000.0001000","00000"]
[930,"YUK1ZE3000000000000000","YUK1ZE3","ユ鋼　沈み込み防止スペーサー","MF",0,7395,null,null,39.323459999999997,null,null,null,null,0,null,null,null,null,0,null,null,null,null,0,null,null,null,null,0,null,null,null,null,0,null,null,null,null,0,null,null,null,null,0,null,null,null,null,0,null,null,null,null,0,null,null,null,null,0,null,null,null,null,0,null,null,null,null,0,null,null,null,null,0,null,null,null,null,0,null,null,null,null,0,null,null,null,null,0,null,null,null,null,0,null,null,null,null,0,null,null,null,null,0,null,null,null,null,0,null,"000000000000000","00000","0.00","390","1000","98","00","YUK1ZE3MF000000.003901000","00000"]
[931,"YUK1ZE4000000000000000","YUK1ZE4","ユ鋼　ジョイントパイプ","00",0,2469,null,null,60.049010000000003,null,null,null,null,0,null,null,null,null,0,null,null,null,null,0,null,null,null,null,0,null,null,null,null,0,null,null,null,null,0,null,null,null,null,0,null,null,null,null,0,null,null,null,null,0,null,null,null,null,0,null,null,null,null,0,null,null,null,null,0,null,null,null,null,0,null,null,null,null,0,null,null,null,null,0,null,null,null,null,0,null,null,null,null,0,null,null,null,null,0,null,null,null,null,0,null,null,null,null,0,null,"000000000000000","00000","0.00","0","0","00","00","YUK1ZE400000000.0000","00000"]
[932,"YUK1ZE5000000000000000","YUK1ZE5","ユ鋼　落下防止金網　フック","MF",0,8331,null,null,29,null,null,null,null,0,null,null,null,null,0,null,null,null,null,0,null,null,null,null,0,null,null,null,null,0,null,null,null,null,0,null,null,null,null,0,null,null,null,null,0,null,null,null,null,0,null,null,null,null,0,null,null,null,null,0,null,null,null,null,0,null,null,null,null,0,null,null,null,null,0,null,null,null,null,0,null,null,null,null,0,null,null,null,null,0,null,null,null,null,0,null,null,null,null,0,null,null,null,null,0,null,"000000000000000","00000","0.00","500","1000","25","00","YUK1ZE5MF000000.005001000","00000"]
[933,"YUK1ZU0000000000000000","YUK1ZU0","ユ鋼　Ｍ１２ボルト・ナット","00",10740,10740,null,null,46.695439999999998,1,0,0,740,740,2,0,0,10000,10000,null,null,null,null,0,null,null,null,null,0,null,null,null,null,0,null,null,null,null,0,null,null,null,null,0,null,null,null,null,0,null,null,null,null,0,null,null,null,null,0,null,null,null,null,0,null,null,null,null,0,null,null,null,null,0,null,null,null,null,0,null,null,null,null,0,null,null,null,null,0,null,null,null,null,0,null,null,null,null,0,null,null,null,null,0,null,null,null,null,0,null,"000000000000000","00000","0.00","0","0","00","00","YUK1ZU000000000.0000","00000"]

{"sheet":"Sheet2","index":2,"n_rows":6,"n_cols":120,"rows_kept":6,"cut":false,"hidden":false,"merged":[]}
[1,2,3,4,5,6,7,8,9,10,11,12,13,14,15,16,17,18,19,20,21,22,23,24,25,26,27,28,29,30,31,32,33,34,35,36,37,38,39,40,41,42,43,44,45,46,47,48,49,50,51,52,53,54,55,56,57,58,59,60,61,62,63,64,65,66,67,68,69,70,71,72,73,74,75,76,77,78,79,80,81,82,83,84,85,86,87,88,89,90,91,92,93,94,95,96,97,98,99,100,101,102,103,104,105,106,107,108,109,110,111,112,113,114,115,116,117,118,119,120]
[null,null,"工場","00100"]
[]
[null,null,"製品コード","製品名","材質","数量","在庫数","実棚数","差異","金額","SEQ","箱入数","箱数","バラ","小計","SEQ","箱入数","箱数","バラ","小計","SEQ","箱入数","箱数","バラ","小計","SEQ","箱入数","箱数","バラ","小計","SEQ","箱入数","箱数","バラ","小計","SEQ","箱入数","箱数","バラ","小計","SEQ","箱入数","箱数","バラ","小計","SEQ","箱入数","箱数","バラ","小計","SEQ","箱入数","箱数","バラ","小計","SEQ","箱入数","箱数","バラ","小計","SEQ","箱入数","箱数","バラ","小計","SEQ","箱入数","箱数","バラ","小計","SEQ","箱入数","箱数","バラ","小計","SEQ","箱入数","箱数","バラ","小計","SEQ","箱入数","箱数","バラ","小計","SEQ","箱入数","箱数","バラ","小計","SEQ","箱入数","箱数","バラ","小計","SEQ","箱入数","箱数","バラ","小計","SEQ","箱入数","箱数","バラ","小計","SEQ","箱入数","箱数","バラ","小計","備考","規格","色調名","板厚","幅","長さ","OP1","OP2"]
[933,{"$f":"C5&DH5","v":"YUK1ZU0000000000000000"},"YUK1ZU0","ユ鋼　Ｍ１２ボルト・ナット","00",{"$f":"O5+T5+Y5+AD5+AI5+AN5+AS5+AX5+BC5+BH5+BM5+BR5+BW5+CB5+CG5+CL5+CQ5+CV5+DA5+DF5","v":0},10740,null,null,46.695439999999998,null,null,null,null,{"$f":"(L5*M5)+N5","v":0},null,null,null,null,{"$f":"(Q5*R5)+S5","v":0},null,null,null,null,{"$f":"(V5*W5)+X5","v":0},null,null,null,null,{"$f":"(AA5*AB5)+AC5","v":0},null,null,null,null,{"$f":"(AF5*AG5)+AH5","v":0},null,null,null,null,{"$f":"(AK5*AL5)+AM5","v":0},null,null,null,null,{"$f":"(AP5*AQ5)+AR5","v":0},null,null,null,null,{"$f":"(AU5*AV5)+AW5","v":0},null,null,null,null,{"$f":"(AZ5*BA5)+BB5","v":0},null,null,null,null,{"$f":"(BE5*BF5)+BG5","v":0},null,null,null,null,{"$f":"(BJ5*BK5)+BL5","v":0},null,null,null,null,{"$f":"(BO5*BP5)+BQ5","v":0},null,null,null,null,{"$f":"(BT5*BU5)+BV5","v":0},null,null,null,null,{"$f":"(BY5*BZ5)+CA5","v":0},null,null,null,null,{"$f":"(CD5*CE5)+CF5","v":0},null,null,null,null,{"$f":"(CI5*CJ5)+CK5","v":0},null,null,null,null,{"$f":"(CN5*CO5)+CP5","v":0},null,null,null,null,{"$f":"(CS5*CT5)+CU5","v":0},null,null,null,null,{"$f":"(CX5*CY5)+CZ5","v":0},null,null,null,null,{"$f":"(DC5*DD5)+DE5","v":0},null,"000000000000000","00000","0.00","0","0","00","00",{"$f":"C5&E5&DP5&DJ5&DK5&DL5","v":"YUK1ZU000000000.0000"},"00000"]
[null,{"$f":"C6&DH6","v":""},null,null,null,{"$f":"+(L6*M6)+N6+(Q6*R6)+S6+(V6*W6)+X6","v":0}]

{"sheet":"iE_Setting","index":3,"n_rows":171,"n_cols":4,"rows_kept":171,"cut":false,"hidden":true,"merged":[]}
["http://10.6.1.5/EVOLIOWebService/Service.asmx"]
[0]
[0]
[]
[]
[]
[]
[]
[]
[]
[null,"C000000002"]
[null,"G000000044"]
[null,"レポート_S_棚卸一覧2_対応付け"]
[null,"レポート_S_棚卸一覧2"]
[]
[null,1,null,1]
[null,4]
[null,0]
[]
[null,"<?xml version=\"1.0\" encoding=\"utf-16\"?><ReportDefine xmlns:xsd=\"http://www.w3.org/2001/XMLSchema\" xmlns:xsi=\"http://www.w3.org/2001/XMLSchema-instance\"><ReportSheet>Sheet1</ReportSheet><ReportSheetCol>2</ReportSheetCol><ReportStartCell>$12:$12</ReportStartCell><ReportPageRows>0</ReportPageRows><ReportAnotherFile>false</ReportAnotherFile><ReportFileRequest>false</ReportFileRequest><LayoutSheet>Sheet2</LayoutSheet><LayoutSheetCol>4</LayoutSheetCol><LayoutSheetHidden>false</LayoutSheetHidden><ReportHeaderCell /><ReportHeaderFlag>false</ReportHeaderFlag><PageHeaderCell /><DetailCell>$5:$5</DetailCell><DetailCell2>$6:$6</DetailCell2><DetailCount>0</DetailCount><DetailSpaceFlag>false</DetailSpaceFlag><DetailSpaceEven>false</DetailSpaceEven><PageFooterCell /><ReportFooterCell /><ReportFooterFlag>false</ReportFooterFlag><GroupInfo /></ReportDefine>"]
[null,"S棚卸2"]
[null,"<condition><para name=\"$倉庫$\" sheet=\"Sheet1\" sheetcol=\"2\" cell=\"E4\" /><para name=\"$商品$\" sheet=\"Sheet1\" sheetcol=\"2\" cell=\"E5\" /><para name=\"$材質$\" sheet=\"Sheet1\" sheetcol=\"2\" cell=\"E6\" /><para name=\"$色調$\" sheet=\"Sheet1\" sheetcol=\"2\" cell=\"E7\" /></condition>"]
[]
[]
[]
[]
[]
[]
[]
[]
[]
[]
[]
[]
[]
[]
[]
[]
[]
[]
[]
[]
[]
[]
[]
[]
[]
[]
[]
[]
[]
[]
[]
[]
[]
[]
[]
[]
[]
[]
[]
[]
[]
[]
[]
[]
[]
[]
[]
[]
[]
[]
[]
[]
[]
[]
[]
[]
[]
[]
[]
[]
[]
[]
[]
[]
[]
[]
[]
[null,0]
[]
[null,0]
[]
[]
[]
[]
[]
[]
[]
[]
[]
[null,24]
[null,"ExtractButton_2"]
[]
[null,"Button"]
[null,48]
[null,14.25]
[null,58.5]
[null,"Placement"]
[null,3]
[]
[]
[null,"<?xml version=\"1.0\" encoding=\"utf-16\"?><ButtonOption xmlns:xsd=\"http://www.w3.org/2001/XMLSchema\" xmlns:xsi=\"http://www.w3.org/2001/XMLSchema-instance\"><MsgBeforeFlag>false</MsgBeforeFlag><MsgBefore /><MsgAfterFlag>false</MsgAfterFlag><MsgAfter /><CurSheetName /><CurSheetCol>0</CurSheetCol></ButtonOption>"]
[]
[]
[]
[]
[]
[]
[]
[]
[]
[]
[]
[]
[]
[]
[]
[]
[]
[]
[]
[null,"<?xml version=\"1.0\" encoding=\"utf-16\"?><ButtonOption xmlns:xsd=\"http://www.w3.org/2001/XMLSchema\" xmlns:xsi=\"http://www.w3.org/2001/XMLSchema-instance\"><MsgBeforeFlag>true</MsgBeforeFlag><MsgBefore /><MsgAfterFlag>true</MsgAfterFlag><MsgAfter /><CurSheetName /><CurSheetCol>0</CurSheetCol></ButtonOption>"]
[]
[]
[]
[]
[]
[]
[]
[]
[]
[]
[null,"検索"]
[]
[]
[]
[]
[]
[]
[]
[]
[]
[]
[]
[]
[]
[]
[]
[]
[]
[]
[]
[]
[]
[]
[]
[]
[]
[]
[null,0]